{"text_format":"1","workbook":"xlsx","n_sheets":33,"sheets":["Inhalt","1.Hauptberufl. WiKue","1.1","1.2","1.3","1.4","1.5","1.6","1.7","1.8","1.9","1.10","2.Habil. je Alter&Geschlecht","2.1","2.2","3.Hauptberuf.Wikü,Befrist,VZTZ","3.1","3.2","3.3","3.4","4.WiKü FH VERWFH und UNI GGHS ","4.1","5.HS-Kliniken Personal","5.1","6.Neuberufene Professoren","6.1","6.2","6.3","6.4","6.5","7.Prof. auf Dauer, auf Zeit","7.1","7.2"],"not_rendered":{"charts":0,"images":0,"macros":1,"external_links":0,"defined_names":10,"comments":0,"pivot_tables":0},"unopened":[],"bounds":{"document_bytes":16777216,"sheet_cells":100000,"rows_first":2000,"rows_last":500,"rows_between":2000,"halvings":0,"cell_chars":16384,"cell_head_chars":4096},"cells_cut":0,"cells_raw":0,"read":"whole","date_system":"1900"}

{"sheet":"Inhalt","index":0,"n_rows":9,"n_cols":12,"rows_kept":9,"cut":false,"hidden":false,"merged":[[7,2,7,10],[8,2,8,10],[6,2,6,10],[2,2,2,10],[3,2,3,10],[4,2,4,10],[5,2,5,10]]}
[null,null,"Statistisches Bundesamt (2016): Personal an Hochschulen, Sonderauswertung, Wiesbaden"]
[]
[null,"1.","Hauptberufliches wissenschaftliches und künstlerisches Personal nach dem Beschäftigungsverhältnis, Geschlecht und der Finanzierung aus Grund- und Drittmitteln 2000,'05, '10, '14",null,null,null,null,null,null,null,null,"zur Auswertung"]
[null,"2.","Habilitationen nach Alter und Geschlecht 2009, '10, '11, '12, '13, '14",null,null,null,null,null,null,null,null,"zur Auswertung"]
[null,"3.","Hauptberufliches wissenschaftliches und künstlerisches Personal (ohne Professoren) im Alter bis 44 Jahren an Universitäten und gleichgestellten Hochschulen nach Beschäftigungsumfang und Befristung 2014",null,null,null,null,null,null,null,null,"zur Auswertung"]
[null,"4.","Wissenschaftliches und künstlerisches Personal nach Hochschularten, Fächergruppen und Lehr- und Forschungsbereichen, der fachlichen Zugehörigkeit, Beschäftigungsverhältnissen und Personalgruppen 2014",null,null,null,null,null,null,null,null,"zur Auswertung"]
[null,"5.","Personal insgesamt an Hochschulkliniken nach Land, Institution und Personalkategorie 2014",null,null,null,null,null,null,null,null,"zur Auswertung"]
[null,"6.","Neuberufene Professoren",null,null,null,null,null,null,null,null,"zur Auswertung"]
[null,"7.","Professoren auf Dauer und auf Zeit",null,null,null,null,null,null,null,null,"zur Auswertung"]

{"sheet":"1.Hauptberufl. WiKue","index":1,"n_rows":0,"n_cols":0,"rows_kept":0,"cut":false,"hidden":false,"merged":[]}

{"sheet":"1.1","index":2,"n_rows":130,"n_cols":16,"rows_kept":130,"cut":false,"hidden":false,"merged":[]}
["Statistisches Bundesamt"]
["H201 - Hochschulstatistik"]
[]
[]
["Hauptberufliches wissenschaftliches und künstlerisches Personal (ohne Professoren) nach ausgewählten Hochschularten, Fächer- und Personalgruppen "]
["im Berichtsjahr 2014"]
[]
[null,null,null,null,null,null,null,"Hauptber. wiss. und ",null,null,"Hauptber. wiss. und ",null,null,"Hauptber. wiss. und "]
[null,null,null,null,null,null,null,"künstler. Personal",null,null,"künstler. Personal",null,null,"künstler. Personal"]
[null,"Hochschulart",null,"Fächergruppe",null,"Personalgruppe","Ge-","(ohne Professoren)",null,null,"(ohne Professoren)",null,null,"(ohne Professoren)"]
[null,null,null,"der fachl. Zugehörigkeit",null,null,"schlecht",null,null,null,"im Alter bis einschl. 34 Jahren",null,null,"im Alter bis einschl. 44 Jahren"]
[null,null,null,null,null,null,null,"insgesamt","auf Dauer","auf Zeit","insgesamt","auf Dauer","auf Zeit","insgesamt","auf Dauer","auf Zeit"]
[]
[1,"Wiss. Hochschulen",1,"Sprach- und Kulturwissenschaften",3,"Wiss. u. künstl. Mitarbeiter","m",7358,1208,6150,3576,62,3514,5772,327,5445]
[1,"Wiss. Hochschulen",1,"Sprach- und Kulturwissenschaften",3,"Wiss. u. künstl. Mitarbeiter","w",10367,1182,9185,6257,102,6155,8809,369,8440]
[1,"Wiss. Hochschulen",1,"Sprach- und Kulturwissenschaften",3,"Wiss. u. künstl. Mitarbeiter","i",17725,2390,15335,9833,164,9669,14581,696,13885]
[1,"Wiss. Hochschulen",1,"Sprach- und Kulturwissenschaften",4,"Lehrkr. f. bes. Aufgaben + Doz. u. Assistenten","m",1374,634,740,262,19,243,711,174,537]
[1,"Wiss. Hochschulen",1,"Sprach- und Kulturwissenschaften",4,"Lehrkr. f. bes. Aufgaben + Doz. u. Assistenten","w",2030,868,1162,479,42,437,1173,295,878]
[1,"Wiss. Hochschulen",1,"Sprach- und Kulturwissenschaften",4,"Lehrkr. f. bes. Aufgaben + Doz. u. Assistenten","i",3404,1502,1902,741,61,680,1884,469,1415]
[1,"Wiss. Hochschulen",1,"Sprach- und Kulturwissenschaften","~~","zusammen","m",8732,1842,6890,3838,81,3757,6483,501,5982]
[1,"Wiss. Hochschulen",1,"Sprach- und Kulturwissenschaften","~~","zusammen","w",12397,2050,10347,6736,144,6592,9982,664,9318]
[1,"Wiss. Hochschulen",1,"Sprach- und Kulturwissenschaften","~~","zusammen","i",21129,3892,17237,10574,225,10349,16465,1165,15300]
[1,"Wiss. Hochschulen",3,"Rechts-, Wirtschafts- und Sozialwissenschaften",3,"Wiss. u. künstl. Mitarbeiter","m",8310,445,7865,6546,31,6515,7802,151,7651]
[1,"Wiss. Hochschulen",3,"Rechts-, Wirtschafts- und Sozialwissenschaften",3,"Wiss. u. künstl. Mitarbeiter","w",6143,273,5870,4870,32,4838,5758,99,5659]
[1,"Wiss. Hochschulen",3,"Rechts-, Wirtschafts- und Sozialwissenschaften",3,"Wiss. u. künstl. Mitarbeiter","i",14453,718,13735,11416,63,11353,13560,250,13310]
[1,"Wiss. Hochschulen",3,"Rechts-, Wirtschafts- und Sozialwissenschaften",4,"Lehrkr. f. bes. Aufgaben + Doz. u. Assistenten","m",586,132,454,249,9,240,456,44,412]
[1,"Wiss. Hochschulen",3,"Rechts-, Wirtschafts- und Sozialwissenschaften",4,"Lehrkr. f. bes. Aufgaben + Doz. u. Assistenten","w",328,76,252,149,6,143,246,28,218]
[1,"Wiss. Hochschulen",3,"Rechts-, Wirtschafts- und Sozialwissenschaften",4,"Lehrkr. f. bes. Aufgaben + Doz. u. Assistenten","i",914,208,706,398,15,383,702,72,630]
[1,"Wiss. Hochschulen",3,"Rechts-, Wirtschafts- und Sozialwissenschaften","~~","zusammen","m",8896,577,8319,6795,40,6755,8258,195,8063]
[1,"Wiss. Hochschulen",3,"Rechts-, Wirtschafts- und Sozialwissenschaften","~~","zusammen","w",6471,349,6122,5019,38,4981,6004,127,5877]
[1,"Wiss. Hochschulen",3,"Rechts-, Wirtschafts- und Sozialwissenschaften","~~","zusammen","i",15367,926,14441,11814,78,11736,14262,322,13940]
[1,"Wiss. Hochschulen",4,"Mathematik, Naturwissenschaften",3,"Wiss. u. künstl. Mitarbeiter","m",28611,3430,25181,20611,143,20468,25124,935,24189]
[1,"Wiss. Hochschulen",4,"Mathematik, Naturwissenschaften",3,"Wiss. u. künstl. Mitarbeiter","w",12533,879,11654,9693,73,9620,11487,322,11165]
[1,"Wiss. Hochschulen",4,"Mathematik, Naturwissenschaften",3,"Wiss. u. künstl. Mitarbeiter","i",41144,4309,36835,30304,216,30088,36611,1257,35354]
[1,"Wiss. Hochschulen",4,"Mathematik, Naturwissenschaften",4,"Lehrkr. f. bes. Aufgaben + Doz. u. Assistenten","m",901,318,583,267,12,255,621,104,517]
[1,"Wiss. Hochschulen",4,"Mathematik, Naturwissenschaften",4,"Lehrkr. f. bes. Aufgaben + Doz. u. Assistenten","w",442,119,323,163,8,155,327,46,281]
[1,"Wiss. Hochschulen",4,"Mathematik, Naturwissenschaften",4,"Lehrkr. f. bes. Aufgaben + Doz. u. Assistenten","i",1343,437,906,430,20,410,948,150,798]
[1,"Wiss. Hochschulen",4,"Mathematik, Naturwissenschaften","~~","zusammen","m",29512,3748,25764,20878,155,20723,25745,1039,24706]
[1,"Wiss. Hochschulen",4,"Mathematik, Naturwissenschaften","~~","zusammen","w",12975,998,11977,9856,81,9775,11814,368,11446]
[1,"Wiss. Hochschulen",4,"Mathematik, Naturwissenschaften","~~","zusammen","i",42487,4746,37741,30734,236,30498,37559,1407,36152]
[1,"Wiss. Hochschulen",5,"Humanmedizin/Gesundheitswissenschaften + Veterinärmedizin",3,"Wiss. u. künstl. Mitarbeiter","m",25906,6995,18911,10669,102,10567,19640,2273,17367]
[1,"Wiss. Hochschulen",5,"Humanmedizin/Gesundheitswissenschaften + Veterinärmedizin",3,"Wiss. u. künstl. Mitarbeiter","w",27189,3813,23376,15508,158,15350,22869,1326,21543]
[1,"Wiss. Hochschulen",5,"Humanmedizin/Gesundheitswissenschaften + Veterinärmedizin",3,"Wiss. u. künstl. Mitarbeiter","i",53095,10808,42287,26177,260,25917,42509,3599,38910]
[1,"Wiss. Hochschulen",5,"Humanmedizin/Gesundheitswissenschaften + Veterinärmedizin",4,"Lehrkr. f. bes. Aufgaben + Doz. u. Assistenten","m",262,61,201,79," . "," . ",168,11,157]
[1,"Wiss. Hochschulen",5,"Humanmedizin/Gesundheitswissenschaften + Veterinärmedizin",4,"Lehrkr. f. bes. Aufgaben + Doz. u. Assistenten","w",316,40,276,148," . "," . ",249,11,238]
[1,"Wiss. Hochschulen",5,"Humanmedizin/Gesundheitswissenschaften + Veterinärmedizin",4,"Lehrkr. f. bes. Aufgaben + Doz. u. Assistenten","i",578,101,477,227,2,225,417,22,395]
[1,"Wiss. Hochschulen",5,"Humanmedizin/Gesundheitswissenschaften + Veterinärmedizin","~~","zusammen","m",26168,7056,19112,10748,104,10644,19808,2284,17524]
[1,"Wiss. Hochschulen",5,"Humanmedizin/Gesundheitswissenschaften + Veterinärmedizin","~~","zusammen","w",27505,3853,23652,15656,158,15498,23118,1337,21781]
[1,"Wiss. Hochschulen",5,"Humanmedizin/Gesundheitswissenschaften + Veterinärmedizin","~~","zusammen","i",53673,10909,42764,26404,262,26142,42926,3621,39305]
[1,"Wiss. Hochschulen",8,"Ingenieurwissenschaften",3,"Wiss. u. künstl. Mitarbeiter","m",18686,1639,17047,13912,54,13858,16759,436,16323]
[1,"Wiss. Hochschulen",8,"Ingenieurwissenschaften",3,"Wiss. u. künstl. Mitarbeiter","w",4860,282,4578,3466,13,3453,4334,83,4251]
[1,"Wiss. Hochschulen",8,"Ingenieurwissenschaften",3,"Wiss. u. künstl. Mitarbeiter","i",23546,1921,21625,17378,67,17311,21093,519,20574]
[1,"Wiss. Hochschulen",8,"Ingenieurwissenschaften",4,"Lehrkr. f. bes. Aufgaben + Doz. u. Assistenten","m",361,146,215,140," . "," . ",238,43,195]
[1,"Wiss. Hochschulen",8,"Ingenieurwissenschaften",4,"Lehrkr. f. bes. Aufgaben + Doz. u. Assistenten","w",80,21,59,37," . "," . ",51,1,50]
[1,"Wiss. Hochschulen",8,"Ingenieurwissenschaften",4,"Lehrkr. f. bes. Aufgaben + Doz. u. Assistenten","i",441,167,274,177,4,173,289,44,245]
[1,"Wiss. Hochschulen",8,"Ingenieurwissenschaften","~~","zusammen","m",19047,1785,17262,14052,58,13994,16997,479,16518]
[1,"Wiss. Hochschulen",8,"Ingenieurwissenschaften","~~","zusammen","w",4940,303,4637,3503,13,3490,4385,84,4301]
[1,"Wiss. Hochschulen",8,"Ingenieurwissenschaften","~~","zusammen","i",23987,2088,21899,17555,71,17484,21382,563,20819]
[1,"Wiss. Hochschulen",10,"Restliche Fächergruppen",3,"Wiss. u. künstl. Mitarbeiter","m",8186,2499,5687,3439,94,3345,5650,627,5023]
[1,"Wiss. Hochschulen",10,"Restliche Fächergruppen",3,"Wiss. u. künstl. Mitarbeiter","w",7736,1681,6055,3889,135,3754,5928,553,5375]
[1,"Wiss. Hochschulen",10,"Restliche Fächergruppen",3,"Wiss. u. künstl. Mitarbeiter","i",15922,4180,11742,7328,229,7099,11578,1180,10398]
[1,"Wiss. Hochschulen",10,"Restliche Fächergruppen",4,"Lehrkr. f. bes. Aufgaben + Doz. u. Assistenten","m",1331,973,358,168,53,115,466,221,245]
[1,"Wiss. Hochschulen",10,"Restliche Fächergruppen",4,"Lehrkr. f. bes. Aufgaben + Doz. u. Assistenten","w",1421,925,496,235,54,181,606,249,357]
[1,"Wiss. Hochschulen",10,"Restliche Fächergruppen",4,"Lehrkr. f. bes. Aufgaben + Doz. u. Assistenten","i",2752,1898,854,403,107,296,1072,470,602]
[1,"Wiss. Hochschulen",10,"Restliche Fächergruppen","~~","zusammen","m",9517,3472,6045,3607,147,3460,6116,848,5268]
[1,"Wiss. Hochschulen",10,"Restliche Fächergruppen","~~","zusammen","w",9157,2606,6551,4124,189,3935,6534,802,5732]
[1,"Wiss. Hochschulen",10,"Restliche Fächergruppen","~~","zusammen","i",18674,6078,12596,7731,336,7395,12650,1650,11000]
[1,"Wiss. Hochschulen","~~","zusammen","~~","zusammen","m",101872,18480,83392,59918,585,59333,83407,5346,78061]
[1,"Wiss. Hochschulen","~~","zusammen","~~","zusammen","w",73445,10159,63286,44894,623,44271,61837,3382,58455]
[1,"Wiss. Hochschulen","~~","zusammen","~~","zusammen","i",175317,28639,146678,104812,1208,103604,145244,8728,136516]
[2,"FH + VerwFH",1,"Sprach- und Kulturwissenschaften",3,"Wiss. u. künstl. Mitarbeiter","m",57,25,32,20,3,17,36,9,27]
[2,"FH + VerwFH",1,"Sprach- und Kulturwissenschaften",3,"Wiss. u. künstl. Mitarbeiter","w",143,47,96,61,11,50,102,23,79]
[2,"FH + VerwFH",1,"Sprach- und Kulturwissenschaften",3,"Wiss. u. künstl. Mitarbeiter","i",200,72,128,81,14,67,138,32,106]
[2,"FH + VerwFH",1,"Sprach- und Kulturwissenschaften",4,"Lehrkr. f. bes. Aufgaben + Doz. u. Assistenten","m",118,85,33,8,2,6,34,18,16]
[2,"FH + VerwFH",1,"Sprach- und Kulturwissenschaften",4,"Lehrkr. f. bes. Aufgaben + Doz. u. Assistenten","w",208,152,56,29,10,19,70,35,35]
[2,"FH + VerwFH",1,"Sprach- und Kulturwissenschaften",4,"Lehrkr. f. bes. Aufgaben + Doz. u. Assistenten","i",326,237,89,37,12,25,104,53,51]
[2,"FH + VerwFH",1,"Sprach- und Kulturwissenschaften","~~","zusammen","m",175,110,65,28,5,23,70,27,43]
[2,"FH + VerwFH",1,"Sprach- und Kulturwissenschaften","~~","zusammen","w",351,199,152,90,21,69,172,58,114]
[2,"FH + VerwFH",1,"Sprach- und Kulturwissenschaften","~~","zusammen","i",526,309,217,118,26,92,242,85,157]
[2,"FH + VerwFH",3,"Rechts-, Wirtschafts- und Sozialwissenschaften",3,"Wiss. u. künstl. Mitarbeiter","m",1004,400,604,459,76,383,715,185,530]
[2,"FH + VerwFH",3,"Rechts-, Wirtschafts- und Sozialwissenschaften",3,"Wiss. u. künstl. Mitarbeiter","w",1393,475,918,770,198,572,1123,318,805]
[2,"FH + VerwFH",3,"Rechts-, Wirtschafts- und Sozialwissenschaften",3,"Wiss. u. künstl. Mitarbeiter","i",2397,875,1522,1229,274,955,1838,503,1335]
[2,"FH + VerwFH",3,"Rechts-, Wirtschafts- und Sozialwissenschaften",4,"Lehrkr. f. bes. Aufgaben + Doz. u. Assistenten","m",1089,868,221,81,35,46,340,212,128]
[2,"FH + VerwFH",3,"Rechts-, Wirtschafts- und Sozialwissenschaften",4,"Lehrkr. f. bes. Aufgaben + Doz. u. Assistenten","w",753,483,270,119,60,59,345,186,159]
[2,"FH + VerwFH",3,"Rechts-, Wirtschafts- und Sozialwissenschaften",4,"Lehrkr. f. bes. Aufgaben + Doz. u. Assistenten","i",1842,1351,491,200,95,105,685,398,287]
[2,"FH + VerwFH",3,"Rechts-, Wirtschafts- und Sozialwissenschaften","~~","zusammen","m",2093,1268,825,540,111,429,1055,397,658]
[2,"FH + VerwFH",3,"Rechts-, Wirtschafts- und Sozialwissenschaften","~~","zusammen","w",2146,958,1188,889,258,631,1468,504,964]
[2,"FH + VerwFH",3,"Rechts-, Wirtschafts- und Sozialwissenschaften","~~","zusammen","i",4239,2226,2013,1429,369,1060,2523,901,1622]
[2,"FH + VerwFH",4,"Mathematik, Naturwissenschaften",3,"Wiss. u. künstl. Mitarbeiter","m",1099,200,899,715,28,687,907,83,824]
[2,"FH + VerwFH",4,"Mathematik, Naturwissenschaften",3,"Wiss. u. künstl. Mitarbeiter","w",440,89,351,276,18,258,348,38,310]
[2,"FH + VerwFH",4,"Mathematik, Naturwissenschaften",3,"Wiss. u. künstl. Mitarbeiter","i",1539,289,1250,991,46,945,1255,121,1134]
[2,"FH + VerwFH",4,"Mathematik, Naturwissenschaften",4,"Lehrkr. f. bes. Aufgaben + Doz. u. Assistenten","m",186,112,74,44,7,37,82,27,55]
[2,"FH + VerwFH",4,"Mathematik, Naturwissenschaften",4,"Lehrkr. f. bes. Aufgaben + Doz. u. Assistenten","w",96,54,42,20,3,17,50,18,32]
[2,"FH + VerwFH",4,"Mathematik, Naturwissenschaften",4,"Lehrkr. f. bes. Aufgaben + Doz. u. Assistenten","i",282,166,116,64,10,54,132,45,87]
[2,"FH + VerwFH",4,"Mathematik, Naturwissenschaften","~~","zusammen","m",1285,312,973,759,35,724,989,110,879]
[2,"FH + VerwFH",4,"Mathematik, Naturwissenschaften","~~","zusammen","w",536,143,393,296,21,275,398,56,342]
[2,"FH + VerwFH",4,"Mathematik, Naturwissenschaften","~~","zusammen","i",1821,455,1366,1055,56,999,1387,166,1221]
[2,"FH + VerwFH",5,"Humanmedizin/Gesundheitswissenschaften + Veterinärmedizin",3,"Wiss. u. künstl. Mitarbeiter","m",72,28,44,29,6,23,55,18,37]
[2,"FH + VerwFH",5,"Humanmedizin/Gesundheitswissenschaften + Veterinärmedizin",3,"Wiss. u. künstl. Mitarbeiter","w",180,55,125,73,14,59,135,35,100]
[2,"FH + VerwFH",5,"Humanmedizin/Gesundheitswissenschaften + Veterinärmedizin",3,"Wiss. u. künstl. Mitarbeiter","i",252,83,169,102,20,82,190,53,137]
[2,"FH + VerwFH",5,"Humanmedizin/Gesundheitswissenschaften + Veterinärmedizin",4,"Lehrkr. f. bes. Aufgaben + Doz. u. Assistenten","m",67,55,12,17,10,7,36,27,9]
[2,"FH + VerwFH",5,"Humanmedizin/Gesundheitswissenschaften + Veterinärmedizin",4,"Lehrkr. f. bes. Aufgaben + Doz. u. Assistenten","w",135,98,37,52,35,17,98,69,29]
[2,"FH + VerwFH",5,"Humanmedizin/Gesundheitswissenschaften + Veterinärmedizin",4,"Lehrkr. f. bes. Aufgaben + Doz. u. Assistenten","i",202,153,49,69,45,24,134,96,38]
[2,"FH + VerwFH",5,"Humanmedizin/Gesundheitswissenschaften + Veterinärmedizin","~~","zusammen","m",139,83,56,46,16,30,91,45,46]
[2,"FH + VerwFH",5,"Humanmedizin/Gesundheitswissenschaften + Veterinärmedizin","~~","zusammen","w",315,153,162,125,49,76,233,104,129]
[2,"FH + VerwFH",5,"Humanmedizin/Gesundheitswissenschaften + Veterinärmedizin","~~","zusammen","i",454,236,218,171,65,106,324,149,175]
[2,"FH + VerwFH",8,"Ingenieurwissenschaften",3,"Wiss. u. künstl. Mitarbeiter","m",3319,757,2562,2073,97,1976,2573,234,2339]
[2,"FH + VerwFH",8,"Ingenieurwissenschaften",3,"Wiss. u. künstl. Mitarbeiter","w",1165,259,906,608,36,572,885,100,785]
[2,"FH + VerwFH",8,"Ingenieurwissenschaften",3,"Wiss. u. künstl. Mitarbeiter","i",4484,1016,3468,2681,133,2548,3458,334,3124]
[2,"FH + VerwFH",8,"Ingenieurwissenschaften",4,"Lehrkr. f. bes. Aufgaben + Doz. u. Assistenten","m",316,160,156,84,14,70,131,33,98]
[2,"FH + VerwFH",8,"Ingenieurwissenschaften",4,"Lehrkr. f. bes. Aufgaben + Doz. u. Assistenten","w",168,86,82,32,5,27,68,21,47]
[2,"FH + VerwFH",8,"Ingenieurwissenschaften",4,"Lehrkr. f. bes. Aufgaben + Doz. u. Assistenten","i",484,246,238,116,19,97,199,54,145]
[2,"FH + VerwFH",8,"Ingenieurwissenschaften","~~","zusammen","m",3635,917,2718,2157,111,2046,2704,267,2437]
[2,"FH + VerwFH",8,"Ingenieurwissenschaften","~~","zusammen","w",1333,345,988,640,41,599,953,121,832]
[2,"FH + VerwFH",8,"Ingenieurwissenschaften","~~","zusammen","i",4968,1262,3706,2797,152,2645,3657,388,3269]
[2,"FH + VerwFH",10,"Restliche Fächergruppen",3,"Wiss. u. künstl. Mitarbeiter","m",1451,296,1155,790,29,761,1128,107,1021]
[2,"FH + VerwFH",10,"Restliche Fächergruppen",3,"Wiss. u. künstl. Mitarbeiter","w",1320,260,1060,600,34,566,951,108,843]
[2,"FH + VerwFH",10,"Restliche Fächergruppen",3,"Wiss. u. künstl. Mitarbeiter","i",2771,556,2215,1390,63,1327,2079,215,1864]
[2,"FH + VerwFH",10,"Restliche Fächergruppen",4,"Lehrkr. f. bes. Aufgaben + Doz. u. Assistenten","m",219,148,71,26,9,17,75,36,39]
[2,"FH + VerwFH",10,"Restliche Fächergruppen",4,"Lehrkr. f. bes. Aufgaben + Doz. u. Assistenten","w",300,188,112,39,9,30,114,50,64]
[2,"FH + VerwFH",10,"Restliche Fächergruppen",4,"Lehrkr. f. bes. Aufgaben + Doz. u. Assistenten","i",519,336,183,65,18,47,189,86,103]
[2,"FH + VerwFH",10,"Restliche Fächergruppen","~~","zusammen","m",1670,444,1226,816,38,778,1203,143,1060]
[2,"FH + VerwFH",10,"Restliche Fächergruppen","~~","zusammen","w",1620,448,1172,639,43,596,1065,158,907]
[2,"FH + VerwFH",10,"Restliche Fächergruppen","~~","zusammen","i",3290,892,2398,1455,81,1374,2268,301,1967]
[2,"FH + VerwFH","~~","zusammen","~~","zusammen","m",8997,3134,5863,4346,316,4030,6112,989,5123]
[2,"FH + VerwFH","~~","zusammen","~~","zusammen","w",6301,2246,4055,2679,433,2246,4289,1001,3288]
[2,"FH + VerwFH","~~","zusammen","~~","zusammen","i",15298,5380,9918,7025,749,6276,10401,1990,8411]
["~","Insgesamt",null,null,null,null,"m",110869,21614,89255,64264,901,63363,89519,6335,83184]
["~","Insgesamt",null,null,null,null,"w",79746,12405,67341,47573,1056,46517,66126,4383,61743]
["~","Insgesamt",null,null,null,null,"i",190615,34019,156596,111837,1957,109880,155645,10718,144927]

{"sheet":"1.2","index":3,"n_rows":130,"n_cols":19,"rows_kept":130,"cut":false,"hidden":false,"merged":[]}
["Statistisches Bundesamt"]
["H201 - Hochschulstatistik"]
[]
[]
["Hauptberufliches wissenschaftliches und künstlerisches Personal (ohne Professoren) nach ausgewählten Hochschularten, Fächer- und Personalgruppen "]
["im Berichtsjahr 2010"]
[]
[null,null,null,null,null,null,null,"Hauptber. wiss. und ",null,null,"Hauptber. wiss. und ",null,null,"Hauptber. wiss. und "]
[null,null,null,null,null,null,null,"künstler. Personal",null,null,"künstler. Personal",null,null,"künstler. Personal"]
[null,"Hochschulart",null,"Fächergruppe",null,"Personalgruppe","Ge-","(ohne Professoren)",null,null,"(ohne Professoren)",null,null,"(ohne Professoren)"]
[null,null,null,"der fachl. Zugehörigkeit",null,null,"schlecht",null,null,null,"im Alter bis einschl. 34 Jahren",null,null,"im Alter bis einschl. 44 Jahren"]
[null,null,null,null,null,null,null,"insgesamt","auf Dauer","auf Zeit","insgesamt","auf Dauer","auf Zeit","insgesamt","auf Dauer","auf Zeit"]
[]
[1,"Wiss. Hochschulen (= Uni, GH, PH, TH und KunstH)",1,"Sprach- und Kulturwissenschaften",3,"Wiss. u. künstl. Mitarbeiter","m",6600,1273,5327,3034,125,2909,5078,398,4680,{"$f":"IF(OR(H14=I14,H14=J14),\"X\",\"\")","v":""},{"$f":"IF(OR(K14=L14,K14=M14),\"X\",\"\")","v":""},{"$f":"IF(OR(N14=O14,N14=P14),\"X\",\"\")","v":""}]
[1,"Wiss. Hochschulen (= Uni, GH, PH, TH und KunstH)",1,"Sprach- und Kulturwissenschaften",3,"Wiss. u. künstl. Mitarbeiter","w",8426,1066,7360,5093,170,4923,7078,403,6675,{"$f":"IF(OR(H15=I15,H15=J15),\"X\",\"\")","v":""},{"$f":"IF(OR(K15=L15,K15=M15),\"X\",\"\")","v":""},{"$f":"IF(OR(N15=O15,N15=P15),\"X\",\"\")","v":""}]
[1,"Wiss. Hochschulen (= Uni, GH, PH, TH und KunstH)",1,"Sprach- und Kulturwissenschaften",3,"Wiss. u. künstl. Mitarbeiter","i",15026,2339,12687,8127,295,7832,12156,801,11355,"","",""]
[1,"Wiss. Hochschulen (= Uni, GH, PH, TH und KunstH)",1,"Sprach- und Kulturwissenschaften",4,"Lehrkr. f. bes. Aufgaben + Doz. u. Assistenten","m",1309,607,702,240,27,213,707,198,509,"","",""]
[1,"Wiss. Hochschulen (= Uni, GH, PH, TH und KunstH)",1,"Sprach- und Kulturwissenschaften",4,"Lehrkr. f. bes. Aufgaben + Doz. u. Assistenten","w",1791,779,1012,449,43,406,1086,296,790,"","",""]
[1,"Wiss. Hochschulen (= Uni, GH, PH, TH und KunstH)",1,"Sprach- und Kulturwissenschaften",4,"Lehrkr. f. bes. Aufgaben + Doz. u. Assistenten","i",3100,1386,1714,689,70,619,1793,494,1299,"","",""]
[1,"Wiss. Hochschulen (= Uni, GH, PH, TH und KunstH)",1,"Sprach- und Kulturwissenschaften","~~","zusammen","m",7909,1880,6029,3274,152,3122,5785,596,5189,"","",""]
[1,"Wiss. Hochschulen (= Uni, GH, PH, TH und KunstH)",1,"Sprach- und Kulturwissenschaften","~~","zusammen","w",10217,1845,8372,5542,213,5329,8164,699,7465,"","",""]
[1,"Wiss. Hochschulen (= Uni, GH, PH, TH und KunstH)",1,"Sprach- und Kulturwissenschaften","~~","zusammen","i",18126,3725,14401,8816,365,8451,13949,1295,12654,"","",""]
[1,"Wiss. Hochschulen (= Uni, GH, PH, TH und KunstH)",3,"Rechts-, Wirtschafts- und Sozialwissenschaften",3,"Wiss. u. künstl. Mitarbeiter","m",7766,543,7223,6174,127,6047,7259,242,7017,"","",""]
[1,"Wiss. Hochschulen (= Uni, GH, PH, TH und KunstH)",3,"Rechts-, Wirtschafts- und Sozialwissenschaften",3,"Wiss. u. künstl. Mitarbeiter","w",5224,315,4909,4148,88,4060,4900,172,4728,"","",""]
[1,"Wiss. Hochschulen (= Uni, GH, PH, TH und KunstH)",3,"Rechts-, Wirtschafts- und Sozialwissenschaften",3,"Wiss. u. künstl. Mitarbeiter","i",12990,858,12132,10322,215,10107,12159,414,11745,"","",""]
[1,"Wiss. Hochschulen (= Uni, GH, PH, TH und KunstH)",3,"Rechts-, Wirtschafts- und Sozialwissenschaften",4,"Lehrkr. f. bes. Aufgaben + Doz. u. Assistenten","m",607,117,490,302,12,290,475,45,430,"","",""]
[1,"Wiss. Hochschulen (= Uni, GH, PH, TH und KunstH)",3,"Rechts-, Wirtschafts- und Sozialwissenschaften",4,"Lehrkr. f. bes. Aufgaben + Doz. u. Assistenten","w",291,60,231,163,9,154,239,29,210,"","",""]
[1,"Wiss. Hochschulen (= Uni, GH, PH, TH und KunstH)",3,"Rechts-, Wirtschafts- und Sozialwissenschaften",4,"Lehrkr. f. bes. Aufgaben + Doz. u. Assistenten","i",898,177,721,465,21,444,714,74,640,"","",""]
[1,"Wiss. Hochschulen (= Uni, GH, PH, TH und KunstH)",3,"Rechts-, Wirtschafts- und Sozialwissenschaften","~~","zusammen","m",8373,660,7713,6476,139,6337,7734,287,7447,"","",""]
[1,"Wiss. Hochschulen (= Uni, GH, PH, TH und KunstH)",3,"Rechts-, Wirtschafts- und Sozialwissenschaften","~~","zusammen","w",5515,375,5140,4311,97,4214,5139,201,4938,"","",""]
[1,"Wiss. Hochschulen (= Uni, GH, PH, TH und KunstH)",3,"Rechts-, Wirtschafts- und Sozialwissenschaften","~~","zusammen","i",13888,1035,12853,10787,236,10551,12873,488,12385,"","",""]
[1,"Wiss. Hochschulen (= Uni, GH, PH, TH und KunstH)",4,"Mathematik, Naturwissenschaften",3,"Wiss. u. künstl. Mitarbeiter","m",26456,3600,22856,19020,502,18518,23195,1350,21845,"","",""]
[1,"Wiss. Hochschulen (= Uni, GH, PH, TH und KunstH)",4,"Mathematik, Naturwissenschaften",3,"Wiss. u. künstl. Mitarbeiter","w",11224,907,10317,8814,258,8556,10359,477,9882,"","",""]
[1,"Wiss. Hochschulen (= Uni, GH, PH, TH und KunstH)",4,"Mathematik, Naturwissenschaften",3,"Wiss. u. künstl. Mitarbeiter","i",37680,4507,33173,27834,760,27074,33554,1827,31727,"","",""]
[1,"Wiss. Hochschulen (= Uni, GH, PH, TH und KunstH)",4,"Mathematik, Naturwissenschaften",4,"Lehrkr. f. bes. Aufgaben + Doz. u. Assistenten","m",830,249,581,218,18,200,583,96,487,"","",""]
[1,"Wiss. Hochschulen (= Uni, GH, PH, TH und KunstH)",4,"Mathematik, Naturwissenschaften",4,"Lehrkr. f. bes. Aufgaben + Doz. u. Assistenten","w",328,104,224,126,11,115,240,45,195,"","",""]
[1,"Wiss. Hochschulen (= Uni, GH, PH, TH und KunstH)",4,"Mathematik, Naturwissenschaften",4,"Lehrkr. f. bes. Aufgaben + Doz. u. Assistenten","i",1158,353,805,344,29,315,823,141,682,"","",""]
[1,"Wiss. Hochschulen (= Uni, GH, PH, TH und KunstH)",4,"Mathematik, Naturwissenschaften","~~","zusammen","m",27286,3849,23437,19238,520,18718,23778,1446,22332,"","",""]
[1,"Wiss. Hochschulen (= Uni, GH, PH, TH und KunstH)",4,"Mathematik, Naturwissenschaften","~~","zusammen","w",11552,1011,10541,8940,269,8671,10599,522,10077,"","",""]
[1,"Wiss. Hochschulen (= Uni, GH, PH, TH und KunstH)",4,"Mathematik, Naturwissenschaften","~~","zusammen","i",38838,4860,33978,28178,789,27389,34377,1968,32409,"","",""]
[1,"Wiss. Hochschulen (= Uni, GH, PH, TH und KunstH)",5,"Humanmedizin/Gesundheitswissenschaften + Veterinärmedizin",3,"Wiss. u. künstl. Mitarbeiter","m",24721,6283,18438,10843,123,10720,19419,2273,17146,"","",""]
[1,"Wiss. Hochschulen (= Uni, GH, PH, TH und KunstH)",5,"Humanmedizin/Gesundheitswissenschaften + Veterinärmedizin",3,"Wiss. u. künstl. Mitarbeiter","w",23811,2945,20866,14391,126,14265,20526,1020,19506,"","",""]
[1,"Wiss. Hochschulen (= Uni, GH, PH, TH und KunstH)",5,"Humanmedizin/Gesundheitswissenschaften + Veterinärmedizin",3,"Wiss. u. künstl. Mitarbeiter","i",48532,9228,39304,25234,249,24985,39945,3293,36652,"","",""]
[1,"Wiss. Hochschulen (= Uni, GH, PH, TH und KunstH)",5,"Humanmedizin/Gesundheitswissenschaften + Veterinärmedizin",4,"Lehrkr. f. bes. Aufgaben + Doz. u. Assistenten","m",536,97,439,128,5,123,383,29,354,"","",""]
[1,"Wiss. Hochschulen (= Uni, GH, PH, TH und KunstH)",5,"Humanmedizin/Gesundheitswissenschaften + Veterinärmedizin",4,"Lehrkr. f. bes. Aufgaben + Doz. u. Assistenten","w",431,48,383,165,5,160,354,22,332,"","",""]
[1,"Wiss. Hochschulen (= Uni, GH, PH, TH und KunstH)",5,"Humanmedizin/Gesundheitswissenschaften + Veterinärmedizin",4,"Lehrkr. f. bes. Aufgaben + Doz. u. Assistenten","i",967,145,822,293,10,283,737,51,686,"","",""]
[1,"Wiss. Hochschulen (= Uni, GH, PH, TH und KunstH)",5,"Humanmedizin/Gesundheitswissenschaften + Veterinärmedizin","~~","zusammen","m",25257,6380,18877,10971,128,10843,19802,2302,17500,"","",""]
[1,"Wiss. Hochschulen (= Uni, GH, PH, TH und KunstH)",5,"Humanmedizin/Gesundheitswissenschaften + Veterinärmedizin","~~","zusammen","w",24242,2993,21249,14556,131,14425,20880,1042,19838,"","",""]
[1,"Wiss. Hochschulen (= Uni, GH, PH, TH und KunstH)",5,"Humanmedizin/Gesundheitswissenschaften + Veterinärmedizin","~~","zusammen","i",49499,9373,40126,25527,259,25268,40682,3344,37338,"","",""]
[1,"Wiss. Hochschulen (= Uni, GH, PH, TH und KunstH)",8,"Ingenieurwissenschaften",3,"Wiss. u. künstl. Mitarbeiter","m",16605,1564,15041,12363,115,12248,14829,478,14351,"","",""]
[1,"Wiss. Hochschulen (= Uni, GH, PH, TH und KunstH)",8,"Ingenieurwissenschaften",3,"Wiss. u. künstl. Mitarbeiter","w",4266,242,4024,3056,24,3032,3845,89,3756,"","",""]
[1,"Wiss. Hochschulen (= Uni, GH, PH, TH und KunstH)",8,"Ingenieurwissenschaften",3,"Wiss. u. künstl. Mitarbeiter","i",20871,1806,19065,15419,139,15280,18674,567,18107,"","",""]
[1,"Wiss. Hochschulen (= Uni, GH, PH, TH und KunstH)",8,"Ingenieurwissenschaften",4,"Lehrkr. f. bes. Aufgaben + Doz. u. Assistenten","m",369,140,229,138,26,112,245,55,190,"","",""]
[1,"Wiss. Hochschulen (= Uni, GH, PH, TH und KunstH)",8,"Ingenieurwissenschaften",4,"Lehrkr. f. bes. Aufgaben + Doz. u. Assistenten","w",60,13,47,25,3,22,49,9,40,"","",""]
[1,"Wiss. Hochschulen (= Uni, GH, PH, TH und KunstH)",8,"Ingenieurwissenschaften",4,"Lehrkr. f. bes. Aufgaben + Doz. u. Assistenten","i",429,153,276,163,29,134,294,64,230,"","",""]
[1,"Wiss. Hochschulen (= Uni, GH, PH, TH und KunstH)",8,"Ingenieurwissenschaften","~~","zusammen","m",16974,1704,15270,12501,141,12360,15074,533,14541,"","",""]
[1,"Wiss. Hochschulen (= Uni, GH, PH, TH und KunstH)",8,"Ingenieurwissenschaften","~~","zusammen","w",4326,255,4071,3081,27,3054,3894,98,3796,"","",""]
[1,"Wiss. Hochschulen (= Uni, GH, PH, TH und KunstH)",8,"Ingenieurwissenschaften","~~","zusammen","i",21300,1959,19341,15582,168,15414,18968,631,18337,"","",""]
[1,"Wiss. Hochschulen (= Uni, GH, PH, TH und KunstH)",10,"Restliche Fächergruppen",3,"Wiss. u. künstl. Mitarbeiter","m",7626,2256,5370,3298,98,3200,5236,585,4651,"","",""]
[1,"Wiss. Hochschulen (= Uni, GH, PH, TH und KunstH)",10,"Restliche Fächergruppen",3,"Wiss. u. künstl. Mitarbeiter","w",6303,1358,4945,3323,106,3217,4900,452,4448,"","",""]
[1,"Wiss. Hochschulen (= Uni, GH, PH, TH und KunstH)",10,"Restliche Fächergruppen",3,"Wiss. u. künstl. Mitarbeiter","i",13929,3614,10315,6621,204,6417,10136,1037,9099,"","",""]
[1,"Wiss. Hochschulen (= Uni, GH, PH, TH und KunstH)",10,"Restliche Fächergruppen",4,"Lehrkr. f. bes. Aufgaben + Doz. u. Assistenten","m",1310,932,378,163,43,120,448,202,246,"","",""]
[1,"Wiss. Hochschulen (= Uni, GH, PH, TH und KunstH)",10,"Restliche Fächergruppen",4,"Lehrkr. f. bes. Aufgaben + Doz. u. Assistenten","w",1251,811,440,192,40,152,483,190,293,"","",""]
[1,"Wiss. Hochschulen (= Uni, GH, PH, TH und KunstH)",10,"Restliche Fächergruppen",4,"Lehrkr. f. bes. Aufgaben + Doz. u. Assistenten","i",2561,1743,818,355,83,272,931,392,539,"","",""]
[1,"Wiss. Hochschulen (= Uni, GH, PH, TH und KunstH)",10,"Restliche Fächergruppen","~~","zusammen","m",8936,3188,5748,3461,141,3320,5684,787,4897,"","",""]
[1,"Wiss. Hochschulen (= Uni, GH, PH, TH und KunstH)",10,"Restliche Fächergruppen","~~","zusammen","w",7554,2169,5385,3515,146,3369,5383,642,4741,"","",""]
[1,"Wiss. Hochschulen (= Uni, GH, PH, TH und KunstH)",10,"Restliche Fächergruppen","~~","zusammen","i",16490,5357,11133,6976,287,6689,11067,1429,9638,"","",""]
[1,"Wiss. Hochschulen (= Uni, GH, PH, TH und KunstH)","~~","zusammen","~~","zusammen","m",94735,17661,77074,55921,1221,54700,77857,5951,71906,"","",""]
[1,"Wiss. Hochschulen (= Uni, GH, PH, TH und KunstH)","~~","zusammen","~~","zusammen","w",63406,8648,54758,39945,883,39062,54059,3204,50855,"","",""]
[1,"Wiss. Hochschulen (= Uni, GH, PH, TH und KunstH)","~~","zusammen","~~","zusammen","i",158141,26309,131832,95866,2104,93762,131916,9155,122761,"","",""]
[2,"FH + VerwFH",1,"Sprach- und Kulturwissenschaften",3,"Wiss. u. künstl. Mitarbeiter","m",77,23,54,30,4,26,52,11,41,"","",""]
[2,"FH + VerwFH",1,"Sprach- und Kulturwissenschaften",3,"Wiss. u. künstl. Mitarbeiter","w",87,35,52,38,6,32,60,13,47,"","",""]
[2,"FH + VerwFH",1,"Sprach- und Kulturwissenschaften",3,"Wiss. u. künstl. Mitarbeiter","i",164,58,106,68,10,58,112,24,88,"","",""]
[2,"FH + VerwFH",1,"Sprach- und Kulturwissenschaften",4,"Lehrkr. f. bes. Aufgaben + Doz. u. Assistenten","m",126,84,42,7,2,5,36,16,20,"","",""]
[2,"FH + VerwFH",1,"Sprach- und Kulturwissenschaften",4,"Lehrkr. f. bes. Aufgaben + Doz. u. Assistenten","w",216,140,76,13,1,12,60,29,31,"","",""]
[2,"FH + VerwFH",1,"Sprach- und Kulturwissenschaften",4,"Lehrkr. f. bes. Aufgaben + Doz. u. Assistenten","i",342,224,118,20,3,17,96,45,51,"","",""]
[2,"FH + VerwFH",1,"Sprach- und Kulturwissenschaften","~~","zusammen","m",203,107,96,37,6,31,88,27,61,"","",""]
[2,"FH + VerwFH",1,"Sprach- und Kulturwissenschaften","~~","zusammen","w",303,175,128,51,7,44,120,42,78,"","",""]
[2,"FH + VerwFH",1,"Sprach- und Kulturwissenschaften","~~","zusammen","i",506,282,224,88,13,75,208,69,139,{"$f":"IF(OR(H79=I79,H79=J79),\"X\",\"\")","v":""},{"$f":"IF(OR(K79=L79,K79=M79),\"X\",\"\")","v":""},{"$f":"IF(OR(N79=O79,N79=P79),\"X\",\"\")","v":""}]
[2,"FH + VerwFH",3,"Rechts-, Wirtschafts- und Sozialwissenschaften",3,"Wiss. u. künstl. Mitarbeiter","m",652,272,380,250,21,229,411,90,321,"","",""]
[2,"FH + VerwFH",3,"Rechts-, Wirtschafts- und Sozialwissenschaften",3,"Wiss. u. künstl. Mitarbeiter","w",687,165,522,339,28,311,521,84,437,"","",""]
[2,"FH + VerwFH",3,"Rechts-, Wirtschafts- und Sozialwissenschaften",3,"Wiss. u. künstl. Mitarbeiter","i",1339,437,902,589,49,540,932,174,758,"","",""]
[2,"FH + VerwFH",3,"Rechts-, Wirtschafts- und Sozialwissenschaften",4,"Lehrkr. f. bes. Aufgaben + Doz. u. Assistenten","m",1157,823,334,118,36,82,392,209,183,"","",""]
[2,"FH + VerwFH",3,"Rechts-, Wirtschafts- und Sozialwissenschaften",4,"Lehrkr. f. bes. Aufgaben + Doz. u. Assistenten","w",682,399,283,158,43,115,354,150,204,"","",""]
[2,"FH + VerwFH",3,"Rechts-, Wirtschafts- und Sozialwissenschaften",4,"Lehrkr. f. bes. Aufgaben + Doz. u. Assistenten","i",1839,1222,617,276,79,197,746,359,387,"","",""]
[2,"FH + VerwFH",3,"Rechts-, Wirtschafts- und Sozialwissenschaften","~~","zusammen","m",1809,1095,714,368,57,311,803,299,504,"","",""]
[2,"FH + VerwFH",3,"Rechts-, Wirtschafts- und Sozialwissenschaften","~~","zusammen","w",1369,564,805,497,71,426,875,234,641,"","",""]
[2,"FH + VerwFH",3,"Rechts-, Wirtschafts- und Sozialwissenschaften","~~","zusammen","i",3178,1659,1519,865,128,737,1678,533,1145,"","",""]
[2,"FH + VerwFH",4,"Mathematik, Naturwissenschaften",3,"Wiss. u. künstl. Mitarbeiter","m",686,130,556,436,7,429,559,52,507,"","",""]
[2,"FH + VerwFH",4,"Mathematik, Naturwissenschaften",3,"Wiss. u. künstl. Mitarbeiter","w",271,44,227,152,4,148,214,20,194,"","",""]
[2,"FH + VerwFH",4,"Mathematik, Naturwissenschaften",3,"Wiss. u. künstl. Mitarbeiter","i",957,174,783,588,11,577,773,72,701,"","",""]
[2,"FH + VerwFH",4,"Mathematik, Naturwissenschaften",4,"Lehrkr. f. bes. Aufgaben + Doz. u. Assistenten","m",209,100,109,64," . "," . ",103,23,80,"","",""]
[2,"FH + VerwFH",4,"Mathematik, Naturwissenschaften",4,"Lehrkr. f. bes. Aufgaben + Doz. u. Assistenten","w",82,34,48,25," . "," . ",42,6,36,"","",""]
[2,"FH + VerwFH",4,"Mathematik, Naturwissenschaften",4,"Lehrkr. f. bes. Aufgaben + Doz. u. Assistenten","i",291,134,157,89,4,85,145,29,116,"","",""]
[2,"FH + VerwFH",4,"Mathematik, Naturwissenschaften","~~","zusammen","m",895,230,665,500,11,489,662,75,587,"","",""]
[2,"FH + VerwFH",4,"Mathematik, Naturwissenschaften","~~","zusammen","w",353,78,275,177,4,173,256,26,230,"","",""]
[2,"FH + VerwFH",4,"Mathematik, Naturwissenschaften","~~","zusammen","i",1248,308,940,677,15,662,918,101,817,"","",""]
[2,"FH + VerwFH",5,"Humanmedizin/Gesundheitswissenschaften + Veterinärmedizin",3,"Wiss. u. künstl. Mitarbeiter","m",27,11,16,10,2,8,21,6,15,"","",""]
[2,"FH + VerwFH",5,"Humanmedizin/Gesundheitswissenschaften + Veterinärmedizin",3,"Wiss. u. künstl. Mitarbeiter","w",82,23,59,25,5,20,53,11,42,"","",""]
[2,"FH + VerwFH",5,"Humanmedizin/Gesundheitswissenschaften + Veterinärmedizin",3,"Wiss. u. künstl. Mitarbeiter","i",109,34,75,35,7,28,74,17,57,"","",""]
[2,"FH + VerwFH",5,"Humanmedizin/Gesundheitswissenschaften + Veterinärmedizin",4,"Lehrkr. f. bes. Aufgaben + Doz. u. Assistenten","m",39,33,6,6,4,2,25,21,4,"","",""]
[2,"FH + VerwFH",5,"Humanmedizin/Gesundheitswissenschaften + Veterinärmedizin",4,"Lehrkr. f. bes. Aufgaben + Doz. u. Assistenten","w",60,46,14,24,18,6,44,35,9,"","",""]
[2,"FH + VerwFH",5,"Humanmedizin/Gesundheitswissenschaften + Veterinärmedizin",4,"Lehrkr. f. bes. Aufgaben + Doz. u. Assistenten","i",99,79,20,30,22,8,69,56,13,"","",""]
[2,"FH + VerwFH",5,"Humanmedizin/Gesundheitswissenschaften + Veterinärmedizin","~~","zusammen","m",66,44,22,16,6,10,46,27,19,"","",""]
[2,"FH + VerwFH",5,"Humanmedizin/Gesundheitswissenschaften + Veterinärmedizin","~~","zusammen","w",142,69,73,49,23,26,97,46,51,"","",""]
[2,"FH + VerwFH",5,"Humanmedizin/Gesundheitswissenschaften + Veterinärmedizin","~~","zusammen","i",208,113,95,65,29,36,143,73,70,"","",""]
[2,"FH + VerwFH",8,"Ingenieurwissenschaften",3,"Wiss. u. künstl. Mitarbeiter","m",2386,570,1816,1366,30,1336,1783,156,1627,"","",""]
[2,"FH + VerwFH",8,"Ingenieurwissenschaften",3,"Wiss. u. künstl. Mitarbeiter","w",783,156,627,389,8,381,592,67,525,"","",""]
[2,"FH + VerwFH",8,"Ingenieurwissenschaften",3,"Wiss. u. künstl. Mitarbeiter","i",3169,726,2443,1755,38,1717,2375,223,2152,"","",""]
[2,"FH + VerwFH",8,"Ingenieurwissenschaften",4,"Lehrkr. f. bes. Aufgaben + Doz. u. Assistenten","m",341,146,195,113,2,111,189,33,156,"","",""]
[2,"FH + VerwFH",8,"Ingenieurwissenschaften",4,"Lehrkr. f. bes. Aufgaben + Doz. u. Assistenten","w",163,61,102,55,8,47,97,18,79,"","",""]
[2,"FH + VerwFH",8,"Ingenieurwissenschaften",4,"Lehrkr. f. bes. Aufgaben + Doz. u. Assistenten","i",504,207,297,168,10,158,286,51,235,"","",""]
[2,"FH + VerwFH",8,"Ingenieurwissenschaften","~~","zusammen","m",2727,716,2011,1479,32,1447,1972,189,1783,"","",""]
[2,"FH + VerwFH",8,"Ingenieurwissenschaften","~~","zusammen","w",946,217,729,444,16,428,689,85,604,"","",""]
[2,"FH + VerwFH",8,"Ingenieurwissenschaften","~~","zusammen","i",3673,933,2740,1923,48,1875,2661,274,2387,"","",""]
[2,"FH + VerwFH",10,"Restliche Fächergruppen",3,"Wiss. u. künstl. Mitarbeiter","m",983,246,737,542,18,524,719,67,652,"","",""]
[2,"FH + VerwFH",10,"Restliche Fächergruppen",3,"Wiss. u. künstl. Mitarbeiter","w",748,183,565,340,20,320,536,68,468,"","",""]
[2,"FH + VerwFH",10,"Restliche Fächergruppen",3,"Wiss. u. künstl. Mitarbeiter","i",1731,429,1302,882,38,844,1255,135,1120,"","",""]
[2,"FH + VerwFH",10,"Restliche Fächergruppen",4,"Lehrkr. f. bes. Aufgaben + Doz. u. Assistenten","m",190,120,70,28,2,26,78,26,52,"","",""]
[2,"FH + VerwFH",10,"Restliche Fächergruppen",4,"Lehrkr. f. bes. Aufgaben + Doz. u. Assistenten","w",212,131,81,44,9,35,91,35,56,"","",""]
[2,"FH + VerwFH",10,"Restliche Fächergruppen",4,"Lehrkr. f. bes. Aufgaben + Doz. u. Assistenten","i",402,251,151,72,11,61,169,61,108,"","",""]
[2,"FH + VerwFH",10,"Restliche Fächergruppen","~~","zusammen","m",1173,366,807,570,20,550,797,93,704,"","",""]
[2,"FH + VerwFH",10,"Restliche Fächergruppen","~~","zusammen","w",960,314,646,384,29,355,627,103,524,"","",""]
[2,"FH + VerwFH",10,"Restliche Fächergruppen","~~","zusammen","i",2133,680,1453,954,49,905,1424,196,1228,"","",""]
[2,"FH + VerwFH","~~","zusammen","~~","zusammen","m",6873,2558,4315,2970,132,2838,4368,710,3658,"","",""]
[2,"FH + VerwFH","~~","zusammen","~~","zusammen","w",4073,1417,2656,1602,150,1452,2664,536,2128,"","",""]
[2,"FH + VerwFH","~~","zusammen","~~","zusammen","i",10946,3975,6971,4572,282,4290,7032,1246,5786,"","",""]
["~","Insgesamt",null,null,null,null,"m",101608,20219,81389,58891,1353,57538,82225,6661,75564,"","",""]
["~","Insgesamt",null,null,null,null,"w",67479,10065,57414,41547,1033,40514,56723,3740,52983,"","",""]
["~","Insgesamt",null,null,null,null,"i",169087,30284,138803,100438,2386,98052,138948,10401,128547,"","",""]

{"sheet":"1.3","index":4,"n_rows":130,"n_cols":19,"rows_kept":130,"cut":false,"hidden":false,"merged":[]}
["Statistisches Bundesamt"]
["H201 - Hochschulstatistik"]
[]
[]
["Hauptberufliches wissenschaftliches und künstlerisches Personal (ohne Professoren) nach ausgewählten Hochschularten, Fächer- und Personalgruppen "]
["im Berichtsjahr 2005"]
[]
[null,null,null,null,null,null,null,"Hauptber. wiss. und ",null,null,"Hauptber. wiss. und ",null,null,"Hauptber. wiss. und "]
[null,null,null,null,null,null,null,"künstler. Personal",null,null,"künstler. Personal",null,null,"künstler. Personal"]
[null,"Hochschulart",null,"Fächergruppe",null,"Personalgruppe","Ge-","(ohne Professoren)",null,null,"(ohne Professoren)",null,null,"(ohne Professoren)"]
[null,null,null,"der fachl. Zugehörigkeit",null,null,"schlecht",null,null,null,"im Alter bis einschl. 34 Jahren",null,null,"im Alter bis einschl. 44 Jahren"]
[null,null,null,null,null,null,null,"insgesamt","auf Dauer","auf Zeit","insgesamt","auf Dauer","auf Zeit","insgesamt","auf Dauer","auf Zeit"]
[]
[1,"Wiss. Hochschulen (= Uni, GH, PH, TH und KunstH)",1,"Sprach- und Kulturwissenschaften",3,"Wiss. u. künstl. Mitarbeiter","m",5012,1603,3409,1803,125,1678,3322,428,2894,{"$f":"IF(OR(H14=I14,H14=J14),\"X\",\"\")","v":""},{"$f":"IF(OR(K14=L14,K14=M14),\"X\",\"\")","v":""},{"$f":"IF(OR(N14=O14,N14=P14),\"X\",\"\")","v":""}]
[1,"Wiss. Hochschulen (= Uni, GH, PH, TH und KunstH)",1,"Sprach- und Kulturwissenschaften",3,"Wiss. u. künstl. Mitarbeiter","w",5088,1158,3930,2549,228,2321,4004,499,3505,{"$f":"IF(OR(H15=I15,H15=J15),\"X\",\"\")","v":""},{"$f":"IF(OR(K15=L15,K15=M15),\"X\",\"\")","v":""},{"$f":"IF(OR(N15=O15,N15=P15),\"X\",\"\")","v":""}]
[1,"Wiss. Hochschulen (= Uni, GH, PH, TH und KunstH)",1,"Sprach- und Kulturwissenschaften",3,"Wiss. u. künstl. Mitarbeiter","i",10100,2761,7339,4352,353,3999,7326,927,6399,"","",""]
[1,"Wiss. Hochschulen (= Uni, GH, PH, TH und KunstH)",1,"Sprach- und Kulturwissenschaften",4,"Lehrkr. f. bes. Aufgaben + Doz. u. Assistenten","m",1884,786,1098,245,50,195,1092,255,837,"","",""]
[1,"Wiss. Hochschulen (= Uni, GH, PH, TH und KunstH)",1,"Sprach- und Kulturwissenschaften",4,"Lehrkr. f. bes. Aufgaben + Doz. u. Assistenten","w",1883,949,934,315,73,242,1053,330,723,"","",""]
[1,"Wiss. Hochschulen (= Uni, GH, PH, TH und KunstH)",1,"Sprach- und Kulturwissenschaften",4,"Lehrkr. f. bes. Aufgaben + Doz. u. Assistenten","i",3767,1735,2032,560,123,437,2145,585,1560,"","",""]
[1,"Wiss. Hochschulen (= Uni, GH, PH, TH und KunstH)",1,"Sprach- und Kulturwissenschaften","~~","zusammen","m",6896,2389,4507,2048,175,1873,4414,683,3731,"","",""]
[1,"Wiss. Hochschulen (= Uni, GH, PH, TH und KunstH)",1,"Sprach- und Kulturwissenschaften","~~","zusammen","w",6971,2107,4864,2864,301,2563,5057,829,4228,"","",""]
[1,"Wiss. Hochschulen (= Uni, GH, PH, TH und KunstH)",1,"Sprach- und Kulturwissenschaften","~~","zusammen","i",13867,4496,9371,4912,476,4436,9471,1512,7959,"","",""]
[1,"Wiss. Hochschulen (= Uni, GH, PH, TH und KunstH)",3,"Rechts-, Wirtschafts- und Sozialwissenschaften",3,"Wiss. u. künstl. Mitarbeiter","m",5858,903,4955,4390,355,4035,5221,493,4728,"","",""]
[1,"Wiss. Hochschulen (= Uni, GH, PH, TH und KunstH)",3,"Rechts-, Wirtschafts- und Sozialwissenschaften",3,"Wiss. u. künstl. Mitarbeiter","w",3297,389,2908,2532,181,2351,3061,271,2790,"","",""]
[1,"Wiss. Hochschulen (= Uni, GH, PH, TH und KunstH)",3,"Rechts-, Wirtschafts- und Sozialwissenschaften",3,"Wiss. u. künstl. Mitarbeiter","i",9155,1292,7863,6922,536,6386,8282,764,7518,"","",""]
[1,"Wiss. Hochschulen (= Uni, GH, PH, TH und KunstH)",3,"Rechts-, Wirtschafts- und Sozialwissenschaften",4,"Lehrkr. f. bes. Aufgaben + Doz. u. Assistenten","m",888,220,668,355,62,293,753,126,627,"","",""]
[1,"Wiss. Hochschulen (= Uni, GH, PH, TH und KunstH)",3,"Rechts-, Wirtschafts- und Sozialwissenschaften",4,"Lehrkr. f. bes. Aufgaben + Doz. u. Assistenten","w",335,79,256,124,22,102,283,51,232,"","",""]
[1,"Wiss. Hochschulen (= Uni, GH, PH, TH und KunstH)",3,"Rechts-, Wirtschafts- und Sozialwissenschaften",4,"Lehrkr. f. bes. Aufgaben + Doz. u. Assistenten","i",1223,299,924,479,84,395,1036,177,859,"","",""]
[1,"Wiss. Hochschulen (= Uni, GH, PH, TH und KunstH)",3,"Rechts-, Wirtschafts- und Sozialwissenschaften","~~","zusammen","m",6746,1123,5623,4745,417,4328,5974,619,5355,"","",""]
[1,"Wiss. Hochschulen (= Uni, GH, PH, TH und KunstH)",3,"Rechts-, Wirtschafts- und Sozialwissenschaften","~~","zusammen","w",3632,468,3164,2656,203,2453,3344,322,3022,"","",""]
[1,"Wiss. Hochschulen (= Uni, GH, PH, TH und KunstH)",3,"Rechts-, Wirtschafts- und Sozialwissenschaften","~~","zusammen","i",10378,1591,8787,7401,620,6781,9318,941,8377,"","",""]
[1,"Wiss. Hochschulen (= Uni, GH, PH, TH und KunstH)",4,"Mathematik, Naturwissenschaften",3,"Wiss. u. künstl. Mitarbeiter","m",19948,4607,15341,12851,1085,11766,16486,2038,14448,"","",""]
[1,"Wiss. Hochschulen (= Uni, GH, PH, TH und KunstH)",4,"Mathematik, Naturwissenschaften",3,"Wiss. u. künstl. Mitarbeiter","w",7189,1010,6179,5366,437,4929,6501,657,5844,"","",""]
[1,"Wiss. Hochschulen (= Uni, GH, PH, TH und KunstH)",4,"Mathematik, Naturwissenschaften",3,"Wiss. u. künstl. Mitarbeiter","i",27137,5617,21520,18217,1522,16695,22987,2695,20292,"","",""]
[1,"Wiss. Hochschulen (= Uni, GH, PH, TH und KunstH)",4,"Mathematik, Naturwissenschaften",4,"Lehrkr. f. bes. Aufgaben + Doz. u. Assistenten","m",1958,452,1506,454,62,392,1549,183,1366,"","",""]
[1,"Wiss. Hochschulen (= Uni, GH, PH, TH und KunstH)",4,"Mathematik, Naturwissenschaften",4,"Lehrkr. f. bes. Aufgaben + Doz. u. Assistenten","w",473,98,375,130,12,118,383,51,332,"","",""]
[1,"Wiss. Hochschulen (= Uni, GH, PH, TH und KunstH)",4,"Mathematik, Naturwissenschaften",4,"Lehrkr. f. bes. Aufgaben + Doz. u. Assistenten","i",2431,550,1881,584,74,510,1932,234,1698,"","",""]
[1,"Wiss. Hochschulen (= Uni, GH, PH, TH und KunstH)",4,"Mathematik, Naturwissenschaften","~~","zusammen","m",21906,5059,16847,13305,1147,12158,18035,2221,15814,"","",""]
[1,"Wiss. Hochschulen (= Uni, GH, PH, TH und KunstH)",4,"Mathematik, Naturwissenschaften","~~","zusammen","w",7662,1108,6554,5496,449,5047,6884,708,6176,"","",""]
[1,"Wiss. Hochschulen (= Uni, GH, PH, TH und KunstH)",4,"Mathematik, Naturwissenschaften","~~","zusammen","i",29568,6167,23401,18801,1596,17205,24919,2929,21990,"","",""]
[1,"Wiss. Hochschulen (= Uni, GH, PH, TH und KunstH)",5,"Humanmedizin/Gesundheitswissenschaften + Veterinärmedizin",3,"Wiss. u. künstl. Mitarbeiter","m",21376,6136,15240,9059,590,8469,17197,2842,14355,"","",""]
[1,"Wiss. Hochschulen (= Uni, GH, PH, TH und KunstH)",5,"Humanmedizin/Gesundheitswissenschaften + Veterinärmedizin",3,"Wiss. u. künstl. Mitarbeiter","w",15823,3088,12735,8949,617,8332,13573,1602,11971,"","",""]
[1,"Wiss. Hochschulen (= Uni, GH, PH, TH und KunstH)",5,"Humanmedizin/Gesundheitswissenschaften + Veterinärmedizin",3,"Wiss. u. künstl. Mitarbeiter","i",37199,9224,27975,18008,1207,16801,30770,4444,26326,"","",""]
[1,"Wiss. Hochschulen (= Uni, GH, PH, TH und KunstH)",5,"Humanmedizin/Gesundheitswissenschaften + Veterinärmedizin",4,"Lehrkr. f. bes. Aufgaben + Doz. u. Assistenten","m",1961,257,1704,435,9,426,1627,118,1509,"","",""]
[1,"Wiss. Hochschulen (= Uni, GH, PH, TH und KunstH)",5,"Humanmedizin/Gesundheitswissenschaften + Veterinärmedizin",4,"Lehrkr. f. bes. Aufgaben + Doz. u. Assistenten","w",958,125,833,351,16,335,830,64,766,"","",""]
[1,"Wiss. Hochschulen (= Uni, GH, PH, TH und KunstH)",5,"Humanmedizin/Gesundheitswissenschaften + Veterinärmedizin",4,"Lehrkr. f. bes. Aufgaben + Doz. u. Assistenten","i",2919,382,2537,786,25,761,2457,182,2275,"","",""]
[1,"Wiss. Hochschulen (= Uni, GH, PH, TH und KunstH)",5,"Humanmedizin/Gesundheitswissenschaften + Veterinärmedizin","~~","zusammen","m",23337,6393,16944,9494,599,8895,18824,2960,15864,"","",""]
[1,"Wiss. Hochschulen (= Uni, GH, PH, TH und KunstH)",5,"Humanmedizin/Gesundheitswissenschaften + Veterinärmedizin","~~","zusammen","w",16781,3213,13568,9300,633,8667,14403,1666,12737,"","",""]
[1,"Wiss. Hochschulen (= Uni, GH, PH, TH und KunstH)",5,"Humanmedizin/Gesundheitswissenschaften + Veterinärmedizin","~~","zusammen","i",40118,9606,30512,18794,1232,17562,33227,4626,28601,"","",""]
[1,"Wiss. Hochschulen (= Uni, GH, PH, TH und KunstH)",8,"Ingenieurwissenschaften",3,"Wiss. u. künstl. Mitarbeiter","m",12168,2152,10016,8103,358,7745,10442,832,9610,"","",""]
[1,"Wiss. Hochschulen (= Uni, GH, PH, TH und KunstH)",8,"Ingenieurwissenschaften",3,"Wiss. u. künstl. Mitarbeiter","w",2459,298,2161,1566,89,1477,2213,167,2046,"","",""]
[1,"Wiss. Hochschulen (= Uni, GH, PH, TH und KunstH)",8,"Ingenieurwissenschaften",3,"Wiss. u. künstl. Mitarbeiter","i",14627,2450,12177,9669,447,9222,12655,999,11656,"","",""]
[1,"Wiss. Hochschulen (= Uni, GH, PH, TH und KunstH)",8,"Ingenieurwissenschaften",4,"Lehrkr. f. bes. Aufgaben + Doz. u. Assistenten","m",860,191,669,390,20,370,702,69,633,"","",""]
[1,"Wiss. Hochschulen (= Uni, GH, PH, TH und KunstH)",8,"Ingenieurwissenschaften",4,"Lehrkr. f. bes. Aufgaben + Doz. u. Assistenten","w",118,8,110,43,2,41,110,4,106,"","",""]
[1,"Wiss. Hochschulen (= Uni, GH, PH, TH und KunstH)",8,"Ingenieurwissenschaften",4,"Lehrkr. f. bes. Aufgaben + Doz. u. Assistenten","i",978,199,779,433,22,411,812,73,739,"","",""]
[1,"Wiss. Hochschulen (= Uni, GH, PH, TH und KunstH)",8,"Ingenieurwissenschaften","~~","zusammen","m",13028,2343,10685,8493,378,8115,11144,901,10243,"","",""]
[1,"Wiss. Hochschulen (= Uni, GH, PH, TH und KunstH)",8,"Ingenieurwissenschaften","~~","zusammen","w",2577,306,2271,1609,91,1518,2323,171,2152,"","",""]
[1,"Wiss. Hochschulen (= Uni, GH, PH, TH und KunstH)",8,"Ingenieurwissenschaften","~~","zusammen","i",15605,2649,12956,10102,469,9633,13467,1072,12395,"","",""]
[1,"Wiss. Hochschulen (= Uni, GH, PH, TH und KunstH)",10,"Restliche Fächergruppen",3,"Wiss. u. künstl. Mitarbeiter","m",5979,2601,3378,2105,179,1926,3742,777,2965,"","",""]
[1,"Wiss. Hochschulen (= Uni, GH, PH, TH und KunstH)",10,"Restliche Fächergruppen",3,"Wiss. u. künstl. Mitarbeiter","w",3939,1203,2736,1806,142,1664,3000,510,2490,"","",""]
[1,"Wiss. Hochschulen (= Uni, GH, PH, TH und KunstH)",10,"Restliche Fächergruppen",3,"Wiss. u. künstl. Mitarbeiter","i",9918,3804,6114,3911,321,3590,6742,1287,5455,"","",""]
[1,"Wiss. Hochschulen (= Uni, GH, PH, TH und KunstH)",10,"Restliche Fächergruppen",4,"Lehrkr. f. bes. Aufgaben + Doz. u. Assistenten","m",1353,917,436,100,28,72,511,207,304,"","",""]
[1,"Wiss. Hochschulen (= Uni, GH, PH, TH und KunstH)",10,"Restliche Fächergruppen",4,"Lehrkr. f. bes. Aufgaben + Doz. u. Assistenten","w",978,639,339,113,31,82,415,162,253,"","",""]
[1,"Wiss. Hochschulen (= Uni, GH, PH, TH und KunstH)",10,"Restliche Fächergruppen",4,"Lehrkr. f. bes. Aufgaben + Doz. u. Assistenten","i",2331,1556,775,213,59,154,926,369,557,"","",""]
[1,"Wiss. Hochschulen (= Uni, GH, PH, TH und KunstH)",10,"Restliche Fächergruppen","~~","zusammen","m",7332,3518,3814,2205,207,1998,4253,984,3269,"","",""]
[1,"Wiss. Hochschulen (= Uni, GH, PH, TH und KunstH)",10,"Restliche Fächergruppen","~~","zusammen","w",4917,1842,3075,1919,173,1746,3415,672,2743,"","",""]
[1,"Wiss. Hochschulen (= Uni, GH, PH, TH und KunstH)",10,"Restliche Fächergruppen","~~","zusammen","i",12249,5360,6889,4124,380,3744,7668,1656,6012,"","",""]
[1,"Wiss. Hochschulen (= Uni, GH, PH, TH und KunstH)","~~","zusammen","~~","zusammen","m",79245,20825,58420,40290,2923,37367,62644,8368,54276,"","",""]
[1,"Wiss. Hochschulen (= Uni, GH, PH, TH und KunstH)","~~","zusammen","~~","zusammen","w",42540,9044,33496,23844,1850,21994,35426,4368,31058,"","",""]
[1,"Wiss. Hochschulen (= Uni, GH, PH, TH und KunstH)","~~","zusammen","~~","zusammen","i",121785,29869,91916,64134,4773,59361,98070,12736,85334,"","",""]
[2,"FH + VerwFH",1,"Sprach- und Kulturwissenschaften",3,"Wiss. u. künstl. Mitarbeiter","m",43,24,19,9," . "," . ",24,8,16,"","",""]
[2,"FH + VerwFH",1,"Sprach- und Kulturwissenschaften",3,"Wiss. u. künstl. Mitarbeiter","w",49,16,33,12," . "," . ",35,6,29,"","",""]
[2,"FH + VerwFH",1,"Sprach- und Kulturwissenschaften",3,"Wiss. u. künstl. Mitarbeiter","i",92,40,52,21," . "," . ",59,14,45,"","",""]
[2,"FH + VerwFH",1,"Sprach- und Kulturwissenschaften",4,"Lehrkr. f. bes. Aufgaben + Doz. u. Assistenten","m",130,94,36,13," . "," . ",51,31,20,"","",""]
[2,"FH + VerwFH",1,"Sprach- und Kulturwissenschaften",4,"Lehrkr. f. bes. Aufgaben + Doz. u. Assistenten","w",227,176,51,17," . "," . ",86,59,27,"","",""]
[2,"FH + VerwFH",1,"Sprach- und Kulturwissenschaften",4,"Lehrkr. f. bes. Aufgaben + Doz. u. Assistenten","i",357,270,87,30," . "," . ",137,90,47,"","",""]
[2,"FH + VerwFH",1,"Sprach- und Kulturwissenschaften","~~","zusammen","m",173,118,55,22," . "," . ",75,39,36,"","",""]
[2,"FH + VerwFH",1,"Sprach- und Kulturwissenschaften","~~","zusammen","w",276,192,84,29," . "," . ",121,65,56,"","",""]
[2,"FH + VerwFH",1,"Sprach- und Kulturwissenschaften","~~","zusammen","i",449,310,139,51," . "," . ",196,104,92,{"$f":"IF(OR(H79=I79,H79=J79),\"X\",\"\")","v":""},{"$f":"IF(OR(K79=L79,K79=M79),\"X\",\"\")","v":""},{"$f":"IF(OR(N79=O79,N79=P79),\"X\",\"\")","v":""}]
[2,"FH + VerwFH",3,"Rechts-, Wirtschafts- und Sozialwissenschaften",3,"Wiss. u. künstl. Mitarbeiter","m",366,244,122,69,9,60,173,82,91,"","",""]
[2,"FH + VerwFH",3,"Rechts-, Wirtschafts- und Sozialwissenschaften",3,"Wiss. u. künstl. Mitarbeiter","w",302,127,175,97,17,80,223,73,150,"","",""]
[2,"FH + VerwFH",3,"Rechts-, Wirtschafts- und Sozialwissenschaften",3,"Wiss. u. künstl. Mitarbeiter","i",668,371,297,166,26,140,396,155,241,"","",""]
[2,"FH + VerwFH",3,"Rechts-, Wirtschafts- und Sozialwissenschaften",4,"Lehrkr. f. bes. Aufgaben + Doz. u. Assistenten","m",1262,996,266,79,37,42,429,283,146,"","",""]
[2,"FH + VerwFH",3,"Rechts-, Wirtschafts- und Sozialwissenschaften",4,"Lehrkr. f. bes. Aufgaben + Doz. u. Assistenten","w",475,336,139,75,28,47,242,142,100,"","",""]
[2,"FH + VerwFH",3,"Rechts-, Wirtschafts- und Sozialwissenschaften",4,"Lehrkr. f. bes. Aufgaben + Doz. u. Assistenten","i",1737,1332,405,154,65,89,671,425,246,"","",""]
[2,"FH + VerwFH",3,"Rechts-, Wirtschafts- und Sozialwissenschaften","~~","zusammen","m",1628,1240,388,148,46,102,602,365,237,"","",""]
[2,"FH + VerwFH",3,"Rechts-, Wirtschafts- und Sozialwissenschaften","~~","zusammen","w",777,463,314,172,45,127,465,215,250,"","",""]
[2,"FH + VerwFH",3,"Rechts-, Wirtschafts- und Sozialwissenschaften","~~","zusammen","i",2405,1703,702,320,91,229,1067,580,487,"","",""]
[2,"FH + VerwFH",4,"Mathematik, Naturwissenschaften",3,"Wiss. u. künstl. Mitarbeiter","m",294,122,172,130,11,119,214,58,156,"","",""]
[2,"FH + VerwFH",4,"Mathematik, Naturwissenschaften",3,"Wiss. u. künstl. Mitarbeiter","w",127,42,85,52,7,45,101,26,75,"","",""]
[2,"FH + VerwFH",4,"Mathematik, Naturwissenschaften",3,"Wiss. u. künstl. Mitarbeiter","i",421,164,257,182,18,164,315,84,231,"","",""]
[2,"FH + VerwFH",4,"Mathematik, Naturwissenschaften",4,"Lehrkr. f. bes. Aufgaben + Doz. u. Assistenten","m",164,80,84,41," . "," . ",74,21,53,"","",""]
[2,"FH + VerwFH",4,"Mathematik, Naturwissenschaften",4,"Lehrkr. f. bes. Aufgaben + Doz. u. Assistenten","w",43,21,22,9," . "," . ",27,6,21,"","",""]
[2,"FH + VerwFH",4,"Mathematik, Naturwissenschaften",4,"Lehrkr. f. bes. Aufgaben + Doz. u. Assistenten","i",207,101,106,50,4,46,101,27,74,"","",""]
[2,"FH + VerwFH",4,"Mathematik, Naturwissenschaften","~~","zusammen","m",458,202,256,171,15,156,288,79,209,"","",""]
[2,"FH + VerwFH",4,"Mathematik, Naturwissenschaften","~~","zusammen","w",170,63,107,61,7,54,128,32,96,"","",""]
[2,"FH + VerwFH",4,"Mathematik, Naturwissenschaften","~~","zusammen","i",628,265,363,232,22,210,416,111,305,"","",""]
[2,"FH + VerwFH",5,"Humanmedizin/Gesundheitswissenschaften + Veterinärmedizin",3,"Wiss. u. künstl. Mitarbeiter","m",6,4,2,1," . "," . ",3," . "," . ","","",""]
[2,"FH + VerwFH",5,"Humanmedizin/Gesundheitswissenschaften + Veterinärmedizin",3,"Wiss. u. künstl. Mitarbeiter","w",27,2,25,4," . "," . ",18," . "," . ","","",""]
[2,"FH + VerwFH",5,"Humanmedizin/Gesundheitswissenschaften + Veterinärmedizin",3,"Wiss. u. künstl. Mitarbeiter","i",33,6,27,5," . "," . ",21,2,19,"","",""]
[2,"FH + VerwFH",5,"Humanmedizin/Gesundheitswissenschaften + Veterinärmedizin",4,"Lehrkr. f. bes. Aufgaben + Doz. u. Assistenten","m",9,5,4,0," . "," . ",2,1,1,"","",""]
[2,"FH + VerwFH",5,"Humanmedizin/Gesundheitswissenschaften + Veterinärmedizin",4,"Lehrkr. f. bes. Aufgaben + Doz. u. Assistenten","w",6,2,4,0," . "," . ",6,2,4,"","",""]
[2,"FH + VerwFH",5,"Humanmedizin/Gesundheitswissenschaften + Veterinärmedizin",4,"Lehrkr. f. bes. Aufgaben + Doz. u. Assistenten","i",15,7,8,0," . "," . ",8,3,5,"","",""]
[2,"FH + VerwFH",5,"Humanmedizin/Gesundheitswissenschaften + Veterinärmedizin","~~","zusammen","m",15,9,6,1," . "," . ",5,3,2,"","",""]
[2,"FH + VerwFH",5,"Humanmedizin/Gesundheitswissenschaften + Veterinärmedizin","~~","zusammen","w",33,4,29,4," . "," . ",24,2,22,"","",""]
[2,"FH + VerwFH",5,"Humanmedizin/Gesundheitswissenschaften + Veterinärmedizin","~~","zusammen","i",48,13,35,5," . "," . ",29,5,24,"","",""]
[2,"FH + VerwFH",8,"Ingenieurwissenschaften",3,"Wiss. u. künstl. Mitarbeiter","m",1012,502,510,312,21,291,600,178,422,"","",""]
[2,"FH + VerwFH",8,"Ingenieurwissenschaften",3,"Wiss. u. künstl. Mitarbeiter","w",303,98,205,116,7,109,240,57,183,"","",""]
[2,"FH + VerwFH",8,"Ingenieurwissenschaften",3,"Wiss. u. künstl. Mitarbeiter","i",1315,600,715,428,28,400,840,235,605,"","",""]
[2,"FH + VerwFH",8,"Ingenieurwissenschaften",4,"Lehrkr. f. bes. Aufgaben + Doz. u. Assistenten","m",206,102,104,67," . "," . ",111,24,87,"","",""]
[2,"FH + VerwFH",8,"Ingenieurwissenschaften",4,"Lehrkr. f. bes. Aufgaben + Doz. u. Assistenten","w",82,37,45,22," . "," . ",55,15,40,"","",""]
[2,"FH + VerwFH",8,"Ingenieurwissenschaften",4,"Lehrkr. f. bes. Aufgaben + Doz. u. Assistenten","i",288,139,149,89,2,87,166,39,127,"","",""]
[2,"FH + VerwFH",8,"Ingenieurwissenschaften","~~","zusammen","m",1218,604,614,379,23,356,711,202,509,"","",""]
[2,"FH + VerwFH",8,"Ingenieurwissenschaften","~~","zusammen","w",385,135,250,138,7,131,295,72,223,"","",""]
[2,"FH + VerwFH",8,"Ingenieurwissenschaften","~~","zusammen","i",1603,739,864,517,30,487,1006,274,732,"","",""]
[2,"FH + VerwFH",10,"Restliche Fächergruppen",3,"Wiss. u. künstl. Mitarbeiter","m",370,188,182,95,11,84,213,68,145,"","",""]
[2,"FH + VerwFH",10,"Restliche Fächergruppen",3,"Wiss. u. künstl. Mitarbeiter","w",308,94,214,91,4,87,219,42,177,"","",""]
[2,"FH + VerwFH",10,"Restliche Fächergruppen",3,"Wiss. u. künstl. Mitarbeiter","i",678,282,396,186,15,171,432,110,322,"","",""]
[2,"FH + VerwFH",10,"Restliche Fächergruppen",4,"Lehrkr. f. bes. Aufgaben + Doz. u. Assistenten","m",137,103,34,14," . "," . ",48,26,22,"","",""]
[2,"FH + VerwFH",10,"Restliche Fächergruppen",4,"Lehrkr. f. bes. Aufgaben + Doz. u. Assistenten","w",139,94,45,15," . "," . ",54,28,26,"","",""]
[2,"FH + VerwFH",10,"Restliche Fächergruppen",4,"Lehrkr. f. bes. Aufgaben + Doz. u. Assistenten","i",276,197,79,29,2,27,102,54,48,"","",""]
[2,"FH + VerwFH",10,"Restliche Fächergruppen","~~","zusammen","m",507,291,216,109,13,96,261,94,167,"","",""]
[2,"FH + VerwFH",10,"Restliche Fächergruppen","~~","zusammen","w",447,188,259,106,4,102,273,70,203,"","",""]
[2,"FH + VerwFH",10,"Restliche Fächergruppen","~~","zusammen","i",954,479,475,215,17,198,534,164,370,"","",""]
[2,"FH + VerwFH","~~","zusammen","~~","zusammen","m",3999,2464,1535,830,103,727,1942,782,1160,"","",""]
[2,"FH + VerwFH","~~","zusammen","~~","zusammen","w",2088,1045,1043,510,74,436,1306,456,850,"","",""]
[2,"FH + VerwFH","~~","zusammen","~~","zusammen","i",6087,3509,2578,1340,177,1163,3248,1238,2010,"","",""]
["~","Insgesamt",null,null,null,null,"m",83244,23289,59955,41120,3026,38094,64586,9150,55436,"","",""]
["~","Insgesamt",null,null,null,null,"w",44628,10089,34539,24354,1924,22430,36732,4824,31908,"","",""]
["~","Insgesamt",null,null,null,null,"i",127872,33378,94494,65474,4950,60524,101318,13974,87344,"","",""]

{"sheet":"1.4","index":5,"n_rows":121,"n_cols":19,"rows_kept":121,"cut":false,"hidden":false,"merged":[]}
["Statistisches Bundesamt"]
["H201 - Hochschulstatistik"]
[]
[]
["Hauptberufliches wissenschaftliches und künstlerisches Personal (ohne Professoren) nach ausgewählten Hochschularten, Fächer- und Personalgruppen "]
["im Berichtsjahr 2000"]
[]
[null,null,null,null,null,null,null,"Hauptber. wiss. und ",null,null,"Hauptber. wiss. und ",null,null,"Hauptber. wiss. und "]
[null,null,null,null,null,null,null,"künstler. Personal",null,null,"künstler. Personal",null,null,"künstler. Personal"]
[null,"Hochschulart",null,"Fächergruppe",null,"Personalgruppe","Ge-","(ohne Professoren)",null,null,"(ohne Professoren)",null,null,"(ohne Professoren)"]
[null,null,null,"der fachl. Zugehörigkeit",null,null,"schlecht",null,null,null,"im Alter bis einschl. 34 Jahren",null,null,"im Alter bis einschl. 44 Jahren"]
[null,null,null,null,null,null,null,"insgesamt","auf Dauer","auf Zeit","insgesamt","auf Dauer","auf Zeit","insgesamt","auf Dauer","auf Zeit"]
[]
[1,"Wiss. Hochschulen (= Uni, GH, PH, TH und KunstH)",1,"Sprach- und Kulturwissenschaften",3,"Wiss. u. künstl. Mitarbeiter","m",5139,2010,3129,1759,111,1648,3169,416,2753,{"$f":"IF(OR(H14=I14,H14=J14),\"X\",\"\")","v":""},{"$f":"IF(OR(K14=L14,K14=M14),\"X\",\"\")","v":""},{"$f":"IF(OR(N14=O14,N14=P14),\"X\",\"\")","v":""}]
[1,"Wiss. Hochschulen (= Uni, GH, PH, TH und KunstH)",1,"Sprach- und Kulturwissenschaften",3,"Wiss. u. künstl. Mitarbeiter","w",4163,1048,3115,1930,114,1816,3167,372,2795,{"$f":"IF(OR(H15=I15,H15=J15),\"X\",\"\")","v":""},{"$f":"IF(OR(K15=L15,K15=M15),\"X\",\"\")","v":""},{"$f":"IF(OR(N15=O15,N15=P15),\"X\",\"\")","v":""}]
[1,"Wiss. Hochschulen (= Uni, GH, PH, TH und KunstH)",1,"Sprach- und Kulturwissenschaften",3,"Wiss. u. künstl. Mitarbeiter","i",9302,3058,6244,3689,225,3464,6336,788,5548,"","",""]
[1,"Wiss. Hochschulen (= Uni, GH, PH, TH und KunstH)",1,"Sprach- und Kulturwissenschaften",4,"Lehrkr. f. bes. Aufgaben + Doz. u. Assistenten","m",2300,803,1497,376,21,355,1444,157,1287,"","",""]
[1,"Wiss. Hochschulen (= Uni, GH, PH, TH und KunstH)",1,"Sprach- und Kulturwissenschaften",4,"Lehrkr. f. bes. Aufgaben + Doz. u. Assistenten","w",1968,845,1123,394,61,333,1222,267,955,"","",""]
[1,"Wiss. Hochschulen (= Uni, GH, PH, TH und KunstH)",1,"Sprach- und Kulturwissenschaften",4,"Lehrkr. f. bes. Aufgaben + Doz. u. Assistenten","i",4268,1648,2620,770,82,688,2666,424,2242,"","",""]
[1,"Wiss. Hochschulen (= Uni, GH, PH, TH und KunstH)",1,"Sprach- und Kulturwissenschaften","~~","zusammen","m",7439,2813,4626,2135,132,2003,4613,573,4040,"","",""]
[1,"Wiss. Hochschulen (= Uni, GH, PH, TH und KunstH)",1,"Sprach- und Kulturwissenschaften","~~","zusammen","w",6131,1893,4238,2324,175,2149,4389,639,3750,"","",""]
[1,"Wiss. Hochschulen (= Uni, GH, PH, TH und KunstH)",1,"Sprach- und Kulturwissenschaften","~~","zusammen","i",13570,4706,8864,4459,307,4152,9002,1212,7790,"","",""]
[1,"Wiss. Hochschulen (= Uni, GH, PH, TH und KunstH)",3,"Rechts-, Wirtschafts- und Sozialwissenschaften",3,"Wiss. u. künstl. Mitarbeiter","m",5218,969,4249,3835," . "," . ",4531,428,4103,"","",""]
[1,"Wiss. Hochschulen (= Uni, GH, PH, TH und KunstH)",3,"Rechts-, Wirtschafts- und Sozialwissenschaften",3,"Wiss. u. künstl. Mitarbeiter","w",2429,341,2088,1883," . "," . ",2237,210,2027,"","",""]
[1,"Wiss. Hochschulen (= Uni, GH, PH, TH und KunstH)",3,"Rechts-, Wirtschafts- und Sozialwissenschaften",3,"Wiss. u. künstl. Mitarbeiter","i",7647,1310,6337,5718," . "," . ",6768,638,6130,"","",""]
[1,"Wiss. Hochschulen (= Uni, GH, PH, TH und KunstH)",3,"Rechts-, Wirtschafts- und Sozialwissenschaften",4,"Lehrkr. f. bes. Aufgaben + Doz. u. Assistenten","m",1199,113,1086,482," . "," . ",1066,17,1049,"","",""]
[1,"Wiss. Hochschulen (= Uni, GH, PH, TH und KunstH)",3,"Rechts-, Wirtschafts- und Sozialwissenschaften",4,"Lehrkr. f. bes. Aufgaben + Doz. u. Assistenten","w",413,40,373,179," . "," . ",356,7,349,"","",""]
[1,"Wiss. Hochschulen (= Uni, GH, PH, TH und KunstH)",3,"Rechts-, Wirtschafts- und Sozialwissenschaften",4,"Lehrkr. f. bes. Aufgaben + Doz. u. Assistenten","i",1612,153,1459,661," . "," . ",1422,24,1398,"","",""]
[1,"Wiss. Hochschulen (= Uni, GH, PH, TH und KunstH)",3,"Rechts-, Wirtschafts- und Sozialwissenschaften","~~","zusammen","m",6417,1082,5335,4317,297,4020,5597,445,5152,"","",""]
[1,"Wiss. Hochschulen (= Uni, GH, PH, TH und KunstH)",3,"Rechts-, Wirtschafts- und Sozialwissenschaften","~~","zusammen","w",2842,381,2461,2062,149,1913,2593,217,2376,"","",""]
[1,"Wiss. Hochschulen (= Uni, GH, PH, TH und KunstH)",3,"Rechts-, Wirtschafts- und Sozialwissenschaften","~~","zusammen","i",9259,1463,7796,6379,446,5933,8190,662,7528,"","",""]
[1,"Wiss. Hochschulen (= Uni, GH, PH, TH und KunstH)",4,"Mathematik, Naturwissenschaften",3,"Wiss. u. künstl. Mitarbeiter","m",18768,4710,14058,12262,753,11509,15232,1654,13578,"","",""]
[1,"Wiss. Hochschulen (= Uni, GH, PH, TH und KunstH)",4,"Mathematik, Naturwissenschaften",3,"Wiss. u. künstl. Mitarbeiter","w",5243,670,4573,3893,159,3734,4770,345,4425,"","",""]
[1,"Wiss. Hochschulen (= Uni, GH, PH, TH und KunstH)",4,"Mathematik, Naturwissenschaften",3,"Wiss. u. künstl. Mitarbeiter","i",24011,5380,18631,16155,912,15243,20002,1999,18003,"","",""]
[1,"Wiss. Hochschulen (= Uni, GH, PH, TH und KunstH)",4,"Mathematik, Naturwissenschaften",4,"Lehrkr. f. bes. Aufgaben + Doz. u. Assistenten","m",2616,360,2256,753,4,749,2177,51,2126,"","",""]
[1,"Wiss. Hochschulen (= Uni, GH, PH, TH und KunstH)",4,"Mathematik, Naturwissenschaften",4,"Lehrkr. f. bes. Aufgaben + Doz. u. Assistenten","w",520,70,450,159,3,156,432,20,412,"","",""]
[1,"Wiss. Hochschulen (= Uni, GH, PH, TH und KunstH)",4,"Mathematik, Naturwissenschaften",4,"Lehrkr. f. bes. Aufgaben + Doz. u. Assistenten","i",3136,430,2706,912,7,905,2609,71,2538,"","",""]
[1,"Wiss. Hochschulen (= Uni, GH, PH, TH und KunstH)",4,"Mathematik, Naturwissenschaften","~~","zusammen","m",21384,5070,16314,13015,757,12258,17409,1705,15704,"","",""]
[1,"Wiss. Hochschulen (= Uni, GH, PH, TH und KunstH)",4,"Mathematik, Naturwissenschaften","~~","zusammen","w",5763,740,5023,4052,162,3890,5202,365,4837,"","",""]
[1,"Wiss. Hochschulen (= Uni, GH, PH, TH und KunstH)",4,"Mathematik, Naturwissenschaften","~~","zusammen","i",27147,5810,21337,17067,919,16148,22611,2070,20541,"","",""]
[1,"Wiss. Hochschulen (= Uni, GH, PH, TH und KunstH)",5,"Humanmedizin/Gesundheitswissenschaften + Veterinärmedizin",3,"Wiss. u. künstl. Mitarbeiter","m",19620,5582,14038,9048,390,8658,16027,2589,13438,"","",""]
[1,"Wiss. Hochschulen (= Uni, GH, PH, TH und KunstH)",5,"Humanmedizin/Gesundheitswissenschaften + Veterinärmedizin",3,"Wiss. u. künstl. Mitarbeiter","w",12191,2477,9714,7076,339,6737,10465,1222,9243,"","",""]
[1,"Wiss. Hochschulen (= Uni, GH, PH, TH und KunstH)",5,"Humanmedizin/Gesundheitswissenschaften + Veterinärmedizin",3,"Wiss. u. künstl. Mitarbeiter","i",31811,8059,23752,16124,729,15395,26492,3811,22681,"","",""]
[1,"Wiss. Hochschulen (= Uni, GH, PH, TH und KunstH)",5,"Humanmedizin/Gesundheitswissenschaften + Veterinärmedizin",4,"Lehrkr. f. bes. Aufgaben + Doz. u. Assistenten","m",3876,184,3692,978,2,976,3388,33,3355,"","",""]
[1,"Wiss. Hochschulen (= Uni, GH, PH, TH und KunstH)",5,"Humanmedizin/Gesundheitswissenschaften + Veterinärmedizin",4,"Lehrkr. f. bes. Aufgaben + Doz. u. Assistenten","w",1530,51,1479,566,5,561,1356,13,1343,"","",""]
[1,"Wiss. Hochschulen (= Uni, GH, PH, TH und KunstH)",5,"Humanmedizin/Gesundheitswissenschaften + Veterinärmedizin",4,"Lehrkr. f. bes. Aufgaben + Doz. u. Assistenten","i",5406,235,5171,1544,7,1537,4744,46,4698,"","",""]
[1,"Wiss. Hochschulen (= Uni, GH, PH, TH und KunstH)",5,"Humanmedizin/Gesundheitswissenschaften + Veterinärmedizin","~~","zusammen","m",23496,5766,17730,10026,392,9634,19415,2622,16793,"","",""]
[1,"Wiss. Hochschulen (= Uni, GH, PH, TH und KunstH)",5,"Humanmedizin/Gesundheitswissenschaften + Veterinärmedizin","~~","zusammen","w",13721,2528,11193,7642,344,7298,11821,1235,10586,"","",""]
[1,"Wiss. Hochschulen (= Uni, GH, PH, TH und KunstH)",5,"Humanmedizin/Gesundheitswissenschaften + Veterinärmedizin","~~","zusammen","i",37217,8294,28923,17668,736,16932,31236,3857,27379,"","",""]
[1,"Wiss. Hochschulen (= Uni, GH, PH, TH und KunstH)",8,"Ingenieurwissenschaften",3,"Wiss. u. künstl. Mitarbeiter","m",12541,2609,9932,8486,401,8085,10519,991,9528,"","",""]
[1,"Wiss. Hochschulen (= Uni, GH, PH, TH und KunstH)",8,"Ingenieurwissenschaften",3,"Wiss. u. künstl. Mitarbeiter","w",2116,270,1846,1438,61,1377,1916,140,1776,"","",""]
[1,"Wiss. Hochschulen (= Uni, GH, PH, TH und KunstH)",8,"Ingenieurwissenschaften",3,"Wiss. u. künstl. Mitarbeiter","i",14657,2879,11778,9924,462,9462,12435,1131,11304,"","",""]
[1,"Wiss. Hochschulen (= Uni, GH, PH, TH und KunstH)",8,"Ingenieurwissenschaften",4,"Lehrkr. f. bes. Aufgaben + Doz. u. Assistenten","m",1296,138,1158,682,6,676,1109,26,1083,"","",""]
[1,"Wiss. Hochschulen (= Uni, GH, PH, TH und KunstH)",8,"Ingenieurwissenschaften",4,"Lehrkr. f. bes. Aufgaben + Doz. u. Assistenten","w",186,7,179,89,1,88,166,2,164,"","",""]
[1,"Wiss. Hochschulen (= Uni, GH, PH, TH und KunstH)",8,"Ingenieurwissenschaften",4,"Lehrkr. f. bes. Aufgaben + Doz. u. Assistenten","i",1482,145,1337,771,7,764,1275,28,1247,"","",""]
[1,"Wiss. Hochschulen (= Uni, GH, PH, TH und KunstH)",8,"Ingenieurwissenschaften","~~","zusammen","m",13837,2747,11090,9168,407,8761,11628,1017,10611,"","",""]
[1,"Wiss. Hochschulen (= Uni, GH, PH, TH und KunstH)",8,"Ingenieurwissenschaften","~~","zusammen","w",2302,277,2025,1527,62,1465,2082,142,1940,"","",""]
[1,"Wiss. Hochschulen (= Uni, GH, PH, TH und KunstH)",8,"Ingenieurwissenschaften","~~","zusammen","i",16139,3024,13115,10695,469,10226,13710,1159,12551,"","",""]
[1,"Wiss. Hochschulen (= Uni, GH, PH, TH und KunstH)",10,"Restliche Fächergruppen",3,"Wiss. u. künstl. Mitarbeiter","m",6109,2953,3156,2282,231,2051,3862,926,2936,"","",""]
[1,"Wiss. Hochschulen (= Uni, GH, PH, TH und KunstH)",10,"Restliche Fächergruppen",3,"Wiss. u. künstl. Mitarbeiter","w",3303,1208,2095,1489,136,1353,2474,530,1944,"","",""]
[1,"Wiss. Hochschulen (= Uni, GH, PH, TH und KunstH)",10,"Restliche Fächergruppen",3,"Wiss. u. künstl. Mitarbeiter","i",9412,4161,5251,3771,367,3404,6336,1456,4880,"","",""]
[1,"Wiss. Hochschulen (= Uni, GH, PH, TH und KunstH)",10,"Restliche Fächergruppen",4,"Lehrkr. f. bes. Aufgaben + Doz. u. Assistenten","m",1566,1002,564,157,24,133,713,232,481,"","",""]
[1,"Wiss. Hochschulen (= Uni, GH, PH, TH und KunstH)",10,"Restliche Fächergruppen",4,"Lehrkr. f. bes. Aufgaben + Doz. u. Assistenten","w",882,597,285,113,24,89,409,183,226,"","",""]
[1,"Wiss. Hochschulen (= Uni, GH, PH, TH und KunstH)",10,"Restliche Fächergruppen",4,"Lehrkr. f. bes. Aufgaben + Doz. u. Assistenten","i",2448,1599,849,270,48,222,1122,415,707,"","",""]
[1,"Wiss. Hochschulen (= Uni, GH, PH, TH und KunstH)",10,"Restliche Fächergruppen","~~","zusammen","m",7675,3955,3720,2439,255,2184,4575,1158,3417,"","",""]
[1,"Wiss. Hochschulen (= Uni, GH, PH, TH und KunstH)",10,"Restliche Fächergruppen","~~","zusammen","w",4185,1805,2380,1602,160,1442,2883,713,2170,"","",""]
[1,"Wiss. Hochschulen (= Uni, GH, PH, TH und KunstH)",10,"Restliche Fächergruppen","~~","zusammen","i",11860,5760,6100,4041,415,3626,7458,1871,5587,"","",""]
[1,"Wiss. Hochschulen (= Uni, GH, PH, TH und KunstH)","~~","zusammen","~~","zusammen","m",80248,21433,58815,41100,2240,38860,63237,7520,55717,"","",""]
[1,"Wiss. Hochschulen (= Uni, GH, PH, TH und KunstH)","~~","zusammen","~~","zusammen","w",34944,7624,27320,19209,1052,18157,28970,3311,25659,"","",""]
[1,"Wiss. Hochschulen (= Uni, GH, PH, TH und KunstH)","~~","zusammen","~~","zusammen","i",115192,29057,86135,60309,3292,57017,92207,10831,81376,"","",""]
[2,"FH + VerwFH",1,"Sprach- und Kulturwissenschaften",3,"Wiss. u. künstl. Mitarbeiter","m",16,12,4,1," . "," . ",9,6,3,"","",""]
[2,"FH + VerwFH",1,"Sprach- und Kulturwissenschaften",3,"Wiss. u. künstl. Mitarbeiter","w",25,8,17,7," . "," . ",20,6,14,"","",""]
[2,"FH + VerwFH",1,"Sprach- und Kulturwissenschaften",3,"Wiss. u. künstl. Mitarbeiter","i",41,20,21,8,1,7,29,12,17,"","",""]
[2,"FH + VerwFH",1,"Sprach- und Kulturwissenschaften",4,"Lehrkr. f. bes. Aufgaben + Doz. u. Assistenten","m",69,59,10,5,4,1,32,24,8,"","",""]
[2,"FH + VerwFH",1,"Sprach- und Kulturwissenschaften",4,"Lehrkr. f. bes. Aufgaben + Doz. u. Assistenten","w",190,145,45,25,13,12,93,64,29,"","",""]
[2,"FH + VerwFH",1,"Sprach- und Kulturwissenschaften",4,"Lehrkr. f. bes. Aufgaben + Doz. u. Assistenten","i",259,204,55,30,17,13,125,88,37,"","",""]
[2,"FH + VerwFH",1,"Sprach- und Kulturwissenschaften","~~","zusammen","m",85,71,14,6,5,1,41,30,11,"","",""]
[2,"FH + VerwFH",1,"Sprach- und Kulturwissenschaften","~~","zusammen","w",215,153,62,32,13,19,113,70,43,"","",""]
[2,"FH + VerwFH",1,"Sprach- und Kulturwissenschaften","~~","zusammen","i",300,224,76,38,18,20,154,100,54,{"$f":"IF(OR(H79=I79,H79=J79),\"X\",\"\")","v":""},{"$f":"IF(OR(K79=L79,K79=M79),\"X\",\"\")","v":""},{"$f":"IF(OR(N79=O79,N79=P79),\"X\",\"\")","v":""}]
[2,"FH + VerwFH",3,"Rechts-, Wirtschafts- und Sozialwissenschaften",3,"Wiss. u. künstl. Mitarbeiter","m",283,191,92,59,15,44,147,72,75,"","",""]
[2,"FH + VerwFH",3,"Rechts-, Wirtschafts- und Sozialwissenschaften",3,"Wiss. u. künstl. Mitarbeiter","w",182,70,112,79,26,53,142,50,92,"","",""]
[2,"FH + VerwFH",3,"Rechts-, Wirtschafts- und Sozialwissenschaften",3,"Wiss. u. künstl. Mitarbeiter","i",465,261,204,138,41,97,289,122,167,"","",""]
[2,"FH + VerwFH",3,"Rechts-, Wirtschafts- und Sozialwissenschaften",4,"Lehrkr. f. bes. Aufgaben + Doz. u. Assistenten","m",1091,971,120,53,38,15,396,319,77,"","",""]
[2,"FH + VerwFH",3,"Rechts-, Wirtschafts- und Sozialwissenschaften",4,"Lehrkr. f. bes. Aufgaben + Doz. u. Assistenten","w",372,307,65,52,25,27,209,157,52,"","",""]
[2,"FH + VerwFH",3,"Rechts-, Wirtschafts- und Sozialwissenschaften",4,"Lehrkr. f. bes. Aufgaben + Doz. u. Assistenten","i",1463,1278,185,105,63,42,605,476,129,"","",""]
[2,"FH + VerwFH",3,"Rechts-, Wirtschafts- und Sozialwissenschaften","~~","zusammen","m",1374,1162,212,112,53,59,543,391,152,"","",""]
[2,"FH + VerwFH",3,"Rechts-, Wirtschafts- und Sozialwissenschaften","~~","zusammen","w",554,377,177,131,51,80,351,207,144,"","",""]
[2,"FH + VerwFH",3,"Rechts-, Wirtschafts- und Sozialwissenschaften","~~","zusammen","i",1928,1539,389,243,104,139,894,598,296,"","",""]
[2,"FH + VerwFH",4,"Mathematik, Naturwissenschaften",3,"Wiss. u. künstl. Mitarbeiter","m",71,38,33,32,12,20,55,28,27,"","",""]
[2,"FH + VerwFH",4,"Mathematik, Naturwissenschaften",3,"Wiss. u. künstl. Mitarbeiter","w",33,13,20,11,1,10,30,12,18,"","",""]
[2,"FH + VerwFH",4,"Mathematik, Naturwissenschaften",3,"Wiss. u. künstl. Mitarbeiter","i",104,51,53,43,13,30,85,40,45,"","",""]
[2,"FH + VerwFH",4,"Mathematik, Naturwissenschaften",4,"Lehrkr. f. bes. Aufgaben + Doz. u. Assistenten","m",101,70,31,27,4,23,53,27,26,"","",""]
[2,"FH + VerwFH",4,"Mathematik, Naturwissenschaften",4,"Lehrkr. f. bes. Aufgaben + Doz. u. Assistenten","w",36,20,16,12,1,11,21,8,13,"","",""]
[2,"FH + VerwFH",4,"Mathematik, Naturwissenschaften",4,"Lehrkr. f. bes. Aufgaben + Doz. u. Assistenten","i",137,90,47,39,5,34,74,35,39,"","",""]
[2,"FH + VerwFH",4,"Mathematik, Naturwissenschaften","~~","zusammen","m",172,108,64,59,16,43,108,55,53,"","",""]
[2,"FH + VerwFH",4,"Mathematik, Naturwissenschaften","~~","zusammen","w",69,33,36,23,2,21,51,20,31,"","",""]
[2,"FH + VerwFH",4,"Mathematik, Naturwissenschaften","~~","zusammen","i",241,141,100,82,18,64,159,75,84,"","",""]
[2,"FH + VerwFH",8,"Ingenieurwissenschaften",3,"Wiss. u. künstl. Mitarbeiter","m",675,386,289,206,36,170,401,157,244,"","",""]
[2,"FH + VerwFH",8,"Ingenieurwissenschaften",3,"Wiss. u. künstl. Mitarbeiter","w",163,63,100,72,16,56,120,36,84,"","",""]
[2,"FH + VerwFH",8,"Ingenieurwissenschaften",3,"Wiss. u. künstl. Mitarbeiter","i",838,449,389,278,52,226,521,193,328,"","",""]
[2,"FH + VerwFH",8,"Ingenieurwissenschaften",4,"Lehrkr. f. bes. Aufgaben + Doz. u. Assistenten","m",243,185,58,51,16,35,119,70,49,"","",""]
[2,"FH + VerwFH",8,"Ingenieurwissenschaften",4,"Lehrkr. f. bes. Aufgaben + Doz. u. Assistenten","w",67,39,28,18,5,13,41,20,21,"","",""]
[2,"FH + VerwFH",8,"Ingenieurwissenschaften",4,"Lehrkr. f. bes. Aufgaben + Doz. u. Assistenten","i",310,224,86,69,21,48,160,90,70,"","",""]
[2,"FH + VerwFH",8,"Ingenieurwissenschaften","~~","zusammen","m",918,571,347,257,52,205,520,227,293,"","",""]
[2,"FH + VerwFH",8,"Ingenieurwissenschaften","~~","zusammen","w",230,102,128,90,21,69,161,56,105,"","",""]
[2,"FH + VerwFH",8,"Ingenieurwissenschaften","~~","zusammen","i",1148,673,475,347,73,274,681,283,398,"","",""]
[2,"FH + VerwFH",10,"Restliche Fächergruppen",3,"Wiss. u. künstl. Mitarbeiter","m",223,151,72,50,16,34,125,61,64,"","",""]
[2,"FH + VerwFH",10,"Restliche Fächergruppen",3,"Wiss. u. künstl. Mitarbeiter","w",167,80,87,53,12,41,123,43,80,"","",""]
[2,"FH + VerwFH",10,"Restliche Fächergruppen",3,"Wiss. u. künstl. Mitarbeiter","i",390,231,159,103,28,75,248,104,144,"","",""]
[2,"FH + VerwFH",10,"Restliche Fächergruppen",4,"Lehrkr. f. bes. Aufgaben + Doz. u. Assistenten","m",128,85,43,21,6,15,55,24,31,"","",""]
[2,"FH + VerwFH",10,"Restliche Fächergruppen",4,"Lehrkr. f. bes. Aufgaben + Doz. u. Assistenten","w",95,67,28,12,3,9,45,25,20,"","",""]
[2,"FH + VerwFH",10,"Restliche Fächergruppen",4,"Lehrkr. f. bes. Aufgaben + Doz. u. Assistenten","i",223,152,71,33,9,24,100,49,51,"","",""]
[2,"FH + VerwFH",10,"Restliche Fächergruppen","~~","zusammen","m",351,236,115,71,22,49,180,85,95,"","",""]
[2,"FH + VerwFH",10,"Restliche Fächergruppen","~~","zusammen","w",262,147,115,65,15,50,168,68,100,"","",""]
[2,"FH + VerwFH",10,"Restliche Fächergruppen","~~","zusammen","i",613,383,230,136,37,99,348,153,195,"","",""]
[2,"FH + VerwFH","~~","zusammen","~~","zusammen","m",2900,2148,752,505,148,357,1392,788,604,"","",""]
[2,"FH + VerwFH","~~","zusammen","~~","zusammen","w",1330,812,518,341,102,239,844,421,423,"","",""]
[2,"FH + VerwFH","~~","zusammen","~~","zusammen","i",4230,2960,1270,846,250,596,2236,1209,1027,"","",""]
["~","Insgesamt","~~","zusammen","~~","zusammen","m",83148,23581,59567,41605,2388,39217,64629,8308,56321,"","",""]
["~","Insgesamt","~~","zusammen","~~","zusammen","w",36274,8436,27838,19550,1154,18396,29814,3732,26082,"","",""]
["~","Insgesamt","~~","zusammen","~~","zusammen","i",119422,32017,87405,61155,3542,57613,94443,12040,82403,"","",""]

{"sheet":"1.5","index":6,"n_rows":125,"n_cols":10,"rows_kept":125,"cut":false,"hidden":false,"merged":[]}
["Statistisches Bundesamt"]
["H201 - Hochschulstatistik"]
[]
[]
["Hauptberufliches wissenschaftliches und künstlerisches Personal (ohne Professoren) nach ausgewählten Hochschularten, Fächer- und Personalgruppen "]
["im Berichtsjahr 1995"]
[]
[null,null,null,null,null,null,null,"Hauptber. wiss. und ","Hauptber. wiss. und ","Hauptber. wiss. und "]
[null,null,null,null,null,null,null,"künstler. Personal","künstler. Personal","künstler. Personal"]
[null,"Hochschulart",null,"Fächergruppe",null,"Personalgruppe","Ge-","(ohne Professoren)","(ohne Professoren)","(ohne Professoren)"]
[null,null,null,"der fachl. Zugehörigkeit",null,null,"schlecht",null,"im Alter bis einschl. 34 Jahren","im Alter bis einschl. 44 Jahren"]
[null,null,null,null,null,null,null,"insgesamt","insgesamt","insgesamt"]
[]
[1,"Wiss. Hochschulen",1,"Sprach- und Kulturwissenschaften",3,"Wiss. u. künstl. Mitarbeiter","m",4994,1559,2836]
[1,"Wiss. Hochschulen",1,"Sprach- und Kulturwissenschaften",3,"Wiss. u. künstl. Mitarbeiter","w",3641,1658,2669]
[1,"Wiss. Hochschulen",1,"Sprach- und Kulturwissenschaften",3,"Wiss. u. künstl. Mitarbeiter","i",8635,3217,5505]
[1,"Wiss. Hochschulen",1,"Sprach- und Kulturwissenschaften",4,"Lehrkr. f. bes. Aufgaben + Doz. u. Assistenten","m",2477,518,1560]
[1,"Wiss. Hochschulen",1,"Sprach- und Kulturwissenschaften",4,"Lehrkr. f. bes. Aufgaben + Doz. u. Assistenten","w",1909,494,1215]
[1,"Wiss. Hochschulen",1,"Sprach- und Kulturwissenschaften",4,"Lehrkr. f. bes. Aufgaben + Doz. u. Assistenten","i",4386,1012,2775]
[1,"Wiss. Hochschulen",1,"Sprach- und Kulturwissenschaften","~~","zusammen","m",7471,2077,4396]
[1,"Wiss. Hochschulen",1,"Sprach- und Kulturwissenschaften","~~","zusammen","w",5550,2152,3884]
[1,"Wiss. Hochschulen",1,"Sprach- und Kulturwissenschaften","~~","zusammen","i",13021,4229,8280]
[1,"Wiss. Hochschulen",3,"Rechts-, Wirtschafts- und Sozialwissenschaften",3,"Wiss. u. künstl. Mitarbeiter","m",4827,3548,4106]
[1,"Wiss. Hochschulen",3,"Rechts-, Wirtschafts- und Sozialwissenschaften",3,"Wiss. u. künstl. Mitarbeiter","w",2016,1526,1831]
[1,"Wiss. Hochschulen",3,"Rechts-, Wirtschafts- und Sozialwissenschaften",3,"Wiss. u. künstl. Mitarbeiter","i",6843,5074,5937]
[1,"Wiss. Hochschulen",3,"Rechts-, Wirtschafts- und Sozialwissenschaften",4,"Lehrkr. f. bes. Aufgaben + Doz. u. Assistenten","m",1186,619,1045]
[1,"Wiss. Hochschulen",3,"Rechts-, Wirtschafts- und Sozialwissenschaften",4,"Lehrkr. f. bes. Aufgaben + Doz. u. Assistenten","w",378,208,327]
[1,"Wiss. Hochschulen",3,"Rechts-, Wirtschafts- und Sozialwissenschaften",4,"Lehrkr. f. bes. Aufgaben + Doz. u. Assistenten","i",1564,827,1372]
[1,"Wiss. Hochschulen",3,"Rechts-, Wirtschafts- und Sozialwissenschaften","~~","zusammen","m",6013,4167,5151]
[1,"Wiss. Hochschulen",3,"Rechts-, Wirtschafts- und Sozialwissenschaften","~~","zusammen","w",2394,1734,2158]
[1,"Wiss. Hochschulen",3,"Rechts-, Wirtschafts- und Sozialwissenschaften","~~","zusammen","i",8407,5901,7309]
[1,"Wiss. Hochschulen",4,"Mathematik, Naturwissenschaften",3,"Wiss. u. künstl. Mitarbeiter","m",19869,13572,16185]
[1,"Wiss. Hochschulen",4,"Mathematik, Naturwissenschaften",3,"Wiss. u. künstl. Mitarbeiter","w",4888,3806,4430]
[1,"Wiss. Hochschulen",4,"Mathematik, Naturwissenschaften",3,"Wiss. u. künstl. Mitarbeiter","i",24757,17378,20615]
[1,"Wiss. Hochschulen",4,"Mathematik, Naturwissenschaften",4,"Lehrkr. f. bes. Aufgaben + Doz. u. Assistenten","m",2835,1145,2314]
[1,"Wiss. Hochschulen",4,"Mathematik, Naturwissenschaften",4,"Lehrkr. f. bes. Aufgaben + Doz. u. Assistenten","w",607,298,517]
[1,"Wiss. Hochschulen",4,"Mathematik, Naturwissenschaften",4,"Lehrkr. f. bes. Aufgaben + Doz. u. Assistenten","i",3442,1443,2831]
[1,"Wiss. Hochschulen",4,"Mathematik, Naturwissenschaften","~~","zusammen","m",22704,14717,18499]
[1,"Wiss. Hochschulen",4,"Mathematik, Naturwissenschaften","~~","zusammen","w",5495,4104,4947]
[1,"Wiss. Hochschulen",4,"Mathematik, Naturwissenschaften","~~","zusammen","i",28199,18821,23446]
[1,"Wiss. Hochschulen",5,"Humanmedizin/Gesundheitswissenschaften + Veterinärmedizin",3,"Wiss. u. künstl. Mitarbeiter","m",18350,9605,14965]
[1,"Wiss. Hochschulen",5,"Humanmedizin/Gesundheitswissenschaften + Veterinärmedizin",3,"Wiss. u. künstl. Mitarbeiter","w",10066,6267,8544]
[1,"Wiss. Hochschulen",5,"Humanmedizin/Gesundheitswissenschaften + Veterinärmedizin",3,"Wiss. u. künstl. Mitarbeiter","i",28416,15872,23509]
[1,"Wiss. Hochschulen",5,"Humanmedizin/Gesundheitswissenschaften + Veterinärmedizin",4,"Lehrkr. f. bes. Aufgaben + Doz. u. Assistenten","m",4301,1719,3747]
[1,"Wiss. Hochschulen",5,"Humanmedizin/Gesundheitswissenschaften + Veterinärmedizin",4,"Lehrkr. f. bes. Aufgaben + Doz. u. Assistenten","w",1632,907,1458]
[1,"Wiss. Hochschulen",5,"Humanmedizin/Gesundheitswissenschaften + Veterinärmedizin",4,"Lehrkr. f. bes. Aufgaben + Doz. u. Assistenten","i",5933,2626,5205]
[1,"Wiss. Hochschulen",5,"Humanmedizin/Gesundheitswissenschaften + Veterinärmedizin","~~","zusammen","m",22651,11324,18712]
[1,"Wiss. Hochschulen",5,"Humanmedizin/Gesundheitswissenschaften + Veterinärmedizin","~~","zusammen","w",11698,7174,10002]
[1,"Wiss. Hochschulen",5,"Humanmedizin/Gesundheitswissenschaften + Veterinärmedizin","~~","zusammen","i",34349,18498,28714]
[1,"Wiss. Hochschulen",8,"Ingenieurwissenschaften",3,"Wiss. u. künstl. Mitarbeiter","m",12399,8687,10478]
[1,"Wiss. Hochschulen",8,"Ingenieurwissenschaften",3,"Wiss. u. künstl. Mitarbeiter","w",1502,1054,1349]
[1,"Wiss. Hochschulen",8,"Ingenieurwissenschaften",3,"Wiss. u. künstl. Mitarbeiter","i",13901,9741,11827]
[1,"Wiss. Hochschulen",8,"Ingenieurwissenschaften",4,"Lehrkr. f. bes. Aufgaben + Doz. u. Assistenten","m",1681,1026,1357]
[1,"Wiss. Hochschulen",8,"Ingenieurwissenschaften",4,"Lehrkr. f. bes. Aufgaben + Doz. u. Assistenten","w",229,159,207]
[1,"Wiss. Hochschulen",8,"Ingenieurwissenschaften",4,"Lehrkr. f. bes. Aufgaben + Doz. u. Assistenten","i",1910,1185,1564]
[1,"Wiss. Hochschulen",8,"Ingenieurwissenschaften","~~","zusammen","m",14080,9713,11835]
[1,"Wiss. Hochschulen",8,"Ingenieurwissenschaften","~~","zusammen","w",1731,1213,1556]
[1,"Wiss. Hochschulen",8,"Ingenieurwissenschaften","~~","zusammen","i",15811,10926,13391]
[1,"Wiss. Hochschulen",10,"Restliche Fächergruppen",3,"Wiss. u. künstl. Mitarbeiter","m",6109,2416,3920]
[1,"Wiss. Hochschulen",10,"Restliche Fächergruppen",3,"Wiss. u. künstl. Mitarbeiter","w",2803,1336,2114]
[1,"Wiss. Hochschulen",10,"Restliche Fächergruppen",3,"Wiss. u. künstl. Mitarbeiter","i",8912,3752,6034]
[1,"Wiss. Hochschulen",10,"Restliche Fächergruppen",4,"Lehrkr. f. bes. Aufgaben + Doz. u. Assistenten","m",1486,245,747]
[1,"Wiss. Hochschulen",10,"Restliche Fächergruppen",4,"Lehrkr. f. bes. Aufgaben + Doz. u. Assistenten","w",776,174,459]
[1,"Wiss. Hochschulen",10,"Restliche Fächergruppen",4,"Lehrkr. f. bes. Aufgaben + Doz. u. Assistenten","i",2262,419,1206]
[1,"Wiss. Hochschulen",10,"Restliche Fächergruppen","~~","zusammen","m",7595,2661,4667]
[1,"Wiss. Hochschulen",10,"Restliche Fächergruppen","~~","zusammen","w",3579,1510,2573]
[1,"Wiss. Hochschulen",10,"Restliche Fächergruppen","~~","zusammen","i",11174,4171,7240]
[1,"Wiss. Hochschulen","~~","zusammen","~~","zusammen","m",80514,44659,63260]
[1,"Wiss. Hochschulen","~~","zusammen","~~","zusammen","w",30447,17887,25120]
[1,"Wiss. Hochschulen","~~","zusammen","~~","zusammen","i",110961,62546,88380]
[2,"FH + VerwFH",1,"Sprach- und Kulturwissenschaften",3,"Wiss. u. künstl. Mitarbeiter","m",20,5,11]
[2,"FH + VerwFH",1,"Sprach- und Kulturwissenschaften",3,"Wiss. u. künstl. Mitarbeiter","w",18,1,10]
[2,"FH + VerwFH",1,"Sprach- und Kulturwissenschaften",3,"Wiss. u. künstl. Mitarbeiter","i",38,6,21]
[2,"FH + VerwFH",1,"Sprach- und Kulturwissenschaften",4,"Lehrkr. f. bes. Aufgaben + Doz. u. Assistenten","m",67,9,27]
[2,"FH + VerwFH",1,"Sprach- und Kulturwissenschaften",4,"Lehrkr. f. bes. Aufgaben + Doz. u. Assistenten","w",139,19,72]
[2,"FH + VerwFH",1,"Sprach- und Kulturwissenschaften",4,"Lehrkr. f. bes. Aufgaben + Doz. u. Assistenten","i",206,28,99]
[2,"FH + VerwFH",1,"Sprach- und Kulturwissenschaften","~~","zusammen","m",87,14,38]
[2,"FH + VerwFH",1,"Sprach- und Kulturwissenschaften","~~","zusammen","w",157,20,82]
[2,"FH + VerwFH",1,"Sprach- und Kulturwissenschaften","~~","zusammen","i",244,34,120]
[2,"FH + VerwFH",3,"Rechts-, Wirtschafts- und Sozialwissenschaften",3,"Wiss. u. künstl. Mitarbeiter","m",234,36,118]
[2,"FH + VerwFH",3,"Rechts-, Wirtschafts- und Sozialwissenschaften",3,"Wiss. u. künstl. Mitarbeiter","w",80,21,62]
[2,"FH + VerwFH",3,"Rechts-, Wirtschafts- und Sozialwissenschaften",3,"Wiss. u. künstl. Mitarbeiter","i",314,57,180]
[2,"FH + VerwFH",3,"Rechts-, Wirtschafts- und Sozialwissenschaften",4,"Lehrkr. f. bes. Aufgaben + Doz. u. Assistenten","m",1218,118,550]
[2,"FH + VerwFH",3,"Rechts-, Wirtschafts- und Sozialwissenschaften",4,"Lehrkr. f. bes. Aufgaben + Doz. u. Assistenten","w",402,91,280]
[2,"FH + VerwFH",3,"Rechts-, Wirtschafts- und Sozialwissenschaften",4,"Lehrkr. f. bes. Aufgaben + Doz. u. Assistenten","i",1620,209,830]
[2,"FH + VerwFH",3,"Rechts-, Wirtschafts- und Sozialwissenschaften","~~","zusammen","m",1452,154,668]
[2,"FH + VerwFH",3,"Rechts-, Wirtschafts- und Sozialwissenschaften","~~","zusammen","w",482,112,342]
[2,"FH + VerwFH",3,"Rechts-, Wirtschafts- und Sozialwissenschaften","~~","zusammen","i",1934,266,1010]
[2,"FH + VerwFH",4,"Mathematik, Naturwissenschaften",3,"Wiss. u. künstl. Mitarbeiter","m",46,10,22]
[2,"FH + VerwFH",4,"Mathematik, Naturwissenschaften",3,"Wiss. u. künstl. Mitarbeiter","w",13,3,10]
[2,"FH + VerwFH",4,"Mathematik, Naturwissenschaften",3,"Wiss. u. künstl. Mitarbeiter","i",59,13,32]
[2,"FH + VerwFH",4,"Mathematik, Naturwissenschaften",4,"Lehrkr. f. bes. Aufgaben + Doz. u. Assistenten","m",85,19,45]
[2,"FH + VerwFH",4,"Mathematik, Naturwissenschaften",4,"Lehrkr. f. bes. Aufgaben + Doz. u. Assistenten","w",22,6,13]
[2,"FH + VerwFH",4,"Mathematik, Naturwissenschaften",4,"Lehrkr. f. bes. Aufgaben + Doz. u. Assistenten","i",107,25,58]
[2,"FH + VerwFH",4,"Mathematik, Naturwissenschaften","~~","zusammen","m",131,29,67]
[2,"FH + VerwFH",4,"Mathematik, Naturwissenschaften","~~","zusammen","w",35,9,23]
[2,"FH + VerwFH",4,"Mathematik, Naturwissenschaften","~~","zusammen","i",166,38,90]
[2,"FH + VerwFH",5,"Humanmedizin/Gesundheitswissenschaften + Veterinärmedizin",3,"Wiss. u. künstl. Mitarbeiter","m",1,1,1]
[2,"FH + VerwFH",5,"Humanmedizin/Gesundheitswissenschaften + Veterinärmedizin",3,"Wiss. u. künstl. Mitarbeiter","i",1,1,1]
[2,"FH + VerwFH",5,"Humanmedizin/Gesundheitswissenschaften + Veterinärmedizin","~~","zusammen","m",1,1,1]
[2,"FH + VerwFH",5,"Humanmedizin/Gesundheitswissenschaften + Veterinärmedizin","~~","zusammen","i",1,1,1]
[2,"FH + VerwFH",8,"Ingenieurwissenschaften",3,"Wiss. u. künstl. Mitarbeiter","m",374,133,248]
[2,"FH + VerwFH",8,"Ingenieurwissenschaften",3,"Wiss. u. künstl. Mitarbeiter","w",53,27,39]
[2,"FH + VerwFH",8,"Ingenieurwissenschaften",3,"Wiss. u. künstl. Mitarbeiter","i",427,160,287]
[2,"FH + VerwFH",8,"Ingenieurwissenschaften",4,"Lehrkr. f. bes. Aufgaben + Doz. u. Assistenten","m",432,161,251]
[2,"FH + VerwFH",8,"Ingenieurwissenschaften",4,"Lehrkr. f. bes. Aufgaben + Doz. u. Assistenten","w",82,36,57]
[2,"FH + VerwFH",8,"Ingenieurwissenschaften",4,"Lehrkr. f. bes. Aufgaben + Doz. u. Assistenten","i",514,197,308]
[2,"FH + VerwFH",8,"Ingenieurwissenschaften","~~","zusammen","m",806,294,499]
[2,"FH + VerwFH",8,"Ingenieurwissenschaften","~~","zusammen","w",135,63,96]
[2,"FH + VerwFH",8,"Ingenieurwissenschaften","~~","zusammen","i",941,357,595]
[2,"FH + VerwFH",10,"Restliche Fächergruppen",3,"Wiss. u. künstl. Mitarbeiter","m",135,36,85]
[2,"FH + VerwFH",10,"Restliche Fächergruppen",3,"Wiss. u. künstl. Mitarbeiter","w",68,17,49]
[2,"FH + VerwFH",10,"Restliche Fächergruppen",3,"Wiss. u. künstl. Mitarbeiter","i",203,53,134]
[2,"FH + VerwFH",10,"Restliche Fächergruppen",4,"Lehrkr. f. bes. Aufgaben + Doz. u. Assistenten","m",186,57,109]
[2,"FH + VerwFH",10,"Restliche Fächergruppen",4,"Lehrkr. f. bes. Aufgaben + Doz. u. Assistenten","w",93,30,64]
[2,"FH + VerwFH",10,"Restliche Fächergruppen",4,"Lehrkr. f. bes. Aufgaben + Doz. u. Assistenten","i",279,87,173]
[2,"FH + VerwFH",10,"Restliche Fächergruppen","~~","zusammen","m",321,93,194]
[2,"FH + VerwFH",10,"Restliche Fächergruppen","~~","zusammen","w",161,47,113]
[2,"FH + VerwFH",10,"Restliche Fächergruppen","~~","zusammen","i",482,140,307]
[2,"FH + VerwFH","~~","zusammen","~~","zusammen","m",2798,585,1467]
[2,"FH + VerwFH","~~","zusammen","~~","zusammen","w",970,251,656]
[2,"FH + VerwFH","~~","zusammen","~~","zusammen","i",3768,836,2123]
["~","Insgesamt",null,null,null,null,"m",83312,45244,64727]
["~","Insgesamt",null,null,null,null,"w",31417,18138,25776]
["~","Insgesamt",null,null,null,null,"i",114729,63382,90503]

{"sheet":"1.6","index":7,"n_rows":85,"n_cols":9,"rows_kept":85,"cut":false,"hidden":false,"merged":[[79,1,79,8],[80,1,80,2],[80,3,80,4],[80,5,80,6],[80,7,80,8],[72,1,72,2],[72,3,72,4],[72,5,72,6],[72,7,72,8],[55,1,55,8],[56,1,56,2],[56,3,56,4],[56,5,56,6],[56,7,56,8],[63,1,63,8],[64,1,64,2],[64,3,64,4],[64,5,64,6],[64,7,64,8],[71,1,71,8],[48,1,48,2],[48,3,48,4],[48,5,48,6],[48,7,48,8],[31,1,31,8],[32,1,32,2],[32,3,32,4],[32,5,32,6],[32,7,32,8],[39,1,39,8],[40,1,40,2],[40,3,40,4],[40,5,40,6],[40,7,40,8],[47,1,47,8],[24,1,24,2],[24,3,24,4],[24,5,24,6],[24,7,24,8],[7,1,7,8],[8,1,8,2],[8,3,8,4],[8,5,8,6],[8,7,8,8],[15,1,15,8],[16,1,16,2],[16,3,16,4],[16,5,16,6],[16,7,16,8],[23,1,23,8]]}
[]
["* Daten der Finanzierung \"aus Studiengebühren/-beiträgen\" (erst ab Berichtsjahr 2008 erhoben) und \"Nicht finanziert/ohne Angabe\" sind nicht enthalten."]
["Quelle: Destatis; Fachserie 11 Reihe 4.4; Sonderauswertung"]
["Hauptberufliches wissenschaftliches und künstlerisches Personal nach dem Beschäftigungs-"]
["verhältnis und der Finanzierung aus Grund- und Drittmitteln"]
[]
[]
[null,"Professoren"]
[null,2000,null,2005,null,2010,null,2014]
[null,"Grundmittel","Drittmittel","Grundmittel","Drittmittel","Grundmittel","Drittmittel","Grundmittel","Drittmittel"]
["Auf Dauer",35630,275,32359,260,31673,596,35949,832]
["Auf Zeit",1689,89,4322,249,6757,976,5499,1146]
["Summe",{"$f":"SUM(B11:B12)","v":37319},364,36681,509,38430,1572,41448,1978]
[]
[]
[null,"Professoren"]
[null,2000,null,2005,null,2010,null,2014]
[null,"Grundmittel","Drittmittel","Grundmittel","Drittmittel","Grundmittel","Drittmittel","Grundmittel","Drittmittel"]
["Auf Dauer",{"$f":"B11/B13","v":0.95474155256035798},0.75549450549450547,0.88217333224285055,0.51080550098231825,0.82417382253447824,0.37913486005089059,0.86732773595830925,0.42062689585439839]
["Auf Zeit",{"$f":"B12/B13","v":4.5258447439642004E-2},0.2445054945054945,0.11782666775714948,0.48919449901768175,0.17582617746552173,0.62086513994910941,0.1326722640416908,0.57937310414560161]
["Summe",{"$f":"SUM(B19:B20)","v":1},1,1,1,1,1,1,1]
[]
[]
[null,"Dozenten u. Assistenten"]
[null,2000,null,2005,null,2010,null,2014]
[null,"Grundmittel","Drittmittel","Grundmittel","Drittmittel","Grundmittel","Drittmittel","Grundmittel","Drittmittel"]
["Auf Dauer",1019,16,1788,46,1108,40,881,35]
["Auf Zeit",12613,517,7601,269,2211,445,1746,432]
["Summe",{"$f":"SUM(B27:B28)","v":13632},533,9389,315,3319,485,2627,467]
[]
[]
[null,"Dozenten u. Assistenten"]
[null,2000,null,2005,null,2010,null,2014]
[null,"Grundmittel","Drittmittel","Grundmittel","Drittmittel","Grundmittel","Drittmittel","Grundmittel","Drittmittel"]
["Auf Dauer",{"$f":"B27/B29","v":7.4750586854460094E-2},3.0018761726078799E-2,0.19043561614655447,0.14603174603174604,0.33383549261825851,8.247422680412371E-2,0.33536353254663115,7.4946466809421838E-2]
["Auf Zeit",{"$f":"B28/B29","v":0.92524941314553988},0.96998123827392124,0.80956438385344553,0.85396825396825393,0.66616450738174149,0.91752577319587625,0.66463646745336891,0.92505353319057815]
["Summe",{"$f":"SUM(B35:B36)","v":1},1,1,1,1,1,1,1]
[]
[]
[null,"Wissenschaftliche u. künstlerische Mitarbeiter"]
[null,2000,null,2005,null,2010,null,2014]
[null,"Grundmittel","Drittmittel","Grundmittel","Drittmittel","Grundmittel","Drittmittel","Grundmittel","Drittmittel"]
["Auf Dauer",23837,1837,22745,3609,22086,1491,25283,1111]
["Auf Zeit",40911,29983,47814,32759,65456,59923,77433,69263]
["Summe",{"$f":"SUM(B43:B44)","v":64748},31820,70559,36368,87542,61414,102716,70374]
[]
[]
[null,"Wissenschaftliche u. künstlerische Mitarbeiter"]
[null,2000,null,2005,null,2010,null,2014]
[null,"Grundmittel","Drittmittel","Grundmittel","Drittmittel","Grundmittel","Drittmittel","Grundmittel","Drittmittel"]
["Auf Dauer",{"$f":"B43/B45","v":0.36815036757892133},5.7730986800754246E-2,0.32235434175654415,9.9235591728992517E-2,0.25229032921340616,2.427785195558016E-2,0.24614470968495658,1.5787080455850172E-2]
["Auf Zeit",{"$f":"B44/B45","v":0.63184963242107861},0.94226901319924572,0.6776456582434558,0.90076440827100746,0.74770967078659389,0.97572214804441981,0.75385529031504339,0.9842129195441498]
["Summe",{"$f":"SUM(B51:B52)","v":1},1,1,1,1,1,1,1]
[]
[]
[null,"Lehrkräfte für besondere Aufgaben"]
[null,2000,null,2005,null,2010,null,2014]
[null,"Grundmittel","Drittmittel","Grundmittel","Drittmittel","Grundmittel","Drittmittel","Grundmittel","Drittmittel"]
["Auf Dauer",5047,30,4732,66,4587,41,5397,109]
["Auf Zeit",1111,100,1406,131,2488,344,3402,518]
["Summe",{"$f":"SUM(B59:B60)","v":6158},130,6138,197,7075,385,8799,627]
[]
[]
[null,"Lehrkräfte für besondere Aufgaben"]
[null,2000,null,2005,null,2010,null,2014]
[null,"Grundmittel","Drittmittel","Grundmittel","Drittmittel","Grundmittel","Drittmittel","Grundmittel","Drittmittel"]
["Auf Dauer",{"$f":"B59/B61","v":0.81958428061058786},0.23076923076923078,0.77093515803193224,0.3350253807106599,0.648339222614841,0.10649350649350649,0.61336515513126488,0.17384370015948963]
["Auf Zeit",{"$f":"B60/B61","v":0.18041571938941214},0.76923076923076927,0.22906484196806778,0.6649746192893401,0.351660777385159,0.89350649350649347,0.38663484486873506,0.82615629984051042]
["Summe",{"$f":"SUM(B67:B68)","v":1},1,1,1,1,1,1,1]
[]
[]
[null,"Insgesamt"]
[null,2000,null,2005,null,2010,null,2014]
[null,"Grundmittel","Drittmittel","Grundmittel","Drittmittel","Grundmittel","Drittmittel","Grundmittel","Drittmittel"]
["Auf Dauer",65533,2158,61624,3981,59454,2168,67510,2087]
["Auf Zeit",56324,30689,61143,33408,76912,61688,88080,71359]
["Summe",{"$f":"SUM(B75:B76)","v":121857},32847,122767,37389,136366,63856,155590,73446]
[]
[]
[null,"Insgesamt"]
[null,2000,null,2005,null,2010,null,2014]
[null,"Grundmittel","Drittmittel","Grundmittel","Drittmittel","Grundmittel","Drittmittel","Grundmittel","Drittmittel"]
["Auf Dauer",{"$f":"B75/B77","v":0.53778609353586582},6.5698541723749504E-2,0.50195899549553213,0.10647516649281874,0.43598844286699029,3.3951390628915057E-2,0.43389677999871457,2.8415434468861477E-2]
["Auf Zeit",{"$f":"B76/B77","v":0.46221390646413418},0.93430145827625044,0.49804100450446781,0.89352483350718126,0.56401155713300966,0.96604860937108494,0.56610322000128543,0.97158456553113848]
["Summe",{"$f":"SUM(B83:B84)","v":1},1,1,1,1,1,1,1]

{"sheet":"1.7","index":8,"n_rows":44,"n_cols":5,"rows_kept":44,"cut":false,"hidden":false,"merged":[]}
["Statistisches Bundesamt"]
["H201 - Hochschulpersonalstatistik"]
[]
["Hauptberufliches wissenschaftliches und künstlerisches Personal nach dem Beschäftigungs-"]
["verhältnis, Geschlecht und der Finanzierung aus Grund- und Drittmitteln"]
[]
["Berichtsjahr 2000"]
[]
["Personalgruppe","Beschäftigungs-","Geschl.","Finanzierung aus"]
[null,"verhältnis",null,"Grundmitteln","Drittmitteln"]
[]
["Professoren","auf Dauer","m",32018,235]
["Professoren","auf Dauer","w",3612,40]
["Professoren","auf Dauer","i",35630,275]
["Professoren","auf Zeit","m",1383,72]
["Professoren","auf Zeit","w",306,17]
["Professoren","auf Zeit","i",1689,89]
["Dozenten und Assistenten","auf Dauer","m",833,15]
["Dozenten und Assistenten","auf Dauer","w",186,1]
["Dozenten und Assistenten","auf Dauer","i",1019,16]
["Dozenten und Assistenten","auf Zeit","m",9483,322]
["Dozenten und Assistenten","auf Zeit","w",3130,195]
["Dozenten und Assistenten","auf Zeit","i",12613,517]
["Wissenschaftliche und künstlerische Mitarbeiter","auf Dauer","m",18133,1359]
["Wissenschaftliche und künstlerische Mitarbeiter","auf Dauer","w",5704,478]
["Wissenschaftliche und künstlerische Mitarbeiter","auf Dauer","i",23837,1837]
["Wissenschaftliche und künstlerische Mitarbeiter","auf Zeit","m",27193,20611]
["Wissenschaftliche und künstlerische Mitarbeiter","auf Zeit","w",13718,9372]
["Wissenschaftliche und künstlerische Mitarbeiter","auf Zeit","i",40911,29983]
["Lehrkräfte für besondere Aufgaben","auf Dauer","m",3077,12]
["Lehrkräfte für besondere Aufgaben","auf Dauer","w",1970,18]
["Lehrkräfte für besondere Aufgaben","auf Dauer","i",5047,30]
["Lehrkräfte für besondere Aufgaben","auf Zeit","m",536,49]
["Lehrkräfte für besondere Aufgaben","auf Zeit","w",575,51]
["Lehrkräfte für besondere Aufgaben","auf Zeit","i",1111,100]
["Hauptberufliches Personal insgesamt","auf Dauer","m",54061,1621]
["Hauptberufliches Personal insgesamt","auf Dauer","w",11472,537]
["Hauptberufliches Personal insgesamt","auf Dauer","i",65533,2158]
["Hauptberufliches Personal insgesamt","auf Zeit","m",38595,21054]
["Hauptberufliches Personal insgesamt","auf Zeit","w",17729,9635]
["Hauptberufliches Personal insgesamt","auf Zeit","i",56324,30689]
["Hauptberufliches Personal insgesamt",null,"m",92656,22675]
["Hauptberufliches Personal insgesamt",null,"w",29201,10172]
["Hauptberufliches Personal insgesamt",null,"i",121857,32847]

{"sheet":"1.8","index":9,"n_rows":44,"n_cols":5,"rows_kept":44,"cut":false,"hidden":false,"merged":[]}
["Statistisches Bundesamt"]
["H201 - Hochschulpersonalstatistik"]
[]
["Hauptberufliches wissenschaftliches und künstlerisches Personal nach dem Beschäftigungs-"]
["verhältnis, Geschlecht und der Finanzierung aus Grund- und Drittmitteln"]
[]
["Berichtsjahr 2005"]
[]
["Personalgruppe","Beschäftigungs-","Geschl.","Finanzierung aus"]
[null,"verhältnis",null,"Grundmitteln","Drittmitteln"]
[]
["Professoren","auf Dauer","m",28054,225]
["Professoren","auf Dauer","w",4305,35]
["Professoren","auf Dauer","i",32359,260]
["Professoren","auf Zeit","m",3391,200]
["Professoren","auf Zeit","w",931,49]
["Professoren","auf Zeit","i",4322,249]
["Dozenten und Assistenten","auf Dauer","m",1367,35]
["Dozenten und Assistenten","auf Dauer","w",421,11]
["Dozenten und Assistenten","auf Dauer","i",1788,46]
["Dozenten und Assistenten","auf Zeit","m",5488,142]
["Dozenten und Assistenten","auf Zeit","w",2113,127]
["Dozenten und Assistenten","auf Zeit","i",7601,269]
["Wissenschaftliche und künstlerische Mitarbeiter","auf Dauer","m",16603,2335]
["Wissenschaftliche und künstlerische Mitarbeiter","auf Dauer","w",6142,1274]
["Wissenschaftliche und künstlerische Mitarbeiter","auf Dauer","i",22745,3609]
["Wissenschaftliche und künstlerische Mitarbeiter","auf Zeit","m",29617,21073]
["Wissenschaftliche und künstlerische Mitarbeiter","auf Zeit","w",18197,11686]
["Wissenschaftliche und künstlerische Mitarbeiter","auf Zeit","i",47814,32759]
["Lehrkräfte für besondere Aufgaben","auf Dauer","m",2662,29]
["Lehrkräfte für besondere Aufgaben","auf Dauer","w",2070,37]
["Lehrkräfte für besondere Aufgaben","auf Dauer","i",4732,66]
["Lehrkräfte für besondere Aufgaben","auf Zeit","m",691,64]
["Lehrkräfte für besondere Aufgaben","auf Zeit","w",715,67]
["Lehrkräfte für besondere Aufgaben","auf Zeit","i",1406,131]
["Hauptberufliches Personal insgesamt","auf Dauer","m",48686,2624]
["Hauptberufliches Personal insgesamt","auf Dauer","w",12938,1357]
["Hauptberufliches Personal insgesamt","auf Dauer","i",61624,3981]
["Hauptberufliches Personal insgesamt","auf Zeit","m",39187,21479]
["Hauptberufliches Personal insgesamt","auf Zeit","w",21956,11929]
["Hauptberufliches Personal insgesamt","auf Zeit","i",61143,33408]
["Hauptberufliches Personal insgesamt",null,"m",87873,24103]
["Hauptberufliches Personal insgesamt",null,"w",34894,13286]
["Hauptberufliches Personal insgesamt",null,"i",122767,37389]

{"sheet":"1.9","index":10,"n_rows":44,"n_cols":5,"rows_kept":44,"cut":false,"hidden":false,"merged":[]}
["Statistisches Bundesamt"]
["H201 - Hochschulpersonalstatistik"]
[]
["Hauptberufliches wissenschaftliches und künstlerisches Personal nach dem Beschäftigungs-"]
["verhältnis, Geschlecht und der Finanzierung aus Grund- und Drittmitteln"]
[]
["Berichtsjahr 2010"]
[]
["Personalgruppe","Beschäftigungs-","Geschl.","Finanzierung aus"]
[null,"verhältnis",null,"Grundmitteln","Drittmitteln"]
[]
["Professoren","auf Dauer","m",26134,455]
["Professoren","auf Dauer","w",5539,141]
["Professoren","auf Dauer","i",31673,596]
["Professoren","auf Zeit","m",5089,689]
["Professoren","auf Zeit","w",1668,287]
["Professoren","auf Zeit","i",6757,976]
["Dozenten und Assistenten","auf Dauer","m",799,31]
["Dozenten und Assistenten","auf Dauer","w",309,9]
["Dozenten und Assistenten","auf Dauer","i",1108,40]
["Dozenten und Assistenten","auf Zeit","m",1446,258]
["Dozenten und Assistenten","auf Zeit","w",765,187]
["Dozenten und Assistenten","auf Zeit","i",2211,445]
["Wissenschaftliche und künstlerische Mitarbeiter","auf Dauer","m",15481,920]
["Wissenschaftliche und künstlerische Mitarbeiter","auf Dauer","w",6605,571]
["Wissenschaftliche und künstlerische Mitarbeiter","auf Dauer","i",22086,1491]
["Wissenschaftliche und künstlerische Mitarbeiter","auf Zeit","m",37185,36688]
["Wissenschaftliche und künstlerische Mitarbeiter","auf Zeit","w",28271,23235]
["Wissenschaftliche und künstlerische Mitarbeiter","auf Zeit","i",65456,59923]
["Lehrkräfte für besondere Aufgaben","auf Dauer","m",2427,21]
["Lehrkräfte für besondere Aufgaben","auf Dauer","w",2160,20]
["Lehrkräfte für besondere Aufgaben","auf Dauer","i",4587,41]
["Lehrkräfte für besondere Aufgaben","auf Zeit","m",1193,206]
["Lehrkräfte für besondere Aufgaben","auf Zeit","w",1295,138]
["Lehrkräfte für besondere Aufgaben","auf Zeit","i",2488,344]
["Hauptberufliches Personal insgesamt","auf Dauer","m",44841,1427]
["Hauptberufliches Personal insgesamt","auf Dauer","w",14613,741]
["Hauptberufliches Personal insgesamt","auf Dauer","i",59454,2168]
["Hauptberufliches Personal insgesamt","auf Zeit","m",44913,37841]
["Hauptberufliches Personal insgesamt","auf Zeit","w",31999,23847]
["Hauptberufliches Personal insgesamt","auf Zeit","i",76912,61688]
["Hauptberufliches Personal insgesamt",null,"m",89754,39268]
["Hauptberufliches Personal insgesamt",null,"w",46612,24588]
["Hauptberufliches Personal insgesamt",null,"i",136366,63856]

{"sheet":"1.10","index":11,"n_rows":44,"n_cols":5,"rows_kept":44,"cut":false,"hidden":false,"merged":[]}
["Statistisches Bundesamt"]
["H201 - Hochschulpersonalstatistik"]
[]
["Hauptberufliches wissenschaftliches und künstlerisches Personal nach dem Beschäftigungs-"]
["verhältnis, Geschlecht und der Finanzierung aus Grund- und Drittmitteln"]
[]
["Berichtsjahr 2014"]
[]
["Personalgruppe","Beschäftigungs-","Geschl.","Finanzierung aus"]
[null,"verhältnis",null,"Grundmitteln","Drittmitteln"]
[]
["Professoren","auf Dauer","m",28766,606]
["Professoren","auf Dauer","w",7183,226]
["Professoren","auf Dauer","i",35949,832]
["Professoren","auf Zeit","m",3777,795]
["Professoren","auf Zeit","w",1722,351]
["Professoren","auf Zeit","i",5499,1146]
["Dozenten und Assistenten","auf Dauer","m",619,22]
["Dozenten und Assistenten","auf Dauer","w",262,13]
["Dozenten und Assistenten","auf Dauer","i",881,35]
["Dozenten und Assistenten","auf Zeit","m",1098,228]
["Dozenten und Assistenten","auf Zeit","w",648,204]
["Dozenten und Assistenten","auf Zeit","i",1746,432]
["Wissenschaftliche und künstlerische Mitarbeiter","auf Dauer","m",16850,675]
["Wissenschaftliche und künstlerische Mitarbeiter","auf Dauer","w",8433,436]
["Wissenschaftliche und künstlerische Mitarbeiter","auf Dauer","i",25283,1111]
["Wissenschaftliche und künstlerische Mitarbeiter","auf Zeit","m",42143,41864]
["Wissenschaftliche und künstlerische Mitarbeiter","auf Zeit","w",35290,27399]
["Wissenschaftliche und künstlerische Mitarbeiter","auf Zeit","i",77433,69263]
["Lehrkräfte für besondere Aufgaben","auf Dauer","m",2804,57]
["Lehrkräfte für besondere Aufgaben","auf Dauer","w",2593,52]
["Lehrkräfte für besondere Aufgaben","auf Dauer","i",5397,109]
["Lehrkräfte für besondere Aufgaben","auf Zeit","m",1474,237]
["Lehrkräfte für besondere Aufgaben","auf Zeit","w",1928,281]
["Lehrkräfte für besondere Aufgaben","auf Zeit","i",3402,518]
["Hauptberufliches Personal insgesamt","auf Dauer","m",49039,1360]
["Hauptberufliches Personal insgesamt","auf Dauer","w",18471,727]
["Hauptberufliches Personal insgesamt","auf Dauer","i",67510,2087]
["Hauptberufliches Personal insgesamt","auf Zeit","m",48492,43124]
["Hauptberufliches Personal insgesamt","auf Zeit","w",39588,28235]
["Hauptberufliches Personal insgesamt","auf Zeit","i",88080,71359]
["Hauptberufliches Personal insgesamt",null,"m",97531,44484]
["Hauptberufliches Personal insgesamt",null,"w",58059,28962]
["Hauptberufliches Personal insgesamt",null,"i",155590,73446]

{"sheet":"2.Habil. je Alter&Geschlecht","index":12,"n_rows":0,"n_cols":0,"rows_kept":0,"cut":false,"hidden":false,"merged":[]}

{"sheet":"2.1","index":13,"n_rows":14,"n_cols":5,"rows_kept":14,"cut":false,"hidden":false,"merged":[[13,0,13,2],[4,0,4,4]]}
["Statistisches Bundesamt"]
["H201 - Hochschulstatistik"]
[]
["Habilitationen 2009 bis 2014"]
["Habilitationen"]
["Jahr","Alter","insgesamt","männlich","weiblich"]
[2014,"unter 45 Jahre",1260,923,337]
[2013,"unter 44 Jahre",1101,812,289]
[2012,"unter 43 Jahre",1095,810,285]
[2011,"unter 42 Jahre",953,713,240]
[2010,"unter 41 Jahre",961,722,239]
[2009,"unter 40 Jahre",835,669,166]
[null,"Summe",{"$f":"SUM(C7:C12)","v":6205},{"$f":"SUM(D7:D12)","v":4649},{"$f":"SUM(E7:E12)","v":1556}]
["Quelle: Sonderauswertung Statistisches Bundesamt; Hochschulstatistik"]

{"sheet":"2.2","index":14,"n_rows":337,"n_cols":17,"rows_kept":337,"cut":false,"hidden":false,"merged":[]}
["Habilitationen 2014"]
[]
["21  Nach Fächergruppen und Lehr- und Forschungsbereichen der fachlichen Zugehörigkeit,"]
["       Habilitationsalter und Durchschnittsalter bei der Habilitation"]
[]
["Fächergruppe",null,null,null,"Davon im Alter von ... bis unter ... Jahren 1)",null,null,null,null,null,null,null,null,null,null,"Durchschnitts-"]
["------------",null,null,"Habili-",null,null,null,null,null,null,null,null,null,null,null,"alter"]
["Lehr- und Forschungsbereich",null,null,"tierte","unter",33,35,37,39,41,43,45,47,49,51,"arith-"]
[null,null,null,"ins-",33," - "," - "," - "," - "," - "," - "," - "," - "," - ","und","meti-","Median"]
["(m = männlich, w = weiblich",null,null,"gesamt",null,35,37,39,41,43,45,47,49,51,"mehr","sches","2)"]
["i = insgesamt)",null,null,null,null,null,null,null,null,null,null,null,null,null,null,"Mittel"]
[]
["Sprach- und Kulturwissenschaften"]
[]
[null,"Sprach- und Kulturwissenschaften","m",5,0,0,1,0,0,0,0,0,1,0,3,48.6,51.5]
[null,"  allgemein","w",3,0,1,0,0,0,0,1,0,1,0,0,40.799999999999997,42.5]
[null,null,"i",8,0,1,1,0,0,0,1,0,2,0,3,45.7,46.5]
[]
[null,"Evangelische Theologie","m",6,0,1,0,0,1,1,1,1,0,0,1,42.6,42]
[null,null,"w",7,0,0,0,1,2,0,1,2,0,0,1,43.5,43.5]
[null,null,"i",13,0,1,0,1,3,1,2,3,0,0,2,43.1,42.5]
[]
[null,"Katholische Theologie","m",12,0,2,2,1,2,0,0,0,3,0,2,41.9,39.5]
[null,null,"w",8,0,0,0,3,2,1,1,1,0,0,0,40.5,39]
[null,null,"i",20,0,2,2,4,4,1,1,1,3,0,2,41.4,39.299999999999997]
[]
[null,"Philosophie","m",19,0,2,1,1,3,1,7,1,2,0,1,42,42.8]
[null,null,"w",3,0,0,0,0,0,1,1,1,0,0,0,43.6,42.5]
[null,null,"i",22,0,2,1,1,3,2,8,2,2,0,1,42.2,42.7]
[]
[null,"Geschichte","m",22,1,0,0,3,3,4,2,2,4,1,2,44.2,42]
[null,null,"w",8,0,0,0,1,1,2,3,0,0,0,1,42.6,42]
[null,null,"i",30,1,0,0,4,4,6,5,2,4,1,3,43.8,42]
[]
[null,"Bibliothekswissenschaft, Dokumentation","m",1,0,0,0,0,0,0,0,0,0,0,1,".","."]
[]
[null,"Allgemeine und vergleichende","m",8,0,1,0,2,0,1,1,1,2,0,0,41.8,42]
[null,"  Literatur- und Sprachwissenschaft","w",4,0,0,0,0,1,0,0,2,0,0,1,45.9,44.5]
[null,null,"i",12,0,1,0,2,1,1,1,3,2,0,1,43.1,44]
[]
[null,"Altphilologie (klassische Philologie)","w",2,0,0,0,0,1,0,1,0,0,0,0,42.6,40]
[]
[null,"Germanistik (Deutsch, germanische","m",14,0,0,0,1,3,3,2,2,1,0,2,43.7,42]
[null,"  Sprachen ohne Anglistik)","w",11,0,1,1,1,1,1,0,2,2,2,0,42.9,44.3]
[null,null,"i",25,0,1,1,2,4,4,2,4,3,2,2,43.4,42.3]
[]
[null,"Anglistik, Amerikanistik","m",12,0,0,2,3,3,1,2,0,0,0,1,40.5,38.5]
[null,null,"w",10,0,0,2,1,3,0,0,1,0,2,1,42.3,39]
[null,null,"i",22,0,0,4,4,6,1,2,1,0,2,2,41.3,38.799999999999997]
[]
[null,"Romanistik","m",3,0,0,0,0,0,0,0,1,0,0,2,50,50.5]
[null,null,"w",7,0,0,0,2,1,1,1,1,0,0,1,42.9,40.5]
[null,null,"i",10,0,0,0,2,1,1,1,2,0,0,3,45.1,43]
[]
[null,"Slawistik, Baltistik, Finno-Ugristik","m",4,1,0,1,0,1,0,0,0,1,0,0,38.4,35]
[null,null,"w",4,0,0,0,0,0,2,2,0,0,0,0,43.4,42]
[null,null,"i",8,1,0,1,0,1,2,2,0,1,0,0,40.9,41.5]
[]
[null,"Sonstige/Außereuropäische Sprach-","m",9,0,0,0,0,2,2,2,1,2,0,0,42.8,42.3]
[null,"  und Kulturwissenschaften","w",3,0,0,0,0,1,0,0,0,0,1,1,49.2,48.5]
[null,null,"i",12,0,0,0,0,3,2,2,1,2,1,1,44.4,42.5]
[]
[null,"Kulturwissenschaften i.e.S.","m",3,0,0,0,0,0,0,0,2,0,0,1,46.8,44.8]
[null,null,"w",4,0,0,0,0,1,0,0,1,0,1,1,46.9,46]
[null,null,"i",7,0,0,0,0,1,0,0,3,0,1,2,46.8,45.5]
[]
[null,"Psychologie","m",21,1,5,6,1,6,1,1,0,0,0,0,36.799999999999997,35.700000000000003]
[null,null,"w",25,0,3,3,6,5,3,1,1,2,1,0,39.4,38.1]
[null,null,"i",46,1,8,9,7,11,4,2,1,2,1,0,38.200000000000003,37.299999999999997]
[]
[null,"Erziehungswissenschaften","m",8,0,0,0,1,2,1,2,1,1,0,0,42.1,41]
[null,null,"w",11,1,0,1,0,1,2,1,2,1,0,2,44,42.5]
[null,null,"i",19,1,0,1,1,3,3,3,3,2,0,2,43.2,42.2]
[]
[null,"Sonderpädagogik","m",2,0,0,0,0,0,0,1,0,1,0,0,".","."]
[null,null,"w",2,0,0,0,0,1,0,0,1,0,0,0,".","."]
[null,null,"i",4,0,0,0,0,1,0,1,1,1,0,0,44.1,44]
[]
[null,"Zusammen   ","m",149,3,11,13,13,26,15,21,12,18,1,16,42.2,41.3]
[null,null,"w",112,1,5,7,15,21,13,13,15,6,7,9,42.4,41.1]
[null,null,"i",261,4,16,20,28,47,28,34,27,24,8,25,42.3,41.2]
[]
["Sport"]
[]
[null,"Sport","m",6,0,0,0,2,1,2,1,0,0,0,0,40.4,40]
[null,null,"w",5,0,0,2,1,1,0,0,1,0,0,0,38.1,37.5]
[null,null,"i",11,0,0,2,3,2,2,1,1,0,0,0,39.4,38.5]
[]
["_________"]
["1) Altersangaben bezogen auf den Monat der Habilitation."]
["2) Anpassung des Berechnungsverfahrens \"Median\" an die Studenten- und Prüfungsstatistik\"."]
[]
["Statistisches Bundesamt, Fachserie 11, Reihe 4.4, 2014"]
[]
["Rechts-, Wirtschafts- und Sozial-"]
["  wissenschaften"]
[]
[null,"Rechts-, Wirtschafts- und Sozial-","m",6,1,0,0,1,1,1,0,0,0,1,1,".","."]
[null,"  wissenschaften allgemein","w",1,0,0,0,0,0,0,0,0,1,0,0,".","."]
[null,null,"i",7,1,0,0,1,1,1,0,0,1,1,1,42.5,40.5]
[]
[null,"Politikwissenschaften","m",8,1,0,0,1,2,1,1,0,1,0,1,".","."]
[null,null,"w",4,0,0,1,0,1,0,1,0,0,1,0,".","."]
[null,null,"i",12,1,0,1,1,3,1,2,0,1,1,1,41.1,39]
[]
[null,"Sozialwissenschaften","m",13,0,0,0,1,2,0,6,0,1,0,3,45.2,43.2]
[null,null,"w",13,0,1,1,1,2,1,2,2,2,1,0,42.5,43.3]
[null,null,"i",26,0,1,1,2,4,1,8,2,3,1,3,43.8,43.2]
[]
[null,"Sozialwesen","m",2,0,0,0,0,0,1,0,0,0,0,1,46.3,42]
[]
[null,"Rechtswissenschaften","m",41,1,1,7,10,10,4,2,4,0,1,1,39.5,38.200000000000003]
[null,null,"w",12,0,0,3,1,3,3,1,1,0,0,0,39.700000000000003,39]
[null,null,"i",53,1,1,10,11,13,7,3,5,0,1,1,39.5,38.4]
[]
[null,"Wirtschaftswissenschaften","m",37,3,5,8,5,6,6,0,0,0,2,2,38.6,37.4]
[null,null,"w",6,0,0,1,3,1,0,0,0,1,0,0,39,37.5]
[null,null,"i",43,3,5,9,8,7,6,0,0,1,2,2,38.6,37.4]
[]
[null,"Zusammen   ","m",107,6,6,15,18,21,13,9,4,2,4,9,40.200000000000003,38.6]
[null,null,"w",36,0,1,6,5,7,4,4,3,4,2,0,41,39.5]
[null,null,"i",143,6,7,21,23,28,17,13,7,6,6,9,40.4,38.799999999999997]
[]
[]
["Mathematik, Naturwissenschaften"]
[]
[null,"Mathematik, Naturwissenschaften"]
[null,"  allgemein","m",3,0,0,1,1,0,0,0,0,1,0,0,39.6,36.5]
[]
[null,"Mathematik","m",33,6,3,6,3,5,4,0,2,1,2,1,38.4,36.799999999999997]
[null,null,"w",5,0,2,0,0,0,2,0,0,0,1,0,40.200000000000003,40.5]
[null,null,"i",38,6,5,6,3,5,6,0,2,1,3,1,38.6,37]
[]
[null,"Informatik","m",26,2,3,4,4,3,5,4,1,0,0,0,38.4,38]
[null,null,"w",6,0,1,1,0,1,1,0,1,0,0,1,41.2,39]
[null,null,"i",32,2,4,5,4,4,6,4,2,0,0,1,38.9,38.299999999999997]
[]
[null,"Physik, Astronomie","m",60,0,2,10,16,10,6,8,4,2,1,1,39.9,38.299999999999997]
[null,null,"w",6,0,1,2,0,0,1,1,0,0,1,0,39.5,35]
[null,null,"i",66,0,3,12,16,10,7,9,4,2,2,1,39.9,38.299999999999997]
[]
[null,"Chemie","m",22,0,0,4,5,6,3,2,1,1,0,0,39.5,38.4]
[null,null,"w",10,1,0,2,0,4,2,0,0,0,0,1,39.6,39.299999999999997]
[null,null,"i",32,1,0,6,5,10,5,2,1,1,0,1,39.5,38.700000000000003]
[]
[null,"Pharmazie","m",6,0,0,1,1,0,1,0,1,1,1,0,".","."]
[null,null,"w",1,0,0,0,0,1,0,0,0,0,0,0,".","."]
[null,null,"i",7,0,0,1,1,1,1,0,1,1,1,0,42.1,40.5]
[]
[null,"Biologie","m",33,0,0,3,1,5,7,5,3,3,4,2,43.5,42.3]
[null,null,"w",22,1,1,3,3,3,2,5,1,0,2,1,41,40]
[null,null,"i",55,1,1,6,4,8,9,10,4,3,6,3,42.5,41.6]
[]
[null,"Geowissenschaften","m",17,0,0,3,3,4,3,0,0,1,0,3,41.7,38.799999999999997]
[null,"  (ohne Geographie)","w",7,0,0,0,1,0,2,3,0,0,0,1,44.2,42.3]
[null,null,"i",24,0,0,3,4,4,5,3,0,1,0,4,42.4,40.5]
[]
[null,"Geographie","m",18,0,2,0,2,5,2,2,2,1,1,1,".","."]
[null,null,"w",1,0,0,0,1,0,0,0,0,0,0,0,".","."]
[null,null,"i",19,0,2,0,3,5,2,2,2,1,1,1,41.4,39.799999999999997]
[]
[null,"Zusammen   ","m",218,8,10,32,36,38,31,21,14,11,9,8,40.4,39]
[null,null,"w",58,2,5,8,5,9,10,9,2,0,4,4,40.799999999999997,40]
[null,null,"i",276,10,15,40,41,47,41,30,16,11,13,12,40.5,39.200000000000003]
[]
[]
[]
[]
["_________"]
["1) Altersangaben bezogen auf den Monat der Habilitation."]
["2) Anpassung des Berechnungsverfahrens \"Median\" an die Studenten- und Prüfungsstatistik\"."]
[]
[]
["Statistisches Bundesamt, Fachserie 11, Reihe 4.4, 2014"]
[]
["Humanmedizin/Gesundheitswissenschaften"]
[]
[null,"Humanmedizin allgemein","m",3,1,0,0,1,0,1,0,0,0,0,0,36.700000000000003,37.5]
[null,null,"w",2,0,0,0,0,0,0,1,0,0,0,1,47.1,44]
[null,null,"i",5,1,0,0,1,0,1,1,0,0,0,1,40.9,40.5]
[]
[null,"Gesundheitswissenschaften allgemein","m",2,0,0,0,0,1,1,0,0,0,0,0,40.4,39]
[null,null,"w",2,0,0,0,0,0,0,1,1,0,0,0,44,43]
[null,null,"i",4,0,0,0,0,1,1,1,1,0,0,0,42.2,42]
[]
[null,"Vorklinische Humanmedizin","m",28,2,4,2,5,7,1,1,2,1,0,3,39.9,38.5]
[null,"  (einschl. Zahnmedizin)","w",18,1,1,2,3,3,1,1,1,0,2,3,42.7,39]
[null,null,"i",46,3,5,4,8,10,2,2,3,1,2,6,41,38.799999999999997]
[]
[null,"Klinisch-Theoretische Human-","m",89,2,6,14,10,15,9,10,13,2,4,4,40.700000000000003,39.700000000000003]
[null,"  medizin (einschl. Zahnmedizin)","w",43,2,2,7,7,5,4,7,1,2,4,2,40.700000000000003,39.299999999999997]
[null,null,"i",132,4,8,21,17,20,13,17,14,4,8,6,40.700000000000003,39.6]
[]
[null,"Klinisch-Praktische Human-","m",479,9,37,81,93,85,51,47,27,15,9,25,40,38.5]
[null,"  medizin (ohne Zahnmedizin)","w",135,1,8,23,33,15,18,9,12,7,4,5,40.200000000000003,38.299999999999997]
[null,null,"i",614,10,45,104,126,100,69,56,39,22,13,30,40.1,38.4]
[]
[null,"Zahnmedizin (klinisch-praktisch)","m",21,1,2,2,7,3,2,0,2,1,0,1,39,36.9]
[null,null,"w",6,0,1,0,1,0,2,1,0,0,0,1,43.9,41]
[null,null,"i",27,1,3,2,8,3,4,1,2,1,0,2,40.1,37.5]
[]
[null,"Zusammen   ","m",622,15,49,99,116,111,65,58,44,19,13,33,40.1,38.6]
[null,null,"w",206,4,12,32,44,23,25,20,15,9,10,12,40.799999999999997,38.799999999999997]
[null,null,"i",828,19,61,131,160,134,90,78,59,28,23,45,40.200000000000003,38.700000000000003]
[]
[]
["Veterinärmedizin"]
[]
[null,"Vorklinische Veterinärmedizin","w",2,0,0,0,2,0,0,0,0,0,0,0,38.299999999999997,37.5]
[]
[null,"Klinisch-Theoretische","m",3,0,0,0,0,1,0,0,1,0,1,0,44.7,44.5]
[null,"  Veterinärmedizin","w",6,0,0,0,2,1,1,1,0,0,0,1,42.8,40]
[null,null,"i",9,0,0,0,2,2,1,1,1,0,1,1,43.4,40.5]
[]
[null,"Klinisch-Praktische"]
[null,"  Veterinärmedizin","w",4,0,0,0,1,0,0,1,0,0,1,1,45.7,44]
[]
[null,"Zusammen   ","m",3,0,0,0,0,1,0,0,1,0,1,0,44.7,44.5]
[null,null,"w",12,0,0,0,5,1,1,2,0,0,1,2,43,40]
[null,null,"i",15,0,0,0,5,2,1,2,1,0,2,2,43.4,40.5]
[]
[]
["Agrar-, Forst- und Ernährungs-"]
["  wissenschaften"]
[]
[null,"Agrar-, Forst- und Ernährungs-"]
[null,"  wissenschaften allgemein","w",1,0,0,0,0,0,0,0,0,0,0,1,".","."]
[]
[null,"Landespflege, Umweltgestaltung","m",3,0,0,0,0,0,0,0,1,1,1,0,".","."]
[null,null,"w",1,0,0,0,0,0,1,0,0,0,0,0,".","."]
[null,null,"i",4,0,0,0,0,0,1,0,1,1,1,0,46.2,45]
[]
[null,"Agrarwissenschaften, Lebensmittel-","m",7,0,0,1,0,3,0,0,1,1,1,0,42.2,39.799999999999997]
[null,"  und Getränketechnologie","w",2,0,0,0,0,0,2,0,0,0,0,0,41.1,40.5]
[null,null,"i",9,0,0,1,0,3,2,0,1,1,1,0,42,40.299999999999997]
[]
[null,"Forstwissenschaft, Holzwirtschaft","m",2,0,0,0,0,1,0,0,1,0,0,0,41.9,39]
[]
[null,"Ernährungs- und Haushaltswissenschaften","w",4,0,0,0,0,0,0,1,1,1,0,1,49.3,46]
[]
[null,"Zusammen   ","m",12,0,0,1,0,4,0,0,3,2,2,0,43.5,44.3]
[null,null,"w",8,0,0,0,0,0,3,1,1,1,0,2,46.8,43]
[null,null,"i",20,0,0,1,0,4,3,1,4,3,2,2,44.8,44.3]
[]
[]
[]
[]
[]
[]
[]
["_________"]
["1) Altersangaben bezogen auf den Monat der Habilitation."]
["2) Anpassung des Berechnungsverfahrens \"Median\" an die Studenten- und Prüfungsstatistik\"."]
[]
[]
["Statistisches Bundesamt, Fachserie 11, Reihe 4.4, 2014"]
[]
["Ingenieurwissenschaften"]
[]
[null,"Ingenieurwissenschaften allgemein","m",5,0,0,0,2,0,0,1,1,1,0,0,42.5,43.5]
[]
[null,"Bergbau, Hüttenwesen","m",1,0,0,0,0,0,0,0,0,0,1,0,".","."]
[]
[null,"Maschinenbau/Verfahrenstechnik","m",19,0,0,3,1,2,2,1,1,2,4,3,45.1,45.5]
[null,null,"w",2,0,1,0,0,0,0,0,0,1,0,0,41,34]
[null,null,"i",21,0,1,3,1,2,2,1,1,3,4,3,44.7,45.5]
[]
[null,"Elektrotechnik","m",10,0,0,1,0,2,0,2,2,0,0,3,46.1,44]
[]
[null,"Verkehrstechnik, Nautik","m",2,0,0,1,0,0,0,1,0,0,0,0,".","."]
[null,null,"w",1,0,0,0,0,0,0,1,0,0,0,0,".","."]
[null,null,"i",3,0,0,1,0,0,0,2,0,0,0,0,41.5,43.3]
[]
[null,"Architektur","m",3,0,0,0,0,1,0,1,0,0,0,1,49.1,43.5]
[]
[null,"Raumplanung","m",3,0,0,0,0,1,2,0,0,0,0,0,40.799999999999997,41.3]
[]
[null,"Bauingenieurwesen","m",2,0,1,0,0,0,0,1,0,0,0,0,38.1,34]
[null,null,"w",5,0,0,1,0,1,1,1,0,1,0,0,41.7,41.5]
[null,null,"i",7,0,1,1,0,1,1,2,0,1,0,0,40.700000000000003,41.5]
[]
[null,"Zusammen   ","m",45,0,1,5,3,6,4,7,4,3,5,7,44.6,43.3]
[null,null,"w",8,0,1,1,0,1,1,2,0,2,0,0,41.8,42]
[null,null,"i",53,0,2,6,3,7,5,9,4,5,5,7,44.1,43.1]
[]
[]
["Kunst, Kunstwissenschaft"]
[]
[null,"Kunst, Kunstwissenschaft","m",5,0,0,0,0,2,2,0,1,0,0,0,41.2,40.5]
[null,"  allgemein","w",5,0,0,0,0,1,1,1,2,0,0,0,42.9,43.5]
[null,null,"i",10,0,0,0,0,3,3,1,3,0,0,0,42,41]
[]
[null,"Darstellende Kunst, Film und"]
[null,"  Fernsehen, Theaterwissenschaft","m",3,0,0,0,0,0,0,0,1,0,2,0,48,49.3]
[]
[null,"Musik, Musikwissenschaft","m",4,0,0,0,0,1,1,0,2,0,0,0,42.8,41]
[null,null,"w",3,0,0,0,0,1,0,0,2,0,0,0,43.2,44.5]
[null,null,"i",7,0,0,0,0,2,1,0,4,0,0,0,43,44.3]
[]
[null,"Zusammen   ","m",12,0,0,0,0,3,3,0,4,0,2,0,43.4,42]
[null,null,"w",8,0,0,0,0,2,1,1,4,0,0,0,43,44]
[null,null,"i",20,0,0,0,0,5,4,1,8,0,2,0,43.3,44]
[]
[]
[null,"Insgesamt   ","m",1174,32,77,165,188,211,133,117,86,55,37,73,40.700000000000003,39.1]
[null,null,"w",453,7,24,56,75,65,58,52,41,22,24,29,41.4,40]
[null,null,"i",1627,39,101,221,263,276,191,169,127,77,61,102,40.9,39.299999999999997]
[]
[]
[]
[]
[]
[]
[]
[]
[]
[]
[]
[]
[]
[]
[]
[]
[]
[]
[]
[]
[]
[]
[]
[]
["_________"]
["1) Altersangaben bezogen auf den Monat der Habilitation."]
["2) Anpassung des Berechnungsverfahrens \"Median\" an die Studenten- und Prüfungsstatistik\"."]
[]
[]
["Statistisches Bundesamt, Fachserie 11, Reihe 4.4, 2014"]

{"sheet":"3.Hauptberuf.Wikü,Befrist,VZTZ","index":15,"n_rows":0,"n_cols":0,"rows_kept":0,"cut":false,"hidden":false,"merged":[]}

{"sheet":"3.1","index":16,"n_rows":131,"n_cols":10,"rows_kept":131,"cut":false,"hidden":false,"merged":[]}
["Statistisches Bundesamt"]
["H201 - Hochschulstatistik"]
[]
[]
["Hauptberufliches wissenschaftliches und künstlerisches Personal (ohne Professoren) auf Zeit im Alter bis einschl. 34 Jahren nach ausgewählten "]
["Hochschularten, Fächer- und Personalgruppen sowie spezielle Definition von Voll- und Teilzeit im Berichtsjahr 2014"]
[]
[null,null,null,null,null,null,null,null,"davon:"]
[null,null,null,null,null,null,null,"Wikue auf Zeit","Vollzeit und"]
[null,"Hochschulart",null,"Fächergruppe",null,"Personalgruppe","Ge-","bis einschl. 34 Jahren","Teilzeit","Teilzeit"]
[null,null,null,"der fachl. Zugehörigkeit",null,null,"schlecht","(ohne Prof.)","mit mind. 2/3","unter 2/3"]
[null,null,null,null,null,null,null,"insgesamt"," der regelmäßigen"," der regelmäßigen"]
[null,null,null,null,null,null,null,null,"Arbeitszeit","Arbeitszeit"]
[]
[1,"Wiss. Hochschulen (= Uni, GH, PH, TH und KunstH)",1,"Sprach- und Kulturwissenschaften",3,"Wiss. u. künstl. Mitarbeiter","m",3514,1276,2238]
[1,"Wiss. Hochschulen (= Uni, GH, PH, TH und KunstH)",1,"Sprach- und Kulturwissenschaften",3,"Wiss. u. künstl. Mitarbeiter","w",6155,2090,4065]
[1,"Wiss. Hochschulen (= Uni, GH, PH, TH und KunstH)",1,"Sprach- und Kulturwissenschaften",3,"Wiss. u. künstl. Mitarbeiter","i",9669,3366,6303]
[1,"Wiss. Hochschulen (= Uni, GH, PH, TH und KunstH)",1,"Sprach- und Kulturwissenschaften",4,"Lehrkr. f. bes. Aufgaben + Doz. u. Assistenten","m",243,137,106]
[1,"Wiss. Hochschulen (= Uni, GH, PH, TH und KunstH)",1,"Sprach- und Kulturwissenschaften",4,"Lehrkr. f. bes. Aufgaben + Doz. u. Assistenten","w",437,191,246]
[1,"Wiss. Hochschulen (= Uni, GH, PH, TH und KunstH)",1,"Sprach- und Kulturwissenschaften",4,"Lehrkr. f. bes. Aufgaben + Doz. u. Assistenten","i",680,328,352]
[1,"Wiss. Hochschulen (= Uni, GH, PH, TH und KunstH)",1,"Sprach- und Kulturwissenschaften","~~","zusammen","m",3757,1413,2344]
[1,"Wiss. Hochschulen (= Uni, GH, PH, TH und KunstH)",1,"Sprach- und Kulturwissenschaften","~~","zusammen","w",6592,2281,4311]
[1,"Wiss. Hochschulen (= Uni, GH, PH, TH und KunstH)",1,"Sprach- und Kulturwissenschaften","~~","zusammen","i",10349,3694,6655]
[1,"Wiss. Hochschulen (= Uni, GH, PH, TH und KunstH)",3,"Rechts-, Wirtschafts- und Sozialwissenschaften",3,"Wiss. u. künstl. Mitarbeiter","m",6515,3536,2979]
[1,"Wiss. Hochschulen (= Uni, GH, PH, TH und KunstH)",3,"Rechts-, Wirtschafts- und Sozialwissenschaften",3,"Wiss. u. künstl. Mitarbeiter","w",4838,2350,2488]
[1,"Wiss. Hochschulen (= Uni, GH, PH, TH und KunstH)",3,"Rechts-, Wirtschafts- und Sozialwissenschaften",3,"Wiss. u. künstl. Mitarbeiter","i",11353,5886,5467]
[1,"Wiss. Hochschulen (= Uni, GH, PH, TH und KunstH)",3,"Rechts-, Wirtschafts- und Sozialwissenschaften",4,"Lehrkr. f. bes. Aufgaben + Doz. u. Assistenten","m",240,145,95]
[1,"Wiss. Hochschulen (= Uni, GH, PH, TH und KunstH)",3,"Rechts-, Wirtschafts- und Sozialwissenschaften",4,"Lehrkr. f. bes. Aufgaben + Doz. u. Assistenten","w",143,73,70]
[1,"Wiss. Hochschulen (= Uni, GH, PH, TH und KunstH)",3,"Rechts-, Wirtschafts- und Sozialwissenschaften",4,"Lehrkr. f. bes. Aufgaben + Doz. u. Assistenten","i",383,218,165]
[1,"Wiss. Hochschulen (= Uni, GH, PH, TH und KunstH)",3,"Rechts-, Wirtschafts- und Sozialwissenschaften","~~","zusammen","m",6755,3681,3074]
[1,"Wiss. Hochschulen (= Uni, GH, PH, TH und KunstH)",3,"Rechts-, Wirtschafts- und Sozialwissenschaften","~~","zusammen","w",4981,2423,2558]
[1,"Wiss. Hochschulen (= Uni, GH, PH, TH und KunstH)",3,"Rechts-, Wirtschafts- und Sozialwissenschaften","~~","zusammen","i",11736,6104,5632]
[1,"Wiss. Hochschulen (= Uni, GH, PH, TH und KunstH)",4,"Mathematik, Naturwissenschaften",3,"Wiss. u. künstl. Mitarbeiter","m",20468,10855,9613]
[1,"Wiss. Hochschulen (= Uni, GH, PH, TH und KunstH)",4,"Mathematik, Naturwissenschaften",3,"Wiss. u. künstl. Mitarbeiter","w",9620,3451,6169]
[1,"Wiss. Hochschulen (= Uni, GH, PH, TH und KunstH)",4,"Mathematik, Naturwissenschaften",3,"Wiss. u. künstl. Mitarbeiter","i",30088,14306,15782]
[1,"Wiss. Hochschulen (= Uni, GH, PH, TH und KunstH)",4,"Mathematik, Naturwissenschaften",4,"Lehrkr. f. bes. Aufgaben + Doz. u. Assistenten","m",255,191,64]
[1,"Wiss. Hochschulen (= Uni, GH, PH, TH und KunstH)",4,"Mathematik, Naturwissenschaften",4,"Lehrkr. f. bes. Aufgaben + Doz. u. Assistenten","w",155,83,72]
[1,"Wiss. Hochschulen (= Uni, GH, PH, TH und KunstH)",4,"Mathematik, Naturwissenschaften",4,"Lehrkr. f. bes. Aufgaben + Doz. u. Assistenten","i",410,274,136]
[1,"Wiss. Hochschulen (= Uni, GH, PH, TH und KunstH)",4,"Mathematik, Naturwissenschaften","~~","zusammen","m",20723,11046,9677]
[1,"Wiss. Hochschulen (= Uni, GH, PH, TH und KunstH)",4,"Mathematik, Naturwissenschaften","~~","zusammen","w",9775,3534,6241]
[1,"Wiss. Hochschulen (= Uni, GH, PH, TH und KunstH)",4,"Mathematik, Naturwissenschaften","~~","zusammen","i",30498,14580,15918]
[1,"Wiss. Hochschulen (= Uni, GH, PH, TH und KunstH)",5,"Humanmedizin/Gesundheitswissenschaften + Veterinärmedizin",3,"Wiss. u. künstl. Mitarbeiter","m",10567,8178,2389]
[1,"Wiss. Hochschulen (= Uni, GH, PH, TH und KunstH)",5,"Humanmedizin/Gesundheitswissenschaften + Veterinärmedizin",3,"Wiss. u. künstl. Mitarbeiter","w",15350,10108,5242]
[1,"Wiss. Hochschulen (= Uni, GH, PH, TH und KunstH)",5,"Humanmedizin/Gesundheitswissenschaften + Veterinärmedizin",3,"Wiss. u. künstl. Mitarbeiter","i",25917,18286,7631]
[1,"Wiss. Hochschulen (= Uni, GH, PH, TH und KunstH)",5,"Humanmedizin/Gesundheitswissenschaften + Veterinärmedizin",4,"Lehrkr. f. bes. Aufgaben + Doz. u. Assistenten","m",77,44,33]
[1,"Wiss. Hochschulen (= Uni, GH, PH, TH und KunstH)",5,"Humanmedizin/Gesundheitswissenschaften + Veterinärmedizin",4,"Lehrkr. f. bes. Aufgaben + Doz. u. Assistenten","w",148,70,78]
[1,"Wiss. Hochschulen (= Uni, GH, PH, TH und KunstH)",5,"Humanmedizin/Gesundheitswissenschaften + Veterinärmedizin",4,"Lehrkr. f. bes. Aufgaben + Doz. u. Assistenten","i",225,114,111]
[1,"Wiss. Hochschulen (= Uni, GH, PH, TH und KunstH)",5,"Humanmedizin/Gesundheitswissenschaften + Veterinärmedizin","~~","zusammen","m",10644,8222,2422]
[1,"Wiss. Hochschulen (= Uni, GH, PH, TH und KunstH)",5,"Humanmedizin/Gesundheitswissenschaften + Veterinärmedizin","~~","zusammen","w",15498,10178,5320]
[1,"Wiss. Hochschulen (= Uni, GH, PH, TH und KunstH)",5,"Humanmedizin/Gesundheitswissenschaften + Veterinärmedizin","~~","zusammen","i",26142,18400,7742]
[1,"Wiss. Hochschulen (= Uni, GH, PH, TH und KunstH)",8,"Ingenieurwissenschaften",3,"Wiss. u. künstl. Mitarbeiter","m",13858,12506,1352]
[1,"Wiss. Hochschulen (= Uni, GH, PH, TH und KunstH)",8,"Ingenieurwissenschaften",3,"Wiss. u. künstl. Mitarbeiter","w",3453,2677,776]
[1,"Wiss. Hochschulen (= Uni, GH, PH, TH und KunstH)",8,"Ingenieurwissenschaften",3,"Wiss. u. künstl. Mitarbeiter","i",17311,15183,2128]
[1,"Wiss. Hochschulen (= Uni, GH, PH, TH und KunstH)",8,"Ingenieurwissenschaften",4,"Lehrkr. f. bes. Aufgaben + Doz. u. Assistenten","m",136,121,15]
[1,"Wiss. Hochschulen (= Uni, GH, PH, TH und KunstH)",8,"Ingenieurwissenschaften",4,"Lehrkr. f. bes. Aufgaben + Doz. u. Assistenten","w",37,28,9]
[1,"Wiss. Hochschulen (= Uni, GH, PH, TH und KunstH)",8,"Ingenieurwissenschaften",4,"Lehrkr. f. bes. Aufgaben + Doz. u. Assistenten","i",173,149,24]
[1,"Wiss. Hochschulen (= Uni, GH, PH, TH und KunstH)",8,"Ingenieurwissenschaften","~~","zusammen","m",13994,12627,1367]
[1,"Wiss. Hochschulen (= Uni, GH, PH, TH und KunstH)",8,"Ingenieurwissenschaften","~~","zusammen","w",3490,2705,785]
[1,"Wiss. Hochschulen (= Uni, GH, PH, TH und KunstH)",8,"Ingenieurwissenschaften","~~","zusammen","i",17484,15332,2152]
[1,"Wiss. Hochschulen (= Uni, GH, PH, TH und KunstH)",10,"Restliche Fächergruppen",3,"Wiss. u. künstl. Mitarbeiter","m",3345,1686,1659]
[1,"Wiss. Hochschulen (= Uni, GH, PH, TH und KunstH)",10,"Restliche Fächergruppen",3,"Wiss. u. künstl. Mitarbeiter","w",3754,1551,2203]
[1,"Wiss. Hochschulen (= Uni, GH, PH, TH und KunstH)",10,"Restliche Fächergruppen",3,"Wiss. u. künstl. Mitarbeiter","i",7099,3237,3862]
[1,"Wiss. Hochschulen (= Uni, GH, PH, TH und KunstH)",10,"Restliche Fächergruppen",4,"Lehrkr. f. bes. Aufgaben + Doz. u. Assistenten","m",115,43,72]
[1,"Wiss. Hochschulen (= Uni, GH, PH, TH und KunstH)",10,"Restliche Fächergruppen",4,"Lehrkr. f. bes. Aufgaben + Doz. u. Assistenten","w",181,65,116]
[1,"Wiss. Hochschulen (= Uni, GH, PH, TH und KunstH)",10,"Restliche Fächergruppen",4,"Lehrkr. f. bes. Aufgaben + Doz. u. Assistenten","i",296,108,188]
[1,"Wiss. Hochschulen (= Uni, GH, PH, TH und KunstH)",10,"Restliche Fächergruppen","~~","zusammen","m",3460,1729,1731]
[1,"Wiss. Hochschulen (= Uni, GH, PH, TH und KunstH)",10,"Restliche Fächergruppen","~~","zusammen","w",3935,1616,2319]
[1,"Wiss. Hochschulen (= Uni, GH, PH, TH und KunstH)",10,"Restliche Fächergruppen","~~","zusammen","i",7395,3345,4050]
[1,"Wiss. Hochschulen (= Uni, GH, PH, TH und KunstH)","~~","zusammen","~~","zusammen","m",59333,38718,20615]
[1,"Wiss. Hochschulen (= Uni, GH, PH, TH und KunstH)","~~","zusammen","~~","zusammen","w",44271,22737,21534]
[1,"Wiss. Hochschulen (= Uni, GH, PH, TH und KunstH)","~~","zusammen","~~","zusammen","i",103604,61455,42149]
[2,"FH + VerwFH",1,"Sprach- und Kulturwissenschaften",3,"Wiss. u. künstl. Mitarbeiter","m",17,7,10]
[2,"FH + VerwFH",1,"Sprach- und Kulturwissenschaften",3,"Wiss. u. künstl. Mitarbeiter","w",50,23,27]
[2,"FH + VerwFH",1,"Sprach- und Kulturwissenschaften",3,"Wiss. u. künstl. Mitarbeiter","i",67,30,37]
[2,"FH + VerwFH",1,"Sprach- und Kulturwissenschaften",4,"Lehrkr. f. bes. Aufgaben + Doz. u. Assistenten","m",6,5,1]
[2,"FH + VerwFH",1,"Sprach- und Kulturwissenschaften",4,"Lehrkr. f. bes. Aufgaben + Doz. u. Assistenten","w",19,9,10]
[2,"FH + VerwFH",1,"Sprach- und Kulturwissenschaften",4,"Lehrkr. f. bes. Aufgaben + Doz. u. Assistenten","i",25,14,11]
[2,"FH + VerwFH",1,"Sprach- und Kulturwissenschaften","~~","zusammen","m",23,12,11]
[2,"FH + VerwFH",1,"Sprach- und Kulturwissenschaften","~~","zusammen","w",69,32,37]
[2,"FH + VerwFH",1,"Sprach- und Kulturwissenschaften","~~","zusammen","i",92,44,48]
[2,"FH + VerwFH",3,"Rechts-, Wirtschafts- und Sozialwissenschaften",3,"Wiss. u. künstl. Mitarbeiter","m",383,197,186]
[2,"FH + VerwFH",3,"Rechts-, Wirtschafts- und Sozialwissenschaften",3,"Wiss. u. künstl. Mitarbeiter","w",572,323,249]
[2,"FH + VerwFH",3,"Rechts-, Wirtschafts- und Sozialwissenschaften",3,"Wiss. u. künstl. Mitarbeiter","i",955,520,435]
[2,"FH + VerwFH",3,"Rechts-, Wirtschafts- und Sozialwissenschaften",4,"Lehrkr. f. bes. Aufgaben + Doz. u. Assistenten","m",46,25,21]
[2,"FH + VerwFH",3,"Rechts-, Wirtschafts- und Sozialwissenschaften",4,"Lehrkr. f. bes. Aufgaben + Doz. u. Assistenten","w",59,35,24]
[2,"FH + VerwFH",3,"Rechts-, Wirtschafts- und Sozialwissenschaften",4,"Lehrkr. f. bes. Aufgaben + Doz. u. Assistenten","i",105,60,45]
[2,"FH + VerwFH",3,"Rechts-, Wirtschafts- und Sozialwissenschaften","~~","zusammen","m",429,222,207]
[2,"FH + VerwFH",3,"Rechts-, Wirtschafts- und Sozialwissenschaften","~~","zusammen","w",631,358,273]
[2,"FH + VerwFH",3,"Rechts-, Wirtschafts- und Sozialwissenschaften","~~","zusammen","i",1060,580,480]
[2,"FH + VerwFH",4,"Mathematik, Naturwissenschaften",3,"Wiss. u. künstl. Mitarbeiter","m",687,333,354]
[2,"FH + VerwFH",4,"Mathematik, Naturwissenschaften",3,"Wiss. u. künstl. Mitarbeiter","w",258,125,133]
[2,"FH + VerwFH",4,"Mathematik, Naturwissenschaften",3,"Wiss. u. künstl. Mitarbeiter","i",945,458,487]
[2,"FH + VerwFH",4,"Mathematik, Naturwissenschaften",4,"Lehrkr. f. bes. Aufgaben + Doz. u. Assistenten","m",37,14,23]
[2,"FH + VerwFH",4,"Mathematik, Naturwissenschaften",4,"Lehrkr. f. bes. Aufgaben + Doz. u. Assistenten","w",17,6,11]
[2,"FH + VerwFH",4,"Mathematik, Naturwissenschaften",4,"Lehrkr. f. bes. Aufgaben + Doz. u. Assistenten","i",54,20,34]
[2,"FH + VerwFH",4,"Mathematik, Naturwissenschaften","~~","zusammen","m",724,347,377]
[2,"FH + VerwFH",4,"Mathematik, Naturwissenschaften","~~","zusammen","w",275,131,144]
[2,"FH + VerwFH",4,"Mathematik, Naturwissenschaften","~~","zusammen","i",999,478,521]
[2,"FH + VerwFH",5,"Humanmedizin/Gesundheitswissenschaften + Veterinärmedizin",3,"Wiss. u. künstl. Mitarbeiter","m",23,14,9]
[2,"FH + VerwFH",5,"Humanmedizin/Gesundheitswissenschaften + Veterinärmedizin",3,"Wiss. u. künstl. Mitarbeiter","w",59,28,31]
[2,"FH + VerwFH",5,"Humanmedizin/Gesundheitswissenschaften + Veterinärmedizin",3,"Wiss. u. künstl. Mitarbeiter","i",82,42,40]
[2,"FH + VerwFH",5,"Humanmedizin/Gesundheitswissenschaften + Veterinärmedizin",4,"Lehrkr. f. bes. Aufgaben + Doz. u. Assistenten","m",7,4,3]
[2,"FH + VerwFH",5,"Humanmedizin/Gesundheitswissenschaften + Veterinärmedizin",4,"Lehrkr. f. bes. Aufgaben + Doz. u. Assistenten","w",17,12,5]
[2,"FH + VerwFH",5,"Humanmedizin/Gesundheitswissenschaften + Veterinärmedizin",4,"Lehrkr. f. bes. Aufgaben + Doz. u. Assistenten","i",24,16,8]
[2,"FH + VerwFH",5,"Humanmedizin/Gesundheitswissenschaften + Veterinärmedizin","~~","zusammen","m",30,18,12]
[2,"FH + VerwFH",5,"Humanmedizin/Gesundheitswissenschaften + Veterinärmedizin","~~","zusammen","w",76,40,36]
[2,"FH + VerwFH",5,"Humanmedizin/Gesundheitswissenschaften + Veterinärmedizin","~~","zusammen","i",106,58,48]
[2,"FH + VerwFH",8,"Ingenieurwissenschaften",3,"Wiss. u. künstl. Mitarbeiter","m",1976,1142,834]
[2,"FH + VerwFH",8,"Ingenieurwissenschaften",3,"Wiss. u. künstl. Mitarbeiter","w",572,291,281]
[2,"FH + VerwFH",8,"Ingenieurwissenschaften",3,"Wiss. u. künstl. Mitarbeiter","i",2548,1433,1115]
[2,"FH + VerwFH",8,"Ingenieurwissenschaften",4,"Lehrkr. f. bes. Aufgaben + Doz. u. Assistenten","m",70,32,38]
[2,"FH + VerwFH",8,"Ingenieurwissenschaften",4,"Lehrkr. f. bes. Aufgaben + Doz. u. Assistenten","w",27,14,13]
[2,"FH + VerwFH",8,"Ingenieurwissenschaften",4,"Lehrkr. f. bes. Aufgaben + Doz. u. Assistenten","i",97,46,51]
[2,"FH + VerwFH",8,"Ingenieurwissenschaften","~~","zusammen","m",2046,1174,872]
[2,"FH + VerwFH",8,"Ingenieurwissenschaften","~~","zusammen","w",599,305,294]
[2,"FH + VerwFH",8,"Ingenieurwissenschaften","~~","zusammen","i",2645,1479,1166]
[2,"FH + VerwFH",10,"Restliche Fächergruppen",3,"Wiss. u. künstl. Mitarbeiter","m",761,447,314]
[2,"FH + VerwFH",10,"Restliche Fächergruppen",3,"Wiss. u. künstl. Mitarbeiter","w",566,327,239]
[2,"FH + VerwFH",10,"Restliche Fächergruppen",3,"Wiss. u. künstl. Mitarbeiter","i",1327,774,553]
[2,"FH + VerwFH",10,"Restliche Fächergruppen",4,"Lehrkr. f. bes. Aufgaben + Doz. u. Assistenten","m",17,9,8]
[2,"FH + VerwFH",10,"Restliche Fächergruppen",4,"Lehrkr. f. bes. Aufgaben + Doz. u. Assistenten","w",30,18,12]
[2,"FH + VerwFH",10,"Restliche Fächergruppen",4,"Lehrkr. f. bes. Aufgaben + Doz. u. Assistenten","i",47,27,20]
[2,"FH + VerwFH",10,"Restliche Fächergruppen","~~","zusammen","m",778,456,322]
[2,"FH + VerwFH",10,"Restliche Fächergruppen","~~","zusammen","w",596,345,251]
[2,"FH + VerwFH",10,"Restliche Fächergruppen","~~","zusammen","i",1374,801,573]
[2,"FH + VerwFH","~~","zusammen","~~","zusammen","m",4030,2229,1801]
[2,"FH + VerwFH","~~","zusammen","~~","zusammen","w",2246,1211,1035]
[2,"FH + VerwFH","~~","zusammen","~~","zusammen","i",6276,3440,2836]
["~","Insgesamt",null,null,null,null,"m",63363,40947,22416]
["~","Insgesamt",null,null,null,null,"w",46517,23948,22569]
["~","Insgesamt",null,null,null,null,"i",109880,64895,44985]

{"sheet":"3.2","index":17,"n_rows":131,"n_cols":10,"rows_kept":131,"cut":false,"hidden":false,"merged":[]}
["Statistisches Bundesamt"]
["H201 - Hochschulstatistik"]
[]
[]
["Hauptberufliches wissenschaftliches und künstlerisches Personal (ohne Professoren) auf Zeit im Alter bis einschl. 44 Jahren nach ausgewählten "]
["Hochschularten, Fächer- und Personalgruppen sowie spezielle Definition von Voll- und Teilzeit im Berichtsjahr 2014"]
[]
[null,null,null,null,null,null,null,null,"davon:"]
[null,null,null,null,null,null,null,"Wikue auf Zeit","Vollzeit und"]
[null,"Hochschulart",null,"Fächergruppe",null,"Personalgruppe","Ge-","bis einschl. 44 Jahren","Teilzeit","Teilzeit"]
[null,null,null,"der fachl. Zugehörigkeit",null,null,"schlecht","(ohne Prof.)","mit mind. 2/3","unter 2/3"]
[null,null,null,null,null,null,null,"insgesamt"," der regelmäßigen"," der regelmäßigen"]
[null,null,null,null,null,null,null,null,"Arbeitszeit","Arbeitszeit"]
[]
[1,"Wiss. Hochschulen (= Uni, GH, PH, TH und KunstH)",1,"Sprach- und Kulturwissenschaften",3,"Wiss. u. künstl. Mitarbeiter","m",5445,2515,2930]
[1,"Wiss. Hochschulen (= Uni, GH, PH, TH und KunstH)",1,"Sprach- und Kulturwissenschaften",3,"Wiss. u. künstl. Mitarbeiter","w",8440,3221,5219]
[1,"Wiss. Hochschulen (= Uni, GH, PH, TH und KunstH)",1,"Sprach- und Kulturwissenschaften",3,"Wiss. u. künstl. Mitarbeiter","i",13885,5736,8149]
[1,"Wiss. Hochschulen (= Uni, GH, PH, TH und KunstH)",1,"Sprach- und Kulturwissenschaften",4,"Lehrkr. f. bes. Aufgaben + Doz. u. Assistenten","m",537,329,208]
[1,"Wiss. Hochschulen (= Uni, GH, PH, TH und KunstH)",1,"Sprach- und Kulturwissenschaften",4,"Lehrkr. f. bes. Aufgaben + Doz. u. Assistenten","w",878,417,461]
[1,"Wiss. Hochschulen (= Uni, GH, PH, TH und KunstH)",1,"Sprach- und Kulturwissenschaften",4,"Lehrkr. f. bes. Aufgaben + Doz. u. Assistenten","i",1415,746,669]
[1,"Wiss. Hochschulen (= Uni, GH, PH, TH und KunstH)",1,"Sprach- und Kulturwissenschaften","~~","zusammen","m",5982,2844,3138]
[1,"Wiss. Hochschulen (= Uni, GH, PH, TH und KunstH)",1,"Sprach- und Kulturwissenschaften","~~","zusammen","w",9318,3638,5680]
[1,"Wiss. Hochschulen (= Uni, GH, PH, TH und KunstH)",1,"Sprach- und Kulturwissenschaften","~~","zusammen","i",15300,6482,8818]
[1,"Wiss. Hochschulen (= Uni, GH, PH, TH und KunstH)",3,"Rechts-, Wirtschafts- und Sozialwissenschaften",3,"Wiss. u. künstl. Mitarbeiter","m",7651,4301,3350]
[1,"Wiss. Hochschulen (= Uni, GH, PH, TH und KunstH)",3,"Rechts-, Wirtschafts- und Sozialwissenschaften",3,"Wiss. u. künstl. Mitarbeiter","w",5659,2821,2838]
[1,"Wiss. Hochschulen (= Uni, GH, PH, TH und KunstH)",3,"Rechts-, Wirtschafts- und Sozialwissenschaften",3,"Wiss. u. künstl. Mitarbeiter","i",13310,7122,6188]
[1,"Wiss. Hochschulen (= Uni, GH, PH, TH und KunstH)",3,"Rechts-, Wirtschafts- und Sozialwissenschaften",4,"Lehrkr. f. bes. Aufgaben + Doz. u. Assistenten","m",412,283,129]
[1,"Wiss. Hochschulen (= Uni, GH, PH, TH und KunstH)",3,"Rechts-, Wirtschafts- und Sozialwissenschaften",4,"Lehrkr. f. bes. Aufgaben + Doz. u. Assistenten","w",218,115,103]
[1,"Wiss. Hochschulen (= Uni, GH, PH, TH und KunstH)",3,"Rechts-, Wirtschafts- und Sozialwissenschaften",4,"Lehrkr. f. bes. Aufgaben + Doz. u. Assistenten","i",630,398,232]
[1,"Wiss. Hochschulen (= Uni, GH, PH, TH und KunstH)",3,"Rechts-, Wirtschafts- und Sozialwissenschaften","~~","zusammen","m",8063,4584,3479]
[1,"Wiss. Hochschulen (= Uni, GH, PH, TH und KunstH)",3,"Rechts-, Wirtschafts- und Sozialwissenschaften","~~","zusammen","w",5877,2936,2941]
[1,"Wiss. Hochschulen (= Uni, GH, PH, TH und KunstH)",3,"Rechts-, Wirtschafts- und Sozialwissenschaften","~~","zusammen","i",13940,7520,6420]
[1,"Wiss. Hochschulen (= Uni, GH, PH, TH und KunstH)",4,"Mathematik, Naturwissenschaften",3,"Wiss. u. künstl. Mitarbeiter","m",24189,13887,10302]
[1,"Wiss. Hochschulen (= Uni, GH, PH, TH und KunstH)",4,"Mathematik, Naturwissenschaften",3,"Wiss. u. künstl. Mitarbeiter","w",11165,4418,6747]
[1,"Wiss. Hochschulen (= Uni, GH, PH, TH und KunstH)",4,"Mathematik, Naturwissenschaften",3,"Wiss. u. künstl. Mitarbeiter","i",35354,18305,17049]
[1,"Wiss. Hochschulen (= Uni, GH, PH, TH und KunstH)",4,"Mathematik, Naturwissenschaften",4,"Lehrkr. f. bes. Aufgaben + Doz. u. Assistenten","m",517,408,109]
[1,"Wiss. Hochschulen (= Uni, GH, PH, TH und KunstH)",4,"Mathematik, Naturwissenschaften",4,"Lehrkr. f. bes. Aufgaben + Doz. u. Assistenten","w",281,165,116]
[1,"Wiss. Hochschulen (= Uni, GH, PH, TH und KunstH)",4,"Mathematik, Naturwissenschaften",4,"Lehrkr. f. bes. Aufgaben + Doz. u. Assistenten","i",798,573,225]
[1,"Wiss. Hochschulen (= Uni, GH, PH, TH und KunstH)",4,"Mathematik, Naturwissenschaften","~~","zusammen","m",24706,14295,10411]
[1,"Wiss. Hochschulen (= Uni, GH, PH, TH und KunstH)",4,"Mathematik, Naturwissenschaften","~~","zusammen","w",11446,4583,6863]
[1,"Wiss. Hochschulen (= Uni, GH, PH, TH und KunstH)",4,"Mathematik, Naturwissenschaften","~~","zusammen","i",36152,18878,17274]
[1,"Wiss. Hochschulen (= Uni, GH, PH, TH und KunstH)",5,"Humanmedizin/Gesundheitswissenschaften + Veterinärmedizin",3,"Wiss. u. künstl. Mitarbeiter","m",17367,14369,2998]
[1,"Wiss. Hochschulen (= Uni, GH, PH, TH und KunstH)",5,"Humanmedizin/Gesundheitswissenschaften + Veterinärmedizin",3,"Wiss. u. künstl. Mitarbeiter","w",21543,14318,7225]
[1,"Wiss. Hochschulen (= Uni, GH, PH, TH und KunstH)",5,"Humanmedizin/Gesundheitswissenschaften + Veterinärmedizin",3,"Wiss. u. künstl. Mitarbeiter","i",38910,28687,10223]
[1,"Wiss. Hochschulen (= Uni, GH, PH, TH und KunstH)",5,"Humanmedizin/Gesundheitswissenschaften + Veterinärmedizin",4,"Lehrkr. f. bes. Aufgaben + Doz. u. Assistenten","m",157,114,43]
[1,"Wiss. Hochschulen (= Uni, GH, PH, TH und KunstH)",5,"Humanmedizin/Gesundheitswissenschaften + Veterinärmedizin",4,"Lehrkr. f. bes. Aufgaben + Doz. u. Assistenten","w",238,133,105]
[1,"Wiss. Hochschulen (= Uni, GH, PH, TH und KunstH)",5,"Humanmedizin/Gesundheitswissenschaften + Veterinärmedizin",4,"Lehrkr. f. bes. Aufgaben + Doz. u. Assistenten","i",395,247,148]
[1,"Wiss. Hochschulen (= Uni, GH, PH, TH und KunstH)",5,"Humanmedizin/Gesundheitswissenschaften + Veterinärmedizin","~~","zusammen","m",17524,14483,3041]
[1,"Wiss. Hochschulen (= Uni, GH, PH, TH und KunstH)",5,"Humanmedizin/Gesundheitswissenschaften + Veterinärmedizin","~~","zusammen","w",21781,14451,7330]
[1,"Wiss. Hochschulen (= Uni, GH, PH, TH und KunstH)",5,"Humanmedizin/Gesundheitswissenschaften + Veterinärmedizin","~~","zusammen","i",39305,28934,10371]
[1,"Wiss. Hochschulen (= Uni, GH, PH, TH und KunstH)",8,"Ingenieurwissenschaften",3,"Wiss. u. künstl. Mitarbeiter","m",16323,14457,1866]
[1,"Wiss. Hochschulen (= Uni, GH, PH, TH und KunstH)",8,"Ingenieurwissenschaften",3,"Wiss. u. künstl. Mitarbeiter","w",4251,3151,1100]
[1,"Wiss. Hochschulen (= Uni, GH, PH, TH und KunstH)",8,"Ingenieurwissenschaften",3,"Wiss. u. künstl. Mitarbeiter","i",20574,17608,2966]
[1,"Wiss. Hochschulen (= Uni, GH, PH, TH und KunstH)",8,"Ingenieurwissenschaften",4,"Lehrkr. f. bes. Aufgaben + Doz. u. Assistenten","m",195,172,23]
[1,"Wiss. Hochschulen (= Uni, GH, PH, TH und KunstH)",8,"Ingenieurwissenschaften",4,"Lehrkr. f. bes. Aufgaben + Doz. u. Assistenten","w",50,36,14]
[1,"Wiss. Hochschulen (= Uni, GH, PH, TH und KunstH)",8,"Ingenieurwissenschaften",4,"Lehrkr. f. bes. Aufgaben + Doz. u. Assistenten","i",245,208,37]
[1,"Wiss. Hochschulen (= Uni, GH, PH, TH und KunstH)",8,"Ingenieurwissenschaften","~~","zusammen","m",16518,14629,1889]
[1,"Wiss. Hochschulen (= Uni, GH, PH, TH und KunstH)",8,"Ingenieurwissenschaften","~~","zusammen","w",4301,3187,1114]
[1,"Wiss. Hochschulen (= Uni, GH, PH, TH und KunstH)",8,"Ingenieurwissenschaften","~~","zusammen","i",20819,17816,3003]
[1,"Wiss. Hochschulen (= Uni, GH, PH, TH und KunstH)",10,"Restliche Fächergruppen",3,"Wiss. u. künstl. Mitarbeiter","m",5023,2865,2158]
[1,"Wiss. Hochschulen (= Uni, GH, PH, TH und KunstH)",10,"Restliche Fächergruppen",3,"Wiss. u. künstl. Mitarbeiter","w",5375,2412,2963]
[1,"Wiss. Hochschulen (= Uni, GH, PH, TH und KunstH)",10,"Restliche Fächergruppen",3,"Wiss. u. künstl. Mitarbeiter","i",10398,5277,5121]
[1,"Wiss. Hochschulen (= Uni, GH, PH, TH und KunstH)",10,"Restliche Fächergruppen",4,"Lehrkr. f. bes. Aufgaben + Doz. u. Assistenten","m",245,111,134]
[1,"Wiss. Hochschulen (= Uni, GH, PH, TH und KunstH)",10,"Restliche Fächergruppen",4,"Lehrkr. f. bes. Aufgaben + Doz. u. Assistenten","w",357,135,222]
[1,"Wiss. Hochschulen (= Uni, GH, PH, TH und KunstH)",10,"Restliche Fächergruppen",4,"Lehrkr. f. bes. Aufgaben + Doz. u. Assistenten","i",602,246,356]
[1,"Wiss. Hochschulen (= Uni, GH, PH, TH und KunstH)",10,"Restliche Fächergruppen","~~","zusammen","m",5268,2976,2292]
[1,"Wiss. Hochschulen (= Uni, GH, PH, TH und KunstH)",10,"Restliche Fächergruppen","~~","zusammen","w",5732,2547,3185]
[1,"Wiss. Hochschulen (= Uni, GH, PH, TH und KunstH)",10,"Restliche Fächergruppen","~~","zusammen","i",11000,5523,5477]
[1,"Wiss. Hochschulen (= Uni, GH, PH, TH und KunstH)","~~","zusammen","~~","zusammen","m",78061,53811,24250]
[1,"Wiss. Hochschulen (= Uni, GH, PH, TH und KunstH)","~~","zusammen","~~","zusammen","w",58455,31342,27113]
[1,"Wiss. Hochschulen (= Uni, GH, PH, TH und KunstH)","~~","zusammen","~~","zusammen","i",136516,85153,51363]
[2,"FH + VerwFH",1,"Sprach- und Kulturwissenschaften",3,"Wiss. u. künstl. Mitarbeiter","m",27,12,15]
[2,"FH + VerwFH",1,"Sprach- und Kulturwissenschaften",3,"Wiss. u. künstl. Mitarbeiter","w",79,28,51]
[2,"FH + VerwFH",1,"Sprach- und Kulturwissenschaften",3,"Wiss. u. künstl. Mitarbeiter","i",106,40,66]
[2,"FH + VerwFH",1,"Sprach- und Kulturwissenschaften",4,"Lehrkr. f. bes. Aufgaben + Doz. u. Assistenten","m",16,6,10]
[2,"FH + VerwFH",1,"Sprach- und Kulturwissenschaften",4,"Lehrkr. f. bes. Aufgaben + Doz. u. Assistenten","w",35,14,21]
[2,"FH + VerwFH",1,"Sprach- und Kulturwissenschaften",4,"Lehrkr. f. bes. Aufgaben + Doz. u. Assistenten","i",51,20,31]
[2,"FH + VerwFH",1,"Sprach- und Kulturwissenschaften","~~","zusammen","m",43,18,25]
[2,"FH + VerwFH",1,"Sprach- und Kulturwissenschaften","~~","zusammen","w",114,42,72]
[2,"FH + VerwFH",1,"Sprach- und Kulturwissenschaften","~~","zusammen","i",157,60,97]
[2,"FH + VerwFH",3,"Rechts-, Wirtschafts- und Sozialwissenschaften",3,"Wiss. u. künstl. Mitarbeiter","m",530,282,248]
[2,"FH + VerwFH",3,"Rechts-, Wirtschafts- und Sozialwissenschaften",3,"Wiss. u. künstl. Mitarbeiter","w",805,433,372]
[2,"FH + VerwFH",3,"Rechts-, Wirtschafts- und Sozialwissenschaften",3,"Wiss. u. künstl. Mitarbeiter","i",1335,715,620]
[2,"FH + VerwFH",3,"Rechts-, Wirtschafts- und Sozialwissenschaften",4,"Lehrkr. f. bes. Aufgaben + Doz. u. Assistenten","m",128,84,44]
[2,"FH + VerwFH",3,"Rechts-, Wirtschafts- und Sozialwissenschaften",4,"Lehrkr. f. bes. Aufgaben + Doz. u. Assistenten","w",159,84,75]
[2,"FH + VerwFH",3,"Rechts-, Wirtschafts- und Sozialwissenschaften",4,"Lehrkr. f. bes. Aufgaben + Doz. u. Assistenten","i",287,168,119]
[2,"FH + VerwFH",3,"Rechts-, Wirtschafts- und Sozialwissenschaften","~~","zusammen","m",658,366,292]
[2,"FH + VerwFH",3,"Rechts-, Wirtschafts- und Sozialwissenschaften","~~","zusammen","w",964,517,447]
[2,"FH + VerwFH",3,"Rechts-, Wirtschafts- und Sozialwissenschaften","~~","zusammen","i",1622,883,739]
[2,"FH + VerwFH",4,"Mathematik, Naturwissenschaften",3,"Wiss. u. künstl. Mitarbeiter","m",824,421,403]
[2,"FH + VerwFH",4,"Mathematik, Naturwissenschaften",3,"Wiss. u. künstl. Mitarbeiter","w",310,152,158]
[2,"FH + VerwFH",4,"Mathematik, Naturwissenschaften",3,"Wiss. u. künstl. Mitarbeiter","i",1134,573,561]
[2,"FH + VerwFH",4,"Mathematik, Naturwissenschaften",4,"Lehrkr. f. bes. Aufgaben + Doz. u. Assistenten","m",55,24,31]
[2,"FH + VerwFH",4,"Mathematik, Naturwissenschaften",4,"Lehrkr. f. bes. Aufgaben + Doz. u. Assistenten","w",32,17,15]
[2,"FH + VerwFH",4,"Mathematik, Naturwissenschaften",4,"Lehrkr. f. bes. Aufgaben + Doz. u. Assistenten","i",87,41,46]
[2,"FH + VerwFH",4,"Mathematik, Naturwissenschaften","~~","zusammen","m",879,445,434]
[2,"FH + VerwFH",4,"Mathematik, Naturwissenschaften","~~","zusammen","w",342,169,173]
[2,"FH + VerwFH",4,"Mathematik, Naturwissenschaften","~~","zusammen","i",1221,614,607]
[2,"FH + VerwFH",5,"Humanmedizin/Gesundheitswissenschaften + Veterinärmedizin",3,"Wiss. u. künstl. Mitarbeiter","m",37,21,16]
[2,"FH + VerwFH",5,"Humanmedizin/Gesundheitswissenschaften + Veterinärmedizin",3,"Wiss. u. künstl. Mitarbeiter","w",100,44,56]
[2,"FH + VerwFH",5,"Humanmedizin/Gesundheitswissenschaften + Veterinärmedizin",3,"Wiss. u. künstl. Mitarbeiter","i",137,65,72]
[2,"FH + VerwFH",5,"Humanmedizin/Gesundheitswissenschaften + Veterinärmedizin",4,"Lehrkr. f. bes. Aufgaben + Doz. u. Assistenten","m",9,4,5]
[2,"FH + VerwFH",5,"Humanmedizin/Gesundheitswissenschaften + Veterinärmedizin",4,"Lehrkr. f. bes. Aufgaben + Doz. u. Assistenten","w",29,18,11]
[2,"FH + VerwFH",5,"Humanmedizin/Gesundheitswissenschaften + Veterinärmedizin",4,"Lehrkr. f. bes. Aufgaben + Doz. u. Assistenten","i",38,22,16]
[2,"FH + VerwFH",5,"Humanmedizin/Gesundheitswissenschaften + Veterinärmedizin","~~","zusammen","m",46,25,21]
[2,"FH + VerwFH",5,"Humanmedizin/Gesundheitswissenschaften + Veterinärmedizin","~~","zusammen","w",129,62,67]
[2,"FH + VerwFH",5,"Humanmedizin/Gesundheitswissenschaften + Veterinärmedizin","~~","zusammen","i",175,87,88]
[2,"FH + VerwFH",8,"Ingenieurwissenschaften",3,"Wiss. u. künstl. Mitarbeiter","m",2339,1369,970]
[2,"FH + VerwFH",8,"Ingenieurwissenschaften",3,"Wiss. u. künstl. Mitarbeiter","w",785,389,396]
[2,"FH + VerwFH",8,"Ingenieurwissenschaften",3,"Wiss. u. künstl. Mitarbeiter","i",3124,1758,1366]
[2,"FH + VerwFH",8,"Ingenieurwissenschaften",4,"Lehrkr. f. bes. Aufgaben + Doz. u. Assistenten","m",98,51,47]
[2,"FH + VerwFH",8,"Ingenieurwissenschaften",4,"Lehrkr. f. bes. Aufgaben + Doz. u. Assistenten","w",47,25,22]
[2,"FH + VerwFH",8,"Ingenieurwissenschaften",4,"Lehrkr. f. bes. Aufgaben + Doz. u. Assistenten","i",145,76,69]
[2,"FH + VerwFH",8,"Ingenieurwissenschaften","~~","zusammen","m",2437,1420,1017]
[2,"FH + VerwFH",8,"Ingenieurwissenschaften","~~","zusammen","w",832,414,418]
[2,"FH + VerwFH",8,"Ingenieurwissenschaften","~~","zusammen","i",3269,1834,1435]
[2,"FH + VerwFH",10,"Restliche Fächergruppen",3,"Wiss. u. künstl. Mitarbeiter","m",1021,617,404]
[2,"FH + VerwFH",10,"Restliche Fächergruppen",3,"Wiss. u. künstl. Mitarbeiter","w",843,462,381]
[2,"FH + VerwFH",10,"Restliche Fächergruppen",3,"Wiss. u. künstl. Mitarbeiter","i",1864,1079,785]
[2,"FH + VerwFH",10,"Restliche Fächergruppen",4,"Lehrkr. f. bes. Aufgaben + Doz. u. Assistenten","m",39,19,20]
[2,"FH + VerwFH",10,"Restliche Fächergruppen",4,"Lehrkr. f. bes. Aufgaben + Doz. u. Assistenten","w",64,35,29]
[2,"FH + VerwFH",10,"Restliche Fächergruppen",4,"Lehrkr. f. bes. Aufgaben + Doz. u. Assistenten","i",103,54,49]
[2,"FH + VerwFH",10,"Restliche Fächergruppen","~~","zusammen","m",1060,636,424]
[2,"FH + VerwFH",10,"Restliche Fächergruppen","~~","zusammen","w",907,497,410]
[2,"FH + VerwFH",10,"Restliche Fächergruppen","~~","zusammen","i",1967,1133,834]
[2,"FH + VerwFH","~~","zusammen","~~","zusammen","m",5123,2910,2213]
[2,"FH + VerwFH","~~","zusammen","~~","zusammen","w",3288,1701,1587]
[2,"FH + VerwFH","~~","zusammen","~~","zusammen","i",8411,4611,3800]
["~","Insgesamt",null,null,null,null,"m",83184,56721,26463]
["~","Insgesamt",null,null,null,null,"w",61743,33043,28700]
["~","Insgesamt",null,null,null,null,"i",144927,89764,55163]

{"sheet":"3.3","index":18,"n_rows":131,"n_cols":10,"rows_kept":131,"cut":false,"hidden":false,"merged":[]}
["Statistisches Bundesamt"]
["H201 - Hochschulstatistik"]
[]
[]
["Hauptberufliches wissenschaftliches und künstlerisches Personal (ohne Professoren) nach ausgewählten "]
["Hochschularten, Fächer- und Personalgruppen sowie spezielle Definition von Voll- und Teilzeit im Berichtsjahr 2014"]
[]
[null,null,null,null,null,null,null,null,"davon:"]
[null,null,null,null,null,null,null,"Hauptber.","Vollzeit und"]
[null,"Hochschulart",null,"Fächergruppe",null,"Personalgruppe","Ge-","Wikue","Teilzeit","Teilzeit"]
[null,null,null,"der fachl. Zugehörigkeit",null,null,"schlecht","(ohne","mit mind. 2/3","unter 2/3"]
[null,null,null,null,null,null,null,"(Professoren)"," der regelmäßigen"," der regelmäßigen"]
[null,null,null,null,null,null,null,"insgesamt","Arbeitszeit","Arbeitszeit"]
[]
[1,"Wiss. Hochschulen (= Uni, GH, PH, TH und KunstH)",1,"Sprach- und Kulturwissenschaften",3,"Wiss. u. künstl. Mitarbeiter","m",7358,4055,3303]
[1,"Wiss. Hochschulen (= Uni, GH, PH, TH und KunstH)",1,"Sprach- und Kulturwissenschaften",3,"Wiss. u. künstl. Mitarbeiter","w",10367,4493,5874]
[1,"Wiss. Hochschulen (= Uni, GH, PH, TH und KunstH)",1,"Sprach- und Kulturwissenschaften",3,"Wiss. u. künstl. Mitarbeiter","i",17725,8548,9177]
[1,"Wiss. Hochschulen (= Uni, GH, PH, TH und KunstH)",1,"Sprach- und Kulturwissenschaften",4,"Lehrkr. f. bes. Aufgaben + Doz. u. Assistenten","m",1374,958,416]
[1,"Wiss. Hochschulen (= Uni, GH, PH, TH und KunstH)",1,"Sprach- und Kulturwissenschaften",4,"Lehrkr. f. bes. Aufgaben + Doz. u. Assistenten","w",2030,1203,827]
[1,"Wiss. Hochschulen (= Uni, GH, PH, TH und KunstH)",1,"Sprach- und Kulturwissenschaften",4,"Lehrkr. f. bes. Aufgaben + Doz. u. Assistenten","i",3404,2161,1243]
[1,"Wiss. Hochschulen (= Uni, GH, PH, TH und KunstH)",1,"Sprach- und Kulturwissenschaften","~~","zusammen","m",8732,5013,3719]
[1,"Wiss. Hochschulen (= Uni, GH, PH, TH und KunstH)",1,"Sprach- und Kulturwissenschaften","~~","zusammen","w",12397,5696,6701]
[1,"Wiss. Hochschulen (= Uni, GH, PH, TH und KunstH)",1,"Sprach- und Kulturwissenschaften","~~","zusammen","i",21129,10709,10420]
[1,"Wiss. Hochschulen (= Uni, GH, PH, TH und KunstH)",3,"Rechts-, Wirtschafts- und Sozialwissenschaften",3,"Wiss. u. künstl. Mitarbeiter","m",8310,4846,3464]
[1,"Wiss. Hochschulen (= Uni, GH, PH, TH und KunstH)",3,"Rechts-, Wirtschafts- und Sozialwissenschaften",3,"Wiss. u. künstl. Mitarbeiter","w",6143,3155,2988]
[1,"Wiss. Hochschulen (= Uni, GH, PH, TH und KunstH)",3,"Rechts-, Wirtschafts- und Sozialwissenschaften",3,"Wiss. u. künstl. Mitarbeiter","i",14453,8001,6452]
[1,"Wiss. Hochschulen (= Uni, GH, PH, TH und KunstH)",3,"Rechts-, Wirtschafts- und Sozialwissenschaften",4,"Lehrkr. f. bes. Aufgaben + Doz. u. Assistenten","m",586,428,158]
[1,"Wiss. Hochschulen (= Uni, GH, PH, TH und KunstH)",3,"Rechts-, Wirtschafts- und Sozialwissenschaften",4,"Lehrkr. f. bes. Aufgaben + Doz. u. Assistenten","w",328,184,144]
[1,"Wiss. Hochschulen (= Uni, GH, PH, TH und KunstH)",3,"Rechts-, Wirtschafts- und Sozialwissenschaften",4,"Lehrkr. f. bes. Aufgaben + Doz. u. Assistenten","i",914,612,302]
[1,"Wiss. Hochschulen (= Uni, GH, PH, TH und KunstH)",3,"Rechts-, Wirtschafts- und Sozialwissenschaften","~~","zusammen","m",8896,5274,3622]
[1,"Wiss. Hochschulen (= Uni, GH, PH, TH und KunstH)",3,"Rechts-, Wirtschafts- und Sozialwissenschaften","~~","zusammen","w",6471,3339,3132]
[1,"Wiss. Hochschulen (= Uni, GH, PH, TH und KunstH)",3,"Rechts-, Wirtschafts- und Sozialwissenschaften","~~","zusammen","i",15367,8613,6754]
[1,"Wiss. Hochschulen (= Uni, GH, PH, TH und KunstH)",4,"Mathematik, Naturwissenschaften",3,"Wiss. u. künstl. Mitarbeiter","m",28611,17921,10690]
[1,"Wiss. Hochschulen (= Uni, GH, PH, TH und KunstH)",4,"Mathematik, Naturwissenschaften",3,"Wiss. u. künstl. Mitarbeiter","w",12533,5430,7103]
[1,"Wiss. Hochschulen (= Uni, GH, PH, TH und KunstH)",4,"Mathematik, Naturwissenschaften",3,"Wiss. u. künstl. Mitarbeiter","i",41144,23351,17793]
[1,"Wiss. Hochschulen (= Uni, GH, PH, TH und KunstH)",4,"Mathematik, Naturwissenschaften",4,"Lehrkr. f. bes. Aufgaben + Doz. u. Assistenten","m",901,746,155]
[1,"Wiss. Hochschulen (= Uni, GH, PH, TH und KunstH)",4,"Mathematik, Naturwissenschaften",4,"Lehrkr. f. bes. Aufgaben + Doz. u. Assistenten","w",442,280,162]
[1,"Wiss. Hochschulen (= Uni, GH, PH, TH und KunstH)",4,"Mathematik, Naturwissenschaften",4,"Lehrkr. f. bes. Aufgaben + Doz. u. Assistenten","i",1343,1026,317]
[1,"Wiss. Hochschulen (= Uni, GH, PH, TH und KunstH)",4,"Mathematik, Naturwissenschaften","~~","zusammen","m",29512,18667,10845]
[1,"Wiss. Hochschulen (= Uni, GH, PH, TH und KunstH)",4,"Mathematik, Naturwissenschaften","~~","zusammen","w",12975,5710,7265]
[1,"Wiss. Hochschulen (= Uni, GH, PH, TH und KunstH)",4,"Mathematik, Naturwissenschaften","~~","zusammen","i",42487,24377,18110]
[1,"Wiss. Hochschulen (= Uni, GH, PH, TH und KunstH)",5,"Humanmedizin/Gesundheitswissenschaften + Veterinärmedizin",3,"Wiss. u. künstl. Mitarbeiter","m",25906,22181,3725]
[1,"Wiss. Hochschulen (= Uni, GH, PH, TH und KunstH)",5,"Humanmedizin/Gesundheitswissenschaften + Veterinärmedizin",3,"Wiss. u. künstl. Mitarbeiter","w",27189,18452,8737]
[1,"Wiss. Hochschulen (= Uni, GH, PH, TH und KunstH)",5,"Humanmedizin/Gesundheitswissenschaften + Veterinärmedizin",3,"Wiss. u. künstl. Mitarbeiter","i",53095,40633,12462]
[1,"Wiss. Hochschulen (= Uni, GH, PH, TH und KunstH)",5,"Humanmedizin/Gesundheitswissenschaften + Veterinärmedizin",4,"Lehrkr. f. bes. Aufgaben + Doz. u. Assistenten","m",262,207,55]
[1,"Wiss. Hochschulen (= Uni, GH, PH, TH und KunstH)",5,"Humanmedizin/Gesundheitswissenschaften + Veterinärmedizin",4,"Lehrkr. f. bes. Aufgaben + Doz. u. Assistenten","w",316,179,137]
[1,"Wiss. Hochschulen (= Uni, GH, PH, TH und KunstH)",5,"Humanmedizin/Gesundheitswissenschaften + Veterinärmedizin",4,"Lehrkr. f. bes. Aufgaben + Doz. u. Assistenten","i",578,386,192]
[1,"Wiss. Hochschulen (= Uni, GH, PH, TH und KunstH)",5,"Humanmedizin/Gesundheitswissenschaften + Veterinärmedizin","~~","zusammen","m",26168,22388,3780]
[1,"Wiss. Hochschulen (= Uni, GH, PH, TH und KunstH)",5,"Humanmedizin/Gesundheitswissenschaften + Veterinärmedizin","~~","zusammen","w",27505,18631,8874]
[1,"Wiss. Hochschulen (= Uni, GH, PH, TH und KunstH)",5,"Humanmedizin/Gesundheitswissenschaften + Veterinärmedizin","~~","zusammen","i",53673,41019,12654]
[1,"Wiss. Hochschulen (= Uni, GH, PH, TH und KunstH)",8,"Ingenieurwissenschaften",3,"Wiss. u. künstl. Mitarbeiter","m",18686,16537,2149]
[1,"Wiss. Hochschulen (= Uni, GH, PH, TH und KunstH)",8,"Ingenieurwissenschaften",3,"Wiss. u. künstl. Mitarbeiter","w",4860,3542,1318]
[1,"Wiss. Hochschulen (= Uni, GH, PH, TH und KunstH)",8,"Ingenieurwissenschaften",3,"Wiss. u. künstl. Mitarbeiter","i",23546,20079,3467]
[1,"Wiss. Hochschulen (= Uni, GH, PH, TH und KunstH)",8,"Ingenieurwissenschaften",4,"Lehrkr. f. bes. Aufgaben + Doz. u. Assistenten","m",361,324,37]
[1,"Wiss. Hochschulen (= Uni, GH, PH, TH und KunstH)",8,"Ingenieurwissenschaften",4,"Lehrkr. f. bes. Aufgaben + Doz. u. Assistenten","w",80,56,24]
[1,"Wiss. Hochschulen (= Uni, GH, PH, TH und KunstH)",8,"Ingenieurwissenschaften",4,"Lehrkr. f. bes. Aufgaben + Doz. u. Assistenten","i",441,380,61]
[1,"Wiss. Hochschulen (= Uni, GH, PH, TH und KunstH)",8,"Ingenieurwissenschaften","~~","zusammen","m",19047,16861,2186]
[1,"Wiss. Hochschulen (= Uni, GH, PH, TH und KunstH)",8,"Ingenieurwissenschaften","~~","zusammen","w",4940,3598,1342]
[1,"Wiss. Hochschulen (= Uni, GH, PH, TH und KunstH)",8,"Ingenieurwissenschaften","~~","zusammen","i",23987,20459,3528]
[1,"Wiss. Hochschulen (= Uni, GH, PH, TH und KunstH)",10,"Restliche Fächergruppen",3,"Wiss. u. künstl. Mitarbeiter","m",8186,5574,2612]
[1,"Wiss. Hochschulen (= Uni, GH, PH, TH und KunstH)",10,"Restliche Fächergruppen",3,"Wiss. u. künstl. Mitarbeiter","w",7736,4090,3646]
[1,"Wiss. Hochschulen (= Uni, GH, PH, TH und KunstH)",10,"Restliche Fächergruppen",3,"Wiss. u. künstl. Mitarbeiter","i",15922,9664,6258]
[1,"Wiss. Hochschulen (= Uni, GH, PH, TH und KunstH)",10,"Restliche Fächergruppen",4,"Lehrkr. f. bes. Aufgaben + Doz. u. Assistenten","m",1331,923,408]
[1,"Wiss. Hochschulen (= Uni, GH, PH, TH und KunstH)",10,"Restliche Fächergruppen",4,"Lehrkr. f. bes. Aufgaben + Doz. u. Assistenten","w",1421,865,556]
[1,"Wiss. Hochschulen (= Uni, GH, PH, TH und KunstH)",10,"Restliche Fächergruppen",4,"Lehrkr. f. bes. Aufgaben + Doz. u. Assistenten","i",2752,1788,964]
[1,"Wiss. Hochschulen (= Uni, GH, PH, TH und KunstH)",10,"Restliche Fächergruppen","~~","zusammen","m",9517,6497,3020]
[1,"Wiss. Hochschulen (= Uni, GH, PH, TH und KunstH)",10,"Restliche Fächergruppen","~~","zusammen","w",9157,4955,4202]
[1,"Wiss. Hochschulen (= Uni, GH, PH, TH und KunstH)",10,"Restliche Fächergruppen","~~","zusammen","i",18674,11452,7222]
[1,"Wiss. Hochschulen (= Uni, GH, PH, TH und KunstH)","~~","zusammen","~~","zusammen","m",101872,74700,27172]
[1,"Wiss. Hochschulen (= Uni, GH, PH, TH und KunstH)","~~","zusammen","~~","zusammen","w",73445,41929,31516]
[1,"Wiss. Hochschulen (= Uni, GH, PH, TH und KunstH)","~~","zusammen","~~","zusammen","i",175317,116629,58688]
[2,"FH + VerwFH",1,"Sprach- und Kulturwissenschaften",3,"Wiss. u. künstl. Mitarbeiter","m",57,36,21]
[2,"FH + VerwFH",1,"Sprach- und Kulturwissenschaften",3,"Wiss. u. künstl. Mitarbeiter","w",143,68,75]
[2,"FH + VerwFH",1,"Sprach- und Kulturwissenschaften",3,"Wiss. u. künstl. Mitarbeiter","i",200,104,96]
[2,"FH + VerwFH",1,"Sprach- und Kulturwissenschaften",4,"Lehrkr. f. bes. Aufgaben + Doz. u. Assistenten","m",118,72,46]
[2,"FH + VerwFH",1,"Sprach- und Kulturwissenschaften",4,"Lehrkr. f. bes. Aufgaben + Doz. u. Assistenten","w",208,135,73]
[2,"FH + VerwFH",1,"Sprach- und Kulturwissenschaften",4,"Lehrkr. f. bes. Aufgaben + Doz. u. Assistenten","i",326,207,119]
[2,"FH + VerwFH",1,"Sprach- und Kulturwissenschaften","~~","zusammen","m",175,108,67]
[2,"FH + VerwFH",1,"Sprach- und Kulturwissenschaften","~~","zusammen","w",351,203,148]
[2,"FH + VerwFH",1,"Sprach- und Kulturwissenschaften","~~","zusammen","i",526,311,215]
[2,"FH + VerwFH",3,"Rechts-, Wirtschafts- und Sozialwissenschaften",3,"Wiss. u. künstl. Mitarbeiter","m",1004,710,294]
[2,"FH + VerwFH",3,"Rechts-, Wirtschafts- und Sozialwissenschaften",3,"Wiss. u. künstl. Mitarbeiter","w",1393,854,539]
[2,"FH + VerwFH",3,"Rechts-, Wirtschafts- und Sozialwissenschaften",3,"Wiss. u. künstl. Mitarbeiter","i",2397,1564,833]
[2,"FH + VerwFH",3,"Rechts-, Wirtschafts- und Sozialwissenschaften",4,"Lehrkr. f. bes. Aufgaben + Doz. u. Assistenten","m",1089,985,104]
[2,"FH + VerwFH",3,"Rechts-, Wirtschafts- und Sozialwissenschaften",4,"Lehrkr. f. bes. Aufgaben + Doz. u. Assistenten","w",753,546,207]
[2,"FH + VerwFH",3,"Rechts-, Wirtschafts- und Sozialwissenschaften",4,"Lehrkr. f. bes. Aufgaben + Doz. u. Assistenten","i",1842,1531,311]
[2,"FH + VerwFH",3,"Rechts-, Wirtschafts- und Sozialwissenschaften","~~","zusammen","m",2093,1695,398]
[2,"FH + VerwFH",3,"Rechts-, Wirtschafts- und Sozialwissenschaften","~~","zusammen","w",2146,1400,746]
[2,"FH + VerwFH",3,"Rechts-, Wirtschafts- und Sozialwissenschaften","~~","zusammen","i",4239,3095,1144]
[2,"FH + VerwFH",4,"Mathematik, Naturwissenschaften",3,"Wiss. u. künstl. Mitarbeiter","m",1099,650,449]
[2,"FH + VerwFH",4,"Mathematik, Naturwissenschaften",3,"Wiss. u. künstl. Mitarbeiter","w",440,230,210]
[2,"FH + VerwFH",4,"Mathematik, Naturwissenschaften",3,"Wiss. u. künstl. Mitarbeiter","i",1539,880,659]
[2,"FH + VerwFH",4,"Mathematik, Naturwissenschaften",4,"Lehrkr. f. bes. Aufgaben + Doz. u. Assistenten","m",186,141,45]
[2,"FH + VerwFH",4,"Mathematik, Naturwissenschaften",4,"Lehrkr. f. bes. Aufgaben + Doz. u. Assistenten","w",96,61,35]
[2,"FH + VerwFH",4,"Mathematik, Naturwissenschaften",4,"Lehrkr. f. bes. Aufgaben + Doz. u. Assistenten","i",282,202,80]
[2,"FH + VerwFH",4,"Mathematik, Naturwissenschaften","~~","zusammen","m",1285,791,494]
[2,"FH + VerwFH",4,"Mathematik, Naturwissenschaften","~~","zusammen","w",536,291,245]
[2,"FH + VerwFH",4,"Mathematik, Naturwissenschaften","~~","zusammen","i",1821,1082,739]
[2,"FH + VerwFH",5,"Humanmedizin/Gesundheitswissenschaften + Veterinärmedizin",3,"Wiss. u. künstl. Mitarbeiter","m",72,47,25]
[2,"FH + VerwFH",5,"Humanmedizin/Gesundheitswissenschaften + Veterinärmedizin",3,"Wiss. u. künstl. Mitarbeiter","w",180,95,85]
[2,"FH + VerwFH",5,"Humanmedizin/Gesundheitswissenschaften + Veterinärmedizin",3,"Wiss. u. künstl. Mitarbeiter","i",252,142,110]
[2,"FH + VerwFH",5,"Humanmedizin/Gesundheitswissenschaften + Veterinärmedizin",4,"Lehrkr. f. bes. Aufgaben + Doz. u. Assistenten","m",67,53,14]
[2,"FH + VerwFH",5,"Humanmedizin/Gesundheitswissenschaften + Veterinärmedizin",4,"Lehrkr. f. bes. Aufgaben + Doz. u. Assistenten","w",135,92,43]
[2,"FH + VerwFH",5,"Humanmedizin/Gesundheitswissenschaften + Veterinärmedizin",4,"Lehrkr. f. bes. Aufgaben + Doz. u. Assistenten","i",202,145,57]
[2,"FH + VerwFH",5,"Humanmedizin/Gesundheitswissenschaften + Veterinärmedizin","~~","zusammen","m",139,100,39]
[2,"FH + VerwFH",5,"Humanmedizin/Gesundheitswissenschaften + Veterinärmedizin","~~","zusammen","w",315,187,128]
[2,"FH + VerwFH",5,"Humanmedizin/Gesundheitswissenschaften + Veterinärmedizin","~~","zusammen","i",454,287,167]
[2,"FH + VerwFH",8,"Ingenieurwissenschaften",3,"Wiss. u. künstl. Mitarbeiter","m",3319,2196,1123]
[2,"FH + VerwFH",8,"Ingenieurwissenschaften",3,"Wiss. u. künstl. Mitarbeiter","w",1165,599,566]
[2,"FH + VerwFH",8,"Ingenieurwissenschaften",3,"Wiss. u. künstl. Mitarbeiter","i",4484,2795,1689]
[2,"FH + VerwFH",8,"Ingenieurwissenschaften",4,"Lehrkr. f. bes. Aufgaben + Doz. u. Assistenten","m",316,228,88]
[2,"FH + VerwFH",8,"Ingenieurwissenschaften",4,"Lehrkr. f. bes. Aufgaben + Doz. u. Assistenten","w",168,106,62]
[2,"FH + VerwFH",8,"Ingenieurwissenschaften",4,"Lehrkr. f. bes. Aufgaben + Doz. u. Assistenten","i",484,334,150]
[2,"FH + VerwFH",8,"Ingenieurwissenschaften","~~","zusammen","m",3635,2424,1211]
[2,"FH + VerwFH",8,"Ingenieurwissenschaften","~~","zusammen","w",1333,705,628]
[2,"FH + VerwFH",8,"Ingenieurwissenschaften","~~","zusammen","i",4968,3129,1839]
[2,"FH + VerwFH",10,"Restliche Fächergruppen",3,"Wiss. u. künstl. Mitarbeiter","m",1451,966,485]
[2,"FH + VerwFH",10,"Restliche Fächergruppen",3,"Wiss. u. künstl. Mitarbeiter","w",1320,767,553]
[2,"FH + VerwFH",10,"Restliche Fächergruppen",3,"Wiss. u. künstl. Mitarbeiter","i",2771,1733,1038]
[2,"FH + VerwFH",10,"Restliche Fächergruppen",4,"Lehrkr. f. bes. Aufgaben + Doz. u. Assistenten","m",219,148,71]
[2,"FH + VerwFH",10,"Restliche Fächergruppen",4,"Lehrkr. f. bes. Aufgaben + Doz. u. Assistenten","w",300,200,100]
[2,"FH + VerwFH",10,"Restliche Fächergruppen",4,"Lehrkr. f. bes. Aufgaben + Doz. u. Assistenten","i",519,348,171]
[2,"FH + VerwFH",10,"Restliche Fächergruppen","~~","zusammen","m",1670,1114,556]
[2,"FH + VerwFH",10,"Restliche Fächergruppen","~~","zusammen","w",1620,967,653]
[2,"FH + VerwFH",10,"Restliche Fächergruppen","~~","zusammen","i",3290,2081,1209]
[2,"FH + VerwFH","~~","zusammen","~~","zusammen","m",8997,6232,2765]
[2,"FH + VerwFH","~~","zusammen","~~","zusammen","w",6301,3753,2548]
[2,"FH + VerwFH","~~","zusammen","~~","zusammen","i",15298,9985,5313]
["~","Insgesamt",null,null,null,null,"m",110869,80932,29937]
["~","Insgesamt",null,null,null,null,"w",79746,45682,34064]
["~","Insgesamt",null,null,null,null,"i",190615,126614,64001]

{"sheet":"3.4","index":19,"n_rows":15,"n_cols":3,"rows_kept":15,"cut":false,"hidden":false,"merged":[]}
["Statistisches Bundesamt"]
["H 201- Hochschulstatistik"]
[]
["Hauptber. Wikü-Personal 2014 (ohne Professoren )im Alter bis 44 Jahren an Universitäten und gleichgestellten Hochschulen"]
[]
[]
["1Vollzeit","1 auf Dauer",6787]
["1 Vollzeit","2 auf Zeit",68853]
["1 Vollzeit","~ Zusammen",75640]
[]
["2 Teilzeit","1 auf Dauer",1941]
["2 Teilzeit","2 auf Zeit",67663]
["2 Teilzeit","~ Zusammen",69604]
[]
["~ Zusammen","~ Zusammen",145244]

{"sheet":"4.WiKü FH VERWFH und UNI GGHS ","index":20,"n_rows":0,"n_cols":0,"rows_kept":0,"cut":false,"hidden":false,"merged":[]}

{"sheet":"4.1","index":21,"n_rows":89,"n_cols":13,"rows_kept":89,"cut":false,"hidden":false,"merged":[[65,0,65,1],[71,0,71,1],[80,0,80,1],[83,0,83,1],[21,0,21,1],[27,0,27,1],[33,0,33,1],[42,0,42,1],[45,0,45,1],[59,0,59,1]]}
["Hochschulpersonal 2014"]
[]
["8  Wissenschaftliches und künstlerisches Personal nach Hochschularten, Fächergruppen und Lehr- und Forschungsbereichen"]
["     der fachlichen Zugehörigkeit, Beschäftigungsverhältnissen und Personalgruppen"]
[]
[null,null,null,null,"Hauptberufliches Personal",null,null,null,null,"Nebenberufliches Personal"]
["Fächergruppe",null,null,null,null,null,null,"Wissen-","Lehr-",null,null,"Lehrbeauf-"]
[" -------",null,null,null,null,null,"Dozenten","schaftl.","kräfte",null,"Gast-/","tragte,","Wissen-"]
["Lehr- und Forschungsbereich",null,null," Insgesamt","zusammen","Profes-","und ","und","für","zusammen","Profes-","Honorar-","schaftliche"]
[null,null,null,null,null,"soren","Assi-","künstler.","beson-",null,"soren,","prof.,","Hilfskräfte,"]
["(m = männlich, w = weiblich, ",null,null,null,null,null,"stenten","Mitar-","dere",null,"Emeriti","Privat-","Tutoren"]
["i = insgesamt)",null,null,null,null,null,null,"beiter","Aufgaben",null,null,"dozenten"]
[]
[null,null,null,"Universitäten (einschl. Päd. H, Theol. H und Kunsthochschulen)"]
[]
["Sprach- und Kulturwissenschaften zusammen",null,"m",21617,12398,3666,225,7358,1149,9219,255,6380,2584]
[null,null,"w",25769,14529,2132,190,10367,1840,11240,52,6014,5174]
[null,null,"i",47386,26927,5798,415,17725,2989,20459,307,12394,7758]
["Sport zusammen",null,"m",1961,1047,194,6,638,209,914,7,651,256]
[null,null,"w",1304,731,51,2,514,164,573,2,299,272]
[null,null,"i",3265,1778,245,8,1152,373,1487,9,950,528]
["Rechts-, Wirtschafts- und Sozialwissenschaften zusammen",null,"m",19703,12207,3311,294,8310,292,7496,243,4179,3074]
[null,null,"w",11737,7386,915,135,6143,193,4351,27,1480,2844]
[null,null,"i",31440,19593,4226,429,14453,485,11847,270,5659,5918]
["Mathematik, Naturwissenschaften zusammen",null,"m",44618,35173,5661,403,28611,498,9445,283,2934,6228]
[null,null,"w",18209,14005,1030,150,12533,292,4204,21,833,3350]
[null,null,"i",62827,49178,6691,553,41144,790,13649,304,3767,9578]
["Humanmedizin/Gesundheitswissenschaften zusammen",null,"m",32880,28645,2815,245,25582,3,4235,147,3520,568]
[null,null,"w",29150,27262,518,272,26454,18,1888,9,803,1076]
[null,null,"i",62030,55907,3333,517,52036,21,6123,156,4323,1644]
["Veterinärmedizin zusammen",null,"m",623,467,129,14,324,0,156,1,76,79]
[null,null,"w",1141,804,43,25,735,1,337,0,27,310]
[null,null,"i",1764,1271,172,39,1059,1,493,1,103,389]
["Agrar-, Forst- und Ernährungswissenschaften zusammen",null,"m",2452,1826,341,5,1453,27,626,19,313,294]
[null,null,"w",2038,1485,107,4,1332,42,553,1,146,406]
[null,null,"i",4490,3311,448,9,2785,69,1179,20,459,700]
["Ingenieurwissenschaften zusammen",null,"m",27158,21378,2331,196,18686,165,5780,41,2327,3412]
[null,null,"w",6816,5219,279,37,4860,43,1597,5,319,1273]
[null,null,"i",33974,26597,2610,233,23546,208,7377,46,2646,4685]
["Kunst, Kunstwissenschaft zusammen",null,"m",9175,3545,1949,63,995,538,5630,110,5108,412]
[null,null,"w",6544,2394,876,36,1115,367,4150,35,3473,642]
[null,null,"i",15719,5939,2825,99,2110,905,9780,145,8581,1054]
["Zentrale Einrichtungen (ohne klinikspezifische Einrichtungen) zusammen",null,"m",10152,5413,297,19,4649,448,4739,93,2990,1656]
[null,null,"w",10996,5057,108,5,4231,713,5939,7,3641,2291]
[null,null,"i",21148,10470,405,24,8880,1161,10678,100,6631,3947]
["Zentrale Einrichtungen\nder Hochschulkliniken \n(nur Humanmedizin) zusammen",null,"m",530,484,17,8,451,8,46,0,20,26]
[null,null,"w",685,635,3,25,544,63,50,0,5,45]
[null,null,"i",1215,1119,20,33,995,71,96,0,25,71]
[null,"Hochschulart insgesamt","m",170869,122583,20711,1478,97057,3337,48286,1199,28498,18589]
[null,null,"w",114389,79507,6062,881,68828,3736,34882,159,17040,17683]
[null,null,"i",285258,202090,26773,2359,165885,7073,83168,1358,45538,36272]
[null,null,null,"Fachhochschulen (einschl. Verwaltungs-FH)"]
[]
["Sprach- und Kulturwissenschaften zusammen",null,"m",1517,540,365,31,57,87,977,9,924,44]
[null,null,"w",2033,637,286,30,143,178,1396,2,1327,67]
[null,null,"i",3550,1177,651,61,200,265,2373,11,2251,111]
["Sport zusammen",null,"m",62,14,8,5,0,1,48,0,45,3]
[null,null,"w",34,7,3,0,2,2,27,0,25,2]
[null,null,"i",96,21,11,5,2,3,75,0,70,5]
["Rechts-, Wirtschafts- und Sozialwissenschaften zusammen",null,"m",27044,7137,5044,453,1004,636,19907,126,18952,829]
[null,null,"w",14374,4061,1915,223,1393,530,10313,17,9344,952]
[null,null,"i",41418,11198,6959,676,2397,1166,30220,143,28296,1781]
["Mathematik, Naturwissenschaften zusammen",null,"m",6540,3252,1967,48,1099,138,3288,9,2476,803]
[null,null,"w",1759,904,368,16,440,80,855,0,605,250]
[null,null,"i",8299,4156,2335,64,1539,218,4143,9,3081,1053]
["Humanmedizin/Gesundheitswissenschaften\nzusammen",null,"m",1663,384,248,46,71,19,1279,21,1173,85]
[null,null,"w",1579,519,208,97,176,38,1060,3,898,159]
[null,null,"i",3242,903,456,143,247,57,2339,24,2071,244]
["Veterinärmedizin zusammen",null,"m",9,9,6,0,1,2,0,0,0,0]
[null,null,"w",7,6,2,0,4,0,1,0,1,0]
[null,null,"i",16,15,8,0,5,2,1,0,1,0]
["Agrar-, Forst- und Ernährungswissenschaften zusammen",null,"m",1371,640,424,2,194,20,731,2,646,83]
[null,null,"w",871,394,136,0,234,24,477,1,326,150]
[null,null,"i",2242,1034,560,2,428,44,1208,3,972,233]
["Ingenieurwissenschaften zusammen",null,"m",22174,9736,6101,46,3319,270,12438,36,10046,2356]
[null,null,"w",4992,2085,752,19,1165,149,2907,0,2131,776]
[null,null,"i",27166,11821,6853,65,4484,419,15345,36,12177,3132]
["Kunst, Kunstwissenschaft zusammen",null,"m",2163,789,596,15,106,72,1374,1,1239,134]
[null,null,"w",1344,397,262,9,99,27,947,1,806,140]
[null,null,"i",3507,1186,858,24,205,99,2321,2,2045,274]
["Zentrale Einrichtungen (ohne klinikspezifische Einrichtungen) zusammen",null,"m",3143,1471,216,10,1151,94,1672,57,968,647]
[null,null,"w",3323,1291,68,22,985,216,2032,3,1467,562]
[null,null,"i",6466,2762,284,32,2136,310,3704,60,2435,1209]
["Zentrale Einrichtungen\nder Hochschulkliniken \n(nur Humanmedizin) zusammen",null,"m",6,1,1,0,0,0,5,0,5,0]
[null,null,"w",3,0,0,0,0,0,3,1,2,0]
[null,null,"i",9,1,1,0,0,0,8,1,7,0]
[null,"Hochschulart insgesamt","m",65692,23973,14976,656,7002,1339,41719,261,36474,4984]
[null,null,"w",30319,10301,4000,416,4641,1244,20018,28,16932,3058]
[null,null,"i",96011,34274,18976,1072,11643,2583,61737,289,53406,8042]

{"sheet":"5.HS-Kliniken Personal","index":22,"n_rows":0,"n_cols":0,"rows_kept":0,"cut":false,"hidden":false,"merged":[]}

{"sheet":"5.1","index":23,"n_rows":63,"n_cols":8,"rows_kept":63,"cut":false,"hidden":false,"merged":[]}
["Statistisches Bundesamt"]
["H201 - Hochschulstatistik"]
[]
[]
["Personal insgesamt an Kliniken 2014"]
[]
[null,null,null,null,"Wissenschaftliches und",null,"Verwaltungs-, technisches"]
["Land",null,"Hochschule","Personal","künstlerisches Personal",null,"und sonstiges Personal"]
[null,null,null,"insgesamt","hauptberufl.","nebenberufl.","hauptberufl.","nebenberufl."]
[]
[1,"Baden-Württemberg","U Freiburg i.Br. (Klinikum)",9825,2345,179,7301,0]
[1,"Baden-Württemberg","U Heidelberg in Mannheim (Klinikum)",737,458,23,255,1]
[1,"Baden-Württemberg","U Heidelberg in Heidelberg (Klinikum)",10190,2616,203,7371,0]
[1,"Baden-Württemberg","U Tübingen (Klinikum)",8901,2214,136,6551,0]
[1,"Baden-Württemberg","U Ulm (Klinikum)",6092,1515,1,4576,0]
[1,"Baden-Württemberg","zusammen",35745,9148,542,26054,1]
[2,"Bayern","U Erlangen-Nürnberg in Erlangen (Klinikum)",6537,1529,13,4995,0]
[2,"Bayern","U München (Klinikum)",10391,2574,425,6951,441]
[2,"Bayern","TU München in München (Klinikum)",4663,1453,12,3198,0]
[2,"Bayern","U Regensburg (Klinikum)",4208,842,320,2927,119]
[2,"Bayern","U Würzburg (Klinikum)",6760,1444,45,5116,155]
[2,"Bayern","zusammen",32559,7842,815,23187,715]
[3,"Berlin","Charité - Universitätsmedizin Berlin",12844,4298,24,8522,0]
[3,"Berlin","zusammen",12844,4298,24,8522,0]
[6,"Hamburg","U Hamburg (Klinikum)",6806,2127,0,4679,0]
[6,"Hamburg","zusammen",6806,2127,0,4679,0]
[7,"Hessen","U Frankfurt a.M. (Klinikum)",5540,1486,0,4054,0]
[7,"Hessen","Universitätsklinikum Gießen und Marburg, Abt. Gießen",4085,822,0,3263,0]
[7,"Hessen","Universitätsklinikum Gießen und Marburg, Abt. Marburg",3780,729,0,3051,0]
[7,"Hessen","zusammen",13405,3037,0,10368,0]
[8,"Mecklenburg-Vorpommern","U Greifswald (Klinikum)",3781,979,0,2802,0]
[8,"Mecklenburg-Vorpommern","U Rostock (Klinikum)",3682,948,52,2675,7]
[8,"Mecklenburg-Vorpommern","zusammen",7463,1927,52,5477,7]
[9,"Niedersachsen","U Göttingen (Klinikum)",7195,1763,151,5280,1]
[9,"Niedersachsen","Medizinische H Hannover (Klinikum)",6417,1745,27,4630,15]
[9,"Niedersachsen","zusammen",13612,3508,178,9910,16]
[10,"Nordrhein-Westfalen","TH Aachen (Klinikum)",6838,1860,40,4938,0]
[10,"Nordrhein-Westfalen","U Bochum (Klinikum)",592,269,58,265,0]
[10,"Nordrhein-Westfalen","U Bonn (Klinikum)",5288,1698,27,3563,0]
[10,"Nordrhein-Westfalen","U Düsseldorf (Klinikum)",6304,1755,1,4548,0]
[10,"Nordrhein-Westfalen","U Duisburg-Essen (Klinikum)",6716,1364,5,5347,0]
[10,"Nordrhein-Westfalen","U Köln (Klinikum)",7805,2020,61,5561,163]
[10,"Nordrhein-Westfalen","U Münster (Klinikum)",8350,2006,22,6126,196]
[10,"Nordrhein-Westfalen","Universität Witten-Herdecke (Priv. H) (Klinikum)",129,41,0,88,0]
[10,"Nordrhein-Westfalen","zusammen",42022,11013,214,30436,359]
[11,"Rheinland-Pfalz","Universitätsmedizin der U Mainz",7655,1625,101,5929,0]
[11,"Rheinland-Pfalz","zusammen",7655,1625,101,5929,0]
[12,"Saarland","U des Saarlandes Saarbrücken in Homburg/Saar (Med. Fakultät)",884,428,30,420,6]
[12,"Saarland","U des Saarlandes Saarbrücken in Homburg/Saar (Klinikum-LKH)",4985,808,0,4177,0]
[12,"Saarland","zusammen",5869,1236,30,4597,6]
[13,"Sachsen","TU Dresden (Klinikum)",4744,350,0,4394,0]
[13,"Sachsen","TU Dresden (Med. Fakultät)",1789,1327,24,438,0]
[13,"Sachsen","U Leipzig (Klinikum)",4538,866,0,3671,1]
[13,"Sachsen","U Leipzig (Med. Fakultät)",1341,787,72,482,0]
[13,"Sachsen","zusammen",12412,3330,96,8985,1]
[14,"Sachsen-Anhalt","U Halle in Halle (Klinikum)",4089,949,4,2904,232]
[14,"Sachsen-Anhalt","U Magdeburg (Klinikum)",3939,798,0,3141,0]
[14,"Sachsen-Anhalt","zusammen",8028,1747,4,6045,232]
[15,"Schleswig-Holstein","Universitätsklinikum Schleswig-Holstein",7770,2029,0,5741,0]
[15,"Schleswig-Holstein","zusammen",7770,2029,0,5741,0]
[16,"Thüringen","U Jena (Klinikum)",5312,1471,160,3674,7]
[16,"Thüringen","zusammen",5312,1471,160,3674,7]
[null,"Insgesamt",null,211502,54338,2216,153604,1344]

{"sheet":"6.Neuberufene Professoren","index":24,"n_rows":0,"n_cols":0,"rows_kept":0,"cut":false,"hidden":false,"merged":[]}

{"sheet":"6.1","index":25,"n_rows":189,"n_cols":7,"rows_kept":189,"cut":false,"hidden":false,"merged":[]}
["Statistisches Bundesamt"]
["H 201 - Hochschulstatistik"]
[]
[]
["Neuberufene Professoren nach Fächergruppen sowie Besoldungs- und Vergütungsgruppen und Geschlecht"]
["an Wissenschaftlichen Hochschulen (Universitäten, Pädagogische und Theologische Hochschulen)"]
["im Berichtsjahr 2014"]
[]
[null,null,null,null,null,null,"Durchschnittsalter"]
[null,"Fächergruppe",null,"Besoldungs- und Vergütungsgruppen","Geschlecht","Anzahl","bei der Ernennung zum Professor"]
[null,null,null,null,null,null,"(arith. Mittel)"]
[]
[1,"Sprach- und Kulturwissenschaften",1,"C4 und entspr. Besoldungsgruppe","m",2,47]
[1,"Sprach- und Kulturwissenschaften",1,"C4 und entspr. Besoldungsgruppe","i",2,47]
[1,"Sprach- und Kulturwissenschaften",5,"C2 und entspr. Besoldungsgruppe - auf Dauer -","m",2,53]
[1,"Sprach- und Kulturwissenschaften",5,"C2 und entspr. Besoldungsgruppe - auf Dauer -","i",2,53]
[1,"Sprach- und Kulturwissenschaften",7,"C2 und entspr. Besoldungsgruppe - auf Zeit -","m",3,"."]
[1,"Sprach- und Kulturwissenschaften",7,"C2 und entspr. Besoldungsgruppe - auf Zeit -","w",1,"."]
[1,"Sprach- und Kulturwissenschaften",7,"C2 und entspr. Besoldungsgruppe - auf Zeit -","i",4,42]
[1,"Sprach- und Kulturwissenschaften",9,"W3","m",26,45.2]
[1,"Sprach- und Kulturwissenschaften",9,"W3","w",23,44.6]
[1,"Sprach- und Kulturwissenschaften",9,"W3","i",49,44.9]
[1,"Sprach- und Kulturwissenschaften",11,"W2","m",40,44.1]
[1,"Sprach- und Kulturwissenschaften",11,"W2","w",32,42.3]
[1,"Sprach- und Kulturwissenschaften",11,"W2","i",72,43.3]
[1,"Sprach- und Kulturwissenschaften",13,"Juniorprofessoren, W1, AT","m",5,37.799999999999997]
[1,"Sprach- und Kulturwissenschaften",13,"Juniorprofessoren, W1, AT","w",9,37.299999999999997]
[1,"Sprach- und Kulturwissenschaften",13,"Juniorprofessoren, W1, AT","i",14,37.5]
[1,"Sprach- und Kulturwissenschaften","~~","zusammen","m",78,44.3]
[1,"Sprach- und Kulturwissenschaften","~~","zusammen","w",65,42.4]
[1,"Sprach- und Kulturwissenschaften","~~","zusammen","i",143,43.4]
[2,"Sport",9,"W3","m",1,"."]
[2,"Sport",9,"W3","i",1,"."]
[2,"Sport",11,"W2","m",1,"."]
[2,"Sport",11,"W2","w",1,"."]
[2,"Sport",11,"W2","i",2,51]
[2,"Sport",13,"Juniorprofessoren, W1, AT","m",1,"."]
[2,"Sport",13,"Juniorprofessoren, W1, AT","w",1,"."]
[2,"Sport",13,"Juniorprofessoren, W1, AT","i",2,37.5]
[2,"Sport","~~","zusammen","m",3,44.3]
[2,"Sport","~~","zusammen","w",2,46.5]
[2,"Sport","~~","zusammen","i",5,45.2]
[3,"Rechts-, Wirtschafts- und Sozialwissenschaften",5,"C2 und entspr. Besoldungsgruppe - auf Dauer -","m",3,41]
[3,"Rechts-, Wirtschafts- und Sozialwissenschaften",5,"C2 und entspr. Besoldungsgruppe - auf Dauer -","i",3,41]
[3,"Rechts-, Wirtschafts- und Sozialwissenschaften",7,"C2 und entspr. Besoldungsgruppe - auf Zeit -","m",5,39]
[3,"Rechts-, Wirtschafts- und Sozialwissenschaften",7,"C2 und entspr. Besoldungsgruppe - auf Zeit -","w",5,40.799999999999997]
[3,"Rechts-, Wirtschafts- und Sozialwissenschaften",7,"C2 und entspr. Besoldungsgruppe - auf Zeit -","i",10,39.9]
[3,"Rechts-, Wirtschafts- und Sozialwissenschaften",9,"W3","m",32,39.6]
[3,"Rechts-, Wirtschafts- und Sozialwissenschaften",9,"W3","w",17,39.5]
[3,"Rechts-, Wirtschafts- und Sozialwissenschaften",9,"W3","i",49,39.6]
[3,"Rechts-, Wirtschafts- und Sozialwissenschaften",11,"W2","m",20,40.700000000000003]
[3,"Rechts-, Wirtschafts- und Sozialwissenschaften",11,"W2","w",15,40.1]
[3,"Rechts-, Wirtschafts- und Sozialwissenschaften",11,"W2","i",35,40.4]
[3,"Rechts-, Wirtschafts- und Sozialwissenschaften",13,"Juniorprofessoren, W1, AT","m",13,34]
[3,"Rechts-, Wirtschafts- und Sozialwissenschaften",13,"Juniorprofessoren, W1, AT","w",5,34.799999999999997]
[3,"Rechts-, Wirtschafts- und Sozialwissenschaften",13,"Juniorprofessoren, W1, AT","i",18,34.200000000000003]
[3,"Rechts-, Wirtschafts- und Sozialwissenschaften",15,"Gastprofessoren (hauptberuflich), C2-C4, W2, W3, BAT IIa, E13h, E14, AT","m",1,"."]
[3,"Rechts-, Wirtschafts- und Sozialwissenschaften",15,"Gastprofessoren (hauptberuflich), C2-C4, W2, W3, BAT IIa, E13h, E14, AT","i",1,"."]
[3,"Rechts-, Wirtschafts- und Sozialwissenschaften","~~","zusammen","m",74,38.9]
[3,"Rechts-, Wirtschafts- und Sozialwissenschaften","~~","zusammen","w",42,39.299999999999997]
[3,"Rechts-, Wirtschafts- und Sozialwissenschaften","~~","zusammen","i",116,39.1]
[4,"Mathematik, Naturwissenschaften",5,"C2 und entspr. Besoldungsgruppe - auf Dauer -","w",1,"."]
[4,"Mathematik, Naturwissenschaften",5,"C2 und entspr. Besoldungsgruppe - auf Dauer -","i",1,"."]
[4,"Mathematik, Naturwissenschaften",7,"C2 und entspr. Besoldungsgruppe - auf Zeit -","m",1,"."]
[4,"Mathematik, Naturwissenschaften",7,"C2 und entspr. Besoldungsgruppe - auf Zeit -","i",1,"."]
[4,"Mathematik, Naturwissenschaften",9,"W3","m",47,40.6]
[4,"Mathematik, Naturwissenschaften",9,"W3","w",16,40.9]
[4,"Mathematik, Naturwissenschaften",9,"W3","i",63,40.700000000000003]
[4,"Mathematik, Naturwissenschaften",11,"W2","m",45,39.4]
[4,"Mathematik, Naturwissenschaften",11,"W2","w",13,39.200000000000003]
[4,"Mathematik, Naturwissenschaften",11,"W2","i",58,39.299999999999997]
[4,"Mathematik, Naturwissenschaften",13,"Juniorprofessoren, W1, AT","m",18,34.5]
[4,"Mathematik, Naturwissenschaften",13,"Juniorprofessoren, W1, AT","w",12,34]
[4,"Mathematik, Naturwissenschaften",13,"Juniorprofessoren, W1, AT","i",30,34.299999999999997]
[4,"Mathematik, Naturwissenschaften","~~","zusammen","m",111,39.1]
[4,"Mathematik, Naturwissenschaften","~~","zusammen","w",42,38.299999999999997]
[4,"Mathematik, Naturwissenschaften","~~","zusammen","i",153,38.9]
[5,"Humanmedizin/Gesundheitswissenschaften",5,"C2 und entspr. Besoldungsgruppe - auf Dauer -","m",13,49]
[5,"Humanmedizin/Gesundheitswissenschaften",5,"C2 und entspr. Besoldungsgruppe - auf Dauer -","w",5,42.8]
[5,"Humanmedizin/Gesundheitswissenschaften",5,"C2 und entspr. Besoldungsgruppe - auf Dauer -","i",18,47.3]
[5,"Humanmedizin/Gesundheitswissenschaften",7,"C2 und entspr. Besoldungsgruppe - auf Zeit -","m",6,"."]
[5,"Humanmedizin/Gesundheitswissenschaften",7,"C2 und entspr. Besoldungsgruppe - auf Zeit -","w",1,"."]
[5,"Humanmedizin/Gesundheitswissenschaften",7,"C2 und entspr. Besoldungsgruppe - auf Zeit -","i",7,40]
[5,"Humanmedizin/Gesundheitswissenschaften",9,"W3","m",22,43]
[5,"Humanmedizin/Gesundheitswissenschaften",9,"W3","w",4,39.299999999999997]
[5,"Humanmedizin/Gesundheitswissenschaften",9,"W3","i",26,42.5]
[5,"Humanmedizin/Gesundheitswissenschaften",11,"W2","m",29,41.5]
[5,"Humanmedizin/Gesundheitswissenschaften",11,"W2","w",12,42.2]
[5,"Humanmedizin/Gesundheitswissenschaften",11,"W2","i",41,41.7]
[5,"Humanmedizin/Gesundheitswissenschaften",13,"Juniorprofessoren, W1, AT","m",2,"."]
[5,"Humanmedizin/Gesundheitswissenschaften",13,"Juniorprofessoren, W1, AT","w",1,"."]
[5,"Humanmedizin/Gesundheitswissenschaften",13,"Juniorprofessoren, W1, AT","i",3,34.700000000000003]
[5,"Humanmedizin/Gesundheitswissenschaften","~~","zusammen","m",72,43]
[5,"Humanmedizin/Gesundheitswissenschaften","~~","zusammen","w",23,41.4]
[5,"Humanmedizin/Gesundheitswissenschaften","~~","zusammen","i",95,42.6]
[6,"Veterinärmedizin",9,"W3","m",2,48]
[6,"Veterinärmedizin",9,"W3","i",2,48]
[6,"Veterinärmedizin",11,"W2","w",1,"."]
[6,"Veterinärmedizin",11,"W2","i",1,"."]
[6,"Veterinärmedizin","~~","zusammen","m",2,"."]
[6,"Veterinärmedizin","~~","zusammen","w",1,"."]
[6,"Veterinärmedizin","~~","zusammen","i",3,48.3]
[7,"Agrar-, Forst- und Ernährungswissenschaften",9,"W3","m",5,44.4]
[7,"Agrar-, Forst- und Ernährungswissenschaften",9,"W3","i",5,44.4]
[7,"Agrar-, Forst- und Ernährungswissenschaften",11,"W2","m",4,40.299999999999997]
[7,"Agrar-, Forst- und Ernährungswissenschaften",11,"W2","w",3,37.700000000000003]
[7,"Agrar-, Forst- und Ernährungswissenschaften",11,"W2","i",7,39.1]
[7,"Agrar-, Forst- und Ernährungswissenschaften",13,"Juniorprofessoren, W1, AT","m",1,"."]
[7,"Agrar-, Forst- und Ernährungswissenschaften",13,"Juniorprofessoren, W1, AT","i",1,"."]
[7,"Agrar-, Forst- und Ernährungswissenschaften","~~","zusammen","m",10,42.3]
[7,"Agrar-, Forst- und Ernährungswissenschaften","~~","zusammen","w",3,37.700000000000003]
[7,"Agrar-, Forst- und Ernährungswissenschaften","~~","zusammen","i",13,41.2]
[8,"Ingenieurwissenschaften",7,"C2 und entspr. Besoldungsgruppe - auf Zeit -","m",1,"."]
[8,"Ingenieurwissenschaften",7,"C2 und entspr. Besoldungsgruppe - auf Zeit -","i",1,"."]
[8,"Ingenieurwissenschaften",9,"W3","m",33,43.6]
[8,"Ingenieurwissenschaften",9,"W3","w",3,42.3]
[8,"Ingenieurwissenschaften",9,"W3","i",36,43.5]
[8,"Ingenieurwissenschaften",11,"W2","m",9,"."]
[8,"Ingenieurwissenschaften",11,"W2","w",1,"."]
[8,"Ingenieurwissenschaften",11,"W2","i",10,41.5]
[8,"Ingenieurwissenschaften",13,"Juniorprofessoren, W1, AT","m",4,36]
[8,"Ingenieurwissenschaften",13,"Juniorprofessoren, W1, AT","w",2,35]
[8,"Ingenieurwissenschaften",13,"Juniorprofessoren, W1, AT","i",6,35.700000000000003]
[8,"Ingenieurwissenschaften","~~","zusammen","m",47,42.7]
[8,"Ingenieurwissenschaften","~~","zusammen","w",6,39.799999999999997]
[8,"Ingenieurwissenschaften","~~","zusammen","i",53,42.3]
[9,"Kunst, Kunstwissenschaft",5,"C2 und entspr. Besoldungsgruppe - auf Dauer -","w",1,"."]
[9,"Kunst, Kunstwissenschaft",5,"C2 und entspr. Besoldungsgruppe - auf Dauer -","i",1,"."]
[9,"Kunst, Kunstwissenschaft",9,"W3","m",1,"."]
[9,"Kunst, Kunstwissenschaft",9,"W3","w",2,"."]
[9,"Kunst, Kunstwissenschaft",9,"W3","i",3,48.3]
[9,"Kunst, Kunstwissenschaft",11,"W2","m",7,43.1]
[9,"Kunst, Kunstwissenschaft",11,"W2","w",5,47]
[9,"Kunst, Kunstwissenschaft",11,"W2","i",12,44.8]
[9,"Kunst, Kunstwissenschaft",13,"Juniorprofessoren, W1, AT","m",1,"."]
[9,"Kunst, Kunstwissenschaft",13,"Juniorprofessoren, W1, AT","w",1,"."]
[9,"Kunst, Kunstwissenschaft",13,"Juniorprofessoren, W1, AT","i",2,37.5]
[9,"Kunst, Kunstwissenschaft","~~","zusammen","m",9,42.2]
[9,"Kunst, Kunstwissenschaft","~~","zusammen","w",9,47.2]
[9,"Kunst, Kunstwissenschaft","~~","zusammen","i",18,44.7]
[15,"Zentrale Einrichtungen (ohne klinikspezifische Einrichtungen)",7,"C2 und entspr. Besoldungsgruppe - auf Zeit -","m",1,"."]
[15,"Zentrale Einrichtungen (ohne klinikspezifische Einrichtungen)",7,"C2 und entspr. Besoldungsgruppe - auf Zeit -","w",1,"."]
[15,"Zentrale Einrichtungen (ohne klinikspezifische Einrichtungen)",7,"C2 und entspr. Besoldungsgruppe - auf Zeit -","i",2,49.5]
[15,"Zentrale Einrichtungen (ohne klinikspezifische Einrichtungen)",9,"W3","m",4,51.3]
[15,"Zentrale Einrichtungen (ohne klinikspezifische Einrichtungen)",9,"W3","w",2,44]
[15,"Zentrale Einrichtungen (ohne klinikspezifische Einrichtungen)",9,"W3","i",6,48.8]
[15,"Zentrale Einrichtungen (ohne klinikspezifische Einrichtungen)",11,"W2","m",5,34.200000000000003]
[15,"Zentrale Einrichtungen (ohne klinikspezifische Einrichtungen)",11,"W2","i",5,34.200000000000003]
[15,"Zentrale Einrichtungen (ohne klinikspezifische Einrichtungen)",13,"Juniorprofessoren, W1, AT","m",3,34]
[15,"Zentrale Einrichtungen (ohne klinikspezifische Einrichtungen)",13,"Juniorprofessoren, W1, AT","w",3,35.299999999999997]
[15,"Zentrale Einrichtungen (ohne klinikspezifische Einrichtungen)",13,"Juniorprofessoren, W1, AT","i",6,34.700000000000003]
[15,"Zentrale Einrichtungen (ohne klinikspezifische Einrichtungen)","~~","zusammen","m",13,40]
[15,"Zentrale Einrichtungen (ohne klinikspezifische Einrichtungen)","~~","zusammen","w",6,41.8]
[15,"Zentrale Einrichtungen (ohne klinikspezifische Einrichtungen)","~~","zusammen","i",19,40.6]
[20,"Zentrale Einrichtungen der Hochschulkliniken (nur Humanmedizin)",5,"C2 und entspr. Besoldungsgruppe - auf Dauer -","w",1,"."]
[20,"Zentrale Einrichtungen der Hochschulkliniken (nur Humanmedizin)",5,"C2 und entspr. Besoldungsgruppe - auf Dauer -","i",1,"."]
[20,"Zentrale Einrichtungen der Hochschulkliniken (nur Humanmedizin)",9,"W3","m",1,"."]
[20,"Zentrale Einrichtungen der Hochschulkliniken (nur Humanmedizin)",9,"W3","i",1,"."]
[20,"Zentrale Einrichtungen der Hochschulkliniken (nur Humanmedizin)","~~","zusammen","m",1,"."]
[20,"Zentrale Einrichtungen der Hochschulkliniken (nur Humanmedizin)","~~","zusammen","w",1,"."]
[20,"Zentrale Einrichtungen der Hochschulkliniken (nur Humanmedizin)","~~","zusammen","i",2,49.5]
["~~","Insgesamt",1,"C4 und entspr. Besoldungsgruppe","m",2,"47.0"]
["~~","Insgesamt",1,"C4 und entspr. Besoldungsgruppe","i",2,"47.0"]
["~~","Insgesamt",5,"C2 und entspr. Besoldungsgruppe - auf Dauer -","m",18,48.1]
["~~","Insgesamt",5,"C2 und entspr. Besoldungsgruppe - auf Dauer -","w",8,43.9]
["~~","Insgesamt",5,"C2 und entspr. Besoldungsgruppe - auf Dauer -","i",26,46.8]
["~~","Insgesamt",7,"C2 und entspr. Besoldungsgruppe - auf Zeit -","m",17,40.6]
["~~","Insgesamt",7,"C2 und entspr. Besoldungsgruppe - auf Zeit -","w",8,43.3]
["~~","Insgesamt",7,"C2 und entspr. Besoldungsgruppe - auf Zeit -","i",25,41.4]
["~~","Insgesamt",9,"W3","m",174,42.5]
["~~","Insgesamt",9,"W3","w",67,42.1]
["~~","Insgesamt",9,"W3","i",241,42.4]
["~~","Insgesamt",11,"W2","m",160,41.3]
["~~","Insgesamt",11,"W2","w",83,41.7]
["~~","Insgesamt",11,"W2","i",243,41.4]
["~~","Insgesamt",13,"Juniorprofessoren, W1, AT","m",48,35]
["~~","Insgesamt",13,"Juniorprofessoren, W1, AT","w",34,35.5]
["~~","Insgesamt",13,"Juniorprofessoren, W1, AT","i",82,35.200000000000003]
["~~","Insgesamt",15,"Gastprofessoren (hauptberuflich), C2-C4, W2, W3, BAT IIa, E13h, E14, AT","m",1,"."]
["~~","Insgesamt",15,"Gastprofessoren (hauptberuflich), C2-C4, W2, W3, BAT IIa, E13h, E14, AT","i",1,"."]
["~~","Insgesamt",null,null,"m",420,41.4]
["~~","Insgesamt",null,null,"w",200,40.9]
["~~","Insgesamt",null,null,"i",620,41.2]
[null,"Insgesamt ohne Juniorprofessoren (eigene Berechnung)",null,null,"i",{"$f":"F183-F178","v":538}]
[null,"Insgesamt Juniorprofessoren/W2/W3 (eigene Berechnung)",null,"Juniorprofessoren (W1, AT), W2, W3","i",{"$f":"F172+F175+F178","v":566}]
[null,"Insgesamt W2/W3 (eigene Berechnung)",null,"W2, W3","i",{"$f":"F172+F175","v":484}]
[null,"Hinweis:"]
[null,"Bei dieser Tabelle müssen wir unsere Geheimhaltungsvorschriften beachten."]
[null,"(Das Durchschnittsalter bei einem Beschäftigten müssen wir mit einer Gegenposition auspunkten.)"]

{"sheet":"6.2","index":26,"n_rows":158,"n_cols":7,"rows_kept":158,"cut":false,"hidden":false,"merged":[]}
["Statistisches Bundesamt"]
["H 201 - Hochschulstatistik"]
[]
[]
["Neuberufene Professoren nach Fächergruppen sowie Besoldungs- und Vergütungsgruppen und Geschlecht"]
["an Wissenschaftlichen Hochschulen (Universitäten, Pädagogische und Theologische Hochschulen)"]
["im Berichtsjahr 2013"]
[]
[null,null,null,null,null,null,"Durchschnittsalter"]
[null,"Fächergruppe",null,"Besoldungs- und Vergütungsgruppen","Geschlecht","Anzahl","bei der Ernennung zum Professor"]
[null,null,null,null,null,null,"(arith. Mittel)"]
[]
[1,"Sprach- und Kulturwissenschaften",5,"C2 und entspr. Besoldungsgruppe - auf Dauer -","m",4,47]
[1,"Sprach- und Kulturwissenschaften",5,"C2 und entspr. Besoldungsgruppe - auf Dauer -","w",2,49.5]
[1,"Sprach- und Kulturwissenschaften",5,"C2 und entspr. Besoldungsgruppe - auf Dauer -","i",6,47.8]
[1,"Sprach- und Kulturwissenschaften",7,"C2 und entspr. Besoldungsgruppe - auf Zeit -","m",8,41.1]
[1,"Sprach- und Kulturwissenschaften",7,"C2 und entspr. Besoldungsgruppe - auf Zeit -","w",2,47.5]
[1,"Sprach- und Kulturwissenschaften",7,"C2 und entspr. Besoldungsgruppe - auf Zeit -","i",10,42.4]
[1,"Sprach- und Kulturwissenschaften",9,"W3","m",42,43.4]
[1,"Sprach- und Kulturwissenschaften",9,"W3","w",21,43.3]
[1,"Sprach- und Kulturwissenschaften",9,"W3","i",63,43.4]
[1,"Sprach- und Kulturwissenschaften",11,"W2","m",42,43.5]
[1,"Sprach- und Kulturwissenschaften",11,"W2","w",41,43]
[1,"Sprach- und Kulturwissenschaften",11,"W2","i",83,43.3]
[1,"Sprach- und Kulturwissenschaften",13,"Juniorprofessoren, W1, AT","m",8,37.4]
[1,"Sprach- und Kulturwissenschaften",13,"Juniorprofessoren, W1, AT","w",18,35.700000000000003]
[1,"Sprach- und Kulturwissenschaften",13,"Juniorprofessoren, W1, AT","i",26,36.200000000000003]
[1,"Sprach- und Kulturwissenschaften","~~","zusammen","m",104,43]
[1,"Sprach- und Kulturwissenschaften","~~","zusammen","w",84,41.8]
[1,"Sprach- und Kulturwissenschaften","~~","zusammen","i",188,42.4]
[2,"Sport",9,"W3","m",3,42]
[2,"Sport",9,"W3","i",3,42]
[2,"Sport",11,"W2","m",5,". "]
[2,"Sport",11,"W2","w",1,". "]
[2,"Sport",11,"W2","i",6,39.5]
[2,"Sport","~~","zusammen","m",8,". "]
[2,"Sport","~~","zusammen","w",1,". "]
[2,"Sport","~~","zusammen","i",9,40.299999999999997]
[3,"Rechts-, Wirtschafts- und Sozialwissenschaften",3,"C3 und entspr. Besoldungsgruppe","m",1,". "]
[3,"Rechts-, Wirtschafts- und Sozialwissenschaften",3,"C3 und entspr. Besoldungsgruppe","w",1,". "]
[3,"Rechts-, Wirtschafts- und Sozialwissenschaften",3,"C3 und entspr. Besoldungsgruppe","i",2,32.5]
[3,"Rechts-, Wirtschafts- und Sozialwissenschaften",5,"C2 und entspr. Besoldungsgruppe - auf Dauer -","m",3,38]
[3,"Rechts-, Wirtschafts- und Sozialwissenschaften",5,"C2 und entspr. Besoldungsgruppe - auf Dauer -","i",3,38]
[3,"Rechts-, Wirtschafts- und Sozialwissenschaften",7,"C2 und entspr. Besoldungsgruppe - auf Zeit -","m",6,39]
[3,"Rechts-, Wirtschafts- und Sozialwissenschaften",7,"C2 und entspr. Besoldungsgruppe - auf Zeit -","w",2,42]
[3,"Rechts-, Wirtschafts- und Sozialwissenschaften",7,"C2 und entspr. Besoldungsgruppe - auf Zeit -","i",8,39.799999999999997]
[3,"Rechts-, Wirtschafts- und Sozialwissenschaften",9,"W3","m",51,40.299999999999997]
[3,"Rechts-, Wirtschafts- und Sozialwissenschaften",9,"W3","w",9,43.7]
[3,"Rechts-, Wirtschafts- und Sozialwissenschaften",9,"W3","i",60,40.799999999999997]
[3,"Rechts-, Wirtschafts- und Sozialwissenschaften",11,"W2","m",29,39.700000000000003]
[3,"Rechts-, Wirtschafts- und Sozialwissenschaften",11,"W2","w",7,38.9]
[3,"Rechts-, Wirtschafts- und Sozialwissenschaften",11,"W2","i",36,39.5]
[3,"Rechts-, Wirtschafts- und Sozialwissenschaften",13,"Juniorprofessoren, W1, AT","m",22,33.9]
[3,"Rechts-, Wirtschafts- und Sozialwissenschaften",13,"Juniorprofessoren, W1, AT","w",10,33.4]
[3,"Rechts-, Wirtschafts- und Sozialwissenschaften",13,"Juniorprofessoren, W1, AT","i",32,33.700000000000003]
[3,"Rechts-, Wirtschafts- und Sozialwissenschaften","~~","zusammen","m",112,38.700000000000003]
[3,"Rechts-, Wirtschafts- und Sozialwissenschaften","~~","zusammen","w",29,38.5]
[3,"Rechts-, Wirtschafts- und Sozialwissenschaften","~~","zusammen","i",141,38.6]
[4,"Mathematik, Naturwissenschaften",7,"C2 und entspr. Besoldungsgruppe - auf Zeit -","m",2,40]
[4,"Mathematik, Naturwissenschaften",7,"C2 und entspr. Besoldungsgruppe - auf Zeit -","i",2,40]
[4,"Mathematik, Naturwissenschaften",9,"W3","m",52,42]
[4,"Mathematik, Naturwissenschaften",9,"W3","w",7,41.3]
[4,"Mathematik, Naturwissenschaften",9,"W3","i",59,41.9]
[4,"Mathematik, Naturwissenschaften",11,"W2","m",50,39]
[4,"Mathematik, Naturwissenschaften",11,"W2","w",21,40.4]
[4,"Mathematik, Naturwissenschaften",11,"W2","i",71,39.5]
[4,"Mathematik, Naturwissenschaften",13,"Juniorprofessoren, W1, AT","m",19,35.299999999999997]
[4,"Mathematik, Naturwissenschaften",13,"Juniorprofessoren, W1, AT","w",6,35.700000000000003]
[4,"Mathematik, Naturwissenschaften",13,"Juniorprofessoren, W1, AT","i",25,35.4]
[4,"Mathematik, Naturwissenschaften","~~","zusammen","m",123,39.700000000000003]
[4,"Mathematik, Naturwissenschaften","~~","zusammen","w",34,39.799999999999997]
[4,"Mathematik, Naturwissenschaften","~~","zusammen","i",157,39.700000000000003]
[5,"Humanmedizin/Gesundheitswissenschaften",5,"C2 und entspr. Besoldungsgruppe - auf Dauer -","m",9,". "]
[5,"Humanmedizin/Gesundheitswissenschaften",5,"C2 und entspr. Besoldungsgruppe - auf Dauer -","w",1,". "]
[5,"Humanmedizin/Gesundheitswissenschaften",5,"C2 und entspr. Besoldungsgruppe - auf Dauer -","i",10,42.5]
[5,"Humanmedizin/Gesundheitswissenschaften",7,"C2 und entspr. Besoldungsgruppe - auf Zeit -","m",10,41.8]
[5,"Humanmedizin/Gesundheitswissenschaften",7,"C2 und entspr. Besoldungsgruppe - auf Zeit -","w",4,39.799999999999997]
[5,"Humanmedizin/Gesundheitswissenschaften",7,"C2 und entspr. Besoldungsgruppe - auf Zeit -","i",14,41.2]
[5,"Humanmedizin/Gesundheitswissenschaften",9,"W3","m",21,44]
[5,"Humanmedizin/Gesundheitswissenschaften",9,"W3","w",3,46.7]
[5,"Humanmedizin/Gesundheitswissenschaften",9,"W3","i",24,44.3]
[5,"Humanmedizin/Gesundheitswissenschaften",11,"W2","m",31,42.8]
[5,"Humanmedizin/Gesundheitswissenschaften",11,"W2","w",14,40.4]
[5,"Humanmedizin/Gesundheitswissenschaften",11,"W2","i",45,42.1]
[5,"Humanmedizin/Gesundheitswissenschaften",13,"Juniorprofessoren, W1, AT","m",1,". "]
[5,"Humanmedizin/Gesundheitswissenschaften",13,"Juniorprofessoren, W1, AT","w",1,". "]
[5,"Humanmedizin/Gesundheitswissenschaften",13,"Juniorprofessoren, W1, AT","i",2,39]
[5,"Humanmedizin/Gesundheitswissenschaften","~~","zusammen","m",72,42.9]
[5,"Humanmedizin/Gesundheitswissenschaften","~~","zusammen","w",23,41.2]
[5,"Humanmedizin/Gesundheitswissenschaften","~~","zusammen","i",95,42.5]
[6,"Veterinärmedizin",11,"W2","m",2,46.5]
[6,"Veterinärmedizin",11,"W2","i",2,46.5]
[6,"Veterinärmedizin",13,"Juniorprofessoren, W1, AT","m",1,". "]
[6,"Veterinärmedizin",13,"Juniorprofessoren, W1, AT","i",1,". "]
[6,"Veterinärmedizin","~~","zusammen","m",3,43]
[6,"Veterinärmedizin","~~","zusammen","i",3,43]
[7,"Agrar-, Forst- und Ernährungswissenschaften",9,"W3","m",4,45.8]
[7,"Agrar-, Forst- und Ernährungswissenschaften",9,"W3","i",4,45.8]
[7,"Agrar-, Forst- und Ernährungswissenschaften",11,"W2","w",1,". "]
[7,"Agrar-, Forst- und Ernährungswissenschaften",11,"W2","i",1,". "]
[7,"Agrar-, Forst- und Ernährungswissenschaften","~~","zusammen","m",4,". "]
[7,"Agrar-, Forst- und Ernährungswissenschaften","~~","zusammen","w",1,". "]
[7,"Agrar-, Forst- und Ernährungswissenschaften","~~","zusammen","i",5,44]
[8,"Ingenieurwissenschaften",7,"C2 und entspr. Besoldungsgruppe - auf Zeit -","w",1,". "]
[8,"Ingenieurwissenschaften",7,"C2 und entspr. Besoldungsgruppe - auf Zeit -","i",1,". "]
[8,"Ingenieurwissenschaften",9,"W3","m",20,43.3]
[8,"Ingenieurwissenschaften",9,"W3","w",3,42.3]
[8,"Ingenieurwissenschaften",9,"W3","i",23,43.1]
[8,"Ingenieurwissenschaften",11,"W2","m",8,41.9]
[8,"Ingenieurwissenschaften",11,"W2","i",8,41.9]
[8,"Ingenieurwissenschaften",13,"Juniorprofessoren, W1, AT","m",4,35.5]
[8,"Ingenieurwissenschaften",13,"Juniorprofessoren, W1, AT","w",5,35.4]
[8,"Ingenieurwissenschaften",13,"Juniorprofessoren, W1, AT","i",9,35.4]
[8,"Ingenieurwissenschaften","~~","zusammen","m",32,41.9]
[8,"Ingenieurwissenschaften","~~","zusammen","w",9,37.1]
[8,"Ingenieurwissenschaften","~~","zusammen","i",41,40.9]
[9,"Kunst, Kunstwissenschaft",5,"C2 und entspr. Besoldungsgruppe - auf Dauer -","m",2,56]
[9,"Kunst, Kunstwissenschaft",5,"C2 und entspr. Besoldungsgruppe - auf Dauer -","i",2,56]
[9,"Kunst, Kunstwissenschaft",9,"W3","m",2,45]
[9,"Kunst, Kunstwissenschaft",9,"W3","i",2,45]
[9,"Kunst, Kunstwissenschaft",11,"W2","m",4,41.8]
[9,"Kunst, Kunstwissenschaft",11,"W2","w",5,44.6]
[9,"Kunst, Kunstwissenschaft",11,"W2","i",9,43.3]
[9,"Kunst, Kunstwissenschaft","~~","zusammen","m",8,46.1]
[9,"Kunst, Kunstwissenschaft","~~","zusammen","w",5,44.6]
[9,"Kunst, Kunstwissenschaft","~~","zusammen","i",13,45.5]
[15,"Zentrale Einrichtungen (ohne klinikspezifische Einrichtungen)",7,"C2 und entspr. Besoldungsgruppe - auf Zeit -","w",1,". "]
[15,"Zentrale Einrichtungen (ohne klinikspezifische Einrichtungen)",7,"C2 und entspr. Besoldungsgruppe - auf Zeit -","i",1,". "]
[15,"Zentrale Einrichtungen (ohne klinikspezifische Einrichtungen)",9,"W3","m",5,47.8]
[15,"Zentrale Einrichtungen (ohne klinikspezifische Einrichtungen)",9,"W3","i",5,47.8]
[15,"Zentrale Einrichtungen (ohne klinikspezifische Einrichtungen)",11,"W2","m",1,". "]
[15,"Zentrale Einrichtungen (ohne klinikspezifische Einrichtungen)",11,"W2","i",1,". "]
[15,"Zentrale Einrichtungen (ohne klinikspezifische Einrichtungen)",13,"Juniorprofessoren, W1, AT","w",2,35.5]
[15,"Zentrale Einrichtungen (ohne klinikspezifische Einrichtungen)",13,"Juniorprofessoren, W1, AT","i",2,35.5]
[15,"Zentrale Einrichtungen (ohne klinikspezifische Einrichtungen)","~~","zusammen","m",6,46]
[15,"Zentrale Einrichtungen (ohne klinikspezifische Einrichtungen)","~~","zusammen","w",3,35.700000000000003]
[15,"Zentrale Einrichtungen (ohne klinikspezifische Einrichtungen)","~~","zusammen","i",9,42.6]
["~~","Insgesamt",3,"C3 und entspr. Besoldungsgruppe","m",1,". "]
["~~","Insgesamt",3,"C3 und entspr. Besoldungsgruppe","w",1,". "]
["~~","Insgesamt",3,"C3 und entspr. Besoldungsgruppe","i",2,32.5]
["~~","Insgesamt",5,"C2 und entspr. Besoldungsgruppe - auf Dauer -","m",18,44.1]
["~~","Insgesamt",5,"C2 und entspr. Besoldungsgruppe - auf Dauer -","w",3,48]
["~~","Insgesamt",5,"C2 und entspr. Besoldungsgruppe - auf Dauer -","i",21,44.7]
["~~","Insgesamt",7,"C2 und entspr. Besoldungsgruppe - auf Zeit -","m",26,40.799999999999997]
["~~","Insgesamt",7,"C2 und entspr. Besoldungsgruppe - auf Zeit -","w",10,40.4]
["~~","Insgesamt",7,"C2 und entspr. Besoldungsgruppe - auf Zeit -","i",36,40.700000000000003]
["~~","Insgesamt",9,"W3","m",200,42.5]
["~~","Insgesamt",9,"W3","w",43,43.2]
["~~","Insgesamt",9,"W3","i",243,42.6]
["~~","Insgesamt",11,"W2","m",172,41.2]
["~~","Insgesamt",11,"W2","w",90,41.8]
["~~","Insgesamt",11,"W2","i",262,41.4]
["~~","Insgesamt",13,"Juniorprofessoren, W1, AT","m",55,35.200000000000003]
["~~","Insgesamt",13,"Juniorprofessoren, W1, AT","w",42,35.1]
["~~","Insgesamt",13,"Juniorprofessoren, W1, AT","i",97,35.200000000000003]
["~~","Insgesamt",null,null,"m",472,41.1]
["~~","Insgesamt",null,null,"w",189,40.6]
["~~","Insgesamt",null,null,"i",661,40.9]

{"sheet":"6.3","index":27,"n_rows":180,"n_cols":7,"rows_kept":180,"cut":false,"hidden":false,"merged":[]}
["Statistisches Bundesamt"]
["H 201 - Hochschulstatistik"]
[]
[]
["Neuberufene Professoren nach Fächergruppen sowie Besoldungs- und Vergütungsgruppen und Geschlecht"]
["an Wissenschaftlichen Hochschulen (Universitäten, Pädagogische und Theologische Hochschulen)"]
["im Berichtsjahr 2012"]
[]
[null,null,null,null,null,null,"Durchschnittsalter"]
[null,"Fächergruppe",null,"Besoldungs- und Vergütungsgruppen","Geschlecht","Anzahl","bei der Ernennung zum Professor"]
[null,null,null,null,null,null,"(arith. Mittel)"]
[]
[1,"Sprach- und Kulturwissenschaften",3,"C3 und entspr. Besoldungsgruppe","w",1,". "]
[1,"Sprach- und Kulturwissenschaften",3,"C3 und entspr. Besoldungsgruppe","i",1,". "]
[1,"Sprach- und Kulturwissenschaften",5,"C2 und entspr. Besoldungsgruppe - auf Dauer -","m",8,50.5]
[1,"Sprach- und Kulturwissenschaften",5,"C2 und entspr. Besoldungsgruppe - auf Dauer -","w",3,39.299999999999997]
[1,"Sprach- und Kulturwissenschaften",5,"C2 und entspr. Besoldungsgruppe - auf Dauer -","i",11,47.5]
[1,"Sprach- und Kulturwissenschaften",7,"C2 und entspr. Besoldungsgruppe - auf Zeit -","m",4,52.8]
[1,"Sprach- und Kulturwissenschaften",7,"C2 und entspr. Besoldungsgruppe - auf Zeit -","w",4,46]
[1,"Sprach- und Kulturwissenschaften",7,"C2 und entspr. Besoldungsgruppe - auf Zeit -","i",8,49.4]
[1,"Sprach- und Kulturwissenschaften",9,"W3","m",44,44]
[1,"Sprach- und Kulturwissenschaften",9,"W3","w",37,44.4]
[1,"Sprach- und Kulturwissenschaften",9,"W3","i",81,44.2]
[1,"Sprach- und Kulturwissenschaften",11,"W2","m",39,42.7]
[1,"Sprach- und Kulturwissenschaften",11,"W2","w",24,42.7]
[1,"Sprach- und Kulturwissenschaften",11,"W2","i",63,42.7]
[1,"Sprach- und Kulturwissenschaften",13,"Juniorprofessoren, W1, AT","m",12,38.6]
[1,"Sprach- und Kulturwissenschaften",13,"Juniorprofessoren, W1, AT","w",15,35.9]
[1,"Sprach- und Kulturwissenschaften",13,"Juniorprofessoren, W1, AT","i",27,37.1]
[1,"Sprach- und Kulturwissenschaften","~~","zusammen","m",107,43.7]
[1,"Sprach- und Kulturwissenschaften","~~","zusammen","w",84,42.4]
[1,"Sprach- und Kulturwissenschaften","~~","zusammen","i",191,43.1]
[2,"Sport",7,"C2 und entspr. Besoldungsgruppe - auf Zeit -","m",1,". "]
[2,"Sport",7,"C2 und entspr. Besoldungsgruppe - auf Zeit -","i",1,". "]
[2,"Sport",9,"W3","m",2,". "]
[2,"Sport",9,"W3","w",1,". "]
[2,"Sport",9,"W3","i",3,48]
[2,"Sport",11,"W2","m",2,". "]
[2,"Sport",11,"W2","w",1,". "]
[2,"Sport",11,"W2","i",3,40]
[2,"Sport",13,"Juniorprofessoren, W1, AT","m",1,". "]
[2,"Sport",13,"Juniorprofessoren, W1, AT","i",1,". "]
[2,"Sport","~~","zusammen","m",6,47.7]
[2,"Sport","~~","zusammen","w",2,36]
[2,"Sport","~~","zusammen","i",8,44.8]
[3,"Rechts-, Wirtschafts- und Sozialwissenschaften",5,"C2 und entspr. Besoldungsgruppe - auf Dauer -","m",5,". "]
[3,"Rechts-, Wirtschafts- und Sozialwissenschaften",5,"C2 und entspr. Besoldungsgruppe - auf Dauer -","w",1,". "]
[3,"Rechts-, Wirtschafts- und Sozialwissenschaften",5,"C2 und entspr. Besoldungsgruppe - auf Dauer -","i",6,41.3]
[3,"Rechts-, Wirtschafts- und Sozialwissenschaften",7,"C2 und entspr. Besoldungsgruppe - auf Zeit -","m",12,". "]
[3,"Rechts-, Wirtschafts- und Sozialwissenschaften",7,"C2 und entspr. Besoldungsgruppe - auf Zeit -","w",1,". "]
[3,"Rechts-, Wirtschafts- und Sozialwissenschaften",7,"C2 und entspr. Besoldungsgruppe - auf Zeit -","i",13,38.9]
[3,"Rechts-, Wirtschafts- und Sozialwissenschaften",9,"W3","m",43,39.5]
[3,"Rechts-, Wirtschafts- und Sozialwissenschaften",9,"W3","w",19,38.700000000000003]
[3,"Rechts-, Wirtschafts- und Sozialwissenschaften",9,"W3","i",62,39.299999999999997]
[3,"Rechts-, Wirtschafts- und Sozialwissenschaften",11,"W2","m",20,39.1]
[3,"Rechts-, Wirtschafts- und Sozialwissenschaften",11,"W2","w",10,42.3]
[3,"Rechts-, Wirtschafts- und Sozialwissenschaften",11,"W2","i",30,40.200000000000003]
[3,"Rechts-, Wirtschafts- und Sozialwissenschaften",13,"Juniorprofessoren, W1, AT","m",22,33.299999999999997]
[3,"Rechts-, Wirtschafts- und Sozialwissenschaften",13,"Juniorprofessoren, W1, AT","w",12,34.799999999999997]
[3,"Rechts-, Wirtschafts- und Sozialwissenschaften",13,"Juniorprofessoren, W1, AT","i",34,33.799999999999997]
[3,"Rechts-, Wirtschafts- und Sozialwissenschaften","~~","zusammen","m",102,38.1]
[3,"Rechts-, Wirtschafts- und Sozialwissenschaften","~~","zusammen","w",43,38.5]
[3,"Rechts-, Wirtschafts- und Sozialwissenschaften","~~","zusammen","i",145,38.200000000000003]
[4,"Mathematik, Naturwissenschaften",5,"C2 und entspr. Besoldungsgruppe - auf Dauer -","m",1,". "]
[4,"Mathematik, Naturwissenschaften",5,"C2 und entspr. Besoldungsgruppe - auf Dauer -","i",1,". "]
[4,"Mathematik, Naturwissenschaften",7,"C2 und entspr. Besoldungsgruppe - auf Zeit -","m",3,45]
[4,"Mathematik, Naturwissenschaften",7,"C2 und entspr. Besoldungsgruppe - auf Zeit -","i",3,45]
[4,"Mathematik, Naturwissenschaften",9,"W3","m",55,41.1]
[4,"Mathematik, Naturwissenschaften",9,"W3","w",7,37.9]
[4,"Mathematik, Naturwissenschaften",9,"W3","i",62,40.700000000000003]
[4,"Mathematik, Naturwissenschaften",11,"W2","m",65,40.299999999999997]
[4,"Mathematik, Naturwissenschaften",11,"W2","w",26,40.1]
[4,"Mathematik, Naturwissenschaften",11,"W2","i",91,40.299999999999997]
[4,"Mathematik, Naturwissenschaften",13,"Juniorprofessoren, W1, AT","m",25,33.4]
[4,"Mathematik, Naturwissenschaften",13,"Juniorprofessoren, W1, AT","w",16,34.6]
[4,"Mathematik, Naturwissenschaften",13,"Juniorprofessoren, W1, AT","i",41,33.9]
[4,"Mathematik, Naturwissenschaften",15,"Gastprofessoren (hauptberuflich), C2-C4, W2, W3, BAT IIa, E13h, E14, AT","w",1,". "]
[4,"Mathematik, Naturwissenschaften",15,"Gastprofessoren (hauptberuflich), C2-C4, W2, W3, BAT IIa, E13h, E14, AT","i",1,". "]
[4,"Mathematik, Naturwissenschaften","~~","zusammen","m",149,39.6]
[4,"Mathematik, Naturwissenschaften","~~","zusammen","w",50,38.299999999999997]
[4,"Mathematik, Naturwissenschaften","~~","zusammen","i",199,39.299999999999997]
[5,"Humanmedizin/Gesundheitswissenschaften",5,"C2 und entspr. Besoldungsgruppe - auf Dauer -","m",19,44.1]
[5,"Humanmedizin/Gesundheitswissenschaften",5,"C2 und entspr. Besoldungsgruppe - auf Dauer -","w",6,43.8]
[5,"Humanmedizin/Gesundheitswissenschaften",5,"C2 und entspr. Besoldungsgruppe - auf Dauer -","i",25,44]
[5,"Humanmedizin/Gesundheitswissenschaften",7,"C2 und entspr. Besoldungsgruppe - auf Zeit -","m",19,". "]
[5,"Humanmedizin/Gesundheitswissenschaften",7,"C2 und entspr. Besoldungsgruppe - auf Zeit -","w",1,". "]
[5,"Humanmedizin/Gesundheitswissenschaften",7,"C2 und entspr. Besoldungsgruppe - auf Zeit -","i",20,42.3]
[5,"Humanmedizin/Gesundheitswissenschaften",9,"W3","m",23,44.7]
[5,"Humanmedizin/Gesundheitswissenschaften",9,"W3","w",6,46.8]
[5,"Humanmedizin/Gesundheitswissenschaften",9,"W3","i",29,45.1]
[5,"Humanmedizin/Gesundheitswissenschaften",11,"W2","m",38,41.9]
[5,"Humanmedizin/Gesundheitswissenschaften",11,"W2","w",14,43.6]
[5,"Humanmedizin/Gesundheitswissenschaften",11,"W2","i",52,42.4]
[5,"Humanmedizin/Gesundheitswissenschaften",13,"Juniorprofessoren, W1, AT","m",2,32]
[5,"Humanmedizin/Gesundheitswissenschaften",13,"Juniorprofessoren, W1, AT","i",2,32]
[5,"Humanmedizin/Gesundheitswissenschaften","~~","zusammen","m",101,42.8]
[5,"Humanmedizin/Gesundheitswissenschaften","~~","zusammen","w",27,44.3]
[5,"Humanmedizin/Gesundheitswissenschaften","~~","zusammen","i",128,43.1]
[6,"Veterinärmedizin",9,"W3","m",2,43.5]
[6,"Veterinärmedizin",9,"W3","w",2,45]
[6,"Veterinärmedizin",9,"W3","i",4,44.3]
[6,"Veterinärmedizin",11,"W2","m",2,". "]
[6,"Veterinärmedizin",11,"W2","w",1,". "]
[6,"Veterinärmedizin",11,"W2","i",3,47]
[6,"Veterinärmedizin","~~","zusammen","m",4,45]
[6,"Veterinärmedizin","~~","zusammen","w",3,46]
[6,"Veterinärmedizin","~~","zusammen","i",7,45.4]
[7,"Agrar-, Forst- und Ernährungswissenschaften",9,"W3","w",2,41]
[7,"Agrar-, Forst- und Ernährungswissenschaften",9,"W3","i",2,41]
[7,"Agrar-, Forst- und Ernährungswissenschaften",11,"W2","m",4,41]
[7,"Agrar-, Forst- und Ernährungswissenschaften",11,"W2","w",3,38.299999999999997]
[7,"Agrar-, Forst- und Ernährungswissenschaften",11,"W2","i",7,39.9]
[7,"Agrar-, Forst- und Ernährungswissenschaften","~~","zusammen","m",4,41]
[7,"Agrar-, Forst- und Ernährungswissenschaften","~~","zusammen","w",5,39.4]
[7,"Agrar-, Forst- und Ernährungswissenschaften","~~","zusammen","i",9,40.1]
[8,"Ingenieurwissenschaften",5,"C2 und entspr. Besoldungsgruppe - auf Dauer -","m",1,". "]
[8,"Ingenieurwissenschaften",5,"C2 und entspr. Besoldungsgruppe - auf Dauer -","i",1,". "]
[8,"Ingenieurwissenschaften",7,"C2 und entspr. Besoldungsgruppe - auf Zeit -","m",1,". "]
[8,"Ingenieurwissenschaften",7,"C2 und entspr. Besoldungsgruppe - auf Zeit -","i",1,". "]
[8,"Ingenieurwissenschaften",9,"W3","m",30,44.5]
[8,"Ingenieurwissenschaften",9,"W3","w",6,45]
[8,"Ingenieurwissenschaften",9,"W3","i",36,44.6]
[8,"Ingenieurwissenschaften",11,"W2","m",14,41.1]
[8,"Ingenieurwissenschaften",11,"W2","w",3,51.3]
[8,"Ingenieurwissenschaften",11,"W2","i",17,42.9]
[8,"Ingenieurwissenschaften",13,"Juniorprofessoren, W1, AT","m",5,34.4]
[8,"Ingenieurwissenschaften",13,"Juniorprofessoren, W1, AT","w",2,33.5]
[8,"Ingenieurwissenschaften",13,"Juniorprofessoren, W1, AT","i",7,34.1]
[8,"Ingenieurwissenschaften",15,"Gastprofessoren (hauptberuflich), C2-C4, W2, W3, BAT IIa, E13h, E14, AT","m",1,". "]
[8,"Ingenieurwissenschaften",15,"Gastprofessoren (hauptberuflich), C2-C4, W2, W3, BAT IIa, E13h, E14, AT","i",1,". "]
[8,"Ingenieurwissenschaften","~~","zusammen","m",52,42.5]
[8,"Ingenieurwissenschaften","~~","zusammen","w",11,44.6]
[8,"Ingenieurwissenschaften","~~","zusammen","i",63,42.9]
[9,"Kunst, Kunstwissenschaft",7,"C2 und entspr. Besoldungsgruppe - auf Zeit -","m",1,". "]
[9,"Kunst, Kunstwissenschaft",7,"C2 und entspr. Besoldungsgruppe - auf Zeit -","i",1,". "]
[9,"Kunst, Kunstwissenschaft",9,"W3","m",4,42.3]
[9,"Kunst, Kunstwissenschaft",9,"W3","w",2,42]
[9,"Kunst, Kunstwissenschaft",9,"W3","i",6,42.2]
[9,"Kunst, Kunstwissenschaft",11,"W2","m",4,42]
[9,"Kunst, Kunstwissenschaft",11,"W2","w",4,42]
[9,"Kunst, Kunstwissenschaft",11,"W2","i",8,42]
[9,"Kunst, Kunstwissenschaft",13,"Juniorprofessoren, W1, AT","m",2,36]
[9,"Kunst, Kunstwissenschaft",13,"Juniorprofessoren, W1, AT","i",2,36]
[9,"Kunst, Kunstwissenschaft","~~","zusammen","m",11,41.6]
[9,"Kunst, Kunstwissenschaft","~~","zusammen","w",6,42]
[9,"Kunst, Kunstwissenschaft","~~","zusammen","i",17,41.8]
[15,"Zentrale Einrichtungen (ohne klinikspezifische Einrichtungen)",5,"C2 und entspr. Besoldungsgruppe - auf Dauer -","m",1,". "]
[15,"Zentrale Einrichtungen (ohne klinikspezifische Einrichtungen)",5,"C2 und entspr. Besoldungsgruppe - auf Dauer -","w",1,". "]
[15,"Zentrale Einrichtungen (ohne klinikspezifische Einrichtungen)",5,"C2 und entspr. Besoldungsgruppe - auf Dauer -","i",2,42.5]
[15,"Zentrale Einrichtungen (ohne klinikspezifische Einrichtungen)",9,"W3","m",1,". "]
[15,"Zentrale Einrichtungen (ohne klinikspezifische Einrichtungen)",9,"W3","i",1,". "]
[15,"Zentrale Einrichtungen (ohne klinikspezifische Einrichtungen)",13,"Juniorprofessoren, W1, AT","m",2,35]
[15,"Zentrale Einrichtungen (ohne klinikspezifische Einrichtungen)",13,"Juniorprofessoren, W1, AT","w",2,36.5]
[15,"Zentrale Einrichtungen (ohne klinikspezifische Einrichtungen)",13,"Juniorprofessoren, W1, AT","i",4,35.799999999999997]
[15,"Zentrale Einrichtungen (ohne klinikspezifische Einrichtungen)","~~","zusammen","m",4,42]
[15,"Zentrale Einrichtungen (ohne klinikspezifische Einrichtungen)","~~","zusammen","w",3,39]
[15,"Zentrale Einrichtungen (ohne klinikspezifische Einrichtungen)","~~","zusammen","i",7,40.700000000000003]
["~~","Insgesamt",3,"C3 und entspr. Besoldungsgruppe","w",1,". "]
["~~","Insgesamt",3,"C3 und entspr. Besoldungsgruppe","i",1,". "]
["~~","Insgesamt",5,"C2 und entspr. Besoldungsgruppe - auf Dauer -","m",35,45.4]
["~~","Insgesamt",5,"C2 und entspr. Besoldungsgruppe - auf Dauer -","w",11,41.7]
["~~","Insgesamt",5,"C2 und entspr. Besoldungsgruppe - auf Dauer -","i",46,44.5]
["~~","Insgesamt",7,"C2 und entspr. Besoldungsgruppe - auf Zeit -","m",41,42.8]
["~~","Insgesamt",7,"C2 und entspr. Besoldungsgruppe - auf Zeit -","w",6,45]
["~~","Insgesamt",7,"C2 und entspr. Besoldungsgruppe - auf Zeit -","i",47,43.1]
["~~","Insgesamt",9,"W3","m",204,42.5]
["~~","Insgesamt",9,"W3","w",82,42.5]
["~~","Insgesamt",9,"W3","i",286,42.5]
["~~","Insgesamt",11,"W2","m",188,41.2]
["~~","Insgesamt",11,"W2","w",86,42.1]
["~~","Insgesamt",11,"W2","i",274,41.5]
["~~","Insgesamt",13,"Juniorprofessoren, W1, AT","m",71,34.5]
["~~","Insgesamt",13,"Juniorprofessoren, W1, AT","w",47,35.1]
["~~","Insgesamt",13,"Juniorprofessoren, W1, AT","i",118,34.700000000000003]
["~~","Insgesamt",15,"Gastprofessoren (hauptberuflich), C2-C4, W2, W3, BAT IIa, E13h, E14, AT","m",1,". "]
["~~","Insgesamt",15,"Gastprofessoren (hauptberuflich), C2-C4, W2, W3, BAT IIa, E13h, E14, AT","w",1,". "]
["~~","Insgesamt",15,"Gastprofessoren (hauptberuflich), C2-C4, W2, W3, BAT IIa, E13h, E14, AT","i",2,48]
["~~","Insgesamt",null,null,"m",540,41.2]
["~~","Insgesamt",null,null,"w",234,41]
["~~","Insgesamt",null,null,"i",774,41.1]

{"sheet":"6.4","index":28,"n_rows":172,"n_cols":7,"rows_kept":172,"cut":false,"hidden":false,"merged":[]}
["Statistisches Bundesamt"]
["H 201 - Hochschulstatistik"]
[]
[]
["Neuberufene Professoren nach Fächergruppen sowie Besoldungs- und Vergütungsgruppen und Geschlecht"]
["an Wissenschaftlichen Hochschulen (Universitäten, Pädagogische und Theologische Hochschulen)"]
["im Berichtsjahr 2011"]
[]
[null,null,null,null,null,null,"Durchschnittsalter"]
[null,"Fächergruppe",null,"Besoldungs- und Vergütungsgruppen","Geschlecht","Anzahl","bei der Ernennung zum Professor"]
[null,null,null,null,null,null,"(arith. Mittel)"]
[]
[1,"Sprach- und Kulturwissenschaften",5,"C2 und entspr. Besoldungsgruppe - auf Dauer -","m",1,". "]
[1,"Sprach- und Kulturwissenschaften",5,"C2 und entspr. Besoldungsgruppe - auf Dauer -","i",1,". "]
[1,"Sprach- und Kulturwissenschaften",7,"C2 und entspr. Besoldungsgruppe - auf Zeit -","m",1,". "]
[1,"Sprach- und Kulturwissenschaften",7,"C2 und entspr. Besoldungsgruppe - auf Zeit -","i",1,". "]
[1,"Sprach- und Kulturwissenschaften",9,"W3","m",50,43.1]
[1,"Sprach- und Kulturwissenschaften",9,"W3","w",35,43.2]
[1,"Sprach- und Kulturwissenschaften",9,"W3","i",85,43.2]
[1,"Sprach- und Kulturwissenschaften",11,"W2","m",41,42.3]
[1,"Sprach- und Kulturwissenschaften",11,"W2","w",36,42.3]
[1,"Sprach- und Kulturwissenschaften",11,"W2","i",77,42.3]
[1,"Sprach- und Kulturwissenschaften",13,"Juniorprofessoren, W1, AT","m",5,35.6]
[1,"Sprach- und Kulturwissenschaften",13,"Juniorprofessoren, W1, AT","w",9,38.299999999999997]
[1,"Sprach- und Kulturwissenschaften",13,"Juniorprofessoren, W1, AT","i",14,37.4]
[1,"Sprach- und Kulturwissenschaften","~~","zusammen","m",98,42.3]
[1,"Sprach- und Kulturwissenschaften","~~","zusammen","w",80,42.3]
[1,"Sprach- und Kulturwissenschaften","~~","zusammen","i",178,42.3]
[2,"Sport",9,"W3","m",2,50]
[2,"Sport",9,"W3","i",2,50]
[2,"Sport",11,"W2","m",7,". "]
[2,"Sport",11,"W2","w",1,". "]
[2,"Sport",11,"W2","i",8,44.1]
[2,"Sport",13,"Juniorprofessoren, W1, AT","m",1,". "]
[2,"Sport",13,"Juniorprofessoren, W1, AT","i",1,". "]
[2,"Sport","~~","zusammen","m",10,". "]
[2,"Sport","~~","zusammen","w",1,". "]
[2,"Sport","~~","zusammen","i",11,44.3]
[3,"Rechts-, Wirtschafts- und Sozialwissenschaften",5,"C2 und entspr. Besoldungsgruppe - auf Dauer -","m",3,41]
[3,"Rechts-, Wirtschafts- und Sozialwissenschaften",5,"C2 und entspr. Besoldungsgruppe - auf Dauer -","i",3,41]
[3,"Rechts-, Wirtschafts- und Sozialwissenschaften",7,"C2 und entspr. Besoldungsgruppe - auf Zeit -","m",11,36.700000000000003]
[3,"Rechts-, Wirtschafts- und Sozialwissenschaften",7,"C2 und entspr. Besoldungsgruppe - auf Zeit -","i",11,36.700000000000003]
[3,"Rechts-, Wirtschafts- und Sozialwissenschaften",9,"W3","m",55,41]
[3,"Rechts-, Wirtschafts- und Sozialwissenschaften",9,"W3","w",11,42.2]
[3,"Rechts-, Wirtschafts- und Sozialwissenschaften",9,"W3","i",66,41.2]
[3,"Rechts-, Wirtschafts- und Sozialwissenschaften",11,"W2","m",16,42.2]
[3,"Rechts-, Wirtschafts- und Sozialwissenschaften",11,"W2","w",17,40.6]
[3,"Rechts-, Wirtschafts- und Sozialwissenschaften",11,"W2","i",33,41.4]
[3,"Rechts-, Wirtschafts- und Sozialwissenschaften",13,"Juniorprofessoren, W1, AT","m",15,33.1]
[3,"Rechts-, Wirtschafts- und Sozialwissenschaften",13,"Juniorprofessoren, W1, AT","w",20,33.1]
[3,"Rechts-, Wirtschafts- und Sozialwissenschaften",13,"Juniorprofessoren, W1, AT","i",35,33.1]
[3,"Rechts-, Wirtschafts- und Sozialwissenschaften","~~","zusammen","m",100,39.6]
[3,"Rechts-, Wirtschafts- und Sozialwissenschaften","~~","zusammen","w",48,37.799999999999997]
[3,"Rechts-, Wirtschafts- und Sozialwissenschaften","~~","zusammen","i",148,39]
[4,"Mathematik, Naturwissenschaften",7,"C2 und entspr. Besoldungsgruppe - auf Zeit -","m",3,". "]
[4,"Mathematik, Naturwissenschaften",7,"C2 und entspr. Besoldungsgruppe - auf Zeit -","w",1,". "]
[4,"Mathematik, Naturwissenschaften",7,"C2 und entspr. Besoldungsgruppe - auf Zeit -","i",4,41.5]
[4,"Mathematik, Naturwissenschaften",9,"W3","m",53,41.8]
[4,"Mathematik, Naturwissenschaften",9,"W3","w",15,41.9]
[4,"Mathematik, Naturwissenschaften",9,"W3","i",68,41.8]
[4,"Mathematik, Naturwissenschaften",11,"W2","m",86,39.700000000000003]
[4,"Mathematik, Naturwissenschaften",11,"W2","w",20,38.200000000000003]
[4,"Mathematik, Naturwissenschaften",11,"W2","i",106,39.4]
[4,"Mathematik, Naturwissenschaften",13,"Juniorprofessoren, W1, AT","m",22,33.6]
[4,"Mathematik, Naturwissenschaften",13,"Juniorprofessoren, W1, AT","w",13,33.799999999999997]
[4,"Mathematik, Naturwissenschaften",13,"Juniorprofessoren, W1, AT","i",35,33.700000000000003]
[4,"Mathematik, Naturwissenschaften",15,"Gastprofessoren (hauptberuflich), C2-C4, W2, W3, BAT IIa, E13h, E14, AT","w",1,". "]
[4,"Mathematik, Naturwissenschaften",15,"Gastprofessoren (hauptberuflich), C2-C4, W2, W3, BAT IIa, E13h, E14, AT","i",1,". "]
[4,"Mathematik, Naturwissenschaften","~~","zusammen","m",164,39.6]
[4,"Mathematik, Naturwissenschaften","~~","zusammen","w",50,38.299999999999997]
[4,"Mathematik, Naturwissenschaften","~~","zusammen","i",214,39.299999999999997]
[5,"Humanmedizin/Gesundheitswissenschaften",5,"C2 und entspr. Besoldungsgruppe - auf Dauer -","m",21,44.5]
[5,"Humanmedizin/Gesundheitswissenschaften",5,"C2 und entspr. Besoldungsgruppe - auf Dauer -","w",4,45.3]
[5,"Humanmedizin/Gesundheitswissenschaften",5,"C2 und entspr. Besoldungsgruppe - auf Dauer -","i",25,44.6]
[5,"Humanmedizin/Gesundheitswissenschaften",7,"C2 und entspr. Besoldungsgruppe - auf Zeit -","m",13,44.1]
[5,"Humanmedizin/Gesundheitswissenschaften",7,"C2 und entspr. Besoldungsgruppe - auf Zeit -","w",6,43.7]
[5,"Humanmedizin/Gesundheitswissenschaften",7,"C2 und entspr. Besoldungsgruppe - auf Zeit -","i",19,43.9]
[5,"Humanmedizin/Gesundheitswissenschaften",9,"W3","m",33,43.9]
[5,"Humanmedizin/Gesundheitswissenschaften",9,"W3","w",8,43]
[5,"Humanmedizin/Gesundheitswissenschaften",9,"W3","i",41,43.7]
[5,"Humanmedizin/Gesundheitswissenschaften",11,"W2","m",40,41.9]
[5,"Humanmedizin/Gesundheitswissenschaften",11,"W2","w",8,42.3]
[5,"Humanmedizin/Gesundheitswissenschaften",11,"W2","i",48,41.9]
[5,"Humanmedizin/Gesundheitswissenschaften",13,"Juniorprofessoren, W1, AT","m",5,34.4]
[5,"Humanmedizin/Gesundheitswissenschaften",13,"Juniorprofessoren, W1, AT","w",2,34]
[5,"Humanmedizin/Gesundheitswissenschaften",13,"Juniorprofessoren, W1, AT","i",7,34.299999999999997]
[5,"Humanmedizin/Gesundheitswissenschaften","~~","zusammen","m",112,42.9]
[5,"Humanmedizin/Gesundheitswissenschaften","~~","zusammen","w",28,42.6]
[5,"Humanmedizin/Gesundheitswissenschaften","~~","zusammen","i",140,42.8]
[6,"Veterinärmedizin",9,"W3","w",3,41.7]
[6,"Veterinärmedizin",9,"W3","i",3,41.7]
[6,"Veterinärmedizin",11,"W2","m",2,". "]
[6,"Veterinärmedizin",11,"W2","w",1,". "]
[6,"Veterinärmedizin",11,"W2","i",3,42]
[6,"Veterinärmedizin",13,"Juniorprofessoren, W1, AT","m",1,". "]
[6,"Veterinärmedizin",13,"Juniorprofessoren, W1, AT","i",1,". "]
[6,"Veterinärmedizin","~~","zusammen","m",3,36.700000000000003]
[6,"Veterinärmedizin","~~","zusammen","w",4,42.8]
[6,"Veterinärmedizin","~~","zusammen","i",7,40.1]
[7,"Agrar-, Forst- und Ernährungswissenschaften",9,"W3","m",2,40]
[7,"Agrar-, Forst- und Ernährungswissenschaften",9,"W3","i",2,40]
[7,"Agrar-, Forst- und Ernährungswissenschaften",11,"W2","w",1,". "]
[7,"Agrar-, Forst- und Ernährungswissenschaften",11,"W2","i",1,". "]
[7,"Agrar-, Forst- und Ernährungswissenschaften",13,"Juniorprofessoren, W1, AT","w",2,37]
[7,"Agrar-, Forst- und Ernährungswissenschaften",13,"Juniorprofessoren, W1, AT","i",2,37]
[7,"Agrar-, Forst- und Ernährungswissenschaften","~~","zusammen","m",2,40]
[7,"Agrar-, Forst- und Ernährungswissenschaften","~~","zusammen","w",3,39.700000000000003]
[7,"Agrar-, Forst- und Ernährungswissenschaften","~~","zusammen","i",5,39.799999999999997]
[8,"Ingenieurwissenschaften",7,"C2 und entspr. Besoldungsgruppe - auf Zeit -","m",1,". "]
[8,"Ingenieurwissenschaften",7,"C2 und entspr. Besoldungsgruppe - auf Zeit -","i",1,". "]
[8,"Ingenieurwissenschaften",9,"W3","m",38,44.5]
[8,"Ingenieurwissenschaften",9,"W3","w",10,44.7]
[8,"Ingenieurwissenschaften",9,"W3","i",48,44.6]
[8,"Ingenieurwissenschaften",11,"W2","m",9,". "]
[8,"Ingenieurwissenschaften",11,"W2","w",1,". "]
[8,"Ingenieurwissenschaften",11,"W2","i",10,38.5]
[8,"Ingenieurwissenschaften",13,"Juniorprofessoren, W1, AT","m",4,33.799999999999997]
[8,"Ingenieurwissenschaften",13,"Juniorprofessoren, W1, AT","w",2,32]
[8,"Ingenieurwissenschaften",13,"Juniorprofessoren, W1, AT","i",6,33.200000000000003]
[8,"Ingenieurwissenschaften",15,"Gastprofessoren (hauptberuflich), C2-C4, W2, W3, BAT IIa, E13h, E14, AT","m",1,". "]
[8,"Ingenieurwissenschaften",15,"Gastprofessoren (hauptberuflich), C2-C4, W2, W3, BAT IIa, E13h, E14, AT","i",1,". "]
[8,"Ingenieurwissenschaften","~~","zusammen","m",53,42.8]
[8,"Ingenieurwissenschaften","~~","zusammen","w",13,42]
[8,"Ingenieurwissenschaften","~~","zusammen","i",66,42.7]
[9,"Kunst, Kunstwissenschaft",5,"C2 und entspr. Besoldungsgruppe - auf Dauer -","m",1,". "]
[9,"Kunst, Kunstwissenschaft",5,"C2 und entspr. Besoldungsgruppe - auf Dauer -","w",1,". "]
[9,"Kunst, Kunstwissenschaft",5,"C2 und entspr. Besoldungsgruppe - auf Dauer -","i",2,40.5]
[9,"Kunst, Kunstwissenschaft",9,"W3","m",3,". "]
[9,"Kunst, Kunstwissenschaft",9,"W3","w",1,". "]
[9,"Kunst, Kunstwissenschaft",9,"W3","i",4,44.8]
[9,"Kunst, Kunstwissenschaft",11,"W2","m",11,43.2]
[9,"Kunst, Kunstwissenschaft",11,"W2","w",8,45.1]
[9,"Kunst, Kunstwissenschaft",11,"W2","i",19,44]
[9,"Kunst, Kunstwissenschaft",13,"Juniorprofessoren, W1, AT","m",1,". "]
[9,"Kunst, Kunstwissenschaft",13,"Juniorprofessoren, W1, AT","w",2,". "]
[9,"Kunst, Kunstwissenschaft",13,"Juniorprofessoren, W1, AT","i",3,41.3]
[9,"Kunst, Kunstwissenschaft","~~","zusammen","m",16,43.2]
[9,"Kunst, Kunstwissenschaft","~~","zusammen","w",12,44.1]
[9,"Kunst, Kunstwissenschaft","~~","zusammen","i",28,43.6]
[15,"Zentrale Einrichtungen (ohne klinikspezifische Einrichtungen)",5,"C2 und entspr. Besoldungsgruppe - auf Dauer -","m",2,49.5]
[15,"Zentrale Einrichtungen (ohne klinikspezifische Einrichtungen)",5,"C2 und entspr. Besoldungsgruppe - auf Dauer -","i",2,49.5]
[15,"Zentrale Einrichtungen (ohne klinikspezifische Einrichtungen)",7,"C2 und entspr. Besoldungsgruppe - auf Zeit -","m",1,". "]
[15,"Zentrale Einrichtungen (ohne klinikspezifische Einrichtungen)",7,"C2 und entspr. Besoldungsgruppe - auf Zeit -","i",1,". "]
[15,"Zentrale Einrichtungen (ohne klinikspezifische Einrichtungen)",9,"W3","m",4,". "]
[15,"Zentrale Einrichtungen (ohne klinikspezifische Einrichtungen)",9,"W3","w",1,". "]
[15,"Zentrale Einrichtungen (ohne klinikspezifische Einrichtungen)",9,"W3","i",5,45.2]
[15,"Zentrale Einrichtungen (ohne klinikspezifische Einrichtungen)",11,"W2","m",1,". "]
[15,"Zentrale Einrichtungen (ohne klinikspezifische Einrichtungen)",11,"W2","i",1,". "]
[15,"Zentrale Einrichtungen (ohne klinikspezifische Einrichtungen)","~~","zusammen","m",8,". "]
[15,"Zentrale Einrichtungen (ohne klinikspezifische Einrichtungen)","~~","zusammen","w",1,". "]
[15,"Zentrale Einrichtungen (ohne klinikspezifische Einrichtungen)","~~","zusammen","i",9,46.1]
["~~","Insgesamt",5,"C2 und entspr. Besoldungsgruppe - auf Dauer -","m",28,44.2]
["~~","Insgesamt",5,"C2 und entspr. Besoldungsgruppe - auf Dauer -","w",5,43.4]
["~~","Insgesamt",5,"C2 und entspr. Besoldungsgruppe - auf Dauer -","i",33,44.1]
["~~","Insgesamt",7,"C2 und entspr. Besoldungsgruppe - auf Zeit -","m",30,41.3]
["~~","Insgesamt",7,"C2 und entspr. Besoldungsgruppe - auf Zeit -","w",7,43.1]
["~~","Insgesamt",7,"C2 und entspr. Besoldungsgruppe - auf Zeit -","i",37,41.6]
["~~","Insgesamt",9,"W3","m",240,42.8]
["~~","Insgesamt",9,"W3","w",84,43]
["~~","Insgesamt",9,"W3","i",324,42.8]
["~~","Insgesamt",11,"W2","m",213,41.1]
["~~","Insgesamt",11,"W2","w",93,41.3]
["~~","Insgesamt",11,"W2","i",306,41.2]
["~~","Insgesamt",13,"Juniorprofessoren, W1, AT","m",54,33.799999999999997]
["~~","Insgesamt",13,"Juniorprofessoren, W1, AT","w",50,34.700000000000003]
["~~","Insgesamt",13,"Juniorprofessoren, W1, AT","i",104,34.200000000000003]
["~~","Insgesamt",15,"Gastprofessoren (hauptberuflich), C2-C4, W2, W3, BAT IIa, E13h, E14, AT","m",1,". "]
["~~","Insgesamt",15,"Gastprofessoren (hauptberuflich), C2-C4, W2, W3, BAT IIa, E13h, E14, AT","w",1,". "]
["~~","Insgesamt",15,"Gastprofessoren (hauptberuflich), C2-C4, W2, W3, BAT IIa, E13h, E14, AT","i",2,43]
["~~","Insgesamt",null,null,"m",566,41.3]
["~~","Insgesamt",null,null,"w",240,40.6]
["~~","Insgesamt",null,null,"i",806,41.1]

{"sheet":"6.5","index":29,"n_rows":172,"n_cols":7,"rows_kept":172,"cut":false,"hidden":false,"merged":[]}
["Statistisches Bundesamt"]
["H 201 - Hochschulstatistik"]
[]
[]
["Neuberufene Professoren nach Fächergruppen sowie Besoldungs- und Vergütungsgruppen und Geschlecht"]
["an Wissenschaftlichen Hochschulen (Universitäten, Pädagogische und Theologische Hochschulen)"]
["im Berichtsjahr 2010"]
[]
[null,null,null,null,null,null,"Durchschnittsalter"]
[null,"Fächergruppe",null,"Besoldungs- und Vergütungsgruppen","Geschlecht","Anzahl","bei der Ernennung zum Professor"]
[null,null,null,null,null,null,"(arith. Mittel)"]
[]
[1,"Sprach- und Kulturwissenschaften",1,"C4 und entspr. Besoldungsgruppe","m",3,48.3]
[1,"Sprach- und Kulturwissenschaften",1,"C4 und entspr. Besoldungsgruppe","i",3,48.3]
[1,"Sprach- und Kulturwissenschaften",5,"C2 und entspr. Besoldungsgruppe - auf Dauer -","m",3,". "]
[1,"Sprach- und Kulturwissenschaften",5,"C2 und entspr. Besoldungsgruppe - auf Dauer -","w",1,". "]
[1,"Sprach- und Kulturwissenschaften",5,"C2 und entspr. Besoldungsgruppe - auf Dauer -","i",4,49.3]
[1,"Sprach- und Kulturwissenschaften",7,"C2 und entspr. Besoldungsgruppe - auf Zeit -","m",1,". "]
[1,"Sprach- und Kulturwissenschaften",7,"C2 und entspr. Besoldungsgruppe - auf Zeit -","w",4,". "]
[1,"Sprach- und Kulturwissenschaften",7,"C2 und entspr. Besoldungsgruppe - auf Zeit -","i",5,45]
[1,"Sprach- und Kulturwissenschaften",9,"W3","m",56,43.8]
[1,"Sprach- und Kulturwissenschaften",9,"W3","w",48,45]
[1,"Sprach- und Kulturwissenschaften",9,"W3","i",104,44.4]
[1,"Sprach- und Kulturwissenschaften",11,"W2","m",38,43.1]
[1,"Sprach- und Kulturwissenschaften",11,"W2","w",40,43.6]
[1,"Sprach- und Kulturwissenschaften",11,"W2","i",78,43.3]
[1,"Sprach- und Kulturwissenschaften",13,"Juniorprofessoren, W1, AT","m",13,37.799999999999997]
[1,"Sprach- und Kulturwissenschaften",13,"Juniorprofessoren, W1, AT","w",23,35.799999999999997]
[1,"Sprach- und Kulturwissenschaften",13,"Juniorprofessoren, W1, AT","i",36,36.6]
[1,"Sprach- und Kulturwissenschaften","~~","zusammen","m",114,43.1]
[1,"Sprach- und Kulturwissenschaften","~~","zusammen","w",116,42.8]
[1,"Sprach- und Kulturwissenschaften","~~","zusammen","i",230,42.9]
[2,"Sport",7,"C2 und entspr. Besoldungsgruppe - auf Zeit -","w",1,". "]
[2,"Sport",7,"C2 und entspr. Besoldungsgruppe - auf Zeit -","i",1,". "]
[2,"Sport",9,"W3","w",2,47.5]
[2,"Sport",9,"W3","i",2,47.5]
[2,"Sport",11,"W2","m",4,37]
[2,"Sport",11,"W2","i",4,37]
[2,"Sport",13,"Juniorprofessoren, W1, AT","m",3,". "]
[2,"Sport",13,"Juniorprofessoren, W1, AT","w",1,". "]
[2,"Sport",13,"Juniorprofessoren, W1, AT","i",4,37]
[2,"Sport","~~","zusammen","m",7,37.4]
[2,"Sport","~~","zusammen","w",4,45]
[2,"Sport","~~","zusammen","i",11,40.200000000000003]
[3,"Rechts-, Wirtschafts- und Sozialwissenschaften",5,"C2 und entspr. Besoldungsgruppe - auf Dauer -","m",3,". "]
[3,"Rechts-, Wirtschafts- und Sozialwissenschaften",5,"C2 und entspr. Besoldungsgruppe - auf Dauer -","w",1,". "]
[3,"Rechts-, Wirtschafts- und Sozialwissenschaften",5,"C2 und entspr. Besoldungsgruppe - auf Dauer -","i",4,40.5]
[3,"Rechts-, Wirtschafts- und Sozialwissenschaften",7,"C2 und entspr. Besoldungsgruppe - auf Zeit -","m",5,39.799999999999997]
[3,"Rechts-, Wirtschafts- und Sozialwissenschaften",7,"C2 und entspr. Besoldungsgruppe - auf Zeit -","w",3,38.299999999999997]
[3,"Rechts-, Wirtschafts- und Sozialwissenschaften",7,"C2 und entspr. Besoldungsgruppe - auf Zeit -","i",8,39.299999999999997]
[3,"Rechts-, Wirtschafts- und Sozialwissenschaften",9,"W3","m",54,39.1]
[3,"Rechts-, Wirtschafts- und Sozialwissenschaften",9,"W3","w",18,38.700000000000003]
[3,"Rechts-, Wirtschafts- und Sozialwissenschaften",9,"W3","i",72,39]
[3,"Rechts-, Wirtschafts- und Sozialwissenschaften",11,"W2","m",25,40.9]
[3,"Rechts-, Wirtschafts- und Sozialwissenschaften",11,"W2","w",13,41.2]
[3,"Rechts-, Wirtschafts- und Sozialwissenschaften",11,"W2","i",38,41]
[3,"Rechts-, Wirtschafts- und Sozialwissenschaften",13,"Juniorprofessoren, W1, AT","m",10,35.1]
[3,"Rechts-, Wirtschafts- und Sozialwissenschaften",13,"Juniorprofessoren, W1, AT","w",9,33.799999999999997]
[3,"Rechts-, Wirtschafts- und Sozialwissenschaften",13,"Juniorprofessoren, W1, AT","i",19,34.5]
[3,"Rechts-, Wirtschafts- und Sozialwissenschaften","~~","zusammen","m",97,39.1]
[3,"Rechts-, Wirtschafts- und Sozialwissenschaften","~~","zusammen","w",44,38.6]
[3,"Rechts-, Wirtschafts- und Sozialwissenschaften","~~","zusammen","i",141,39]
[4,"Mathematik, Naturwissenschaften",7,"C2 und entspr. Besoldungsgruppe - auf Zeit -","m",1,". "]
[4,"Mathematik, Naturwissenschaften",7,"C2 und entspr. Besoldungsgruppe - auf Zeit -","i",1,". "]
[4,"Mathematik, Naturwissenschaften",9,"W3","m",67,42.5]
[4,"Mathematik, Naturwissenschaften",9,"W3","w",10,40]
[4,"Mathematik, Naturwissenschaften",9,"W3","i",77,42.2]
[4,"Mathematik, Naturwissenschaften",11,"W2","m",86,39.700000000000003]
[4,"Mathematik, Naturwissenschaften",11,"W2","w",20,39.5]
[4,"Mathematik, Naturwissenschaften",11,"W2","i",106,39.6]
[4,"Mathematik, Naturwissenschaften",13,"Juniorprofessoren, W1, AT","m",25,33.5]
[4,"Mathematik, Naturwissenschaften",13,"Juniorprofessoren, W1, AT","w",11,34.5]
[4,"Mathematik, Naturwissenschaften",13,"Juniorprofessoren, W1, AT","i",36,33.799999999999997]
[4,"Mathematik, Naturwissenschaften","~~","zusammen","m",179,39.9]
[4,"Mathematik, Naturwissenschaften","~~","zusammen","w",41,38.299999999999997]
[4,"Mathematik, Naturwissenschaften","~~","zusammen","i",220,39.6]
[5,"Humanmedizin/Gesundheitswissenschaften",5,"C2 und entspr. Besoldungsgruppe - auf Dauer -","m",16,43.8]
[5,"Humanmedizin/Gesundheitswissenschaften",5,"C2 und entspr. Besoldungsgruppe - auf Dauer -","w",4,44.5]
[5,"Humanmedizin/Gesundheitswissenschaften",5,"C2 und entspr. Besoldungsgruppe - auf Dauer -","i",20,44]
[5,"Humanmedizin/Gesundheitswissenschaften",7,"C2 und entspr. Besoldungsgruppe - auf Zeit -","m",7,45.6]
[5,"Humanmedizin/Gesundheitswissenschaften",7,"C2 und entspr. Besoldungsgruppe - auf Zeit -","i",7,45.6]
[5,"Humanmedizin/Gesundheitswissenschaften",9,"W3","m",31,". "]
[5,"Humanmedizin/Gesundheitswissenschaften",9,"W3","w",1,". "]
[5,"Humanmedizin/Gesundheitswissenschaften",9,"W3","i",32,42.7]
[5,"Humanmedizin/Gesundheitswissenschaften",11,"W2","m",42,42.4]
[5,"Humanmedizin/Gesundheitswissenschaften",11,"W2","w",10,42.2]
[5,"Humanmedizin/Gesundheitswissenschaften",11,"W2","i",52,42.4]
[5,"Humanmedizin/Gesundheitswissenschaften",13,"Juniorprofessoren, W1, AT","m",3,35.299999999999997]
[5,"Humanmedizin/Gesundheitswissenschaften",13,"Juniorprofessoren, W1, AT","w",2,40]
[5,"Humanmedizin/Gesundheitswissenschaften",13,"Juniorprofessoren, W1, AT","i",5,37.200000000000003]
[5,"Humanmedizin/Gesundheitswissenschaften","~~","zusammen","m",99,42.8]
[5,"Humanmedizin/Gesundheitswissenschaften","~~","zusammen","w",17,42.1]
[5,"Humanmedizin/Gesundheitswissenschaften","~~","zusammen","i",116,42.7]
[6,"Veterinärmedizin",9,"W3","m",2,44.5]
[6,"Veterinärmedizin",9,"W3","i",2,44.5]
[6,"Veterinärmedizin",11,"W2","m",1,". "]
[6,"Veterinärmedizin",11,"W2","w",2,". "]
[6,"Veterinärmedizin",11,"W2","i",3,46.3]
[6,"Veterinärmedizin",13,"Juniorprofessoren, W1, AT","m",1,". "]
[6,"Veterinärmedizin",13,"Juniorprofessoren, W1, AT","w",1,". "]
[6,"Veterinärmedizin",13,"Juniorprofessoren, W1, AT","i",2,35.5]
[6,"Veterinärmedizin","~~","zusammen","m",4,42.5]
[6,"Veterinärmedizin","~~","zusammen","w",3,43]
[6,"Veterinärmedizin","~~","zusammen","i",7,42.7]
[7,"Agrar-, Forst- und Ernährungswissenschaften",7,"C2 und entspr. Besoldungsgruppe - auf Zeit -","m",1,". "]
[7,"Agrar-, Forst- und Ernährungswissenschaften",7,"C2 und entspr. Besoldungsgruppe - auf Zeit -","i",1,". "]
[7,"Agrar-, Forst- und Ernährungswissenschaften",9,"W3","m",3,42.3]
[7,"Agrar-, Forst- und Ernährungswissenschaften",9,"W3","w",4,43.3]
[7,"Agrar-, Forst- und Ernährungswissenschaften",9,"W3","i",7,42.9]
[7,"Agrar-, Forst- und Ernährungswissenschaften",11,"W2","m",5,". "]
[7,"Agrar-, Forst- und Ernährungswissenschaften",11,"W2","w",1,". "]
[7,"Agrar-, Forst- und Ernährungswissenschaften",11,"W2","i",6,42.2]
[7,"Agrar-, Forst- und Ernährungswissenschaften","~~","zusammen","m",9,43.7]
[7,"Agrar-, Forst- und Ernährungswissenschaften","~~","zusammen","w",5,41.6]
[7,"Agrar-, Forst- und Ernährungswissenschaften","~~","zusammen","i",14,42.9]
[8,"Ingenieurwissenschaften",9,"W3","m",41,42.3]
[8,"Ingenieurwissenschaften",9,"W3","w",2,44.5]
[8,"Ingenieurwissenschaften",9,"W3","i",43,42.4]
[8,"Ingenieurwissenschaften",11,"W2","m",19,43.3]
[8,"Ingenieurwissenschaften",11,"W2","w",2,39]
[8,"Ingenieurwissenschaften",11,"W2","i",21,42.9]
[8,"Ingenieurwissenschaften",13,"Juniorprofessoren, W1, AT","m",6,35.700000000000003]
[8,"Ingenieurwissenschaften",13,"Juniorprofessoren, W1, AT","i",6,35.700000000000003]
[8,"Ingenieurwissenschaften","~~","zusammen","m",66,42]
[8,"Ingenieurwissenschaften","~~","zusammen","w",4,41.8]
[8,"Ingenieurwissenschaften","~~","zusammen","i",70,42]
[9,"Kunst, Kunstwissenschaft",9,"W3","m",1,". "]
[9,"Kunst, Kunstwissenschaft",9,"W3","w",1,". "]
[9,"Kunst, Kunstwissenschaft",9,"W3","i",2,50]
[9,"Kunst, Kunstwissenschaft",11,"W2","m",6,". "]
[9,"Kunst, Kunstwissenschaft",11,"W2","w",1,". "]
[9,"Kunst, Kunstwissenschaft",11,"W2","i",7,42.1]
[9,"Kunst, Kunstwissenschaft",13,"Juniorprofessoren, W1, AT","m",1,". "]
[9,"Kunst, Kunstwissenschaft",13,"Juniorprofessoren, W1, AT","w",1,". "]
[9,"Kunst, Kunstwissenschaft",13,"Juniorprofessoren, W1, AT","i",2,40.5]
[9,"Kunst, Kunstwissenschaft","~~","zusammen","m",8,43.3]
[9,"Kunst, Kunstwissenschaft","~~","zusammen","w",3,43.3]
[9,"Kunst, Kunstwissenschaft","~~","zusammen","i",11,43.3]
[15,"Zentrale Einrichtungen (ohne klinikspezifische Einrichtungen)",9,"W3","m",4,37.299999999999997]
[15,"Zentrale Einrichtungen (ohne klinikspezifische Einrichtungen)",9,"W3","i",4,37.299999999999997]
[15,"Zentrale Einrichtungen (ohne klinikspezifische Einrichtungen)",11,"W2","m",4,38]
[15,"Zentrale Einrichtungen (ohne klinikspezifische Einrichtungen)",11,"W2","w",4,39]
[15,"Zentrale Einrichtungen (ohne klinikspezifische Einrichtungen)",11,"W2","i",8,38.5]
[15,"Zentrale Einrichtungen (ohne klinikspezifische Einrichtungen)",13,"Juniorprofessoren, W1, AT","m",1,". "]
[15,"Zentrale Einrichtungen (ohne klinikspezifische Einrichtungen)",13,"Juniorprofessoren, W1, AT","i",1,". "]
[15,"Zentrale Einrichtungen (ohne klinikspezifische Einrichtungen)","~~","zusammen","m",9,37.799999999999997]
[15,"Zentrale Einrichtungen (ohne klinikspezifische Einrichtungen)","~~","zusammen","w",4,39]
[15,"Zentrale Einrichtungen (ohne klinikspezifische Einrichtungen)","~~","zusammen","i",13,38.200000000000003]
[20,"Zentrale Einrichtungen der Hochschulkliniken (nur Humanmedizin)",7,"C2 und entspr. Besoldungsgruppe - auf Zeit -","w",1,". "]
[20,"Zentrale Einrichtungen der Hochschulkliniken (nur Humanmedizin)",7,"C2 und entspr. Besoldungsgruppe - auf Zeit -","i",1,". "]
[20,"Zentrale Einrichtungen der Hochschulkliniken (nur Humanmedizin)","~~","zusammen","w",1,". "]
[20,"Zentrale Einrichtungen der Hochschulkliniken (nur Humanmedizin)","~~","zusammen","i",1,". "]
["~~","Insgesamt",1,"C4 und entspr. Besoldungsgruppe","m",3,48.3]
["~~","Insgesamt",1,"C4 und entspr. Besoldungsgruppe","i",3,48.3]
["~~","Insgesamt",5,"C2 und entspr. Besoldungsgruppe - auf Dauer -","m",22,43.5]
["~~","Insgesamt",5,"C2 und entspr. Besoldungsgruppe - auf Dauer -","w",6,46.7]
["~~","Insgesamt",5,"C2 und entspr. Besoldungsgruppe - auf Dauer -","i",28,44.2]
["~~","Insgesamt",7,"C2 und entspr. Besoldungsgruppe - auf Zeit -","m",15,43.4]
["~~","Insgesamt",7,"C2 und entspr. Besoldungsgruppe - auf Zeit -","w",9,43.1]
["~~","Insgesamt",7,"C2 und entspr. Besoldungsgruppe - auf Zeit -","i",24,43.3]
["~~","Insgesamt",9,"W3","m",259,42.1]
["~~","Insgesamt",9,"W3","w",86,43]
["~~","Insgesamt",9,"W3","i",345,42.3]
["~~","Insgesamt",11,"W2","m",230,41.3]
["~~","Insgesamt",11,"W2","w",93,41.8]
["~~","Insgesamt",11,"W2","i",323,41.4]
["~~","Insgesamt",13,"Juniorprofessoren, W1, AT","m",63,35.299999999999997]
["~~","Insgesamt",13,"Juniorprofessoren, W1, AT","w",48,35.4]
["~~","Insgesamt",13,"Juniorprofessoren, W1, AT","i",111,35.4]
["~~","Insgesamt",null,null,"m",592,41.2]
["~~","Insgesamt",null,null,"w",242,41.1]
["~~","Insgesamt",null,null,"i",834,41.2]

{"sheet":"7.Prof. auf Dauer, auf Zeit","index":30,"n_rows":0,"n_cols":0,"rows_kept":0,"cut":false,"hidden":false,"merged":[]}

{"sheet":"7.1","index":31,"n_rows":287,"n_cols":21,"rows_kept":287,"cut":false,"hidden":false,"merged":[[5,4,6,20],[7,5,8,12],[7,13,8,20]]}
["Statistisches Bundesamt"]
["H201 - Hochschulstatistik"]
[]
["Professoren nach ausgewählten Hochschularten, Land, Trägerschaft und Hochschule 2014"]
[]
[null,null,null,null,"Professoren in Personen (hauptberuflich, mit drittmittelfinanziertem Personal)"]
[]
[null,null,null,null,null,"auf Dauer",null,null,null,null,null,null,null,"auf Zeit"]
["Hochschulart","Land","Trägerschaft","Hochschule"]
[null,null,null,null,"Insgesamt",null,"C4","C3","C2",null,null,null,"Gast-",null,"C4","C3","C2",null,null,null,"Gast-"]
[null,null,null,null,null,"zusammen","und","und","und","W3","W2","Junior-","professoren","zusammen","und","und","und","W3","W2","Junior-","professoren"]
[null,null,null,null,null,null,"entspr. Bg.","entspr. Bg.","entspr. Bg.",null,null,"prof.","(hauptberufl.)",null,"entspr. Bg.","entspr. Bg.","entspr. Bg.",null,null,"prof.","(hauptberufl.)"]
["Universitäten","Baden-Württemberg","öffentlich","U Freiburg i.Br.",415,350,98,58,7,187,0,0,0,65,5,0,8,11,12,26,3]
["Universitäten","Baden-Württemberg","öffentlich","U Heidelberg",497,428,122,59,17,230,0,0,0,69,0,1,34,12,1,14,7]
["Universitäten","Baden-Württemberg","öffentlich","U Hohenheim",133,120,38,18,0,64,0,0,0,13,0,0,0,3,7,3,0]
["Universitäten","Baden-Württemberg","öffentlich","Karlsruher Institut für Technologie (KIT) - Bereich Hochschule",296,253,64,28,0,161,0,0,0,43,1,0,0,20,6,14,2]
["Universitäten","Baden-Württemberg","öffentlich","U Konstanz",194,166,46,18,0,102,0,0,0,28,0,0,0,1,3,24,0]
["Universitäten","Baden-Württemberg","öffentlich","U Mannheim",187,126,28,6,0,92,0,0,0,61,0,0,0,16,6,39,0]
["Universitäten","Baden-Württemberg","öffentlich","U Stuttgart",277,253,83,30,0,140,0,0,0,24,0,0,0,3,0,21,0]
["Universitäten","Baden-Württemberg","öffentlich","U Tübingen",496,410,93,50,5,260,2,0,0,86,12,0,2,5,8,55,4]
["Universitäten","Baden-Württemberg","öffentlich","U Ulm",223,191,37,35,2,117,0,0,0,32,3,1,0,4,0,15,9]
["Universitäten","Baden-Württemberg","öffentlich","Zusammen",2718,2297,609,302,31,1353,2,0,0,421,21,2,44,75,43,211,25]
["Universitäten","Baden-Württemberg","privat, kirchlich","Zeppelin Universität Friedrichshafen (Priv. H)",31,25,0,0,25,0,0,0,0,6,0,0,3,0,0,3,0]
["Universitäten","Baden-Württemberg","privat, kirchlich","AKAD, Wissenschaftliche H Lahr (Priv. Fern-H für Berufstätige)",6,2,0,0,2,0,0,0,0,4,0,0,4,0,0,0,0]
["Universitäten","Baden-Württemberg","privat, kirchlich","Priv. wiss. H Stuttgart, Seminar für Waldorfpädagogik",9,9,0,0,9,0,0,0,0,0,0,0,0,0,0,0,0]
["Universitäten","Baden-Württemberg","privat, kirchlich","H für jüdische Studien Heidelberg",8,3,0,0,3,0,0,0,0,5,0,0,3,0,0,2,0]
["Universitäten","Baden-Württemberg","privat, kirchlich","Zusammen",54,39,0,0,39,0,0,0,0,15,0,0,10,0,0,5,0]
["Universitäten","Baden-Württemberg","zusammen","Zusammen",2772,2336,609,302,70,1353,2,0,0,436,21,2,54,75,43,216,25]
["Universitäten","Bayern","öffentlich","U Augsburg",208,172,32,16,0,85,39,0,0,36,0,0,0,6,21,8,1]
["Universitäten","Bayern","öffentlich","U Bamberg",149,128,24,11,0,56,37,0,0,21,0,0,0,6,5,10,0]
["Universitäten","Bayern","öffentlich","U Bayreuth",234,200,40,14,1,103,42,0,0,34,0,0,3,6,8,13,4]
["Universitäten","Bayern","öffentlich","U Erlangen-Nürnberg",575,484,102,72,0,180,130,0,0,91,0,0,0,22,41,20,8]
["Universitäten","Bayern","öffentlich","U München",727,543,116,119,0,214,94,0,0,184,0,0,0,34,110,19,21]
["Universitäten","Bayern","öffentlich","TU München",483,405,97,45,0,189,74,0,0,78,0,1,1,11,57,5,3]
["Universitäten","Bayern","öffentlich","U der Bundeswehr München",168,145,34,31,9,50,21,0,0,23,1,0,15,1,4,2,0]
["Universitäten","Bayern","öffentlich","U Passau",120,109,26,7,0,55,21,0,0,11,0,0,0,6,3,2,0]
["Universitäten","Bayern","öffentlich","U Regensburg",327,274,84,33,0,90,67,0,0,53,4,2,2,11,32,2,0]
["Universitäten","Bayern","öffentlich","U Würzburg",420,358,72,57,0,137,92,0,0,62,0,1,3,8,44,6,0]
["Universitäten","Bayern","öffentlich","Zusammen",3411,2818,627,405,10,1159,617,0,0,593,5,4,24,111,325,87,37]
["Universitäten","Bayern","privat, kirchlich","Kath. U Eichstätt-Ingolstadt",115,84,16,17,0,28,23,0,0,31,7,3,0,12,6,2,1]
["Universitäten","Bayern","privat, kirchlich","Zusammen",115,84,16,17,0,28,23,0,0,31,7,3,0,12,6,2,1]
["Universitäten","Bayern","zusammen","Zusammen",3526,2902,643,422,10,1187,640,0,0,624,12,7,24,123,331,89,38]
["Universitäten","Berlin","öffentlich","FU Berlin",538,328,81,35,0,134,78,0,0,210,1,1,0,2,36,108,62]
["Universitäten","Berlin","öffentlich","TU Berlin",348,271,63,28,0,155,25,0,0,77,14,4,0,6,5,15,33]
["Universitäten","Berlin","öffentlich","Charite - Universitätsmedizin Berlin",258,174,34,23,45,34,38,0,0,84,7,2,42,2,24,7,0]
["Universitäten","Berlin","öffentlich","Humboldt-Universität Berlin",474,353,78,49,0,177,49,0,0,121,0,0,0,5,19,41,56]
["Universitäten","Berlin","öffentlich","Zusammen",1618,1126,256,135,45,500,190,0,0,492,22,7,42,15,84,171,151]
["Universitäten","Berlin","privat, kirchlich","ESCP Europe Wirtschaftshochschule Berlin (Priv. H)",9,8,4,0,0,4,0,0,0,1,0,0,0,0,0,1,0]
["Universitäten","Berlin","privat, kirchlich","Europ. School of Management and Technology, Berlin (Priv. H)",22,10,0,0,10,0,0,0,0,12,0,0,10,0,0,2,0]
["Universitäten","Berlin","privat, kirchlich","Hertie School of Governance Berlin (Priv. wiss. H)",20,10,0,0,10,0,0,0,0,10,0,0,10,0,0,0,0]
["Universitäten","Berlin","privat, kirchlich","Steinbeis-H Berlin (Priv. H)",1,0,0,0,0,0,0,0,0,1,0,0,1,0,0,0,0]
["Universitäten","Berlin","privat, kirchlich","Deutsche Universität für Weiterbildung Berlin (Priv. wiss. H)",1,0,0,0,0,0,0,0,0,1,0,0,1,0,0,0,0]
["Universitäten","Berlin","privat, kirchlich","International Psychoanalytic University Berlin (Priv.)",20,14,0,0,14,0,0,0,0,6,0,0,5,0,0,1,0]
["Universitäten","Berlin","privat, kirchlich","Psychologische Hochschule Berlin (Priv. U)",6,6,0,0,6,0,0,0,0,0,0,0,0,0,0,0,0]
["Universitäten","Berlin","privat, kirchlich","Bard College Berlin, A Liberal Arts University (Priv. U)",12,6,0,0,6,0,0,0,0,6,0,0,1,0,0,5,0]
["Universitäten","Berlin","privat, kirchlich","Zusammen",91,54,4,0,46,4,0,0,0,37,0,0,28,0,0,9,0]
["Universitäten","Berlin","zusammen","Zusammen",1709,1180,260,135,91,504,190,0,0,529,22,7,70,15,84,180,151]
["Universitäten","Brandenburg","öffentlich","Brandenburgische TU Cottbus-Senftenberg",216,161,36,43,21,33,28,0,0,55,0,1,0,10,6,4,34]
["Universitäten","Brandenburg","öffentlich","Europa-U Viadrina Frankfurt (Oder)",72,56,19,4,0,29,4,0,0,16,0,0,0,5,2,9,0]
["Universitäten","Brandenburg","öffentlich","U Potsdam",252,209,55,28,15,77,34,0,0,43,0,0,22,5,3,13,0]
["Universitäten","Brandenburg","öffentlich","Filmuniversität Babelsberg",43,23,1,3,2,14,3,0,0,20,0,0,0,12,6,0,2]
["Universitäten","Brandenburg","öffentlich","Zusammen",583,449,111,78,38,153,69,0,0,134,0,1,22,32,17,26,36]
["Universitäten","Brandenburg","zusammen","Zusammen",583,449,111,78,38,153,69,0,0,134,0,1,22,32,17,26,36]
["Universitäten","Bremen","öffentlich","U Bremen",302,248,28,35,0,123,62,0,0,54,1,4,12,7,22,8,0]
["Universitäten","Bremen","öffentlich","Zusammen",302,248,28,35,0,123,62,0,0,54,1,4,12,7,22,8,0]
["Universitäten","Bremen","privat, kirchlich","Jacobs University Bremen (Priv. H)",88,29,0,0,29,0,0,0,0,59,0,0,59,0,0,0,0]
["Universitäten","Bremen","privat, kirchlich","Zusammen",88,29,0,0,29,0,0,0,0,59,0,0,59,0,0,0,0]
["Universitäten","Bremen","zusammen","Zusammen",390,277,28,35,29,123,62,0,0,113,1,4,71,7,22,8,0]
["Universitäten","Hamburg","öffentlich","U Hamburg",696,544,98,79,44,212,111,0,0,152,5,0,63,1,2,80,1]
["Universitäten","Hamburg","öffentlich","TU Hamburg-Harburg",93,91,21,14,0,44,12,0,0,2,0,0,1,0,0,1,0]
["Universitäten","Hamburg","öffentlich","Hafencity Universität Hamburg",43,43,2,10,9,8,14,0,0,0,0,0,0,0,0,0,0]
["Universitäten","Hamburg","öffentlich","Helmut-Schmidt-Universität Hamburg",88,80,24,5,0,36,15,0,0,8,0,0,0,3,5,0,0]
["Universitäten","Hamburg","öffentlich","Zusammen",920,758,145,108,53,300,152,0,0,162,5,0,64,4,7,81,1]
["Universitäten","Hamburg","privat, kirchlich","Bucerius Law School Hamburg (Priv. H)",14,12,0,0,12,0,0,0,0,2,0,0,1,0,0,1,0]
["Universitäten","Hamburg","privat, kirchlich","KLU Kühne Logistics University (Priv.)",16,3,0,0,3,0,0,0,0,13,0,0,13,0,0,0,0]
["Universitäten","Hamburg","privat, kirchlich","Zusammen",30,15,0,0,15,0,0,0,0,15,0,0,14,0,0,1,0]
["Universitäten","Hamburg","zusammen","Zusammen",950,773,145,108,68,300,152,0,0,177,5,0,78,4,7,82,1]
["Universitäten","Hessen","öffentlich","TU Darmstadt",312,256,61,25,0,129,41,0,0,56,0,0,14,6,8,23,5]
["Universitäten","Hessen","öffentlich","U Frankfurt a.M.",576,454,95,73,0,236,50,0,0,122,0,0,28,14,31,44,5]
["Universitäten","Hessen","öffentlich","U Gießen",330,287,60,41,1,122,63,0,0,43,0,0,24,1,3,15,0]
["Universitäten","Hessen","öffentlich","U Kassel",332,271,64,39,1,88,79,0,0,61,0,0,21,4,10,15,11]
["Universitäten","Hessen","öffentlich","U Marburg",313,269,50,57,1,110,51,0,0,44,0,0,22,0,5,15,2]
["Universitäten","Hessen","öffentlich","Zusammen",1863,1537,330,235,3,685,284,0,0,326,0,0,109,25,57,112,23]
["Universitäten","Hessen","privat, kirchlich","Universitätsklinikum Gießen und Marburg",82,77,22,10,0,36,9,0,0,5,0,0,0,4,1,0,0]
["Universitäten","Hessen","privat, kirchlich","Frankfurt School of Finance & Management-HfB (Priv. H)",49,29,0,0,29,0,0,0,0,20,0,0,12,0,0,8,0]
["Universitäten","Hessen","privat, kirchlich","EBS U für Wirtschaft und Recht (Priv.)",35,16,0,0,16,0,0,0,0,19,0,0,12,0,0,7,0]
["Universitäten","Hessen","privat, kirchlich","Zusammen",166,122,22,10,45,36,9,0,0,44,0,0,24,4,1,15,0]
["Universitäten","Hessen","zusammen","Zusammen",2029,1659,352,245,48,721,293,0,0,370,0,0,133,29,58,127,23]
["Universitäten","Mecklenburg-Vorpommern","öffentlich","U Greifswald",191,173,68,34,3,44,24,0,0,18,1,0,1,1,4,11,0]
["Universitäten","Mecklenburg-Vorpommern","öffentlich","U Rostock",272,254,72,56,0,77,49,0,0,18,1,0,0,6,7,4,0]
["Universitäten","Mecklenburg-Vorpommern","öffentlich","Zusammen",463,427,140,90,3,121,73,0,0,36,2,0,1,7,11,15,0]
["Universitäten","Mecklenburg-Vorpommern","zusammen","Zusammen",463,427,140,90,3,121,73,0,0,36,2,0,1,7,11,15,0]
["Universitäten","Niedersachsen","öffentlich","TU Braunschweig",221,205,57,32,0,77,39,0,0,16,0,0,0,2,12,2,0]
["Universitäten","Niedersachsen","öffentlich","TU Clausthal",79,65,25,13,0,20,7,0,0,14,0,0,0,3,8,3,0]
["Universitäten","Niedersachsen","öffentlich","U Göttingen",520,422,79,48,38,176,81,0,0,98,1,0,12,12,36,37,0]
["Universitäten","Niedersachsen","öffentlich","U Hannover",333,285,65,41,0,137,42,0,0,48,0,0,0,9,10,28,1]
["Universitäten","Niedersachsen","öffentlich","Medizinische H Hannover",150,119,13,5,83,10,8,0,0,31,2,0,17,0,0,12,0]
["Universitäten","Niedersachsen","öffentlich","Tierärztliche H Hannover",52,46,14,16,0,9,7,0,0,6,0,0,0,0,2,4,0]
["Universitäten","Niedersachsen","öffentlich","U Hildesheim",82,67,7,8,0,22,30,0,0,15,0,0,0,0,5,10,0]
["Universitäten","Niedersachsen","öffentlich","U Lüneburg",182,116,9,33,21,28,25,0,0,66,0,0,10,3,19,14,20]
["Universitäten","Niedersachsen","öffentlich","U Oldenburg",203,182,16,20,0,80,66,0,0,21,0,0,0,1,2,17,1]
["Universitäten","Niedersachsen","öffentlich","U Osnabrück",215,178,28,24,0,80,46,0,0,37,0,0,0,11,11,15,0]
["Universitäten","Niedersachsen","öffentlich","Universität Vechta",60,49,4,8,0,12,25,0,0,11,0,0,0,0,6,5,0]
["Universitäten","Niedersachsen","öffentlich","Zusammen",2097,1734,317,248,142,651,376,0,0,363,3,0,39,41,111,147,22]
["Universitäten","Niedersachsen","zusammen","Zusammen",2097,1734,317,248,142,651,376,0,0,363,3,0,39,41,111,147,22]
["Universitäten","Nordrhein-Westfalen","öffentlich","TH Aachen",488,311,84,52,0,117,58,0,0,177,23,13,0,44,58,39,0]
["Universitäten","Nordrhein-Westfalen","öffentlich","U Bielefeld",261,224,63,20,0,86,55,0,0,37,0,0,0,9,11,17,0]
["Universitäten","Nordrhein-Westfalen","öffentlich","U Bochum",449,367,98,49,0,140,80,0,0,82,0,0,0,9,16,54,3]
["Universitäten","Nordrhein-Westfalen","öffentlich","U Bonn",546,466,127,77,3,164,95,0,0,80,2,0,1,10,38,29,0]
["Universitäten","Nordrhein-Westfalen","öffentlich","U Dortmund",302,242,71,30,0,86,55,0,0,60,1,0,4,25,11,19,0]
["Universitäten","Nordrhein-Westfalen","öffentlich","U Düsseldorf",326,259,70,39,29,74,47,0,0,67,0,0,9,10,13,30,5]
["Universitäten","Nordrhein-Westfalen","öffentlich","U Duisburg-Essen",495,414,106,40,11,177,80,0,0,81,0,1,0,8,19,22,31]
["Universitäten","Nordrhein-Westfalen","öffentlich","Fernuniversität Hagen",86,74,20,12,0,32,10,0,0,12,0,0,0,7,4,1,0]
["Universitäten","Nordrhein-Westfalen","öffentlich","U Köln",594,469,119,79,3,168,100,0,0,125,2,1,1,7,36,50,28]
["Universitäten","Nordrhein-Westfalen","öffentlich","Deutsche Sporthochschule Köln",30,26,4,3,0,11,8,0,0,4,0,0,0,0,1,3,0]
["Universitäten","Nordrhein-Westfalen","öffentlich","U Münster",613,529,120,90,1,212,106,0,0,84,1,0,0,17,21,45,0]
["Universitäten","Nordrhein-Westfalen","öffentlich","U Paderborn",230,191,38,24,0,87,42,0,0,39,0,0,0,8,13,18,0]
["Universitäten","Nordrhein-Westfalen","öffentlich","U Siegen",244,199,33,44,6,73,43,0,0,45,0,0,0,5,24,16,0]
["Universitäten","Nordrhein-Westfalen","öffentlich","U Wuppertal",254,204,33,39,2,79,51,0,0,50,2,4,0,7,19,18,0]
["Universitäten","Nordrhein-Westfalen","öffentlich","Deutsche Hochschule der Polizei, Münster ",6,6,0,0,0,2,4,0,0,0,0,0,0,0,0,0,0]
["Universitäten","Nordrhein-Westfalen","öffentlich","Zusammen",4924,3981,986,598,55,1508,834,0,0,943,31,19,15,166,284,361,67]
["Universitäten","Nordrhein-Westfalen","privat, kirchlich","Universität Witten-Herdecke (Priv. H)",55,34,0,0,34,0,0,0,0,21,0,0,18,0,0,3,0]
["Universitäten","Nordrhein-Westfalen","privat, kirchlich","Zusammen",55,34,0,0,34,0,0,0,0,21,0,0,18,0,0,3,0]
["Universitäten","Nordrhein-Westfalen","zusammen","Zusammen",4979,4015,986,598,89,1508,834,0,0,964,31,19,33,166,284,364,67]
["Universitäten","Rheinland-Pfalz","öffentlich","TU Kaiserslautern",212,159,39,17,0,61,42,0,0,53,6,5,0,1,6,35,0]
["Universitäten","Rheinland-Pfalz","öffentlich","U Koblenz-Landau",149,131,18,31,0,44,38,0,0,18,0,0,0,0,5,13,0]
["Universitäten","Rheinland-Pfalz","öffentlich","U Mainz",412,329,78,58,0,107,86,0,0,83,3,1,1,12,28,38,0]
["Universitäten","Rheinland-Pfalz","öffentlich","Universitätsmedizin der U Mainz",72,48,0,0,48,0,0,0,0,24,0,0,24,0,0,0,0]
["Universitäten","Rheinland-Pfalz","öffentlich","Deutsche Universität für Verwaltungswissenschaften Speyer",18,15,8,0,0,7,0,0,0,3,0,0,2,0,0,0,1]
["Universitäten","Rheinland-Pfalz","öffentlich","U Trier",161,134,21,16,0,70,27,0,0,27,0,0,0,3,15,9,0]
["Universitäten","Rheinland-Pfalz","öffentlich","Zusammen",1024,816,164,122,48,289,193,0,0,208,9,6,27,16,54,95,1]
["Universitäten","Rheinland-Pfalz","privat, kirchlich","Priv. wiss. H für Unternehmensführung, Vallendar",47,32,0,0,32,0,0,0,0,15,0,0,5,0,0,10,0]
["Universitäten","Rheinland-Pfalz","privat, kirchlich","Zusammen",47,32,0,0,32,0,0,0,0,15,0,0,5,0,0,10,0]
["Universitäten","Rheinland-Pfalz","zusammen","Zusammen",1071,848,164,122,80,289,193,0,0,223,9,6,32,16,54,105,1]
["Universitäten","Saarland","öffentlich","U des Saarlandes Saarbrücken",290,255,61,27,1,148,18,0,0,35,1,0,3,3,10,18,0]
["Universitäten","Saarland","öffentlich","Zusammen",290,255,61,27,1,148,18,0,0,35,1,0,3,3,10,18,0]
["Universitäten","Saarland","zusammen","Zusammen",290,255,61,27,1,148,18,0,0,35,1,0,3,3,10,18,0]
["Universitäten","Sachsen","öffentlich","TU Chemnitz",170,136,41,22,5,52,16,0,0,34,2,0,13,0,2,17,0]
["Universitäten","Sachsen","öffentlich","TU Dresden",506,438,126,73,0,153,86,0,0,68,1,0,1,12,31,21,2]
["Universitäten","Sachsen","öffentlich","TU Dresden (Med. Fakultät)",52,45,10,13,0,10,12,0,0,7,0,0,0,2,5,0,0]
["Universitäten","Sachsen","öffentlich","TU Bergakademie Freiberg",90,80,29,17,0,29,5,0,0,10,0,0,0,4,2,4,0]
["Universitäten","Sachsen","öffentlich","U Leipzig",411,351,96,54,44,98,59,0,0,60,0,1,33,0,5,20,1]
["Universitäten","Sachsen","öffentlich","U Leipzig (Med. Fakultät)",56,49,17,20,2,7,3,0,0,7,0,0,2,1,4,0,0]
["Universitäten","Sachsen","öffentlich","Zusammen",1285,1099,319,199,51,349,181,0,0,186,3,1,49,19,49,62,3]
["Universitäten","Sachsen","privat, kirchlich","HHL Leipzig Graduate School of Management (Priv. U)",14,9,0,0,9,0,0,0,0,5,0,0,2,0,0,3,0]
["Universitäten","Sachsen","privat, kirchlich","Zusammen",14,9,0,0,9,0,0,0,0,5,0,0,2,0,0,3,0]
["Universitäten","Sachsen","zusammen","Zusammen",1299,1108,319,199,60,349,181,0,0,191,3,1,51,19,49,65,3]
["Universitäten","Sachsen-Anhalt","öffentlich","U Halle",372,340,96,72,30,101,41,0,0,32,0,0,1,3,21,7,0]
["Universitäten","Sachsen-Anhalt","öffentlich","U Magdeburg",215,177,65,26,0,57,29,0,0,38,0,0,2,1,11,24,0]
["Universitäten","Sachsen-Anhalt","öffentlich","Zusammen",587,517,161,98,30,158,70,0,0,70,0,0,3,4,32,31,0]
["Universitäten","Sachsen-Anhalt","zusammen","Zusammen",587,517,161,98,30,158,70,0,0,70,0,0,3,4,32,31,0]
["Universitäten","Schleswig-Holstein","öffentlich","U Flensburg",65,54,8,13,1,23,9,0,0,11,0,0,0,3,1,7,0]
["Universitäten","Schleswig-Holstein","öffentlich","U Kiel",451,372,88,58,0,140,86,0,0,79,5,0,0,3,20,40,11]
["Universitäten","Schleswig-Holstein","öffentlich","U Lübeck",44,32,9,0,0,15,8,0,0,12,1,0,0,1,4,6,0]
["Universitäten","Schleswig-Holstein","öffentlich","Zusammen",560,458,105,71,1,178,103,0,0,102,6,0,0,7,25,53,11]
["Universitäten","Schleswig-Holstein","zusammen","Zusammen",560,458,105,71,1,178,103,0,0,102,6,0,0,7,25,53,11]
["Universitäten","Thüringen","öffentlich","U Erfurt",107,81,23,13,0,27,18,0,0,26,0,0,0,3,9,6,8]
["Universitäten","Thüringen","öffentlich","TU Ilmenau",104,84,23,12,3,33,13,0,0,20,0,0,2,5,4,9,0]
["Universitäten","Thüringen","öffentlich","U Jena",385,299,70,46,21,124,38,0,0,86,4,0,11,20,31,20,0]
["Universitäten","Thüringen","öffentlich","Bauhaus-U Weimar",100,65,19,14,0,17,15,0,0,35,0,0,0,6,2,18,9]
["Universitäten","Thüringen","öffentlich","Zusammen",696,529,135,85,24,201,84,0,0,167,4,0,13,34,46,53,17]
["Universitäten","Thüringen","zusammen","Zusammen",696,529,135,85,24,201,84,0,0,167,4,0,13,34,46,53,17]
["Universitäten","Zusammen","zusammen","Zusammen",24001,19467,4536,2863,784,7944,3340,0,0,4534,120,47,627,582,1184,1579,395]
["Pädagogische Hochschulen","Baden-Württemberg","öffentlich","PH Freiburg i.Br.",58,49,10,15,0,23,1,0,0,9,0,0,0,7,0,1,1]
["Pädagogische Hochschulen","Baden-Württemberg","öffentlich","PH Heidelberg",69,61,8,4,0,49,0,0,0,8,0,0,0,4,1,3,0]
["Pädagogische Hochschulen","Baden-Württemberg","öffentlich","PH Karlsruhe",50,46,10,7,3,26,0,0,0,4,0,0,2,0,0,2,0]
["Pädagogische Hochschulen","Baden-Württemberg","öffentlich","PH Ludwigsburg",81,72,10,18,0,44,0,0,0,9,0,0,0,5,4,0,0]
["Pädagogische Hochschulen","Baden-Württemberg","öffentlich","PH Schwäbisch Gmünd",43,37,5,5,0,26,1,0,0,6,0,0,0,1,1,4,0]
["Pädagogische Hochschulen","Baden-Württemberg","öffentlich","PH Weingarten",46,41,6,10,0,25,0,0,0,5,0,0,0,3,0,2,0]
["Pädagogische Hochschulen","Baden-Württemberg","öffentlich","Zusammen",347,306,49,59,3,193,2,0,0,41,0,0,2,20,6,12,1]
["Pädagogische Hochschulen","Baden-Württemberg","zusammen","Zusammen",347,306,49,59,3,193,2,0,0,41,0,0,2,20,6,12,1]
["Pädagogische Hochschulen","Zusammen","zusammen","Zusammen",347,306,49,59,3,193,2,0,0,41,0,0,2,20,6,12,1]
["Theologische Hochschulen","Bayern","privat, kirchlich","H für Philosophie München (rk)",10,10,0,0,10,0,0,0,0,0,0,0,0,0,0,0,0]
["Theologische Hochschulen","Bayern","privat, kirchlich","Augustana-H Neuendettelsau (ev)",8,8,5,0,1,2,0,0,0,0,0,0,0,0,0,0,0]
["Theologische Hochschulen","Bayern","privat, kirchlich","Zusammen",18,18,5,0,11,2,0,0,0,0,0,0,0,0,0,0,0]
["Theologische Hochschulen","Bayern","zusammen","Zusammen",18,18,5,0,11,2,0,0,0,0,0,0,0,0,0,0,0]
["Theologische Hochschulen","Hessen","privat, kirchlich","Phil.-Theol. H Frankfurt a.M. (rk)",13,10,7,0,0,3,0,0,0,3,0,0,0,1,0,1,1]
["Theologische Hochschulen","Hessen","privat, kirchlich","Theol. Fakultät Fulda (rk)",11,11,7,0,0,4,0,0,0,0,0,0,0,0,0,0,0]
["Theologische Hochschulen","Hessen","privat, kirchlich","Luth.-Theol. H Oberursel (ev)",5,2,0,0,2,0,0,0,0,3,0,0,3,0,0,0,0]
["Theologische Hochschulen","Hessen","privat, kirchlich","Theologische H Ewersbach in Dietzhölztal (Priv.)",5,5,0,0,5,0,0,0,0,0,0,0,0,0,0,0,0]
["Theologische Hochschulen","Hessen","privat, kirchlich","Freie Theologische H (FTH) Gießen (Priv.)",6,6,0,0,6,0,0,0,0,0,0,0,0,0,0,0,0]
["Theologische Hochschulen","Hessen","privat, kirchlich","Evangelische Hochschule Tabor in Marburg (Priv.)",7,7,0,0,7,0,0,0,0,0,0,0,0,0,0,0,0]
["Theologische Hochschulen","Hessen","privat, kirchlich","Zusammen",47,41,14,0,20,7,0,0,0,6,0,0,3,1,0,1,1]
["Theologische Hochschulen","Hessen","zusammen","Zusammen",47,41,14,0,20,7,0,0,0,6,0,0,3,1,0,1,1]
["Theologische Hochschulen","Nordrhein-Westfalen","privat, kirchlich","H für Kirchenmusik der evang. Kirche von Westfalen, Herford",10,10,0,0,10,0,0,0,0,0,0,0,0,0,0,0,0]
["Theologische Hochschulen","Nordrhein-Westfalen","privat, kirchlich","Phil.-Theol. H Münster (rk)",2,2,0,0,2,0,0,0,0,0,0,0,0,0,0,0,0]
["Theologische Hochschulen","Nordrhein-Westfalen","privat, kirchlich","Theol. Fakultät Paderborn (rk)",14,14,10,2,0,2,0,0,0,0,0,0,0,0,0,0,0]
["Theologische Hochschulen","Nordrhein-Westfalen","privat, kirchlich","Phil.-Theol. H St. Augustin (rk)",8,8,0,0,8,0,0,0,0,0,0,0,0,0,0,0,0]
["Theologische Hochschulen","Nordrhein-Westfalen","privat, kirchlich","Kirchliche Hochschule Wuppertal / Bethel (ev)",11,9,6,0,0,3,0,0,0,2,0,0,0,1,0,1,0]
["Theologische Hochschulen","Nordrhein-Westfalen","privat, kirchlich","Zusammen",45,43,16,2,20,5,0,0,0,2,0,0,0,1,0,1,0]
["Theologische Hochschulen","Nordrhein-Westfalen","zusammen","Zusammen",45,43,16,2,20,5,0,0,0,2,0,0,0,1,0,1,0]
["Theologische Hochschulen","Rheinland-Pfalz","privat, kirchlich","Theol. Fakultät Trier",15,15,14,0,1,0,0,0,0,0,0,0,0,0,0,0,0]
["Theologische Hochschulen","Rheinland-Pfalz","privat, kirchlich","Theol. H Vallendar",20,15,0,0,15,0,0,0,0,5,0,0,3,0,0,2,0]
["Theologische Hochschulen","Rheinland-Pfalz","privat, kirchlich","Zusammen",35,30,14,0,16,0,0,0,0,5,0,0,3,0,0,2,0]
["Theologische Hochschulen","Rheinland-Pfalz","zusammen","Zusammen",35,30,14,0,16,0,0,0,0,5,0,0,3,0,0,2,0]
["Theologische Hochschulen","Sachsen-Anhalt","privat, kirchlich","Theol. H Friedensau",6,4,0,0,4,0,0,0,0,2,0,0,2,0,0,0,0]
["Theologische Hochschulen","Sachsen-Anhalt","privat, kirchlich","Zusammen",6,4,0,0,4,0,0,0,0,2,0,0,2,0,0,0,0]
["Theologische Hochschulen","Sachsen-Anhalt","zusammen","Zusammen",6,4,0,0,4,0,0,0,0,2,0,0,2,0,0,0,0]
["Theologische Hochschulen","Zusammen","zusammen","Zusammen",151,136,49,2,71,14,0,0,0,15,0,0,8,2,0,4,1]
["Kunsthochschulen","Baden-Württemberg","öffentlich","Staatl. H für Musik Freiburg i.Br.",58,53,0,23,10,16,4,0,0,5,0,0,0,4,1,0,0]
["Kunsthochschulen","Baden-Württemberg","öffentlich","Staatl. Akademie der Bildenden Künste Karlsruhe",21,16,6,4,0,3,3,0,0,5,0,0,0,4,0,0,1]
["Kunsthochschulen","Baden-Württemberg","öffentlich","Staatl. H für Gestaltung Karlsruhe",15,3,0,0,0,2,1,0,0,12,0,0,0,12,0,0,0]
["Kunsthochschulen","Baden-Württemberg","öffentlich","Staatl. H für Musik Karlsruhe",51,49,3,0,0,38,8,0,0,2,0,0,0,1,0,1,0]
["Kunsthochschulen","Baden-Württemberg","öffentlich","Staatl. H für Musik und Darstellende Kunst Mannheim",57,48,9,8,7,19,5,0,0,9,0,0,0,7,2,0,0]
["Kunsthochschulen","Baden-Württemberg","öffentlich","Staatl. Akademie der Bildenden Künste Stuttgart",52,45,18,5,2,16,4,0,0,7,0,0,0,1,2,0,4]
["Kunsthochschulen","Baden-Württemberg","öffentlich","Staatl. H für Musik und Darstellende Kunst Stuttgart",73,53,9,5,12,17,10,0,0,20,0,0,7,7,5,1,0]
["Kunsthochschulen","Baden-Württemberg","öffentlich","Staatl. H für Musik Trossingen",39,33,8,7,11,5,2,0,0,6,0,0,5,1,0,0,0]
["Kunsthochschulen","Baden-Württemberg","öffentlich","Zusammen",366,300,53,52,42,116,37,0,0,66,0,0,12,37,10,2,5]
["Kunsthochschulen","Baden-Württemberg","zusammen","Zusammen",366,300,53,52,42,116,37,0,0,66,0,0,12,37,10,2,5]
["Kunsthochschulen","Bayern","öffentlich","Akademie der Bildenden Künste München",35,27,8,8,0,7,4,0,0,8,0,0,0,3,0,1,4]
["Kunsthochschulen","Bayern","öffentlich","H für Fernsehen und Film München",12,4,4,0,0,0,0,0,0,8,2,1,0,4,1,0,0]
["Kunsthochschulen","Bayern","öffentlich","H für Musik und Theater München",83,80,20,12,2,26,20,0,0,3,0,0,0,2,1,0,0]
["Kunsthochschulen","Bayern","öffentlich","Akademie der Bildenden Künste Nürnberg",19,10,3,0,0,6,1,0,0,9,0,0,0,6,3,0,0]
["Kunsthochschulen","Bayern","öffentlich","H für Musik Nürnberg",31,29,6,6,0,6,11,0,0,2,0,0,0,2,0,0,0]
["Kunsthochschulen","Bayern","öffentlich","H für Musik Würzburg",48,45,10,13,1,14,7,0,0,3,0,0,0,1,2,0,0]
["Kunsthochschulen","Bayern","öffentlich","Zusammen",228,195,51,39,3,59,43,0,0,33,2,1,0,18,7,1,4]
["Kunsthochschulen","Bayern","privat, kirchlich","H für evang. Kirchenmusik Bayreuth",6,6,0,1,4,0,1,0,0,0,0,0,0,0,0,0,0]
["Kunsthochschulen","Bayern","privat, kirchlich","H für Kath. Kirchenmusik und Musikpädagogik, Regensburg",6,6,1,2,2,0,1,0,0,0,0,0,0,0,0,0,0]
["Kunsthochschulen","Bayern","privat, kirchlich","Zusammen",12,12,1,3,6,0,2,0,0,0,0,0,0,0,0,0,0]
["Kunsthochschulen","Bayern","zusammen","Zusammen",240,207,52,42,9,59,45,0,0,33,2,1,0,18,7,1,4]
["Kunsthochschulen","Berlin","öffentlich","U der Künste Berlin",227,152,28,20,25,45,34,0,0,75,0,0,3,3,2,5,62]
["Kunsthochschulen","Berlin","öffentlich","Kunsthochschule Berlin",46,29,4,2,1,11,11,0,0,17,0,0,0,5,1,0,11]
["Kunsthochschulen","Berlin","öffentlich","H für Musik Berlin",70,41,15,10,5,10,1,0,0,29,0,0,0,1,4,0,24]
["Kunsthochschulen","Berlin","öffentlich","H für Schauspielkunst Berlin",28,19,3,3,4,7,2,0,0,9,0,0,0,1,5,0,3]
["Kunsthochschulen","Berlin","öffentlich","Zusammen",371,241,50,35,35,73,48,0,0,130,0,0,3,10,12,5,100]
["Kunsthochschulen","Berlin","privat, kirchlich","ESMOD Berlin Internationale Kunsthochschule für Mode (Priv.)",2,2,0,0,2,0,0,0,0,0,0,0,0,0,0,0,0]
["Kunsthochschulen","Berlin","privat, kirchlich","Zusammen",2,2,0,0,2,0,0,0,0,0,0,0,0,0,0,0,0]
["Kunsthochschulen","Berlin","zusammen","Zusammen",373,243,50,35,37,73,48,0,0,130,0,0,3,10,12,5,100]
["Kunsthochschulen","Bremen","öffentlich","H für Künste Bremen",65,56,5,13,8,17,13,0,0,9,0,0,0,1,5,0,3]
["Kunsthochschulen","Bremen","öffentlich","Zusammen",65,56,5,13,8,17,13,0,0,9,0,0,0,1,5,0,3]
["Kunsthochschulen","Bremen","zusammen","Zusammen",65,56,5,13,8,17,13,0,0,9,0,0,0,1,5,0,3]
["Kunsthochschulen","Hamburg","öffentlich","H für Bildende Künste Hamburg",34,34,2,7,1,17,7,0,0,0,0,0,0,0,0,0,0]
["Kunsthochschulen","Hamburg","öffentlich","H für Musik und Theater Hamburg",27,11,0,1,1,4,5,0,0,16,0,0,0,0,0,0,16]
["Kunsthochschulen","Hamburg","öffentlich","Zusammen",61,45,2,8,2,21,12,0,0,16,0,0,0,0,0,0,16]
["Kunsthochschulen","Hamburg","zusammen","Zusammen",61,45,2,8,2,21,12,0,0,16,0,0,0,0,0,0,16]
["Kunsthochschulen","Hessen","öffentlich","H für Bildende Künste Frankfurt a.M. (Städelschule)",12,2,2,0,0,0,0,0,0,10,2,2,0,2,4,0,0]
["Kunsthochschulen","Hessen","öffentlich","H für Musik und Darstellende Kunst Frankfurt a.M.",63,59,7,12,9,15,16,0,0,4,0,0,2,1,1,0,0]
["Kunsthochschulen","Hessen","öffentlich","H für Gestaltung Offenbach",25,16,4,4,1,1,6,0,0,9,0,0,2,0,7,0,0]
["Kunsthochschulen","Hessen","öffentlich","Zusammen",100,77,13,16,10,16,22,0,0,23,2,2,4,3,12,0,0]
["Kunsthochschulen","Hessen","zusammen","Zusammen",100,77,13,16,10,16,22,0,0,23,2,2,4,3,12,0,0]
["Kunsthochschulen","Mecklenburg-Vorpommern","öffentlich","H für Musik und Theater, Rostock",27,23,4,4,2,5,8,0,0,4,0,0,0,2,1,1,0]
["Kunsthochschulen","Mecklenburg-Vorpommern","öffentlich","Zusammen",27,23,4,4,2,5,8,0,0,4,0,0,0,2,1,1,0]
["Kunsthochschulen","Mecklenburg-Vorpommern","zusammen","Zusammen",27,23,4,4,2,5,8,0,0,4,0,0,0,2,1,1,0]
["Kunsthochschulen","Niedersachsen","öffentlich","H für Bildende Künste Braunschweig",46,33,6,9,3,7,8,0,0,13,0,0,0,2,10,0,1]
["Kunsthochschulen","Niedersachsen","öffentlich","Hochschule für Musik, Theater und Medien Hannover",90,81,13,17,12,21,18,0,0,9,0,0,0,2,7,0,0]
["Kunsthochschulen","Niedersachsen","öffentlich","Zusammen",136,114,19,26,15,28,26,0,0,22,0,0,0,4,17,0,1]
["Kunsthochschulen","Niedersachsen","zusammen","Zusammen",136,114,19,26,15,28,26,0,0,22,0,0,0,4,17,0,1]
["Kunsthochschulen","Nordrhein-Westfalen","öffentlich","H für Musik Detmold",54,48,10,11,0,15,12,0,0,6,0,0,0,4,2,0,0]
["Kunsthochschulen","Nordrhein-Westfalen","öffentlich","Kunstakademie Düsseldorf",39,34,3,5,11,10,5,0,0,5,0,0,4,0,1,0,0]
["Kunsthochschulen","Nordrhein-Westfalen","öffentlich","Robert-Schumann-H Düsseldorf",43,42,5,9,14,11,3,0,0,1,0,0,1,0,0,0,0]
["Kunsthochschulen","Nordrhein-Westfalen","öffentlich","Folkwang-Hochschule Essen",99,95,16,36,1,11,31,0,0,4,0,0,0,1,3,0,0]
["Kunsthochschulen","Nordrhein-Westfalen","öffentlich","KH für Medien Köln",30,25,4,7,0,9,5,0,0,5,0,1,0,2,1,0,1]
["Kunsthochschulen","Nordrhein-Westfalen","öffentlich","H für Musik Köln",115,104,25,39,0,12,28,0,0,11,0,1,0,4,6,0,0]
["Kunsthochschulen","Nordrhein-Westfalen","öffentlich","Kunstakademie Münster",22,15,2,3,0,6,4,0,0,7,0,0,0,2,0,0,5]
["Kunsthochschulen","Nordrhein-Westfalen","öffentlich","Zusammen",402,363,65,110,26,74,88,0,0,39,0,2,5,13,13,0,6]
["Kunsthochschulen","Nordrhein-Westfalen","privat, kirchlich","Alanus H Alfter (Priv. H)",42,29,0,0,29,0,0,0,0,13,0,0,5,0,0,8,0]
["Kunsthochschulen","Nordrhein-Westfalen","privat, kirchlich","Hochschule der bildenden Künste (HBK) Essen  (Priv. Kunst-H)",4,4,0,0,4,0,0,0,0,0,0,0,0,0,0,0,0]
["Kunsthochschulen","Nordrhein-Westfalen","privat, kirchlich","Zusammen",46,33,0,0,33,0,0,0,0,13,0,0,5,0,0,8,0]
["Kunsthochschulen","Nordrhein-Westfalen","zusammen","Zusammen",448,396,65,110,59,74,88,0,0,52,0,2,10,13,13,8,6]
["Kunsthochschulen","Saarland","öffentlich","H der Bildenden Künste Saarbrücken",17,15,1,2,0,12,0,0,0,2,0,0,0,2,0,0,0]
["Kunsthochschulen","Saarland","öffentlich","Hochschule für Musik, Saarbrücken",41,41,7,7,4,13,10,0,0,0,0,0,0,0,0,0,0]
["Kunsthochschulen","Saarland","öffentlich","Zusammen",58,56,8,9,4,25,10,0,0,2,0,0,0,2,0,0,0]
["Kunsthochschulen","Saarland","zusammen","Zusammen",58,56,8,9,4,25,10,0,0,2,0,0,0,2,0,0,0]
["Kunsthochschulen","Sachsen","öffentlich","H für Bildende Künste Dresden",31,25,0,0,0,13,12,0,0,6,0,0,0,0,6,0,0]
["Kunsthochschulen","Sachsen","öffentlich","H für Musik Dresden",71,55,9,9,14,13,10,0,0,16,0,0,0,10,6,0,0]
["Kunsthochschulen","Sachsen","öffentlich","Palucca Hochschule für Tanz Dresden",9,7,0,0,0,0,7,0,0,2,0,0,0,1,1,0,0]
["Kunsthochschulen","Sachsen","öffentlich","H für Graphik und Buchkunst Leipzig",33,22,3,3,4,6,6,0,0,11,0,0,0,5,5,1,0]
["Kunsthochschulen","Sachsen","öffentlich","H für Musik und Theater Leipzig",77,70,12,11,10,20,17,0,0,7,0,0,0,2,5,0,0]
["Kunsthochschulen","Sachsen","öffentlich","Zusammen",221,179,24,23,28,52,52,0,0,42,0,0,0,18,23,1,0]
["Kunsthochschulen","Sachsen","privat, kirchlich","H für Kirchenmusik der Evang.-Luth. Landeskirche Sachsens, Dresden",5,5,0,0,5,0,0,0,0,0,0,0,0,0,0,0,0]
["Kunsthochschulen","Sachsen","privat, kirchlich","Zusammen",5,5,0,0,5,0,0,0,0,0,0,0,0,0,0,0,0]
["Kunsthochschulen","Sachsen","zusammen","Zusammen",226,184,24,23,33,52,52,0,0,42,0,0,0,18,23,1,0]
["Kunsthochschulen","Sachsen-Anhalt","öffentlich","Burg Giebichenstein Kunsthochschule Halle",46,35,6,5,11,3,10,0,0,11,0,0,0,0,11,0,0]
["Kunsthochschulen","Sachsen-Anhalt","öffentlich","Zusammen",46,35,6,5,11,3,10,0,0,11,0,0,0,0,11,0,0]
["Kunsthochschulen","Sachsen-Anhalt","privat, kirchlich","Evang. H für Kirchenmusik Halle",1,1,0,0,1,0,0,0,0,0,0,0,0,0,0,0,0]
["Kunsthochschulen","Sachsen-Anhalt","privat, kirchlich","Zusammen",1,1,0,0,1,0,0,0,0,0,0,0,0,0,0,0,0]
["Kunsthochschulen","Sachsen-Anhalt","zusammen","Zusammen",47,36,6,5,12,3,10,0,0,11,0,0,0,0,11,0,0]
["Kunsthochschulen","Schleswig-Holstein","öffentlich","Muthesius Kunsthochschule Kiel",27,24,0,7,0,1,16,0,0,3,0,0,0,3,0,0,0]
["Kunsthochschulen","Schleswig-Holstein","öffentlich","Musikhochschule Lübeck",30,26,7,6,4,5,4,0,0,4,0,0,0,1,3,0,0]
["Kunsthochschulen","Schleswig-Holstein","öffentlich","Zusammen",57,50,7,13,4,6,20,0,0,7,0,0,0,4,3,0,0]
["Kunsthochschulen","Schleswig-Holstein","zusammen","Zusammen",57,50,7,13,4,6,20,0,0,7,0,0,0,4,3,0,0]
["Kunsthochschulen","Thüringen","öffentlich","H für Musik Weimar",70,64,16,24,9,11,4,0,0,6,0,0,0,2,4,0,0]
["Kunsthochschulen","Thüringen","öffentlich","Zusammen",70,64,16,24,9,11,4,0,0,6,0,0,0,2,4,0,0]
["Kunsthochschulen","Thüringen","zusammen","Zusammen",70,64,16,24,9,11,4,0,0,6,0,0,0,2,4,0,0]
["Kunsthochschulen","Zusammen","zusammen","Zusammen",2274,1851,324,380,246,506,395,0,0,423,4,5,29,114,118,18,135]
["Insgesamt","Zusammen","zusammen","Zusammen",26773,21760,4958,3304,1104,8657,3737,0,0,5013,124,52,666,718,1308,1613,532]
["  darunter Universitäten",null,null,null,24001,19467,4536,2863,784,7944,3340,0,0,4534,120,47,627,582,1184,1579,395]

{"sheet":"7.2","index":32,"n_rows":287,"n_cols":21,"rows_kept":287,"cut":false,"hidden":false,"merged":[[5,4,6,20],[7,5,8,12],[7,13,8,20]]}
["Statistisches Bundesamt"]
["H201 - Hochschulstatistik"]
[]
["Professoren nach ausgewählten Hochschularten, Land, Trägerschaft und Hochschule 2014"]
[]
[null,null,null,null,"Professoren in Personen (hauptberuflich, mit drittmittelfinanziertem Personal)"]
[]
[null,null,null,null,null,"auf Dauer",null,null,null,null,null,null,null,"auf Zeit"]
["Hochschulart","Land","Trägerschaft","Hochschule"]
[null,null,null,null,"Insgesamt",null,"C4","C3","C2",null,null,null,"Gast-",null,"C4","C3","C2",null,null,null,"Gast-"]
[null,null,null,null,null,"zusammen","und","und","und","W3","W2","Junior-","professoren","zusammen","und","und","und","W3","W2","Junior-","professoren"]
[null,null,null,null,null,null,"entspr. Bg.","entspr. Bg.","entspr. Bg.",null,null,"prof.","(hauptberufl.)",null,"entspr. Bg.","entspr. Bg.","entspr. Bg.",null,null,"prof.","(hauptberufl.)"]
["Universitäten","Baden-Württemberg","öffentlich","U Freiburg i.Br.",415,350,98,58,7,187,0,0,0,65,5,0,8,11,12,26,3]
["Universitäten","Baden-Württemberg","öffentlich","U Heidelberg",497,428,122,59,17,230,0,0,0,69,0,1,34,12,1,14,7]
["Universitäten","Baden-Württemberg","öffentlich","U Hohenheim",133,120,38,18,0,64,0,0,0,13,0,0,0,3,7,3,0]
["Universitäten","Baden-Württemberg","öffentlich","Karlsruher Institut für Technologie (KIT) - Bereich Hochschule",296,253,64,28,0,161,0,0,0,43,1,0,0,20,6,14,2]
["Universitäten","Baden-Württemberg","öffentlich","U Konstanz",194,166,46,18,0,102,0,0,0,28,0,0,0,1,3,24,0]
["Universitäten","Baden-Württemberg","öffentlich","U Mannheim",187,126,28,6,0,92,0,0,0,61,0,0,0,16,6,39,0]
["Universitäten","Baden-Württemberg","öffentlich","U Stuttgart",277,253,83,30,0,140,0,0,0,24,0,0,0,3,0,21,0]
["Universitäten","Baden-Württemberg","öffentlich","U Tübingen",496,410,93,50,5,260,2,0,0,86,12,0,2,5,8,55,4]
["Universitäten","Baden-Württemberg","öffentlich","U Ulm",223,191,37,35,2,117,0,0,0,32,3,1,0,4,0,15,9]
["Universitäten","Baden-Württemberg","öffentlich","Zusammen",2718,2297,609,302,31,1353,2,0,0,421,21,2,44,75,43,211,25]
["Universitäten","Baden-Württemberg","privat, kirchlich","Zeppelin Universität Friedrichshafen (Priv. H)",31,25,0,0,25,0,0,0,0,6,0,0,3,0,0,3,0]
["Universitäten","Baden-Württemberg","privat, kirchlich","AKAD, Wissenschaftliche H Lahr (Priv. Fern-H für Berufstätige)",6,2,0,0,2,0,0,0,0,4,0,0,4,0,0,0,0]
["Universitäten","Baden-Württemberg","privat, kirchlich","Priv. wiss. H Stuttgart, Seminar für Waldorfpädagogik",9,9,0,0,9,0,0,0,0,0,0,0,0,0,0,0,0]
["Universitäten","Baden-Württemberg","privat, kirchlich","H für jüdische Studien Heidelberg",8,3,0,0,3,0,0,0,0,5,0,0,3,0,0,2,0]
["Universitäten","Baden-Württemberg","privat, kirchlich","Zusammen",54,39,0,0,39,0,0,0,0,15,0,0,10,0,0,5,0]
["Universitäten","Baden-Württemberg","zusammen","Zusammen",2772,2336,609,302,70,1353,2,0,0,436,21,2,54,75,43,216,25]
["Universitäten","Bayern","öffentlich","U Augsburg",208,172,32,16,0,85,39,0,0,36,0,0,0,6,21,8,1]
["Universitäten","Bayern","öffentlich","U Bamberg",149,128,24,11,0,56,37,0,0,21,0,0,0,6,5,10,0]
["Universitäten","Bayern","öffentlich","U Bayreuth",234,200,40,14,1,103,42,0,0,34,0,0,3,6,8,13,4]
["Universitäten","Bayern","öffentlich","U Erlangen-Nürnberg",575,484,102,72,0,180,130,0,0,91,0,0,0,22,41,20,8]
["Universitäten","Bayern","öffentlich","U München",727,543,116,119,0,214,94,0,0,184,0,0,0,34,110,19,21]
["Universitäten","Bayern","öffentlich","TU München",483,405,97,45,0,189,74,0,0,78,0,1,1,11,57,5,3]
["Universitäten","Bayern","öffentlich","U der Bundeswehr München",168,145,34,31,9,50,21,0,0,23,1,0,15,1,4,2,0]
["Universitäten","Bayern","öffentlich","U Passau",120,109,26,7,0,55,21,0,0,11,0,0,0,6,3,2,0]
["Universitäten","Bayern","öffentlich","U Regensburg",327,274,84,33,0,90,67,0,0,53,4,2,2,11,32,2,0]
["Universitäten","Bayern","öffentlich","U Würzburg",420,358,72,57,0,137,92,0,0,62,0,1,3,8,44,6,0]
["Universitäten","Bayern","öffentlich","Zusammen",3411,2818,627,405,10,1159,617,0,0,593,5,4,24,111,325,87,37]
["Universitäten","Bayern","privat, kirchlich","Kath. U Eichstätt-Ingolstadt",115,84,16,17,0,28,23,0,0,31,7,3,0,12,6,2,1]
["Universitäten","Bayern","privat, kirchlich","Zusammen",115,84,16,17,0,28,23,0,0,31,7,3,0,12,6,2,1]
["Universitäten","Bayern","zusammen","Zusammen",3526,2902,643,422,10,1187,640,0,0,624,12,7,24,123,331,89,38]
["Universitäten","Berlin","öffentlich","FU Berlin",538,328,81,35,0,134,78,0,0,210,1,1,0,2,36,108,62]
["Universitäten","Berlin","öffentlich","TU Berlin",348,271,63,28,0,155,25,0,0,77,14,4,0,6,5,15,33]
["Universitäten","Berlin","öffentlich","Charite - Universitätsmedizin Berlin",258,174,34,23,45,34,38,0,0,84,7,2,42,2,24,7,0]
["Universitäten","Berlin","öffentlich","Humboldt-Universität Berlin",474,353,78,49,0,177,49,0,0,121,0,0,0,5,19,41,56]
["Universitäten","Berlin","öffentlich","Zusammen",1618,1126,256,135,45,500,190,0,0,492,22,7,42,15,84,171,151]
["Universitäten","Berlin","privat, kirchlich","ESCP Europe Wirtschaftshochschule Berlin (Priv. H)",9,8,4,0,0,4,0,0,0,1,0,0,0,0,0,1,0]
["Universitäten","Berlin","privat, kirchlich","Europ. School of Management and Technology, Berlin (Priv. H)",22,10,0,0,10,0,0,0,0,12,0,0,10,0,0,2,0]
["Universitäten","Berlin","privat, kirchlich","Hertie School of Governance Berlin (Priv. wiss. H)",20,10,0,0,10,0,0,0,0,10,0,0,10,0,0,0,0]
["Universitäten","Berlin","privat, kirchlich","Steinbeis-H Berlin (Priv. H)",1,0,0,0,0,0,0,0,0,1,0,0,1,0,0,0,0]
["Universitäten","Berlin","privat, kirchlich","Deutsche Universität für Weiterbildung Berlin (Priv. wiss. H)",1,0,0,0,0,0,0,0,0,1,0,0,1,0,0,0,0]
["Universitäten","Berlin","privat, kirchlich","International Psychoanalytic University Berlin (Priv.)",20,14,0,0,14,0,0,0,0,6,0,0,5,0,0,1,0]
["Universitäten","Berlin","privat, kirchlich","Psychologische Hochschule Berlin (Priv. U)",6,6,0,0,6,0,0,0,0,0,0,0,0,0,0,0,0]
["Universitäten","Berlin","privat, kirchlich","Bard College Berlin, A Liberal Arts University (Priv. U)",12,6,0,0,6,0,0,0,0,6,0,0,1,0,0,5,0]
["Universitäten","Berlin","privat, kirchlich","Zusammen",91,54,4,0,46,4,0,0,0,37,0,0,28,0,0,9,0]
["Universitäten","Berlin","zusammen","Zusammen",1709,1180,260,135,91,504,190,0,0,529,22,7,70,15,84,180,151]
["Universitäten","Brandenburg","öffentlich","Brandenburgische TU Cottbus-Senftenberg",216,161,36,43,21,33,28,0,0,55,0,1,0,10,6,4,34]
["Universitäten","Brandenburg","öffentlich","Europa-U Viadrina Frankfurt (Oder)",72,56,19,4,0,29,4,0,0,16,0,0,0,5,2,9,0]
["Universitäten","Brandenburg","öffentlich","U Potsdam",252,209,55,28,15,77,34,0,0,43,0,0,22,5,3,13,0]
["Universitäten","Brandenburg","öffentlich","Filmuniversität Babelsberg",43,23,1,3,2,14,3,0,0,20,0,0,0,12,6,0,2]
["Universitäten","Brandenburg","öffentlich","Zusammen",583,449,111,78,38,153,69,0,0,134,0,1,22,32,17,26,36]
["Universitäten","Brandenburg","zusammen","Zusammen",583,449,111,78,38,153,69,0,0,134,0,1,22,32,17,26,36]
["Universitäten","Bremen","öffentlich","U Bremen",302,248,28,35,0,123,62,0,0,54,1,4,12,7,22,8,0]
["Universitäten","Bremen","öffentlich","Zusammen",302,248,28,35,0,123,62,0,0,54,1,4,12,7,22,8,0]
["Universitäten","Bremen","privat, kirchlich","Jacobs University Bremen (Priv. H)",88,29,0,0,29,0,0,0,0,59,0,0,59,0,0,0,0]
["Universitäten","Bremen","privat, kirchlich","Zusammen",88,29,0,0,29,0,0,0,0,59,0,0,59,0,0,0,0]
["Universitäten","Bremen","zusammen","Zusammen",390,277,28,35,29,123,62,0,0,113,1,4,71,7,22,8,0]
["Universitäten","Hamburg","öffentlich","U Hamburg",696,544,98,79,44,212,111,0,0,152,5,0,63,1,2,80,1]
["Universitäten","Hamburg","öffentlich","TU Hamburg-Harburg",93,91,21,14,0,44,12,0,0,2,0,0,1,0,0,1,0]
["Universitäten","Hamburg","öffentlich","Hafencity Universität Hamburg",43,43,2,10,9,8,14,0,0,0,0,0,0,0,0,0,0]
["Universitäten","Hamburg","öffentlich","Helmut-Schmidt-Universität Hamburg",88,80,24,5,0,36,15,0,0,8,0,0,0,3,5,0,0]
["Universitäten","Hamburg","öffentlich","Zusammen",920,758,145,108,53,300,152,0,0,162,5,0,64,4,7,81,1]
["Universitäten","Hamburg","privat, kirchlich","Bucerius Law School Hamburg (Priv. H)",14,12,0,0,12,0,0,0,0,2,0,0,1,0,0,1,0]
["Universitäten","Hamburg","privat, kirchlich","KLU Kühne Logistics University (Priv.)",16,3,0,0,3,0,0,0,0,13,0,0,13,0,0,0,0]
["Universitäten","Hamburg","privat, kirchlich","Zusammen",30,15,0,0,15,0,0,0,0,15,0,0,14,0,0,1,0]
["Universitäten","Hamburg","zusammen","Zusammen",950,773,145,108,68,300,152,0,0,177,5,0,78,4,7,82,1]
["Universitäten","Hessen","öffentlich","TU Darmstadt",312,256,61,25,0,129,41,0,0,56,0,0,14,6,8,23,5]
["Universitäten","Hessen","öffentlich","U Frankfurt a.M.",576,454,95,73,0,236,50,0,0,122,0,0,28,14,31,44,5]
["Universitäten","Hessen","öffentlich","U Gießen",330,287,60,41,1,122,63,0,0,43,0,0,24,1,3,15,0]
["Universitäten","Hessen","öffentlich","U Kassel",332,271,64,39,1,88,79,0,0,61,0,0,21,4,10,15,11]
["Universitäten","Hessen","öffentlich","U Marburg",313,269,50,57,1,110,51,0,0,44,0,0,22,0,5,15,2]
["Universitäten","Hessen","öffentlich","Zusammen",1863,1537,330,235,3,685,284,0,0,326,0,0,109,25,57,112,23]
["Universitäten","Hessen","privat, kirchlich","Universitätsklinikum Gießen und Marburg",82,77,22,10,0,36,9,0,0,5,0,0,0,4,1,0,0]
["Universitäten","Hessen","privat, kirchlich","Frankfurt School of Finance & Management-HfB (Priv. H)",49,29,0,0,29,0,0,0,0,20,0,0,12,0,0,8,0]
["Universitäten","Hessen","privat, kirchlich","EBS U für Wirtschaft und Recht (Priv.)",35,16,0,0,16,0,0,0,0,19,0,0,12,0,0,7,0]
["Universitäten","Hessen","privat, kirchlich","Zusammen",166,122,22,10,45,36,9,0,0,44,0,0,24,4,1,15,0]
["Universitäten","Hessen","zusammen","Zusammen",2029,1659,352,245,48,721,293,0,0,370,0,0,133,29,58,127,23]
["Universitäten","Mecklenburg-Vorpommern","öffentlich","U Greifswald",191,173,68,34,3,44,24,0,0,18,1,0,1,1,4,11,0]
["Universitäten","Mecklenburg-Vorpommern","öffentlich","U Rostock",272,254,72,56,0,77,49,0,0,18,1,0,0,6,7,4,0]
["Universitäten","Mecklenburg-Vorpommern","öffentlich","Zusammen",463,427,140,90,3,121,73,0,0,36,2,0,1,7,11,15,0]
["Universitäten","Mecklenburg-Vorpommern","zusammen","Zusammen",463,427,140,90,3,121,73,0,0,36,2,0,1,7,11,15,0]
["Universitäten","Niedersachsen","öffentlich","TU Braunschweig",221,205,57,32,0,77,39,0,0,16,0,0,0,2,12,2,0]
["Universitäten","Niedersachsen","öffentlich","TU Clausthal",79,65,25,13,0,20,7,0,0,14,0,0,0,3,8,3,0]
["Universitäten","Niedersachsen","öffentlich","U Göttingen",520,422,79,48,38,176,81,0,0,98,1,0,12,12,36,37,0]
["Universitäten","Niedersachsen","öffentlich","U Hannover",333,285,65,41,0,137,42,0,0,48,0,0,0,9,10,28,1]
["Universitäten","Niedersachsen","öffentlich","Medizinische H Hannover",150,119,13,5,83,10,8,0,0,31,2,0,17,0,0,12,0]
["Universitäten","Niedersachsen","öffentlich","Tierärztliche H Hannover",52,46,14,16,0,9,7,0,0,6,0,0,0,0,2,4,0]
["Universitäten","Niedersachsen","öffentlich","U Hildesheim",82,67,7,8,0,22,30,0,0,15,0,0,0,0,5,10,0]
["Universitäten","Niedersachsen","öffentlich","U Lüneburg",182,116,9,33,21,28,25,0,0,66,0,0,10,3,19,14,20]
["Universitäten","Niedersachsen","öffentlich","U Oldenburg",203,182,16,20,0,80,66,0,0,21,0,0,0,1,2,17,1]
["Universitäten","Niedersachsen","öffentlich","U Osnabrück",215,178,28,24,0,80,46,0,0,37,0,0,0,11,11,15,0]
["Universitäten","Niedersachsen","öffentlich","Universität Vechta",60,49,4,8,0,12,25,0,0,11,0,0,0,0,6,5,0]
["Universitäten","Niedersachsen","öffentlich","Zusammen",2097,1734,317,248,142,651,376,0,0,363,3,0,39,41,111,147,22]
["Universitäten","Niedersachsen","zusammen","Zusammen",2097,1734,317,248,142,651,376,0,0,363,3,0,39,41,111,147,22]
["Universitäten","Nordrhein-Westfalen","öffentlich","TH Aachen",488,311,84,52,0,117,58,0,0,177,23,13,0,44,58,39,0]
["Universitäten","Nordrhein-Westfalen","öffentlich","U Bielefeld",261,224,63,20,0,86,55,0,0,37,0,0,0,9,11,17,0]
["Universitäten","Nordrhein-Westfalen","öffentlich","U Bochum",449,367,98,49,0,140,80,0,0,82,0,0,0,9,16,54,3]
["Universitäten","Nordrhein-Westfalen","öffentlich","U Bonn",546,466,127,77,3,164,95,0,0,80,2,0,1,10,38,29,0]
["Universitäten","Nordrhein-Westfalen","öffentlich","U Dortmund",302,242,71,30,0,86,55,0,0,60,1,0,4,25,11,19,0]
["Universitäten","Nordrhein-Westfalen","öffentlich","U Düsseldorf",326,259,70,39,29,74,47,0,0,67,0,0,9,10,13,30,5]
["Universitäten","Nordrhein-Westfalen","öffentlich","U Duisburg-Essen",495,414,106,40,11,177,80,0,0,81,0,1,0,8,19,22,31]
["Universitäten","Nordrhein-Westfalen","öffentlich","Fernuniversität Hagen",86,74,20,12,0,32,10,0,0,12,0,0,0,7,4,1,0]
["Universitäten","Nordrhein-Westfalen","öffentlich","U Köln",594,469,119,79,3,168,100,0,0,125,2,1,1,7,36,50,28]
["Universitäten","Nordrhein-Westfalen","öffentlich","Deutsche Sporthochschule Köln",30,26,4,3,0,11,8,0,0,4,0,0,0,0,1,3,0]
["Universitäten","Nordrhein-Westfalen","öffentlich","U Münster",613,529,120,90,1,212,106,0,0,84,1,0,0,17,21,45,0]
["Universitäten","Nordrhein-Westfalen","öffentlich","U Paderborn",230,191,38,24,0,87,42,0,0,39,0,0,0,8,13,18,0]
["Universitäten","Nordrhein-Westfalen","öffentlich","U Siegen",244,199,33,44,6,73,43,0,0,45,0,0,0,5,24,16,0]
["Universitäten","Nordrhein-Westfalen","öffentlich","U Wuppertal",254,204,33,39,2,79,51,0,0,50,2,4,0,7,19,18,0]
["Universitäten","Nordrhein-Westfalen","öffentlich","Deutsche Hochschule der Polizei, Münster ",6,6,0,0,0,2,4,0,0,0,0,0,0,0,0,0,0]
["Universitäten","Nordrhein-Westfalen","öffentlich","Zusammen",4924,3981,986,598,55,1508,834,0,0,943,31,19,15,166,284,361,67]
["Universitäten","Nordrhein-Westfalen","privat, kirchlich","Universität Witten-Herdecke (Priv. H)",55,34,0,0,34,0,0,0,0,21,0,0,18,0,0,3,0]
["Universitäten","Nordrhein-Westfalen","privat, kirchlich","Zusammen",55,34,0,0,34,0,0,0,0,21,0,0,18,0,0,3,0]
["Universitäten","Nordrhein-Westfalen","zusammen","Zusammen",4979,4015,986,598,89,1508,834,0,0,964,31,19,33,166,284,364,67]
["Universitäten","Rheinland-Pfalz","öffentlich","TU Kaiserslautern",212,159,39,17,0,61,42,0,0,53,6,5,0,1,6,35,0]
["Universitäten","Rheinland-Pfalz","öffentlich","U Koblenz-Landau",149,131,18,31,0,44,38,0,0,18,0,0,0,0,5,13,0]
["Universitäten","Rheinland-Pfalz","öffentlich","U Mainz",412,329,78,58,0,107,86,0,0,83,3,1,1,12,28,38,0]
["Universitäten","Rheinland-Pfalz","öffentlich","Universitätsmedizin der U Mainz",72,48,0,0,48,0,0,0,0,24,0,0,24,0,0,0,0]
["Universitäten","Rheinland-Pfalz","öffentlich","Deutsche Universität für Verwaltungswissenschaften Speyer",18,15,8,0,0,7,0,0,0,3,0,0,2,0,0,0,1]
["Universitäten","Rheinland-Pfalz","öffentlich","U Trier",161,134,21,16,0,70,27,0,0,27,0,0,0,3,15,9,0]
["Universitäten","Rheinland-Pfalz","öffentlich","Zusammen",1024,816,164,122,48,289,193,0,0,208,9,6,27,16,54,95,1]
["Universitäten","Rheinland-Pfalz","privat, kirchlich","Priv. wiss. H für Unternehmensführung, Vallendar",47,32,0,0,32,0,0,0,0,15,0,0,5,0,0,10,0]
["Universitäten","Rheinland-Pfalz","privat, kirchlich","Zusammen",47,32,0,0,32,0,0,0,0,15,0,0,5,0,0,10,0]
["Universitäten","Rheinland-Pfalz","zusammen","Zusammen",1071,848,164,122,80,289,193,0,0,223,9,6,32,16,54,105,1]
["Universitäten","Saarland","öffentlich","U des Saarlandes Saarbrücken",290,255,61,27,1,148,18,0,0,35,1,0,3,3,10,18,0]
["Universitäten","Saarland","öffentlich","Zusammen",290,255,61,27,1,148,18,0,0,35,1,0,3,3,10,18,0]
["Universitäten","Saarland","zusammen","Zusammen",290,255,61,27,1,148,18,0,0,35,1,0,3,3,10,18,0]
["Universitäten","Sachsen","öffentlich","TU Chemnitz",170,136,41,22,5,52,16,0,0,34,2,0,13,0,2,17,0]
["Universitäten","Sachsen","öffentlich","TU Dresden",506,438,126,73,0,153,86,0,0,68,1,0,1,12,31,21,2]
["Universitäten","Sachsen","öffentlich","TU Dresden (Med. Fakultät)",52,45,10,13,0,10,12,0,0,7,0,0,0,2,5,0,0]
["Universitäten","Sachsen","öffentlich","TU Bergakademie Freiberg",90,80,29,17,0,29,5,0,0,10,0,0,0,4,2,4,0]
["Universitäten","Sachsen","öffentlich","U Leipzig",411,351,96,54,44,98,59,0,0,60,0,1,33,0,5,20,1]
["Universitäten","Sachsen","öffentlich","U Leipzig (Med. Fakultät)",56,49,17,20,2,7,3,0,0,7,0,0,2,1,4,0,0]
["Universitäten","Sachsen","öffentlich","Zusammen",1285,1099,319,199,51,349,181,0,0,186,3,1,49,19,49,62,3]
["Universitäten","Sachsen","privat, kirchlich","HHL Leipzig Graduate School of Management (Priv. U)",14,9,0,0,9,0,0,0,0,5,0,0,2,0,0,3,0]
["Universitäten","Sachsen","privat, kirchlich","Zusammen",14,9,0,0,9,0,0,0,0,5,0,0,2,0,0,3,0]
["Universitäten","Sachsen","zusammen","Zusammen",1299,1108,319,199,60,349,181,0,0,191,3,1,51,19,49,65,3]
["Universitäten","Sachsen-Anhalt","öffentlich","U Halle",372,340,96,72,30,101,41,0,0,32,0,0,1,3,21,7,0]
["Universitäten","Sachsen-Anhalt","öffentlich","U Magdeburg",215,177,65,26,0,57,29,0,0,38,0,0,2,1,11,24,0]
["Universitäten","Sachsen-Anhalt","öffentlich","Zusammen",587,517,161,98,30,158,70,0,0,70,0,0,3,4,32,31,0]
["Universitäten","Sachsen-Anhalt","zusammen","Zusammen",587,517,161,98,30,158,70,0,0,70,0,0,3,4,32,31,0]
["Universitäten","Schleswig-Holstein","öffentlich","U Flensburg",65,54,8,13,1,23,9,0,0,11,0,0,0,3,1,7,0]
["Universitäten","Schleswig-Holstein","öffentlich","U Kiel",451,372,88,58,0,140,86,0,0,79,5,0,0,3,20,40,11]
["Universitäten","Schleswig-Holstein","öffentlich","U Lübeck",44,32,9,0,0,15,8,0,0,12,1,0,0,1,4,6,0]
["Universitäten","Schleswig-Holstein","öffentlich","Zusammen",560,458,105,71,1,178,103,0,0,102,6,0,0,7,25,53,11]
["Universitäten","Schleswig-Holstein","zusammen","Zusammen",560,458,105,71,1,178,103,0,0,102,6,0,0,7,25,53,11]
["Universitäten","Thüringen","öffentlich","U Erfurt",107,81,23,13,0,27,18,0,0,26,0,0,0,3,9,6,8]
["Universitäten","Thüringen","öffentlich","TU Ilmenau",104,84,23,12,3,33,13,0,0,20,0,0,2,5,4,9,0]
["Universitäten","Thüringen","öffentlich","U Jena",385,299,70,46,21,124,38,0,0,86,4,0,11,20,31,20,0]
["Universitäten","Thüringen","öffentlich","Bauhaus-U Weimar",100,65,19,14,0,17,15,0,0,35,0,0,0,6,2,18,9]
["Universitäten","Thüringen","öffentlich","Zusammen",696,529,135,85,24,201,84,0,0,167,4,0,13,34,46,53,17]
["Universitäten","Thüringen","zusammen","Zusammen",696,529,135,85,24,201,84,0,0,167,4,0,13,34,46,53,17]
["Universitäten","Zusammen","zusammen","Zusammen",24001,19467,4536,2863,784,7944,3340,0,0,4534,120,47,627,582,1184,1579,395]
["Pädagogische Hochschulen","Baden-Württemberg","öffentlich","PH Freiburg i.Br.",58,49,10,15,0,23,1,0,0,9,0,0,0,7,0,1,1]
["Pädagogische Hochschulen","Baden-Württemberg","öffentlich","PH Heidelberg",69,61,8,4,0,49,0,0,0,8,0,0,0,4,1,3,0]
["Pädagogische Hochschulen","Baden-Württemberg","öffentlich","PH Karlsruhe",50,46,10,7,3,26,0,0,0,4,0,0,2,0,0,2,0]
["Pädagogische Hochschulen","Baden-Württemberg","öffentlich","PH Ludwigsburg",81,72,10,18,0,44,0,0,0,9,0,0,0,5,4,0,0]
["Pädagogische Hochschulen","Baden-Württemberg","öffentlich","PH Schwäbisch Gmünd",43,37,5,5,0,26,1,0,0,6,0,0,0,1,1,4,0]
["Pädagogische Hochschulen","Baden-Württemberg","öffentlich","PH Weingarten",46,41,6,10,0,25,0,0,0,5,0,0,0,3,0,2,0]
["Pädagogische Hochschulen","Baden-Württemberg","öffentlich","Zusammen",347,306,49,59,3,193,2,0,0,41,0,0,2,20,6,12,1]
["Pädagogische Hochschulen","Baden-Württemberg","zusammen","Zusammen",347,306,49,59,3,193,2,0,0,41,0,0,2,20,6,12,1]
["Pädagogische Hochschulen","Zusammen","zusammen","Zusammen",347,306,49,59,3,193,2,0,0,41,0,0,2,20,6,12,1]
["Theologische Hochschulen","Bayern","privat, kirchlich","H für Philosophie München (rk)",10,10,0,0,10,0,0,0,0,0,0,0,0,0,0,0,0]
["Theologische Hochschulen","Bayern","privat, kirchlich","Augustana-H Neuendettelsau (ev)",8,8,5,0,1,2,0,0,0,0,0,0,0,0,0,0,0]
["Theologische Hochschulen","Bayern","privat, kirchlich","Zusammen",18,18,5,0,11,2,0,0,0,0,0,0,0,0,0,0,0]
["Theologische Hochschulen","Bayern","zusammen","Zusammen",18,18,5,0,11,2,0,0,0,0,0,0,0,0,0,0,0]
["Theologische Hochschulen","Hessen","privat, kirchlich","Phil.-Theol. H Frankfurt a.M. (rk)",13,10,7,0,0,3,0,0,0,3,0,0,0,1,0,1,1]
["Theologische Hochschulen","Hessen","privat, kirchlich","Theol. Fakultät Fulda (rk)",11,11,7,0,0,4,0,0,0,0,0,0,0,0,0,0,0]
["Theologische Hochschulen","Hessen","privat, kirchlich","Luth.-Theol. H Oberursel (ev)",5,2,0,0,2,0,0,0,0,3,0,0,3,0,0,0,0]
["Theologische Hochschulen","Hessen","privat, kirchlich","Theologische H Ewersbach in Dietzhölztal (Priv.)",5,5,0,0,5,0,0,0,0,0,0,0,0,0,0,0,0]
["Theologische Hochschulen","Hessen","privat, kirchlich","Freie Theologische H (FTH) Gießen (Priv.)",6,6,0,0,6,0,0,0,0,0,0,0,0,0,0,0,0]
["Theologische Hochschulen","Hessen","privat, kirchlich","Evangelische Hochschule Tabor in Marburg (Priv.)",7,7,0,0,7,0,0,0,0,0,0,0,0,0,0,0,0]
["Theologische Hochschulen","Hessen","privat, kirchlich","Zusammen",47,41,14,0,20,7,0,0,0,6,0,0,3,1,0,1,1]
["Theologische Hochschulen","Hessen","zusammen","Zusammen",47,41,14,0,20,7,0,0,0,6,0,0,3,1,0,1,1]
["Theologische Hochschulen","Nordrhein-Westfalen","privat, kirchlich","H für Kirchenmusik der evang. Kirche von Westfalen, Herford",10,10,0,0,10,0,0,0,0,0,0,0,0,0,0,0,0]
["Theologische Hochschulen","Nordrhein-Westfalen","privat, kirchlich","Phil.-Theol. H Münster (rk)",2,2,0,0,2,0,0,0,0,0,0,0,0,0,0,0,0]
["Theologische Hochschulen","Nordrhein-Westfalen","privat, kirchlich","Theol. Fakultät Paderborn (rk)",14,14,10,2,0,2,0,0,0,0,0,0,0,0,0,0,0]
["Theologische Hochschulen","Nordrhein-Westfalen","privat, kirchlich","Phil.-Theol. H St. Augustin (rk)",8,8,0,0,8,0,0,0,0,0,0,0,0,0,0,0,0]
["Theologische Hochschulen","Nordrhein-Westfalen","privat, kirchlich","Kirchliche Hochschule Wuppertal / Bethel (ev)",11,9,6,0,0,3,0,0,0,2,0,0,0,1,0,1,0]
["Theologische Hochschulen","Nordrhein-Westfalen","privat, kirchlich","Zusammen",45,43,16,2,20,5,0,0,0,2,0,0,0,1,0,1,0]
["Theologische Hochschulen","Nordrhein-Westfalen","zusammen","Zusammen",45,43,16,2,20,5,0,0,0,2,0,0,0,1,0,1,0]
["Theologische Hochschulen","Rheinland-Pfalz","privat, kirchlich","Theol. Fakultät Trier",15,15,14,0,1,0,0,0,0,0,0,0,0,0,0,0,0]
["Theologische Hochschulen","Rheinland-Pfalz","privat, kirchlich","Theol. H Vallendar",20,15,0,0,15,0,0,0,0,5,0,0,3,0,0,2,0]
["Theologische Hochschulen","Rheinland-Pfalz","privat, kirchlich","Zusammen",35,30,14,0,16,0,0,0,0,5,0,0,3,0,0,2,0]
["Theologische Hochschulen","Rheinland-Pfalz","zusammen","Zusammen",35,30,14,0,16,0,0,0,0,5,0,0,3,0,0,2,0]
["Theologische Hochschulen","Sachsen-Anhalt","privat, kirchlich","Theol. H Friedensau",6,4,0,0,4,0,0,0,0,2,0,0,2,0,0,0,0]
["Theologische Hochschulen","Sachsen-Anhalt","privat, kirchlich","Zusammen",6,4,0,0,4,0,0,0,0,2,0,0,2,0,0,0,0]
["Theologische Hochschulen","Sachsen-Anhalt","zusammen","Zusammen",6,4,0,0,4,0,0,0,0,2,0,0,2,0,0,0,0]
["Theologische Hochschulen","Zusammen","zusammen","Zusammen",151,136,49,2,71,14,0,0,0,15,0,0,8,2,0,4,1]
["Kunsthochschulen","Baden-Württemberg","öffentlich","Staatl. H für Musik Freiburg i.Br.",58,53,0,23,10,16,4,0,0,5,0,0,0,4,1,0,0]
["Kunsthochschulen","Baden-Württemberg","öffentlich","Staatl. Akademie der Bildenden Künste Karlsruhe",21,16,6,4,0,3,3,0,0,5,0,0,0,4,0,0,1]
["Kunsthochschulen","Baden-Württemberg","öffentlich","Staatl. H für Gestaltung Karlsruhe",15,3,0,0,0,2,1,0,0,12,0,0,0,12,0,0,0]
["Kunsthochschulen","Baden-Württemberg","öffentlich","Staatl. H für Musik Karlsruhe",51,49,3,0,0,38,8,0,0,2,0,0,0,1,0,1,0]
["Kunsthochschulen","Baden-Württemberg","öffentlich","Staatl. H für Musik und Darstellende Kunst Mannheim",57,48,9,8,7,19,5,0,0,9,0,0,0,7,2,0,0]
["Kunsthochschulen","Baden-Württemberg","öffentlich","Staatl. Akademie der Bildenden Künste Stuttgart",52,45,18,5,2,16,4,0,0,7,0,0,0,1,2,0,4]
["Kunsthochschulen","Baden-Württemberg","öffentlich","Staatl. H für Musik und Darstellende Kunst Stuttgart",73,53,9,5,12,17,10,0,0,20,0,0,7,7,5,1,0]
["Kunsthochschulen","Baden-Württemberg","öffentlich","Staatl. H für Musik Trossingen",39,33,8,7,11,5,2,0,0,6,0,0,5,1,0,0,0]
["Kunsthochschulen","Baden-Württemberg","öffentlich","Zusammen",366,300,53,52,42,116,37,0,0,66,0,0,12,37,10,2,5]
["Kunsthochschulen","Baden-Württemberg","zusammen","Zusammen",366,300,53,52,42,116,37,0,0,66,0,0,12,37,10,2,5]
["Kunsthochschulen","Bayern","öffentlich","Akademie der Bildenden Künste München",35,27,8,8,0,7,4,0,0,8,0,0,0,3,0,1,4]
["Kunsthochschulen","Bayern","öffentlich","H für Fernsehen und Film München",12,4,4,0,0,0,0,0,0,8,2,1,0,4,1,0,0]
["Kunsthochschulen","Bayern","öffentlich","H für Musik und Theater München",83,80,20,12,2,26,20,0,0,3,0,0,0,2,1,0,0]
["Kunsthochschulen","Bayern","öffentlich","Akademie der Bildenden Künste Nürnberg",19,10,3,0,0,6,1,0,0,9,0,0,0,6,3,0,0]
["Kunsthochschulen","Bayern","öffentlich","H für Musik Nürnberg",31,29,6,6,0,6,11,0,0,2,0,0,0,2,0,0,0]
["Kunsthochschulen","Bayern","öffentlich","H für Musik Würzburg",48,45,10,13,1,14,7,0,0,3,0,0,0,1,2,0,0]
["Kunsthochschulen","Bayern","öffentlich","Zusammen",228,195,51,39,3,59,43,0,0,33,2,1,0,18,7,1,4]
["Kunsthochschulen","Bayern","privat, kirchlich","H für evang. Kirchenmusik Bayreuth",6,6,0,1,4,0,1,0,0,0,0,0,0,0,0,0,0]
["Kunsthochschulen","Bayern","privat, kirchlich","H für Kath. Kirchenmusik und Musikpädagogik, Regensburg",6,6,1,2,2,0,1,0,0,0,0,0,0,0,0,0,0]
["Kunsthochschulen","Bayern","privat, kirchlich","Zusammen",12,12,1,3,6,0,2,0,0,0,0,0,0,0,0,0,0]
["Kunsthochschulen","Bayern","zusammen","Zusammen",240,207,52,42,9,59,45,0,0,33,2,1,0,18,7,1,4]
["Kunsthochschulen","Berlin","öffentlich","U der Künste Berlin",227,152,28,20,25,45,34,0,0,75,0,0,3,3,2,5,62]
["Kunsthochschulen","Berlin","öffentlich","Kunsthochschule Berlin",46,29,4,2,1,11,11,0,0,17,0,0,0,5,1,0,11]
["Kunsthochschulen","Berlin","öffentlich","H für Musik Berlin",70,41,15,10,5,10,1,0,0,29,0,0,0,1,4,0,24]
["Kunsthochschulen","Berlin","öffentlich","H für Schauspielkunst Berlin",28,19,3,3,4,7,2,0,0,9,0,0,0,1,5,0,3]
["Kunsthochschulen","Berlin","öffentlich","Zusammen",371,241,50,35,35,73,48,0,0,130,0,0,3,10,12,5,100]
["Kunsthochschulen","Berlin","privat, kirchlich","ESMOD Berlin Internationale Kunsthochschule für Mode (Priv.)",2,2,0,0,2,0,0,0,0,0,0,0,0,0,0,0,0]
["Kunsthochschulen","Berlin","privat, kirchlich","Zusammen",2,2,0,0,2,0,0,0,0,0,0,0,0,0,0,0,0]
["Kunsthochschulen","Berlin","zusammen","Zusammen",373,243,50,35,37,73,48,0,0,130,0,0,3,10,12,5,100]
["Kunsthochschulen","Bremen","öffentlich","H für Künste Bremen",65,56,5,13,8,17,13,0,0,9,0,0,0,1,5,0,3]
["Kunsthochschulen","Bremen","öffentlich","Zusammen",65,56,5,13,8,17,13,0,0,9,0,0,0,1,5,0,3]
["Kunsthochschulen","Bremen","zusammen","Zusammen",65,56,5,13,8,17,13,0,0,9,0,0,0,1,5,0,3]
["Kunsthochschulen","Hamburg","öffentlich","H für Bildende Künste Hamburg",34,34,2,7,1,17,7,0,0,0,0,0,0,0,0,0,0]
["Kunsthochschulen","Hamburg","öffentlich","H für Musik und Theater Hamburg",27,11,0,1,1,4,5,0,0,16,0,0,0,0,0,0,16]
["Kunsthochschulen","Hamburg","öffentlich","Zusammen",61,45,2,8,2,21,12,0,0,16,0,0,0,0,0,0,16]
["Kunsthochschulen","Hamburg","zusammen","Zusammen",61,45,2,8,2,21,12,0,0,16,0,0,0,0,0,0,16]
["Kunsthochschulen","Hessen","öffentlich","H für Bildende Künste Frankfurt a.M. (Städelschule)",12,2,2,0,0,0,0,0,0,10,2,2,0,2,4,0,0]
["Kunsthochschulen","Hessen","öffentlich","H für Musik und Darstellende Kunst Frankfurt a.M.",63,59,7,12,9,15,16,0,0,4,0,0,2,1,1,0,0]
["Kunsthochschulen","Hessen","öffentlich","H für Gestaltung Offenbach",25,16,4,4,1,1,6,0,0,9,0,0,2,0,7,0,0]
["Kunsthochschulen","Hessen","öffentlich","Zusammen",100,77,13,16,10,16,22,0,0,23,2,2,4,3,12,0,0]
["Kunsthochschulen","Hessen","zusammen","Zusammen",100,77,13,16,10,16,22,0,0,23,2,2,4,3,12,0,0]
["Kunsthochschulen","Mecklenburg-Vorpommern","öffentlich","H für Musik und Theater, Rostock",27,23,4,4,2,5,8,0,0,4,0,0,0,2,1,1,0]
["Kunsthochschulen","Mecklenburg-Vorpommern","öffentlich","Zusammen",27,23,4,4,2,5,8,0,0,4,0,0,0,2,1,1,0]
["Kunsthochschulen","Mecklenburg-Vorpommern","zusammen","Zusammen",27,23,4,4,2,5,8,0,0,4,0,0,0,2,1,1,0]
["Kunsthochschulen","Niedersachsen","öffentlich","H für Bildende Künste Braunschweig",46,33,6,9,3,7,8,0,0,13,0,0,0,2,10,0,1]
["Kunsthochschulen","Niedersachsen","öffentlich","Hochschule für Musik, Theater und Medien Hannover",90,81,13,17,12,21,18,0,0,9,0,0,0,2,7,0,0]
["Kunsthochschulen","Niedersachsen","öffentlich","Zusammen",136,114,19,26,15,28,26,0,0,22,0,0,0,4,17,0,1]
["Kunsthochschulen","Niedersachsen","zusammen","Zusammen",136,114,19,26,15,28,26,0,0,22,0,0,0,4,17,0,1]
["Kunsthochschulen","Nordrhein-Westfalen","öffentlich","H für Musik Detmold",54,48,10,11,0,15,12,0,0,6,0,0,0,4,2,0,0]
["Kunsthochschulen","Nordrhein-Westfalen","öffentlich","Kunstakademie Düsseldorf",39,34,3,5,11,10,5,0,0,5,0,0,4,0,1,0,0]
["Kunsthochschulen","Nordrhein-Westfalen","öffentlich","Robert-Schumann-H Düsseldorf",43,42,5,9,14,11,3,0,0,1,0,0,1,0,0,0,0]
["Kunsthochschulen","Nordrhein-Westfalen","öffentlich","Folkwang-Hochschule Essen",99,95,16,36,1,11,31,0,0,4,0,0,0,1,3,0,0]
["Kunsthochschulen","Nordrhein-Westfalen","öffentlich","KH für Medien Köln",30,25,4,7,0,9,5,0,0,5,0,1,0,2,1,0,1]
["Kunsthochschulen","Nordrhein-Westfalen","öffentlich","H für Musik Köln",115,104,25,39,0,12,28,0,0,11,0,1,0,4,6,0,0]
["Kunsthochschulen","Nordrhein-Westfalen","öffentlich","Kunstakademie Münster",22,15,2,3,0,6,4,0,0,7,0,0,0,2,0,0,5]
["Kunsthochschulen","Nordrhein-Westfalen","öffentlich","Zusammen",402,363,65,110,26,74,88,0,0,39,0,2,5,13,13,0,6]
["Kunsthochschulen","Nordrhein-Westfalen","privat, kirchlich","Alanus H Alfter (Priv. H)",42,29,0,0,29,0,0,0,0,13,0,0,5,0,0,8,0]
["Kunsthochschulen","Nordrhein-Westfalen","privat, kirchlich","Hochschule der bildenden Künste (HBK) Essen  (Priv. Kunst-H)",4,4,0,0,4,0,0,0,0,0,0,0,0,0,0,0,0]
["Kunsthochschulen","Nordrhein-Westfalen","privat, kirchlich","Zusammen",46,33,0,0,33,0,0,0,0,13,0,0,5,0,0,8,0]
["Kunsthochschulen","Nordrhein-Westfalen","zusammen","Zusammen",448,396,65,110,59,74,88,0,0,52,0,2,10,13,13,8,6]
["Kunsthochschulen","Saarland","öffentlich","H der Bildenden Künste Saarbrücken",17,15,1,2,0,12,0,0,0,2,0,0,0,2,0,0,0]
["Kunsthochschulen","Saarland","öffentlich","Hochschule für Musik, Saarbrücken",41,41,7,7,4,13,10,0,0,0,0,0,0,0,0,0,0]
["Kunsthochschulen","Saarland","öffentlich","Zusammen",58,56,8,9,4,25,10,0,0,2,0,0,0,2,0,0,0]
["Kunsthochschulen","Saarland","zusammen","Zusammen",58,56,8,9,4,25,10,0,0,2,0,0,0,2,0,0,0]
["Kunsthochschulen","Sachsen","öffentlich","H für Bildende Künste Dresden",31,25,0,0,0,13,12,0,0,6,0,0,0,0,6,0,0]
["Kunsthochschulen","Sachsen","öffentlich","H für Musik Dresden",71,55,9,9,14,13,10,0,0,16,0,0,0,10,6,0,0]
["Kunsthochschulen","Sachsen","öffentlich","Palucca Hochschule für Tanz Dresden",9,7,0,0,0,0,7,0,0,2,0,0,0,1,1,0,0]
["Kunsthochschulen","Sachsen","öffentlich","H für Graphik und Buchkunst Leipzig",33,22,3,3,4,6,6,0,0,11,0,0,0,5,5,1,0]
["Kunsthochschulen","Sachsen","öffentlich","H für Musik und Theater Leipzig",77,70,12,11,10,20,17,0,0,7,0,0,0,2,5,0,0]
["Kunsthochschulen","Sachsen","öffentlich","Zusammen",221,179,24,23,28,52,52,0,0,42,0,0,0,18,23,1,0]
["Kunsthochschulen","Sachsen","privat, kirchlich","H für Kirchenmusik der Evang.-Luth. Landeskirche Sachsens, Dresden",5,5,0,0,5,0,0,0,0,0,0,0,0,0,0,0,0]
["Kunsthochschulen","Sachsen","privat, kirchlich","Zusammen",5,5,0,0,5,0,0,0,0,0,0,0,0,0,0,0,0]
["Kunsthochschulen","Sachsen","zusammen","Zusammen",226,184,24,23,33,52,52,0,0,42,0,0,0,18,23,1,0]
["Kunsthochschulen","Sachsen-Anhalt","öffentlich","Burg Giebichenstein Kunsthochschule Halle",46,35,6,5,11,3,10,0,0,11,0,0,0,0,11,0,0]
["Kunsthochschulen","Sachsen-Anhalt","öffentlich","Zusammen",46,35,6,5,11,3,10,0,0,11,0,0,0,0,11,0,0]
["Kunsthochschulen","Sachsen-Anhalt","privat, kirchlich","Evang. H für Kirchenmusik Halle",1,1,0,0,1,0,0,0,0,0,0,0,0,0,0,0,0]
["Kunsthochschulen","Sachsen-Anhalt","privat, kirchlich","Zusammen",1,1,0,0,1,0,0,0,0,0,0,0,0,0,0,0,0]
["Kunsthochschulen","Sachsen-Anhalt","zusammen","Zusammen",47,36,6,5,12,3,10,0,0,11,0,0,0,0,11,0,0]
["Kunsthochschulen","Schleswig-Holstein","öffentlich","Muthesius Kunsthochschule Kiel",27,24,0,7,0,1,16,0,0,3,0,0,0,3,0,0,0]
["Kunsthochschulen","Schleswig-Holstein","öffentlich","Musikhochschule Lübeck",30,26,7,6,4,5,4,0,0,4,0,0,0,1,3,0,0]
["Kunsthochschulen","Schleswig-Holstein","öffentlich","Zusammen",57,50,7,13,4,6,20,0,0,7,0,0,0,4,3,0,0]
["Kunsthochschulen","Schleswig-Holstein","zusammen","Zusammen",57,50,7,13,4,6,20,0,0,7,0,0,0,4,3,0,0]
["Kunsthochschulen","Thüringen","öffentlich","H für Musik Weimar",70,64,16,24,9,11,4,0,0,6,0,0,0,2,4,0,0]
["Kunsthochschulen","Thüringen","öffentlich","Zusammen",70,64,16,24,9,11,4,0,0,6,0,0,0,2,4,0,0]
["Kunsthochschulen","Thüringen","zusammen","Zusammen",70,64,16,24,9,11,4,0,0,6,0,0,0,2,4,0,0]
["Kunsthochschulen","Zusammen","zusammen","Zusammen",2274,1851,324,380,246,506,395,0,0,423,4,5,29,114,118,18,135]
["Insgesamt","Zusammen","zusammen","Zusammen",26773,21760,4958,3304,1104,8657,3737,0,0,5013,124,52,666,718,1308,1613,532]
["  darunter Universitäten",null,null,null,24001,19467,4536,2863,784,7944,3340,0,0,4534,120,47,627,582,1184,1579,395]